Workbook

Sheet ごみ処理概要
A1: ごみ処理の概要（平成28年度実績）
A2: 都道府県名 | B2: 地方公共団体コード | C2: 市区町村名 | D2: 総人口 | G2: 外国人人口 | H2: ごみ総排出量 (計画収集量+直接搬入量+集団回収量) | L2: １人１日当たりの排出量 | O2: 自家処理量 | P2: ごみ処理量 (直接焼却量+直接最終処分量+焼却以外の中間処理量+直接資源化量) | AB2: 減量処理率 (直接資源化量+直接焼却量+焼却以外の中間処理量)/ごみ処理量*100 | AC2: 中間処理後再生利用量 (焼却施設＋粗大ごみ処理施設+ごみ堆肥化施設+ごみ飼料化施設+メタン化施設+ごみ燃料化施設+その他の資源化等を行う施設+その他の施設) | AK2: リサイクル率 Ｒ (直接資源化量+中間処理後再生利用量+集団回収量)/(ごみ処理量+集団回収量)*100 | AL2: リサイクル率 Ｒ’ (直接資源化量+中間処理後再生利用量〔固形燃料、焼却灰・飛灰のｾﾒﾝﾄ原料化、セメント等への直接投入、飛灰の山元還元 を除く〕+集団回収量)/(ごみ処理量+集団回収量)*100 | AM2: 最終処分量 (直接最終処分量+焼却残渣量+処理残渣量)
E3: 計画収集人口 | F3: 自家処理人口 | H3: 計画収集量 | I3: 直接搬入量 | J3: 集団回収量 | K3: 合計 | L3: 合計 (ごみ総排出量)*10^6/総人口/365 | M3: 生活系ごみ (生活系ごみ搬入量+集団回収量)*10^6/総人口/365 | N3: 事業系ごみ (事業系ごみ搬入量)*10^6/総人口/365 | P3: 直接焼却量 | Q3: 直接最終 処分量 | R3: 焼却以外の中間処理量(粗大ごみ処理施設+ごみ堆肥化施設+ごみ飼料化施設+メタン化施設+ごみ燃料化施設+その他の資源化等を行う施設+その他の施設) | Z3: 直接 資源化量 | AA3: 合計 | AC3: 焼却施設 | AD3: 粗大ごみ 処理施設 | AE3: ごみ堆肥化施設 | AF3: ごみ飼料化施設 | AG3: メタン化施設 | AH3: ごみ燃料化施設 | AI3: その他の資源化等を行う施設 | AJ3: 合計 | AM3: 直接最終 処分量 | AN3: 焼却残渣量 | AO3: 処理残渣量 | AP3: 合計
R4: 合計 | S4: 粗大ごみ 処理施設 | T4: 資源化等を行う施設 | U4: ごみ堆肥化施設 | V4: ごみ飼料化施設 | W4: メタン化施設 | X4: ごみ燃料化 施設 | Y4: その他の 施設
D6: （人） | E6: （人） | F6: （人） | G6: （人） | H6: （ｔ） | I6: （ｔ） | J6: （ｔ） | K6: （ｔ） | L6: （g/人日) | M6: （g/人日) | N6: （g/人日) | O6: （ｔ） | P6: （ｔ） | Q6: （ｔ） | R6: （ｔ） | S6: （ｔ） | T6: （ｔ） | U6: （ｔ） | V6: （ｔ） | W6: （ｔ） | X6: （ｔ） | Y6: （ｔ） | Z6: （ｔ） | AA6: （ｔ） | AB6: （％） | AC6: （ｔ） | AD6: （ｔ） | AE6: （ｔ） | AF6: （ｔ） | AG6: （ｔ） | AH6: （ｔ） | AI6: （ｔ） | AJ6: （ｔ） | AK6: （％） | AL6: （％） | AM6: （ｔ） | AN6: （ｔ） | AO6: （ｔ） | AP6: （ｔ）
A7: 茨城県 | B7: 08000 | C7: 合計 | D7: =+E7+F7 -> 2,957,724 | E7: =SUM(E$8:E$1000) -> 2,957,724 | F7: =SUM(F$8:F$1000) -> 0 | G7: =SUM(G$8:G$1000) -> 56,334 | H7: =SUM(ごみ搬入量内訳!E7,+ごみ搬入量内訳!AD7) -> 945,257 | I7: =ごみ搬入量内訳!BC7 -> 84,110 | J7: =資源化量内訳!BO7 -> 31,924 | K7: =SUM(H7:J7) -> 1,061,291 | L7: =IF(D7<>0,K7/D7/365*1000000,"-") -> 983 | M7: =IF(D7<>0,(ごみ搬入量内訳!BR7+ごみ処理概要!J7)/ごみ処理概要!D7/365*1000000,"-") -> 708 | N7: =IF(D7<>0,ごみ搬入量内訳!CM7/ごみ処理概要!D7/365*1000000,"-") -> 275 | O7: =ごみ搬入量内訳!DH7 -> 12,701 | P7: =ごみ処理量内訳!E7 -> 793,577 | Q7: =ごみ処理量内訳!N7 -> 511 | R7: =SUM(S7:Y7) -> 150,923 | S7: =ごみ処理量内訳!G7 -> 43,643 | T7: =ごみ処理量内訳!L7 -> 64,006 | U7: =ごみ処理量内訳!H7 -> 2,852 | V7: =ごみ処理量内訳!I7 -> 0 | W7: =ごみ処理量内訳!J7 -> 0 | X7: =ごみ処理量内訳!K7 -> 40,124 | Y7: =ごみ処理量内訳!M7 -> 298 | Z7: =資源化量内訳!Y7 -> 91,541 | AA7: =SUM(P7,Q7,R7,Z7) -> 1,036,552 | AB7: =IF(AA7<>0,(Z7+P7+R7)/AA7*100,"-") -> 100.0 | AC7: =施設資源化量内訳!Y7 -> 30,127 | AD7: =施設資源化量内訳!AT7 -> 14,868 | AE7: =施設資源化量内訳!BO7 -> 1,267 | AF7: =施設資源化量内訳!CJ7 -> 0 | AG7: =施設資源化量内訳!DE7 -> 0 | AH7: =施設資源化量内訳!DZ7 -> 25,236 | AI7: =施設資源化量内訳!EU7 -> 43,542 | AJ7: =SUM(AC7:AI7) -> 115,040 | AK7: =IF((AA7+J7)<>0,(Z7+AJ7+J7)/(AA7+J7)*100,"-") -> 22.3 | AL7: =IF((AA7+J7)<>0,(資源化量内訳!D7-資源化量内訳!R7-資源化量内訳!T7-資源化量内訳!V7-資源化量内訳!U7)/(AA7+J7)*100,"-") -> 20.0 | AM7: =ごみ処理量内訳!AA7 -> 511 | AN7: =ごみ処理量内訳!AB7 -> 73,418 | AO7: =ごみ処理量内訳!AC7 -> 7,862 | AP7: =SUM(AM7:AO7) -> 81,791
A8: 茨城県 | B8: 08201 | C8: 水戸市 | D8: 271,047 | E8: 271,047 | F8: 0 | G8: 3,241 | H8: =SUM(ごみ搬入量内訳!E8,+ごみ搬入量内訳!AD8) -> 106,511 | I8: =ごみ搬入量内訳!BC8 -> 6,230 | J8: =資源化量内訳!BO8 -> 4,533 | K8: 117,274 | L8: 1,185 | M8: =IF(D8<>0,(ごみ搬入量内訳!BR8+ごみ処理概要!J8)/ごみ処理概要!D8/365*1000000,"-") -> 777 | N8: =IF(D8<>0,ごみ搬入量内訳!CM8/ごみ処理概要!D8/365*1000000,"-") -> 408 | O8: =ごみ搬入量内訳!DH8 -> 0 | P8: =ごみ処理量内訳!E8 -> 92,433 | Q8: =ごみ処理量内訳!N8 -> 0 | R8: 7,815 | S8: =ごみ処理量内訳!G8 -> 1,368 | T8: =ごみ処理量内訳!L8 -> 6,447 | U8: =ごみ処理量内訳!H8 -> 0 | V8: =ごみ処理量内訳!I8 -> 0 | W8: =ごみ処理量内訳!J8 -> 0 | X8: =ごみ処理量内訳!K8 -> 0 | Y8: =ごみ処理量内訳!M8 -> 0 | Z8: =資源化量内訳!Y8 -> 12,362 | AA8: 112,610 | AB8: 100.0 | AC8: =施設資源化量内訳!Y8 -> 293 | AD8: =施設資源化量内訳!AT8 -> 204 | AE8: =施設資源化量内訳!BO8 -> 0 | AF8: =施設資源化量内訳!CJ8 -> 0 | AG8: =施設資源化量内訳!DE8 -> 0 | AH8: =施設資源化量内訳!DZ8 -> 0 | AI8: =施設資源化量内訳!EU8 -> 4,884 | AJ8: 5,381 | AK8: 19.0 | AL8: =IF((AA8+J8)<>0,(資源化量内訳!D8-資源化量内訳!R8-資源化量内訳!T8-資源化量内訳!V8-資源化量内訳!U8)/(AA8+J8)*100,"-") -> 19.0 | AM8: =ごみ処理量内訳!AA8 -> 0 | AN8: =ごみ処理量内訳!AB8 -> 9,455 | AO8: =ごみ処理量内訳!AC8 -> 171 | AP8: 9,626 | AQ8: 081201
A9: 茨城県 | B9: 08202 | C9: 日立市 | D9: 185,039 | E9: 185,039 | F9: 0 | G9: 1,671 | H9: =SUM(ごみ搬入量内訳!E9,+ごみ搬入量内訳!AD9) -> 53,065 | I9: =ごみ搬入量内訳!BC9 -> 9,572 | J9: =資源化量内訳!BO9 -> 181 | K9: 62,818 | L9: 930 | M9: =IF(D9<>0,(ごみ搬入量内訳!BR9+ごみ処理概要!J9)/ごみ処理概要!D9/365*1000000,"-") -> 677 | N9: =IF(D9<>0,ごみ搬入量内訳!CM9/ごみ処理概要!D9/365*1000000,"-") -> 254 | O9: =ごみ搬入量内訳!DH9 -> 0 | P9: =ごみ処理量内訳!E9 -> 51,119 | Q9: =ごみ処理量内訳!N9 -> 0 | R9: 7,736 | S9: =ごみ処理量内訳!G9 -> 3,166 | T9: =ごみ処理量内訳!L9 -> 4,570 | U9: =ごみ処理量内訳!H9 -> 0 | V9: =ごみ処理量内訳!I9 -> 0 | W9: =ごみ処理量内訳!J9 -> 0 | X9: =ごみ処理量内訳!K9 -> 0 | Y9: =ごみ処理量内訳!M9 -> 0 | Z9: =資源化量内訳!Y9 -> 2,425 | AA9: 61,280 | AB9: 100.0 | AC9: =施設資源化量内訳!Y9 -> 4,075 | AD9: =施設資源化量内訳!AT9 -> 1,722 | AE9: =施設資源化量内訳!BO9 -> 0 | AF9: =施設資源化量内訳!CJ9 -> 0 | AG9: =施設資源化量内訳!DE9 -> 0 | AH9: =施設資源化量内訳!DZ9 -> 0 | AI9: =施設資源化量内訳!EU9 -> 4,570 | AJ9: 10,367 | AK9: 21.1 | AL9: =IF((AA9+J9)<>0,(資源化量内訳!D9-資源化量内訳!R9-資源化量内訳!T9-資源化量内訳!V9-資源化量内訳!U9)/(AA9+J9)*100,"-") -> 21.1 | AM9: =ごみ処理量内訳!AA9 -> 0 | AN9: =ごみ処理量内訳!AB9 -> 1,130 | AO9: =ごみ処理量内訳!AC9 -> 917 | AP9: 2,047 | AQ9: 081202
A10: 茨城県 | B10: 08203 | C10: 土浦市 | D10: 143,699 | E10: 143,699 | F10: 0 | G10: 3,543 | H10: =SUM(ごみ搬入量内訳!E10,+ごみ搬入量内訳!AD10) -> 56,141 | I10: =ごみ搬入量内訳!BC10 -> 3,207 | J10: =資源化量内訳!BO10 -> 2,653 | K10: 62,001 | L10: 1,182 | M10: =IF(D10<>0,(ごみ搬入量内訳!BR10+ごみ処理概要!J10)/ごみ処理概要!D10/365*1000000,"-") -> 730 | N10: =IF(D10<>0,ごみ搬入量内訳!CM10/ごみ処理概要!D10/365*1000000,"-") -> 452 | O10: =ごみ搬入量内訳!DH10 -> 0 | P10: =ごみ処理量内訳!E10 -> 43,540 | Q10: =ごみ処理量内訳!N10 -> 0 | R10: 10,511 | S10: =ごみ処理量内訳!G10 -> 3,559 | T10: =ごみ処理量内訳!L10 -> 6,931 | U10: =ごみ処理量内訳!H10 -> 0 | V10: =ごみ処理量内訳!I10 -> 0 | W10: =ごみ処理量内訳!J10 -> 0 | X10: =ごみ処理量内訳!K10 -> 21 | Y10: =ごみ処理量内訳!M10 -> 0 | Z10: =資源化量内訳!Y10 -> 6,060 | AA10: 60,111 | AB10: 100.0 | AC10: =施設資源化量内訳!Y10 -> 260 | AD10: =施設資源化量内訳!AT10 -> 1,088 | AE10: =施設資源化量内訳!BO10 -> 0 | AF10: =施設資源化量内訳!CJ10 -> 0 | AG10: =施設資源化量内訳!DE10 -> 0 | AH10: =施設資源化量内訳!DZ10 -> 21 | AI10: =施設資源化量内訳!EU10 -> 6,902 | AJ10: 8,271 | AK10: 27.1 | AL10: =IF((AA10+J10)<>0,(資源化量内訳!D10-資源化量内訳!R10-資源化量内訳!T10-資源化量内訳!V10-資源化量内訳!U10)/(AA10+J10)*100,"-") -> 27.1 | AM10: =ごみ処理量内訳!AA10 -> 0 | AN10: =ごみ処理量内訳!AB10 -> 5,646 | AO10: =ごみ処理量内訳!AC10 -> 1,207 | AP10: 6,853 | AQ10: 081203
A11: 茨城県 | B11: 08204 | C11: 古河市 | D11: 144,394 | E11: 144,394 | F11: 0 | G11: 2,960 | H11: =SUM(ごみ搬入量内訳!E11,+ごみ搬入量内訳!AD11) -> 45,026 | I11: =ごみ搬入量内訳!BC11 -> 2,555 | J11: =資源化量内訳!BO11 -> 2,280 | K11: 49,861 | L11: 946 | M11: =IF(D11<>0,(ごみ搬入量内訳!BR11+ごみ処理概要!J11)/ごみ処理概要!D11/365*1000000,"-") -> 737 | N11: =IF(D11<>0,ごみ搬入量内訳!CM11/ごみ処理概要!D11/365*1000000,"-") -> 209 | O11: =ごみ搬入量内訳!DH11 -> 0 | P11: =ごみ処理量内訳!E11 -> 41,267 | Q11: =ごみ処理量内訳!N11 -> 0 | R11: 4,702 | S11: =ごみ処理量内訳!G11 -> 0 | T11: =ごみ処理量内訳!L11 -> 4,702 | U11: =ごみ処理量内訳!H11 -> 0 | V11: =ごみ処理量内訳!I11 -> 0 | W11: =ごみ処理量内訳!J11 -> 0 | X11: =ごみ処理量内訳!K11 -> 0 | Y11: =ごみ処理量内訳!M11 -> 0 | Z11: =資源化量内訳!Y11 -> 1,612 | AA11: 47,581 | AB11: 100.0 | AC11: =施設資源化量内訳!Y11 -> 1,314 | AD11: =施設資源化量内訳!AT11 -> 0 | AE11: =施設資源化量内訳!BO11 -> 0 | AF11: =施設資源化量内訳!CJ11 -> 0 | AG11: =施設資源化量内訳!DE11 -> 0 | AH11: =施設資源化量内訳!DZ11 -> 0 | AI11: =施設資源化量内訳!EU11 -> 3,083 | AJ11: 4,397 | AK11: 16.6 | AL11: =IF((AA11+J11)<>0,(資源化量内訳!D11-資源化量内訳!R11-資源化量内訳!T11-資源化量内訳!V11-資源化量内訳!U11)/(AA11+J11)*100,"-") -> 16.6 | AM11: =ごみ処理量内訳!AA11 -> 0 | AN11: =ごみ処理量内訳!AB11 -> 4,803 | AO11: =ごみ処理量内訳!AC11 -> 0 | AP11: 4,803 | AQ11: 081204
A12: 茨城県 | B12: 08205 | C12: 石岡市 | D12: 76,917 | E12: 76,917 | F12: 0 | G12: 927 | H12: =SUM(ごみ搬入量内訳!E12,+ごみ搬入量内訳!AD12) -> 26,642 | I12: =ごみ搬入量内訳!BC12 -> 3,756 | J12: =資源化量内訳!BO12 -> 375 | K12: 30,773 | L12: 1,096 | M12: =IF(D12<>0,(ごみ搬入量内訳!BR12+ごみ処理概要!J12)/ごみ処理概要!D12/365*1000000,"-") -> 721 | N12: =IF(D12<>0,ごみ搬入量内訳!CM12/ごみ処理概要!D12/365*1000000,"-") -> 375 | O12: =ごみ搬入量内訳!DH12 -> 0 | P12: =ごみ処理量内訳!E12 -> 23,432 | Q12: =ごみ処理量内訳!N12 -> 0 | R12: 2,672 | S12: =ごみ処理量内訳!G12 -> 1,850 | T12: =ごみ処理量内訳!L12 -> 822 | U12: =ごみ処理量内訳!H12 -> 0 | V12: =ごみ処理量内訳!I12 -> 0 | W12: =ごみ処理量内訳!J12 -> 0 | X12: =ごみ処理量内訳!K12 -> 0 | Y12: =ごみ処理量内訳!M12 -> 0 | Z12: =資源化量内訳!Y12 -> 4,304 | AA12: 30,408 | AB12: 100.0 | AC12: =施設資源化量内訳!Y12 -> 2,283 | AD12: =施設資源化量内訳!AT12 -> 1,105 | AE12: =施設資源化量内訳!BO12 -> 0 | AF12: =施設資源化量内訳!CJ12 -> 0 | AG12: =施設資源化量内訳!DE12 -> 0 | AH12: =施設資源化量内訳!DZ12 -> 0 | AI12: =施設資源化量内訳!EU12 -> 730 | AJ12: 4,118 | AK12: 28.6 | AL12: =IF((AA12+J12)<>0,(資源化量内訳!D12-資源化量内訳!R12-資源化量内訳!T12-資源化量内訳!V12-資源化量内訳!U12)/(AA12+J12)*100,"-") -> 28.6 | AM12: =ごみ処理量内訳!AA12 -> 0 | AN12: =ごみ処理量内訳!AB12 -> 741 | AO12: =ごみ処理量内訳!AC12 -> 120 | AP12: 861 | AQ12: 081205
A13: 茨城県 | B13: 08207 | C13: 結城市 | D13: 52,650 | E13: 52,650 | F13: 0 | G13: 1,965 | H13: =SUM(ごみ搬入量内訳!E13,+ごみ搬入量内訳!AD13) -> 20,285 | I13: =ごみ搬入量内訳!BC13 -> 481 | J13: =資源化量内訳!BO13 -> 0 | K13: 20,766 | L13: 1,081 | M13: =IF(D13<>0,(ごみ搬入量内訳!BR13+ごみ処理概要!J13)/ごみ処理概要!D13/365*1000000,"-") -> 701 | N13: =IF(D13<>0,ごみ搬入量内訳!CM13/ごみ処理概要!D13/365*1000000,"-") -> 380 | O13: =ごみ搬入量内訳!DH13 -> 0 | P13: =ごみ処理量内訳!E13 -> 19,135 | Q13: =ごみ処理量内訳!N13 -> 0 | R13: 14 | S13: =ごみ処理量内訳!G13 -> 0 | T13: =ごみ処理量内訳!L13 -> 0 | U13: =ごみ処理量内訳!H13 -> 0 | V13: =ごみ処理量内訳!I13 -> 0 | W13: =ごみ処理量内訳!J13 -> 0 | X13: =ごみ処理量内訳!K13 -> 0 | Y13: =ごみ処理量内訳!M13 -> 14 | Z13: =資源化量内訳!Y13 -> 1,617 | AA13: 20,766 | AB13: 100.0 | AC13: =施設資源化量内訳!Y13 -> 1,763 | AD13: =施設資源化量内訳!AT13 -> 0 | AE13: =施設資源化量内訳!BO13 -> 0 | AF13: =施設資源化量内訳!CJ13 -> 0 | AG13: =施設資源化量内訳!DE13 -> 0 | AH13: =施設資源化量内訳!DZ13 -> 0 | AI13: =施設資源化量内訳!EU13 -> 0 | AJ13: 1,763 | AK13: 16.3 | AL13: =IF((AA13+J13)<>0,(資源化量内訳!D13-資源化量内訳!R13-資源化量内訳!T13-資源化量内訳!V13-資源化量内訳!U13)/(AA13+J13)*100,"-") -> 16.3 | AM13: =ごみ処理量内訳!AA13 -> 0 | AN13: =ごみ処理量内訳!AB13 -> 933 | AO13: =ごみ処理量内訳!AC13 -> 0 | AP13: 933 | AQ13: 081207
A14: 茨城県 | B14: 08208 | C14: 龍ケ崎市 | D14: 78,393 | E14: 78,393 | F14: 0 | G14: 1,382 | H14: =SUM(ごみ搬入量内訳!E14,+ごみ搬入量内訳!AD14) -> 28,397 | I14: =ごみ搬入量内訳!BC14 -> 892 | J14: =資源化量内訳!BO14 -> 204 | K14: 29,493 | L14: 1,031 | M14: =IF(D14<>0,(ごみ搬入量内訳!BR14+ごみ処理概要!J14)/ごみ処理概要!D14/365*1000000,"-") -> 750 | N14: =IF(D14<>0,ごみ搬入量内訳!CM14/ごみ処理概要!D14/365*1000000,"-") -> 280 | O14: =ごみ搬入量内訳!DH14 -> 0 | P14: =ごみ処理量内訳!E14 -> 23,451 | Q14: =ごみ処理量内訳!N14 -> 0 | R14: 1,454 | S14: =ごみ処理量内訳!G14 -> 1,105 | T14: =ごみ処理量内訳!L14 -> 349 | U14: =ごみ処理量内訳!H14 -> 0 | V14: =ごみ処理量内訳!I14 -> 0 | W14: =ごみ処理量内訳!J14 -> 0 | X14: =ごみ処理量内訳!K14 -> 0 | Y14: =ごみ処理量内訳!M14 -> 0 | Z14: =資源化量内訳!Y14 -> 4,864 | AA14: 29,769 | AB14: 100.0 | AC14: =施設資源化量内訳!Y14 -> 2,060 | AD14: =施設資源化量内訳!AT14 -> 450 | AE14: =施設資源化量内訳!BO14 -> 0 | AF14: =施設資源化量内訳!CJ14 -> 0 | AG14: =施設資源化量内訳!DE14 -> 0 | AH14: =施設資源化量内訳!DZ14 -> 0 | AI14: =施設資源化量内訳!EU14 -> 292 | AJ14: 2,802 | AK14: 26.3 | AL14: =IF((AA14+J14)<>0,(資源化量内訳!D14-資源化量内訳!R14-資源化量内訳!T14-資源化量内訳!V14-資源化量内訳!U14)/(AA14+J14)*100,"-") -> 26.3 | AM14: =ごみ処理量内訳!AA14 -> 0 | AN14: =ごみ処理量内訳!AB14 -> 2,762 | AO14: =ごみ処理量内訳!AC14 -> 501 | AP14: 3,263 | AQ14: 081208
A15: 茨城県 | B15: 08210 | C15: 下妻市 | D15: 44,530 | E15: 44,530 | F15: 0 | G15: 1,760 | H15: =SUM(ごみ搬入量内訳!E15,+ごみ搬入量内訳!AD15) -> 13,291 | I15: =ごみ搬入量内訳!BC15 -> 3,408 | J15: =資源化量内訳!BO15 -> 250 | K15: 16,949 | L15: 1,043 | M15: =IF(D15<>0,(ごみ搬入量内訳!BR15+ごみ処理概要!J15)/ごみ処理概要!D15/365*1000000,"-") -> 654 | N15: =IF(D15<>0,ごみ搬入量内訳!CM15/ごみ処理概要!D15/365*1000000,"-") -> 389 | O15: =ごみ搬入量内訳!DH15 -> 0 | P15: =ごみ処理量内訳!E15 -> 13,418 | Q15: =ごみ処理量内訳!N15 -> 0 | R15: 768 | S15: =ごみ処理量内訳!G15 -> 755 | T15: =ごみ処理量内訳!L15 -> 13 | U15: =ごみ処理量内訳!H15 -> 0 | V15: =ごみ処理量内訳!I15 -> 0 | W15: =ごみ処理量内訳!J15 -> 0 | X15: =ごみ処理量内訳!K15 -> 0 | Y15: =ごみ処理量内訳!M15 -> 0 | Z15: =資源化量内訳!Y15 -> 2,513 | AA15: 16,699 | AB15: 100.0 | AC15: =施設資源化量内訳!Y15 -> 0 | AD15: =施設資源化量内訳!AT15 -> 251 | AE15: =施設資源化量内訳!BO15 -> 0 | AF15: =施設資源化量内訳!CJ15 -> 0 | AG15: =施設資源化量内訳!DE15 -> 0 | AH15: =施設資源化量内訳!DZ15 -> 0 | AI15: =施設資源化量内訳!EU15 -> 11 | AJ15: 262 | AK15: 17.8 | AL15: =IF((AA15+J15)<>0,(資源化量内訳!D15-資源化量内訳!R15-資源化量内訳!T15-資源化量内訳!V15-資源化量内訳!U15)/(AA15+J15)*100,"-") -> 17.8 | AM15: =ごみ処理量内訳!AA15 -> 0 | AN15: =ごみ処理量内訳!AB15 -> 2,082 | AO15: =ごみ処理量内訳!AC15 -> 316 | AP15: 2,398 | AQ15: 081210
A16: 茨城県 | B16: 08211 | C16: 常総市 | D16: 64,264 | E16: 64,264 | F16: 0 | G16: 4,260 | H16: =SUM(ごみ搬入量内訳!E16,+ごみ搬入量内訳!AD16) -> 17,506 | I16: =ごみ搬入量内訳!BC16 -> 1,038 | J16: =資源化量内訳!BO16 -> 1,384 | K16: 19,928 | L16: 850 | M16: =IF(D16<>0,(ごみ搬入量内訳!BR16+ごみ処理概要!J16)/ごみ処理概要!D16/365*1000000,"-") -> 632 | N16: =IF(D16<>0,ごみ搬入量内訳!CM16/ごみ処理概要!D16/365*1000000,"-") -> 218 | O16: =ごみ搬入量内訳!DH16 -> 0 | P16: =ごみ処理量内訳!E16 -> 13,861 | Q16: =ごみ処理量内訳!N16 -> 0 | R16: 3,596 | S16: =ごみ処理量内訳!G16 -> 541 | T16: =ごみ処理量内訳!L16 -> 2,049 | U16: =ごみ処理量内訳!H16 -> 1,006 | V16: =ごみ処理量内訳!I16 -> 0 | W16: =ごみ処理量内訳!J16 -> 0 | X16: =ごみ処理量内訳!K16 -> 0 | Y16: =ごみ処理量内訳!M16 -> 0 | Z16: =資源化量内訳!Y16 -> 1,120 | AA16: 18,577 | AB16: 100.0 | AC16: =施設資源化量内訳!Y16 -> 39 | AD16: =施設資源化量内訳!AT16 -> 199 | AE16: =施設資源化量内訳!BO16 -> 394 | AF16: =施設資源化量内訳!CJ16 -> 0 | AG16: =施設資源化量内訳!DE16 -> 0 | AH16: =施設資源化量内訳!DZ16 -> 0 | AI16: =施設資源化量内訳!EU16 -> 450 | AJ16: 1,082 | AK16: 18.0 | AL16: =IF((AA16+J16)<>0,(資源化量内訳!D16-資源化量内訳!R16-資源化量内訳!T16-資源化量内訳!V16-資源化量内訳!U16)/(AA16+J16)*100,"-") -> 18.0 | AM16: =ごみ処理量内訳!AA16 -> 0 | AN16: =ごみ処理量内訳!AB16 -> 1,282 | AO16: =ごみ処理量内訳!AC16 -> 146 | AP16: 1,428 | AQ16: 081211
A17: 茨城県 | B17: 08212 | C17: 常陸太田市 | D17: 53,967 | E17: 53,967 | F17: 0 | G17: 127 | H17: =SUM(ごみ搬入量内訳!E17,+ごみ搬入量内訳!AD17) -> 13,238 | I17: =ごみ搬入量内訳!BC17 -> 2,830 | J17: =資源化量内訳!BO17 -> 431 | K17: 16,499 | L17: 838 | M17: =IF(D17<>0,(ごみ搬入量内訳!BR17+ごみ処理概要!J17)/ごみ処理概要!D17/365*1000000,"-") -> 671 | N17: =IF(D17<>0,ごみ搬入量内訳!CM17/ごみ処理概要!D17/365*1000000,"-") -> 167 | O17: =ごみ搬入量内訳!DH17 -> 0 | P17: =ごみ処理量内訳!E17 -> 14,257 | Q17: =ごみ処理量内訳!N17 -> 0 | R17: 892 | S17: =ごみ処理量内訳!G17 -> 0 | T17: =ごみ処理量内訳!L17 -> 892 | U17: =ごみ処理量内訳!H17 -> 0 | V17: =ごみ処理量内訳!I17 -> 0 | W17: =ごみ処理量内訳!J17 -> 0 | X17: =ごみ処理量内訳!K17 -> 0 | Y17: =ごみ処理量内訳!M17 -> 0 | Z17: =資源化量内訳!Y17 -> 930 | AA17: 16,079 | AB17: 100.0 | AC17: =施設資源化量内訳!Y17 -> 0 | AD17: =施設資源化量内訳!AT17 -> 0 | AE17: =施設資源化量内訳!BO17 -> 0 | AF17: =施設資源化量内訳!CJ17 -> 0 | AG17: =施設資源化量内訳!DE17 -> 0 | AH17: =施設資源化量内訳!DZ17 -> 0 | AI17: =施設資源化量内訳!EU17 -> 869 | AJ17: 869 | AK17: 13.5 | AL17: =IF((AA17+J17)<>0,(資源化量内訳!D17-資源化量内訳!R17-資源化量内訳!T17-資源化量内訳!V17-資源化量内訳!U17)/(AA17+J17)*100,"-") -> 13.5 | AM17: =ごみ処理量内訳!AA17 -> 0 | AN17: =ごみ処理量内訳!AB17 -> 1,578 | AO17: =ごみ処理量内訳!AC17 -> 20 | AP17: 1,598 | AQ17: 081212
A18: 茨城県 | B18: 08214 | C18: 高萩市 | D18: 29,736 | E18: 29,736 | F18: 0 | G18: 151 | H18: =SUM(ごみ搬入量内訳!E18,+ごみ搬入量内訳!AD18) -> 8,144 | I18: =ごみ搬入量内訳!BC18 -> 1,225 | J18: =資源化量内訳!BO18 -> 45 | K18: 9,414 | L18: 867 | M18: =IF(D18<>0,(ごみ搬入量内訳!BR18+ごみ処理概要!J18)/ごみ処理概要!D18/365*1000000,"-") -> 650 | N18: =IF(D18<>0,ごみ搬入量内訳!CM18/ごみ処理概要!D18/365*1000000,"-") -> 217 | O18: =ごみ搬入量内訳!DH18 -> 0 | P18: =ごみ処理量内訳!E18 -> 7,026 | Q18: =ごみ処理量内訳!N18 -> 0 | R18: 2,297 | S18: =ごみ処理量内訳!G18 -> 0 | T18: =ごみ処理量内訳!L18 -> 2,013 | U18: =ごみ処理量内訳!H18 -> 0 | V18: =ごみ処理量内訳!I18 -> 0 | W18: =ごみ処理量内訳!J18 -> 0 | X18: =ごみ処理量内訳!K18 -> 0 | Y18: =ごみ処理量内訳!M18 -> 284 | Z18: =資源化量内訳!Y18 -> 0 | AA18: 9,323 | AB18: 100.0 | AC18: =施設資源化量内訳!Y18 -> 0 | AD18: =施設資源化量内訳!AT18 -> 0 | AE18: =施設資源化量内訳!BO18 -> 0 | AF18: =施設資源化量内訳!CJ18 -> 0 | AG18: =施設資源化量内訳!DE18 -> 0 | AH18: =施設資源化量内訳!DZ18 -> 0 | AI18: =施設資源化量内訳!EU18 -> 2,013 | AJ18: 2,013 | AK18: 22.0 | AL18: =IF((AA18+J18)<>0,(資源化量内訳!D18-資源化量内訳!R18-資源化量内訳!T18-資源化量内訳!V18-資源化量内訳!U18)/(AA18+J18)*100,"-") -> 22.0 | AM18: =ごみ処理量内訳!AA18 -> 0 | AN18: =ごみ処理量内訳!AB18 -> 702 | AO18: =ごみ処理量内訳!AC18 -> 284 | AP18: 986 | AQ18: 081214
A19: 茨城県 | B19: 08215 | C19: 北茨城市 | D19: 44,770 | E19: 44,770 | F19: 0 | G19: 238 | H19: =SUM(ごみ搬入量内訳!E19,+ごみ搬入量内訳!AD19) -> 12,876 | I19: =ごみ搬入量内訳!BC19 -> 2,821 | J19: =資源化量内訳!BO19 -> 0 | K19: 15,697 | L19: 961 | M19: =IF(D19<>0,(ごみ搬入量内訳!BR19+ごみ処理概要!J19)/ごみ処理概要!D19/365*1000000,"-") -> 777 | N19: =IF(D19<>0,ごみ搬入量内訳!CM19/ごみ処理概要!D19/365*1000000,"-") -> 183 | O19: =ごみ搬入量内訳!DH19 -> 12,701 | P19: =ごみ処理量内訳!E19 -> 13,484 | Q19: =ごみ処理量内訳!N19 -> 511 | R19: 566 | S19: =ごみ処理量内訳!G19 -> 0 | T19: =ごみ処理量内訳!L19 -> 566 | U19: =ごみ処理量内訳!H19 -> 0 | V19: =ごみ処理量内訳!I19 -> 0 | W19: =ごみ処理量内訳!J19 -> 0 | X19: =ごみ処理量内訳!K19 -> 0 | Y19: =ごみ処理量内訳!M19 -> 0 | Z19: =資源化量内訳!Y19 -> 1,573 | AA19: 16,134 | AB19: 96.8 | AC19: =施設資源化量内訳!Y19 -> 0 | AD19: =施設資源化量内訳!AT19 -> 0 | AE19: =施設資源化量内訳!BO19 -> 0 | AF19: =施設資源化量内訳!CJ19 -> 0 | AG19: =施設資源化量内訳!DE19 -> 0 | AH19: =施設資源化量内訳!DZ19 -> 0 | AI19: =施設資源化量内訳!EU19 -> 566 | AJ19: 566 | AK19: 13.3 | AL19: =IF((AA19+J19)<>0,(資源化量内訳!D19-資源化量内訳!R19-資源化量内訳!T19-資源化量内訳!V19-資源化量内訳!U19)/(AA19+J19)*100,"-") -> 13.3 | AM19: =ごみ処理量内訳!AA19 -> 511 | AN19: =ごみ処理量内訳!AB19 -> 1,635 | AO19: =ごみ処理量内訳!AC19 -> 0 | AP19: 2,146 | AQ19: 081215
A20: 茨城県 | B20: 08216 | C20: 笠間市 | D20: 77,564 | E20: 77,564 | F20: 0 | G20: 590 | H20: =SUM(ごみ搬入量内訳!E20,+ごみ搬入量内訳!AD20) -> 21,004 | I20: =ごみ搬入量内訳!BC20 -> 4,132 | J20: =資源化量内訳!BO20 -> 836 | K20: 25,972 | L20: 917 | M20: =IF(D20<>0,(ごみ搬入量内訳!BR20+ごみ処理概要!J20)/ごみ処理概要!D20/365*1000000,"-") -> 694 | N20: =IF(D20<>0,ごみ搬入量内訳!CM20/ごみ処理概要!D20/365*1000000,"-") -> 223 | O20: =ごみ搬入量内訳!DH20 -> 0 | P20: =ごみ処理量内訳!E20 -> 21,957 | Q20: =ごみ処理量内訳!N20 -> 0 | R20: 2,371 | S20: =ごみ処理量内訳!G20 -> 2,308 | T20: =ごみ処理量内訳!L20 -> 63 | U20: =ごみ処理量内訳!H20 -> 0 | V20: =ごみ処理量内訳!I20 -> 0 | W20: =ごみ処理量内訳!J20 -> 0 | X20: =ごみ処理量内訳!K20 -> 0 | Y20: =ごみ処理量内訳!M20 -> 0 | Z20: =資源化量内訳!Y20 -> 3,546 | AA20: 27,874 | AB20: 100.0 | AC20: =施設資源化量内訳!Y20 -> 1,479 | AD20: =施設資源化量内訳!AT20 -> 675 | AE20: =施設資源化量内訳!BO20 -> 0 | AF20: =施設資源化量内訳!CJ20 -> 0 | AG20: =施設資源化量内訳!DE20 -> 0 | AH20: =施設資源化量内訳!DZ20 -> 0 | AI20: =施設資源化量内訳!EU20 -> 57 | AJ20: 2,211 | AK20: 23.0 | AL20: =IF((AA20+J20)<>0,(資源化量内訳!D20-資源化量内訳!R20-資源化量内訳!T20-資源化量内訳!V20-資源化量内訳!U20)/(AA20+J20)*100,"-") -> 23.0 | AM20: =ごみ処理量内訳!AA20 -> 0 | AN20: =ごみ処理量内訳!AB20 -> 1,870 | AO20: =ごみ処理量内訳!AC20 -> 343 | AP20: 2,213 | AQ20: 081216
A21: 茨城県 | B21: 08217 | C21: 取手市 | D21: 108,471 | E21: 108,471 | F21: 0 | G21: 1,531 | H21: =SUM(ごみ搬入量内訳!E21,+ごみ搬入量内訳!AD21) -> 33,735 | I21: =ごみ搬入量内訳!BC21 -> 445 | J21: =資源化量内訳!BO21 -> 1,592 | K21: 35,772 | L21: 904 | M21: =IF(D21<>0,(ごみ搬入量内訳!BR21+ごみ処理概要!J21)/ごみ処理概要!D21/365*1000000,"-") -> 709 | N21: =IF(D21<>0,ごみ搬入量内訳!CM21/ごみ処理概要!D21/365*1000000,"-") -> 195 | O21: =ごみ搬入量内訳!DH21 -> 0 | P21: =ごみ処理量内訳!E21 -> 23,210 | Q21: =ごみ処理量内訳!N21 -> 0 | R21: 6,829 | S21: =ごみ処理量内訳!G21 -> 717 | T21: =ごみ処理量内訳!L21 -> 5,769 | U21: =ごみ処理量内訳!H21 -> 343 | V21: =ごみ処理量内訳!I21 -> 0 | W21: =ごみ処理量内訳!J21 -> 0 | X21: =ごみ処理量内訳!K21 -> 0 | Y21: =ごみ処理量内訳!M21 -> 0 | Z21: =資源化量内訳!Y21 -> 4,141 | AA21: 34,180 | AB21: 100.0 | AC21: =施設資源化量内訳!Y21 -> 1,602 | AD21: =施設資源化量内訳!AT21 -> 310 | AE21: =施設資源化量内訳!BO21 -> 87 | AF21: =施設資源化量内訳!CJ21 -> 0 | AG21: =施設資源化量内訳!DE21 -> 0 | AH21: =施設資源化量内訳!DZ21 -> 0 | AI21: =施設資源化量内訳!EU21 -> 1,771 | AJ21: 3,770 | AK21: 26.6 | AL21: =IF((AA21+J21)<>0,(資源化量内訳!D21-資源化量内訳!R21-資源化量内訳!T21-資源化量内訳!V21-資源化量内訳!U21)/(AA21+J21)*100,"-") -> 26.6 | AM21: =ごみ処理量内訳!AA21 -> 0 | AN21: =ごみ処理量内訳!AB21 -> 1,104 | AO21: =ごみ処理量内訳!AC21 -> 0 | AP21: 1,104 | AQ21: 081217
A22: 茨城県 | B22: 08219 | C22: 牛久市 | D22: 85,038 | E22: 85,038 | F22: 0 | G22: 1,094 | H22: =SUM(ごみ搬入量内訳!E22,+ごみ搬入量内訳!AD22) -> 26,400 | I22: =ごみ搬入量内訳!BC22 -> 2,416 | J22: =資源化量内訳!BO22 -> 322 | K22: 29,138 | L22: 939 | M22: =IF(D22<>0,(ごみ搬入量内訳!BR22+ごみ処理概要!J22)/ごみ処理概要!D22/365*1000000,"-") -> 730 | N22: =IF(D22<>0,ごみ搬入量内訳!CM22/ごみ処理概要!D22/365*1000000,"-") -> 209 | O22: =ごみ搬入量内訳!DH22 -> 0 | P22: =ごみ処理量内訳!E22 -> 23,433 | Q22: =ごみ処理量内訳!N22 -> 0 | R22: 3,040 | S22: =ごみ処理量内訳!G22 -> 0 | T22: =ごみ処理量内訳!L22 -> 2,916 | U22: =ごみ処理量内訳!H22 -> 84 | V22: =ごみ処理量内訳!I22 -> 0 | W22: =ごみ処理量内訳!J22 -> 0 | X22: =ごみ処理量内訳!K22 -> 40 | Y22: =ごみ処理量内訳!M22 -> 0 | Z22: =資源化量内訳!Y22 -> 2,343 | AA22: 28,816 | AB22: 100.0 | AC22: =施設資源化量内訳!Y22 -> 1,234 | AD22: =施設資源化量内訳!AT22 -> 0 | AE22: =施設資源化量内訳!BO22 -> 17 | AF22: =施設資源化量内訳!CJ22 -> 0 | AG22: =施設資源化量内訳!DE22 -> 0 | AH22: =施設資源化量内訳!DZ22 -> 32 | AI22: =施設資源化量内訳!EU22 -> 1,491 | AJ22: 2,774 | AK22: 18.7 | AL22: =IF((AA22+J22)<>0,(資源化量内訳!D22-資源化量内訳!R22-資源化量内訳!T22-資源化量内訳!V22-資源化量内訳!U22)/(AA22+J22)*100,"-") -> 18.7 | AM22: =ごみ処理量内訳!AA22 -> 0 | AN22: =ごみ処理量内訳!AB22 -> 1,694 | AO22: =ごみ処理量内訳!AC22 -> 0 | AP22: 1,694 | AQ22: 081219
A23: 茨城県 | B23: 08220 | C23: つくば市 | D23: 226,253 | E23: 226,253 | F23: 0 | G23: 8,429 | H23: =SUM(ごみ搬入量内訳!E23,+ごみ搬入量内訳!AD23) -> 88,121 | I23: =ごみ搬入量内訳!BC23 -> 3,241 | J23: =資源化量内訳!BO23 -> 1,374 | K23: 92,736 | L23: 1,123 | M23: =IF(D23<>0,(ごみ搬入量内訳!BR23+ごみ処理概要!J23)/ごみ処理概要!D23/365*1000000,"-") -> 695 | N23: =IF(D23<>0,ごみ搬入量内訳!CM23/ごみ処理概要!D23/365*1000000,"-") -> 428 | O23: =ごみ搬入量内訳!DH23 -> 0 | P23: =ごみ処理量内訳!E23 -> 71,254 | Q23: =ごみ処理量内訳!N23 -> 0 | R23: 9,838 | S23: =ごみ処理量内訳!G23 -> 4,660 | T23: =ごみ処理量内訳!L23 -> 5,178 | U23: =ごみ処理量内訳!H23 -> 0 | V23: =ごみ処理量内訳!I23 -> 0 | W23: =ごみ処理量内訳!J23 -> 0 | X23: =ごみ処理量内訳!K23 -> 0 | Y23: =ごみ処理量内訳!M23 -> 0 | Z23: =資源化量内訳!Y23 -> 10,270 | AA23: 91,362 | AB23: 100.0 | AC23: =施設資源化量内訳!Y23 -> 247 | AD23: =施設資源化量内訳!AT23 -> 717 | AE23: =施設資源化量内訳!BO23 -> 0 | AF23: =施設資源化量内訳!CJ23 -> 0 | AG23: =施設資源化量内訳!DE23 -> 0 | AH23: =施設資源化量内訳!DZ23 -> 0 | AI23: =施設資源化量内訳!EU23 -> 3,724 | AJ23: 4,688 | AK23: 17.6 | AL23: =IF((AA23+J23)<>0,(資源化量内訳!D23-資源化量内訳!R23-資源化量内訳!T23-資源化量内訳!V23-資源化量内訳!U23)/(AA23+J23)*100,"-") -> 17.6 | AM23: =ごみ処理量内訳!AA23 -> 0 | AN23: =ごみ処理量内訳!AB23 -> 10,892 | AO23: =ごみ処理量内訳!AC23 -> 498 | AP23: 11,390 | AQ23: 081220
A24: 茨城県 | B24: 08221 | C24: ひたちなか市 | D24: 159,499 | E24: 159,499 | F24: 0 | G24: 1,465 | H24: =SUM(ごみ搬入量内訳!E24,+ごみ搬入量内訳!AD24) -> 51,094 | I24: =ごみ搬入量内訳!BC24 -> 2,868 | J24: =資源化量内訳!BO24 -> 5,707 | K24: 59,669 | L24: 1,025 | M24: =IF(D24<>0,(ごみ搬入量内訳!BR24+ごみ処理概要!J24)/ごみ処理概要!D24/365*1000000,"-") -> 774 | N24: =IF(D24<>0,ごみ搬入量内訳!CM24/ごみ処理概要!D24/365*1000000,"-") -> 251 | O24: =ごみ搬入量内訳!DH24 -> 0 | P24: =ごみ処理量内訳!E24 -> 51,146 | Q24: =ごみ処理量内訳!N24 -> 0 | R24: 2,102 | S24: =ごみ処理量内訳!G24 -> 2,102 | T24: =ごみ処理量内訳!L24 -> 0 | U24: =ごみ処理量内訳!H24 -> 0 | V24: =ごみ処理量内訳!I24 -> 0 | W24: =ごみ処理量内訳!J24 -> 0 | X24: =ごみ処理量内訳!K24 -> 0 | Y24: =ごみ処理量内訳!M24 -> 0 | Z24: =資源化量内訳!Y24 -> 340 | AA24: 53,588 | AB24: 100.0 | AC24: =施設資源化量内訳!Y24 -> 2,480 | AD24: =施設資源化量内訳!AT24 -> 1,152 | AE24: =施設資源化量内訳!BO24 -> 0 | AF24: =施設資源化量内訳!CJ24 -> 0 | AG24: =施設資源化量内訳!DE24 -> 0 | AH24: =施設資源化量内訳!DZ24 -> 0 | AI24: =施設資源化量内訳!EU24 -> 0 | AJ24: 3,632 | AK24: 16.3 | AL24: =IF((AA24+J24)<>0,(資源化量内訳!D24-資源化量内訳!R24-資源化量内訳!T24-資源化量内訳!V24-資源化量内訳!U24)/(AA24+J24)*100,"-") -> 16.3 | AM24: =ごみ処理量内訳!AA24 -> 0 | AN24: =ごみ処理量内訳!AB24 -> 2,592 | AO24: =ごみ処理量内訳!AC24 -> 0 | AP24: 2,592 | AQ24: 081221
A25: 茨城県 | B25: 08222 | C25: 鹿嶋市 | D25: 67,754 | E25: 67,754 | F25: 0 | G25: 884 | H25: =SUM(ごみ搬入量内訳!E25,+ごみ搬入量内訳!AD25) -> 19,628 | I25: =ごみ搬入量内訳!BC25 -> 3,144 | J25: =資源化量内訳!BO25 -> 1,139 | K25: 23,911 | L25: 967 | M25: =IF(D25<>0,(ごみ搬入量内訳!BR25+ごみ処理概要!J25)/ごみ処理概要!D25/365*1000000,"-") -> 749 | N25: =IF(D25<>0,ごみ搬入量内訳!CM25/ごみ処理概要!D25/365*1000000,"-") -> 218 | O25: =ごみ搬入量内訳!DH25 -> 0 | P25: =ごみ処理量内訳!E25 -> 1,215 | Q25: =ごみ処理量内訳!N25 -> 0 | R25: 22,772 | S25: =ごみ処理量内訳!G25 -> 4,244 | T25: =ごみ処理量内訳!L25 -> 439 | U25: =ごみ処理量内訳!H25 -> 0 | V25: =ごみ処理量内訳!I25 -> 0 | W25: =ごみ処理量内訳!J25 -> 0 | X25: =ごみ処理量内訳!K25 -> 18,089 | Y25: =ごみ処理量内訳!M25 -> 0 | Z25: =資源化量内訳!Y25 -> 413 | AA25: 24,400 | AB25: 100.0 | AC25: =施設資源化量内訳!Y25 -> 0 | AD25: =施設資源化量内訳!AT25 -> 921 | AE25: =施設資源化量内訳!BO25 -> 0 | AF25: =施設資源化量内訳!CJ25 -> 0 | AG25: =施設資源化量内訳!DE25 -> 0 | AH25: =施設資源化量内訳!DZ25 -> 11,028 | AI25: =施設資源化量内訳!EU25 -> 148 | AJ25: 12,097 | AK25: 53.4 | AL25: =IF((AA25+J25)<>0,(資源化量内訳!D25-資源化量内訳!R25-資源化量内訳!T25-資源化量内訳!V25-資源化量内訳!U25)/(AA25+J25)*100,"-") -> 10.4 | AM25: =ごみ処理量内訳!AA25 -> 0 | AN25: =ごみ処理量内訳!AB25 -> 101 | AO25: =ごみ処理量内訳!AC25 -> 143 | AP25: 244 | AQ25: 081222
A26: 茨城県 | B26: 08223 | C26: 潮来市 | D26: 29,037 | E26: 29,037 | F26: 0 | G26: 314 | H26: =SUM(ごみ搬入量内訳!E26,+ごみ搬入量内訳!AD26) -> 9,727 | I26: =ごみ搬入量内訳!BC26 -> 1,159 | J26: =資源化量内訳!BO26 -> 40 | K26: 10,926 | L26: 1,031 | M26: =IF(D26<>0,(ごみ搬入量内訳!BR26+ごみ処理概要!J26)/ごみ処理概要!D26/365*1000000,"-") -> 716 | N26: =IF(D26<>0,ごみ搬入量内訳!CM26/ごみ処理概要!D26/365*1000000,"-") -> 315 | O26: =ごみ搬入量内訳!DH26 -> 0 | P26: =ごみ処理量内訳!E26 -> 7,882 | Q26: =ごみ処理量内訳!N26 -> 0 | R26: 2,056 | S26: =ごみ処理量内訳!G26 -> 793 | T26: =ごみ処理量内訳!L26 -> 1,263 | U26: =ごみ処理量内訳!H26 -> 0 | V26: =ごみ処理量内訳!I26 -> 0 | W26: =ごみ処理量内訳!J26 -> 0 | X26: =ごみ処理量内訳!K26 -> 0 | Y26: =ごみ処理量内訳!M26 -> 0 | Z26: =資源化量内訳!Y26 -> 948 | AA26: 10,886 | AB26: 100.0 | AC26: =施設資源化量内訳!Y26 -> 1,150 | AD26: =施設資源化量内訳!AT26 -> 157 | AE26: =施設資源化量内訳!BO26 -> 0 | AF26: =施設資源化量内訳!CJ26 -> 0 | AG26: =施設資源化量内訳!DE26 -> 0 | AH26: =施設資源化量内訳!DZ26 -> 0 | AI26: =施設資源化量内訳!EU26 -> 1,236 | AJ26: 2,543 | AK26: 32.3 | AL26: =IF((AA26+J26)<>0,(資源化量内訳!D26-資源化量内訳!R26-資源化量内訳!T26-資源化量内訳!V26-資源化量内訳!U26)/(AA26+J26)*100,"-") -> 32.3 | AM26: =ごみ処理量内訳!AA26 -> 0 | AN26: =ごみ処理量内訳!AB26 -> 0 | AO26: =ごみ処理量内訳!AC26 -> 440 | AP26: 440 | AQ26: 081223
A27: 茨城県 | B27: 08224 | C27: 守谷市 | D27: 66,067 | E27: 66,067 | F27: 0 | G27: 756 | H27: =SUM(ごみ搬入量内訳!E27,+ごみ搬入量内訳!AD27) -> 18,397 | I27: =ごみ搬入量内訳!BC27 -> 341 | J27: =資源化量内訳!BO27 -> 911 | K27: 19,649 | L27: 815 | M27: =IF(D27<>0,(ごみ搬入量内訳!BR27+ごみ処理概要!J27)/ごみ処理概要!D27/365*1000000,"-") -> 648 | N27: =IF(D27<>0,ごみ搬入量内訳!CM27/ごみ処理概要!D27/365*1000000,"-") -> 166 | O27: =ごみ搬入量内訳!DH27 -> 0 | P27: =ごみ処理量内訳!E27 -> 13,448 | Q27: =ごみ処理量内訳!N27 -> 0 | R27: 4,208 | S27: =ごみ処理量内訳!G27 -> 449 | T27: =ごみ処理量内訳!L27 -> 3,269 | U27: =ごみ処理量内訳!H27 -> 490 | V27: =ごみ処理量内訳!I27 -> 0 | W27: =ごみ処理量内訳!J27 -> 0 | X27: =ごみ処理量内訳!K27 -> 0 | Y27: =ごみ処理量内訳!M27 -> 0 | Z27: =資源化量内訳!Y27 -> 1,082 | AA27: 18,738 | AB27: 100.0 | AC27: =施設資源化量内訳!Y27 -> 929 | AD27: =施設資源化量内訳!AT27 -> 194 | AE27: =施設資源化量内訳!BO27 -> 7 | AF27: =施設資源化量内訳!CJ27 -> 0 | AG27: =施設資源化量内訳!DE27 -> 0 | AH27: =施設資源化量内訳!DZ27 -> 0 | AI27: =施設資源化量内訳!EU27 -> 941 | AJ27: 2,071 | AK27: 20.7 | AL27: =IF((AA27+J27)<>0,(資源化量内訳!D27-資源化量内訳!R27-資源化量内訳!T27-資源化量内訳!V27-資源化量内訳!U27)/(AA27+J27)*100,"-") -> 20.7 | AM27: =ごみ処理量内訳!AA27 -> 0 | AN27: =ごみ処理量内訳!AB27 -> 640 | AO27: =ごみ処理量内訳!AC27 -> 0 | AP27: 640 | AQ27: 081224
A28: 茨城県 | B28: 08225 | C28: 常陸大宮市 | D28: 43,388 | E28: 43,388 | F28: 0 | G28: 257 | H28: =SUM(ごみ搬入量内訳!E28,+ごみ搬入量内訳!AD28) -> 12,777 | I28: =ごみ搬入量内訳!BC28 -> 1,416 | J28: =資源化量内訳!BO28 -> 273 | K28: 14,466 | L28: 913 | M28: =IF(D28<>0,(ごみ搬入量内訳!BR28+ごみ処理概要!J28)/ごみ処理概要!D28/365*1000000,"-") -> 696 | N28: =IF(D28<>0,ごみ搬入量内訳!CM28/ごみ処理概要!D28/365*1000000,"-") -> 218 | O28: =ごみ搬入量内訳!DH28 -> 0 | P28: =ごみ処理量内訳!E28 -> 11,800 | Q28: =ごみ処理量内訳!N28 -> 0 | R28: 2,393 | S28: =ごみ処理量内訳!G28 -> 1,165 | T28: =ごみ処理量内訳!L28 -> 1,228 | U28: =ごみ処理量内訳!H28 -> 0 | V28: =ごみ処理量内訳!I28 -> 0 | W28: =ごみ処理量内訳!J28 -> 0 | X28: =ごみ処理量内訳!K28 -> 0 | Y28: =ごみ処理量内訳!M28 -> 0 | Z28: =資源化量内訳!Y28 -> 0 | AA28: 14,193 | AB28: 100.0 | AC28: =施設資源化量内訳!Y28 -> 53 | AD28: =施設資源化量内訳!AT28 -> 544 | AE28: =施設資源化量内訳!BO28 -> 0 | AF28: =施設資源化量内訳!CJ28 -> 0 | AG28: =施設資源化量内訳!DE28 -> 0 | AH28: =施設資源化量内訳!DZ28 -> 0 | AI28: =施設資源化量内訳!EU28 -> 1,204 | AJ28: 1,801 | AK28: 14.3 | AL28: =IF((AA28+J28)<>0,(資源化量内訳!D28-資源化量内訳!R28-資源化量内訳!T28-資源化量内訳!V28-資源化量内訳!U28)/(AA28+J28)*100,"-") -> 14.3 | AM28: =ごみ処理量内訳!AA28 -> 0 | AN28: =ごみ処理量内訳!AB28 -> 1,711 | AO28: =ごみ処理量内訳!AC28 -> 121 | AP28: 1,832 | AQ28: 081225
A29: 茨城県 | B29: 08226 | C29: 那珂市 | D29: 55,446 | E29: 55,446 | F29: 0 | G29: 216 | H29: =SUM(ごみ搬入量内訳!E29,+ごみ搬入量内訳!AD29) -> 14,100 | I29: =ごみ搬入量内訳!BC29 -> 2,672 | J29: =資源化量内訳!BO29 -> 194 | K29: 16,966 | L29: 838 | M29: =IF(D29<>0,(ごみ搬入量内訳!BR29+ごみ処理概要!J29)/ごみ処理概要!D29/365*1000000,"-") -> 681 | N29: =IF(D29<>0,ごみ搬入量内訳!CM29/ごみ処理概要!D29/365*1000000,"-") -> 157 | O29: =ごみ搬入量内訳!DH29 -> 0 | P29: =ごみ処理量内訳!E29 -> 14,532 | Q29: =ごみ処理量内訳!N29 -> 0 | R29: 2,240 | S29: =ごみ処理量内訳!G29 -> 979 | T29: =ごみ処理量内訳!L29 -> 1,261 | U29: =ごみ処理量内訳!H29 -> 0 | V29: =ごみ処理量内訳!I29 -> 0 | W29: =ごみ処理量内訳!J29 -> 0 | X29: =ごみ処理量内訳!K29 -> 0 | Y29: =ごみ処理量内訳!M29 -> 0 | Z29: =資源化量内訳!Y29 -> 0 | AA29: 16,772 | AB29: 100.0 | AC29: =施設資源化量内訳!Y29 -> 65 | AD29: =施設資源化量内訳!AT29 -> 480 | AE29: =施設資源化量内訳!BO29 -> 0 | AF29: =施設資源化量内訳!CJ29 -> 0 | AG29: =施設資源化量内訳!DE29 -> 0 | AH29: =施設資源化量内訳!DZ29 -> 0 | AI29: =施設資源化量内訳!EU29 -> 1,225 | AJ29: 1,770 | AK29: 11.6 | AL29: =IF((AA29+J29)<>0,(資源化量内訳!D29-資源化量内訳!R29-資源化量内訳!T29-資源化量内訳!V29-資源化量内訳!U29)/(AA29+J29)*100,"-") -> 11.6 | AM29: =ごみ処理量内訳!AA29 -> 0 | AN29: =ごみ処理量内訳!AB29 -> 2,109 | AO29: =ごみ処理量内訳!AC29 -> 89 | AP29: 2,198 | AQ29: 081226
A30: 茨城県 | B30: 08227 | C30: 筑西市 | D30: 105,067 | E30: 105,067 | F30: 0 | G30: 2,122 | H30: =SUM(ごみ搬入量内訳!E30,+ごみ搬入量内訳!AD30) -> 30,092 | I30: =ごみ搬入量内訳!BC30 -> 889 | J30: =資源化量内訳!BO30 -> 123 | K30: 31,104 | L30: 811 | M30: =IF(D30<>0,(ごみ搬入量内訳!BR30+ごみ処理概要!J30)/ごみ処理概要!D30/365*1000000,"-") -> 693 | N30: =IF(D30<>0,ごみ搬入量内訳!CM30/ごみ処理概要!D30/365*1000000,"-") -> 118 | O30: =ごみ搬入量内訳!DH30 -> 0 | P30: =ごみ処理量内訳!E30 -> 27,893 | Q30: =ごみ処理量内訳!N30 -> 0 | R30: 1,986 | S30: =ごみ処理量内訳!G30 -> 1,821 | T30: =ごみ処理量内訳!L30 -> 165 | U30: =ごみ処理量内訳!H30 -> 0 | V30: =ごみ処理量内訳!I30 -> 0 | W30: =ごみ処理量内訳!J30 -> 0 | X30: =ごみ処理量内訳!K30 -> 0 | Y30: =ごみ処理量内訳!M30 -> 0 | Z30: =資源化量内訳!Y30 -> 2,385 | AA30: 32,264 | AB30: 100.0 | AC30: =施設資源化量内訳!Y30 -> 2,175 | AD30: =施設資源化量内訳!AT30 -> 559 | AE30: =施設資源化量内訳!BO30 -> 0 | AF30: =施設資源化量内訳!CJ30 -> 0 | AG30: =施設資源化量内訳!DE30 -> 0 | AH30: =施設資源化量内訳!DZ30 -> 0 | AI30: =施設資源化量内訳!EU30 -> 165 | AJ30: 2,899 | AK30: 16.7 | AL30: =IF((AA30+J30)<>0,(資源化量内訳!D30-資源化量内訳!R30-資源化量内訳!T30-資源化量内訳!V30-資源化量内訳!U30)/(AA30+J30)*100,"-") -> 16.7 | AM30: =ごみ処理量内訳!AA30 -> 0 | AN30: =ごみ処理量内訳!AB30 -> 1,392 | AO30: =ごみ処理量内訳!AC30 -> 0 | AP30: 1,392 | AQ30: 081227
A31: 茨城県 | B31: 08228 | C31: 坂東市 | D31: 55,783 | E31: 55,783 | F31: 0 | G31: 2,082 | H31: =SUM(ごみ搬入量内訳!E31,+ごみ搬入量内訳!AD31) -> 15,029 | I31: =ごみ搬入量内訳!BC31 -> 1,597 | J31: =資源化量内訳!BO31 -> 957 | K31: 17,583 | L31: 864 | M31: =IF(D31<>0,(ごみ搬入量内訳!BR31+ごみ処理概要!J31)/ごみ処理概要!D31/365*1000000,"-") -> 656 | N31: =IF(D31<>0,ごみ搬入量内訳!CM31/ごみ処理概要!D31/365*1000000,"-") -> 208 | O31: =ごみ搬入量内訳!DH31 -> 0 | P31: =ごみ処理量内訳!E31 -> 12,945 | Q31: =ごみ処理量内訳!N31 -> 0 | R31: 1,939 | S31: =ごみ処理量内訳!G31 -> 1,136 | T31: =ごみ処理量内訳!L31 -> 803 | U31: =ごみ処理量内訳!H31 -> 0 | V31: =ごみ処理量内訳!I31 -> 0 | W31: =ごみ処理量内訳!J31 -> 0 | X31: =ごみ処理量内訳!K31 -> 0 | Y31: =ごみ処理量内訳!M31 -> 0 | Z31: =資源化量内訳!Y31 -> 1,742 | AA31: 16,626 | AB31: 100.0 | AC31: =施設資源化量内訳!Y31 -> 747 | AD31: =施設資源化量内訳!AT31 -> 141 | AE31: =施設資源化量内訳!BO31 -> 0 | AF31: =施設資源化量内訳!CJ31 -> 0 | AG31: =施設資源化量内訳!DE31 -> 0 | AH31: =施設資源化量内訳!DZ31 -> 0 | AI31: =施設資源化量内訳!EU31 -> 716 | AJ31: 1,604 | AK31: 24.5 | AL31: =IF((AA31+J31)<>0,(資源化量内訳!D31-資源化量内訳!R31-資源化量内訳!T31-資源化量内訳!V31-資源化量内訳!U31)/(AA31+J31)*100,"-") -> 24.5 | AM31: =ごみ処理量内訳!AA31 -> 0 | AN31: =ごみ処理量内訳!AB31 -> 748 | AO31: =ごみ処理量内訳!AC31 -> 0 | AP31: 748 | AQ31: 081228
A32: 茨城県 | B32: 08229 | C32: 稲敷市 | D32: 42,217 | E32: 42,217 | F32: 0 | G32: 923 | H32: =SUM(ごみ搬入量内訳!E32,+ごみ搬入量内訳!AD32) -> 12,779 | I32: =ごみ搬入量内訳!BC32 -> 1,626 | J32: =資源化量内訳!BO32 -> 321 | K32: 14,726 | L32: 956 | M32: =IF(D32<>0,(ごみ搬入量内訳!BR32+ごみ処理概要!J32)/ごみ処理概要!D32/365*1000000,"-") -> 704 | N32: =IF(D32<>0,ごみ搬入量内訳!CM32/ごみ処理概要!D32/365*1000000,"-") -> 252 | O32: =ごみ搬入量内訳!DH32 -> 0 | P32: =ごみ処理量内訳!E32 -> 11,121 | Q32: =ごみ処理量内訳!N32 -> 0 | R32: 1,910 | S32: =ごみ処理量内訳!G32 -> 1,352 | T32: =ごみ処理量内訳!L32 -> 558 | U32: =ごみ処理量内訳!H32 -> 0 | V32: =ごみ処理量内訳!I32 -> 0 | W32: =ごみ処理量内訳!J32 -> 0 | X32: =ごみ処理量内訳!K32 -> 0 | Y32: =ごみ処理量内訳!M32 -> 0 | Z32: =資源化量内訳!Y32 -> 1,924 | AA32: 14,955 | AB32: 100.0 | AC32: =施設資源化量内訳!Y32 -> 103 | AD32: =施設資源化量内訳!AT32 -> 0 | AE32: =施設資源化量内訳!BO32 -> 0 | AF32: =施設資源化量内訳!CJ32 -> 0 | AG32: =施設資源化量内訳!DE32 -> 0 | AH32: =施設資源化量内訳!DZ32 -> 0 | AI32: =施設資源化量内訳!EU32 -> 405 | AJ32: 508 | AK32: 18.0 | AL32: =IF((AA32+J32)<>0,(資源化量内訳!D32-資源化量内訳!R32-資源化量内訳!T32-資源化量内訳!V32-資源化量内訳!U32)/(AA32+J32)*100,"-") -> 18.0 | AM32: =ごみ処理量内訳!AA32 -> 0 | AN32: =ごみ処理量内訳!AB32 -> 1,757 | AO32: =ごみ処理量内訳!AC32 -> 153 | AP32: 1,910 | AQ32: 081229
A33: 茨城県 | B33: 08230 | C33: かすみがうら市 | D33: 42,761 | E33: 42,761 | F33: 0 | G33: 1,027 | H33: =SUM(ごみ搬入量内訳!E33,+ごみ搬入量内訳!AD33) -> 15,082 | I33: =ごみ搬入量内訳!BC33 -> 1,518 | J33: =資源化量内訳!BO33 -> 140 | K33: 16,740 | L33: 1,073 | M33: =IF(D33<>0,(ごみ搬入量内訳!BR33+ごみ処理概要!J33)/ごみ処理概要!D33/365*1000000,"-") -> 738 | N33: =IF(D33<>0,ごみ搬入量内訳!CM33/ごみ処理概要!D33/365*1000000,"-") -> 335 | O33: =ごみ搬入量内訳!DH33 -> 0 | P33: =ごみ処理量内訳!E33 -> 12,917 | Q33: =ごみ処理量内訳!N33 -> 0 | R33: 2,060 | S33: =ごみ処理量内訳!G33 -> 1,155 | T33: =ごみ処理量内訳!L33 -> 528 | U33: =ごみ処理量内訳!H33 -> 377 | V33: =ごみ処理量内訳!I33 -> 0 | W33: =ごみ処理量内訳!J33 -> 0 | X33: =ごみ処理量内訳!K33 -> 0 | Y33: =ごみ処理量内訳!M33 -> 0 | Z33: =資源化量内訳!Y33 -> 1,625 | AA33: 16,602 | AB33: 100.0 | AC33: =施設資源化量内訳!Y33 -> 318 | AD33: =施設資源化量内訳!AT33 -> 463 | AE33: =施設資源化量内訳!BO33 -> 377 | AF33: =施設資源化量内訳!CJ33 -> 0 | AG33: =施設資源化量内訳!DE33 -> 0 | AH33: =施設資源化量内訳!DZ33 -> 0 | AI33: =施設資源化量内訳!EU33 -> 367 | AJ33: 1,525 | AK33: 19.7 | AL33: =IF((AA33+J33)<>0,(資源化量内訳!D33-資源化量内訳!R33-資源化量内訳!T33-資源化量内訳!V33-資源化量内訳!U33)/(AA33+J33)*100,"-") -> 19.7 | AM33: =ごみ処理量内訳!AA33 -> 0 | AN33: =ごみ処理量内訳!AB33 -> 1,457 | AO33: =ごみ処理量内訳!AC33 -> 192 | AP33: 1,649 | AQ33: 081230
A34: 茨城県 | B34: 08231 | C34: 桜川市 | D34: 43,829 | E34: 43,829 | F34: 0 | G34: 316 | H34: =SUM(ごみ搬入量内訳!E34,+ごみ搬入量内訳!AD34) -> 10,843 | I34: =ごみ搬入量内訳!BC34 -> 104 | J34: =資源化量内訳!BO34 -> 0 | K34: 10,947 | L34: 684 | M34: =IF(D34<>0,(ごみ搬入量内訳!BR34+ごみ処理概要!J34)/ごみ処理概要!D34/365*1000000,"-") -> 570 | N34: =IF(D34<>0,ごみ搬入量内訳!CM34/ごみ処理概要!D34/365*1000000,"-") -> 115 | O34: =ごみ搬入量内訳!DH34 -> 0 | P34: =ごみ処理量内訳!E34 -> 10,270 | Q34: =ごみ処理量内訳!N34 -> 0 | R34: 105 | S34: =ごみ処理量内訳!G34 -> 0 | T34: =ごみ処理量内訳!L34 -> 105 | U34: =ごみ処理量内訳!H34 -> 0 | V34: =ごみ処理量内訳!I34 -> 0 | W34: =ごみ処理量内訳!J34 -> 0 | X34: =ごみ処理量内訳!K34 -> 0 | Y34: =ごみ処理量内訳!M34 -> 0 | Z34: =資源化量内訳!Y34 -> 0 | AA34: 10,375 | AB34: 100.0 | AC34: =施設資源化量内訳!Y34 -> 1,592 | AD34: =施設資源化量内訳!AT34 -> 0 | AE34: =施設資源化量内訳!BO34 -> 0 | AF34: =施設資源化量内訳!CJ34 -> 0 | AG34: =施設資源化量内訳!DE34 -> 0 | AH34: =施設資源化量内訳!DZ34 -> 0 | AI34: =施設資源化量内訳!EU34 -> 105 | AJ34: 1,697 | AK34: 16.4 | AL34: =IF((AA34+J34)<>0,(資源化量内訳!D34-資源化量内訳!R34-資源化量内訳!T34-資源化量内訳!V34-資源化量内訳!U34)/(AA34+J34)*100,"-") -> 16.4 | AM34: =ごみ処理量内訳!AA34 -> 0 | AN34: =ごみ処理量内訳!AB34 -> 528 | AO34: =ごみ処理量内訳!AC34 -> 0 | AP34: 528 | AQ34: 081231
A35: 茨城県 | B35: 08232 | C35: 神栖市 | D35: 94,956 | E35: 94,956 | F35: 0 | G35: 2,251 | H35: =SUM(ごみ搬入量内訳!E35,+ごみ搬入量内訳!AD35) -> 33,089 | I35: =ごみ搬入量内訳!BC35 -> 3,525 | J35: =資源化量内訳!BO35 -> 1,079 | K35: 37,693 | L35: 1,088 | M35: =IF(D35<>0,(ごみ搬入量内訳!BR35+ごみ処理概要!J35)/ごみ処理概要!D35/365*1000000,"-") -> 692 | N35: =IF(D35<>0,ごみ搬入量内訳!CM35/ごみ処理概要!D35/365*1000000,"-") -> 396 | O35: =ごみ搬入量内訳!DH35 -> 0 | P35: =ごみ処理量内訳!E35 -> 0 | Q35: =ごみ処理量内訳!N35 -> 0 | R35: 27,078 | S35: =ごみ処理量内訳!G35 -> 0 | T35: =ごみ処理量内訳!L35 -> 5,104 | U35: =ごみ処理量内訳!H35 -> 0 | V35: =ごみ処理量内訳!I35 -> 0 | W35: =ごみ処理量内訳!J35 -> 0 | X35: =ごみ処理量内訳!K35 -> 21,974 | Y35: =ごみ処理量内訳!M35 -> 0 | Z35: =資源化量内訳!Y35 -> 9,536 | AA35: 36,614 | AB35: 100.0 | AC35: =施設資源化量内訳!Y35 -> 0 | AD35: =施設資源化量内訳!AT35 -> 0 | AE35: =施設資源化量内訳!BO35 -> 0 | AF35: =施設資源化量内訳!CJ35 -> 0 | AG35: =施設資源化量内訳!DE35 -> 0 | AH35: =施設資源化量内訳!DZ35 -> 14,155 | AI35: =施設資源化量内訳!EU35 -> 1,758 | AJ35: 15,913 | AK35: 70.4 | AL35: =IF((AA35+J35)<>0,(資源化量内訳!D35-資源化量内訳!R35-資源化量内訳!T35-資源化量内訳!V35-資源化量内訳!U35)/(AA35+J35)*100,"-") -> 32.8 | AM35: =ごみ処理量内訳!AA35 -> 0 | AN35: =ごみ処理量内訳!AB35 -> 261 | AO35: =ごみ処理量内訳!AC35 -> 558 | AP35: 819 | AQ35: 081232
A36: 茨城県 | B36: 08233 | C36: 行方市 | D36: 36,316 | E36: 36,316 | F36: 0 | G36: 948 | H36: =SUM(ごみ搬入量内訳!E36,+ごみ搬入量内訳!AD36) -> 8,910 | I36: =ごみ搬入量内訳!BC36 -> 1,751 | J36: =資源化量内訳!BO36 -> 114 | K36: 10,775 | L36: 813 | M36: =IF(D36<>0,(ごみ搬入量内訳!BR36+ごみ処理概要!J36)/ごみ処理概要!D36/365*1000000,"-") -> 627 | N36: =IF(D36<>0,ごみ搬入量内訳!CM36/ごみ処理概要!D36/365*1000000,"-") -> 186 | O36: =ごみ搬入量内訳!DH36 -> 0 | P36: =ごみ処理量内訳!E36 -> 9,098 | Q36: =ごみ処理量内訳!N36 -> 0 | R36: 1,250 | S36: =ごみ処理量内訳!G36 -> 1,250 | T36: =ごみ処理量内訳!L36 -> 0 | U36: =ごみ処理量内訳!H36 -> 0 | V36: =ごみ処理量内訳!I36 -> 0 | W36: =ごみ処理量内訳!J36 -> 0 | X36: =ごみ処理量内訳!K36 -> 0 | Y36: =ごみ処理量内訳!M36 -> 0 | Z36: =資源化量内訳!Y36 -> 313 | AA36: 10,661 | AB36: 100.0 | AC36: =施設資源化量内訳!Y36 -> 0 | AD36: =施設資源化量内訳!AT36 -> 725 | AE36: =施設資源化量内訳!BO36 -> 0 | AF36: =施設資源化量内訳!CJ36 -> 0 | AG36: =施設資源化量内訳!DE36 -> 0 | AH36: =施設資源化量内訳!DZ36 -> 0 | AI36: =施設資源化量内訳!EU36 -> 0 | AJ36: 725 | AK36: 10.7 | AL36: =IF((AA36+J36)<>0,(資源化量内訳!D36-資源化量内訳!R36-資源化量内訳!T36-資源化量内訳!V36-資源化量内訳!U36)/(AA36+J36)*100,"-") -> 10.7 | AM36: =ごみ処理量内訳!AA36 -> 0 | AN36: =ごみ処理量内訳!AB36 -> 1,285 | AO36: =ごみ処理量内訳!AC36 -> 362 | AP36: 1,647 | AQ36: 081233
A37: 茨城県 | B37: 08234 | C37: 鉾田市 | D37: 50,279 | E37: 50,279 | F37: 0 | G37: 2,201 | H37: =SUM(ごみ搬入量内訳!E37,+ごみ搬入量内訳!AD37) -> 10,190 | I37: =ごみ搬入量内訳!BC37 -> 1,969 | J37: =資源化量内訳!BO37 -> 0 | K37: 12,159 | L37: 663 | M37: =IF(D37<>0,(ごみ搬入量内訳!BR37+ごみ処理概要!J37)/ごみ処理概要!D37/365*1000000,"-") -> 570 | N37: =IF(D37<>0,ごみ搬入量内訳!CM37/ごみ処理概要!D37/365*1000000,"-") -> 93 | O37: =ごみ搬入量内訳!DH37 -> 0 | P37: =ごみ処理量内訳!E37 -> 10,837 | Q37: =ごみ処理量内訳!N37 -> 0 | R37: 1,068 | S37: =ごみ処理量内訳!G37 -> 253 | T37: =ごみ処理量内訳!L37 -> 815 | U37: =ごみ処理量内訳!H37 -> 0 | V37: =ごみ処理量内訳!I37 -> 0 | W37: =ごみ処理量内訳!J37 -> 0 | X37: =ごみ処理量内訳!K37 -> 0 | Y37: =ごみ処理量内訳!M37 -> 0 | Z37: =資源化量内訳!Y37 -> 305 | AA37: 12,210 | AB37: 100.0 | AC37: =施設資源化量内訳!Y37 -> 1,010 | AD37: =施設資源化量内訳!AT37 -> 154 | AE37: =施設資源化量内訳!BO37 -> 0 | AF37: =施設資源化量内訳!CJ37 -> 0 | AG37: =施設資源化量内訳!DE37 -> 0 | AH37: =施設資源化量内訳!DZ37 -> 0 | AI37: =施設資源化量内訳!EU37 -> 815 | AJ37: 1,979 | AK37: 18.7 | AL37: =IF((AA37+J37)<>0,(資源化量内訳!D37-資源化量内訳!R37-資源化量内訳!T37-資源化量内訳!V37-資源化量内訳!U37)/(AA37+J37)*100,"-") -> 18.7 | AM37: =ごみ処理量内訳!AA37 -> 0 | AN37: =ごみ処理量内訳!AB37 -> 429 | AO37: =ごみ処理量内訳!AC37 -> 67 | AP37: 496 | AQ37: 081234
A38: 茨城県 | B38: 08235 | C38: つくばみらい市 | D38: 50,836 | E38: 50,836 | F38: 0 | G38: 470 | H38: =SUM(ごみ搬入量内訳!E38,+ごみ搬入量内訳!AD38) -> 12,761 | I38: =ごみ搬入量内訳!BC38 -> 114 | J38: =資源化量内訳!BO38 -> 386 | K38: 13,261 | L38: 715 | M38: =IF(D38<>0,(ごみ搬入量内訳!BR38+ごみ処理概要!J38)/ごみ処理概要!D38/365*1000000,"-") -> 615 | N38: =IF(D38<>0,ごみ搬入量内訳!CM38/ごみ処理概要!D38/365*1000000,"-") -> 100 | O38: =ごみ搬入量内訳!DH38 -> 0 | P38: =ごみ処理量内訳!E38 -> 9,332 | Q38: =ごみ処理量内訳!N38 -> 0 | R38: 2,940 | S38: =ごみ処理量内訳!G38 -> 252 | T38: =ごみ処理量内訳!L38 -> 2,518 | U38: =ごみ処理量内訳!H38 -> 170 | V38: =ごみ処理量内訳!I38 -> 0 | W38: =ごみ処理量内訳!J38 -> 0 | X38: =ごみ処理量内訳!K38 -> 0 | Y38: =ごみ処理量内訳!M38 -> 0 | Z38: =資源化量内訳!Y38 -> 603 | AA38: 12,875 | AB38: 100.0 | AC38: =施設資源化量内訳!Y38 -> 645 | AD38: =施設資源化量内訳!AT38 -> 109 | AE38: =施設資源化量内訳!BO38 -> 3 | AF38: =施設資源化量内訳!CJ38 -> 0 | AG38: =施設資源化量内訳!DE38 -> 0 | AH38: =施設資源化量内訳!DZ38 -> 0 | AI38: =施設資源化量内訳!EU38 -> 720 | AJ38: 1,477 | AK38: 18.6 | AL38: =IF((AA38+J38)<>0,(資源化量内訳!D38-資源化量内訳!R38-資源化量内訳!T38-資源化量内訳!V38-資源化量内訳!U38)/(AA38+J38)*100,"-") -> 18.6 | AM38: =ごみ処理量内訳!AA38 -> 0 | AN38: =ごみ処理量内訳!AB38 -> 444 | AO38: =ごみ処理量内訳!AC38 -> 0 | AP38: 444 | AQ38: 081235
A39: 茨城県 | B39: 08236 | C39: 小美玉市 | D39: 52,170 | E39: 52,170 | F39: 0 | G39: 1,163 | H39: =SUM(ごみ搬入量内訳!E39,+ごみ搬入量内訳!AD39) -> 14,606 | I39: =ごみ搬入量内訳!BC39 -> 2,879 | J39: =資源化量内訳!BO39 -> 225 | K39: 17,710 | L39: 930 | M39: =IF(D39<>0,(ごみ搬入量内訳!BR39+ごみ処理概要!J39)/ごみ処理概要!D39/365*1000000,"-") -> 647 | N39: =IF(D39<>0,ごみ搬入量内訳!CM39/ごみ処理概要!D39/365*1000000,"-") -> 283 | O39: =ごみ搬入量内訳!DH39 -> 0 | P39: =ごみ処理量内訳!E39 -> 14,964 | Q39: =ごみ処理量内訳!N39 -> 0 | R39: 1,385 | S39: =ごみ処理量内訳!G39 -> 845 | T39: =ごみ処理量内訳!L39 -> 540 | U39: =ごみ処理量内訳!H39 -> 0 | V39: =ごみ処理量内訳!I39 -> 0 | W39: =ごみ処理量内訳!J39 -> 0 | X39: =ごみ処理量内訳!K39 -> 0 | Y39: =ごみ処理量内訳!M39 -> 0 | Z39: =資源化量内訳!Y39 -> 1,349 | AA39: 17,698 | AB39: 100.0 | AC39: =施設資源化量内訳!Y39 -> 993 | AD39: =施設資源化量内訳!AT39 -> 588 | AE39: =施設資源化量内訳!BO39 -> 0 | AF39: =施設資源化量内訳!CJ39 -> 0 | AG39: =施設資源化量内訳!DE39 -> 0 | AH39: =施設資源化量内訳!DZ39 -> 0 | AI39: =施設資源化量内訳!EU39 -> 356 | AJ39: 1,937 | AK39: 19.6 | AL39: =IF((AA39+J39)<>0,(資源化量内訳!D39-資源化量内訳!R39-資源化量内訳!T39-資源化量内訳!V39-資源化量内訳!U39)/(AA39+J39)*100,"-") -> 19.6 | AM39: =ごみ処理量内訳!AA39 -> 0 | AN39: =ごみ処理量内訳!AB39 -> 906 | AO39: =ごみ処理量内訳!AC39 -> 98 | AP39: 1,004 | AQ39: 081236
A40: 茨城県 | B40: 08302 | C40: 茨城町 | D40: 33,322 | E40: 33,322 | F40: 0 | G40: 495 | H40: =SUM(ごみ搬入量内訳!E40,+ごみ搬入量内訳!AD40) -> 10,001 | I40: =ごみ搬入量内訳!BC40 -> 535 | J40: =資源化量内訳!BO40 -> 57 | K40: 10,593 | L40: 871 | M40: =IF(D40<>0,(ごみ搬入量内訳!BR40+ごみ処理概要!J40)/ごみ処理概要!D40/365*1000000,"-") -> 627 | N40: =IF(D40<>0,ごみ搬入量内訳!CM40/ごみ処理概要!D40/365*1000000,"-") -> 244 | O40: =ごみ搬入量内訳!DH40 -> 0 | P40: =ごみ処理量内訳!E40 -> 8,750 | Q40: =ごみ処理量内訳!N40 -> 0 | R40: 663 | S40: =ごみ処理量内訳!G40 -> 256 | T40: =ごみ処理量内訳!L40 -> 407 | U40: =ごみ処理量内訳!H40 -> 0 | V40: =ごみ処理量内訳!I40 -> 0 | W40: =ごみ処理量内訳!J40 -> 0 | X40: =ごみ処理量内訳!K40 -> 0 | Y40: =ごみ処理量内訳!M40 -> 0 | Z40: =資源化量内訳!Y40 -> 1,123 | AA40: 10,536 | AB40: 100.0 | AC40: =施設資源化量内訳!Y40 -> 0 | AD40: =施設資源化量内訳!AT40 -> 132 | AE40: =施設資源化量内訳!BO40 -> 0 | AF40: =施設資源化量内訳!CJ40 -> 0 | AG40: =施設資源化量内訳!DE40 -> 0 | AH40: =施設資源化量内訳!DZ40 -> 0 | AI40: =施設資源化量内訳!EU40 -> 407 | AJ40: 539 | AK40: 16.2 | AL40: =IF((AA40+J40)<>0,(資源化量内訳!D40-資源化量内訳!R40-資源化量内訳!T40-資源化量内訳!V40-資源化量内訳!U40)/(AA40+J40)*100,"-") -> 16.2 | AM40: =ごみ処理量内訳!AA40 -> 0 | AN40: =ごみ処理量内訳!AB40 -> 1,107 | AO40: =ごみ処理量内訳!AC40 -> 124 | AP40: 1,231 | AQ40: 081302
A41: 茨城県 | B41: 08309 | C41: 大洗町 | D41: 17,431 | E41: 17,431 | F41: 0 | G41: 736 | H41: =SUM(ごみ搬入量内訳!E41,+ごみ搬入量内訳!AD41) -> 8,298 | I41: =ごみ搬入量内訳!BC41 -> 839 | J41: =資源化量内訳!BO41 -> 0 | K41: 9,137 | L41: 1,436 | M41: =IF(D41<>0,(ごみ搬入量内訳!BR41+ごみ処理概要!J41)/ごみ処理概要!D41/365*1000000,"-") -> 856 | N41: =IF(D41<>0,ごみ搬入量内訳!CM41/ごみ処理概要!D41/365*1000000,"-") -> 581 | O41: =ごみ搬入量内訳!DH41 -> 0 | P41: =ごみ処理量内訳!E41 -> 8,812 | Q41: =ごみ処理量内訳!N41 -> 0 | R41: 332 | S41: =ごみ処理量内訳!G41 -> 332 | T41: =ごみ処理量内訳!L41 -> 0 | U41: =ごみ処理量内訳!H41 -> 0 | V41: =ごみ処理量内訳!I41 -> 0 | W41: =ごみ処理量内訳!J41 -> 0 | X41: =ごみ処理量内訳!K41 -> 0 | Y41: =ごみ処理量内訳!M41 -> 0 | Z41: =資源化量内訳!Y41 -> 846 | AA41: 9,990 | AB41: 100.0 | AC41: =施設資源化量内訳!Y41 -> 29 | AD41: =施設資源化量内訳!AT41 -> 205 | AE41: =施設資源化量内訳!BO41 -> 0 | AF41: =施設資源化量内訳!CJ41 -> 0 | AG41: =施設資源化量内訳!DE41 -> 0 | AH41: =施設資源化量内訳!DZ41 -> 0 | AI41: =施設資源化量内訳!EU41 -> 0 | AJ41: 234 | AK41: 10.8 | AL41: =IF((AA41+J41)<>0,(資源化量内訳!D41-資源化量内訳!R41-資源化量内訳!T41-資源化量内訳!V41-資源化量内訳!U41)/(AA41+J41)*100,"-") -> 10.8 | AM41: =ごみ処理量内訳!AA41 -> 0 | AN41: =ごみ処理量内訳!AB41 -> 1,323 | AO41: =ごみ処理量内訳!AC41 -> 88 | AP41: 1,411 | AQ41: 081309
A42: 茨城県 | B42: 08310 | C42: 城里町 | D42: 20,442 | E42: 20,442 | F42: 0 | G42: 68 | H42: =SUM(ごみ搬入量内訳!E42,+ごみ搬入量内訳!AD42) -> 4,973 | I42: =ごみ搬入量内訳!BC42 -> 674 | J42: =資源化量内訳!BO42 -> 242 | K42: 5,889 | L42: 789 | M42: =IF(D42<>0,(ごみ搬入量内訳!BR42+ごみ処理概要!J42)/ごみ処理概要!D42/365*1000000,"-") -> 651 | N42: =IF(D42<>0,ごみ搬入量内訳!CM42/ごみ処理概要!D42/365*1000000,"-") -> 138 | O42: =ごみ搬入量内訳!DH42 -> 0 | P42: =ごみ処理量内訳!E42 -> 5,027 | Q42: =ごみ処理量内訳!N42 -> 0 | R42: 603 | S42: =ごみ処理量内訳!G42 -> 303 | T42: =ごみ処理量内訳!L42 -> 300 | U42: =ごみ処理量内訳!H42 -> 0 | V42: =ごみ処理量内訳!I42 -> 0 | W42: =ごみ処理量内訳!J42 -> 0 | X42: =ごみ処理量内訳!K42 -> 0 | Y42: =ごみ処理量内訳!M42 -> 0 | Z42: =資源化量内訳!Y42 -> 0 | AA42: 5,630 | AB42: 100.0 | AC42: =施設資源化量内訳!Y42 -> 91 | AD42: =施設資源化量内訳!AT42 -> 170 | AE42: =施設資源化量内訳!BO42 -> 0 | AF42: =施設資源化量内訳!CJ42 -> 0 | AG42: =施設資源化量内訳!DE42 -> 0 | AH42: =施設資源化量内訳!DZ42 -> 0 | AI42: =施設資源化量内訳!EU42 -> 222 | AJ42: 483 | AK42: 12.3 | AL42: =IF((AA42+J42)<>0,(資源化量内訳!D42-資源化量内訳!R42-資源化量内訳!T42-資源化量内訳!V42-資源化量内訳!U42)/(AA42+J42)*100,"-") -> 12.3 | AM42: =ごみ処理量内訳!AA42 -> 0 | AN42: =ごみ処理量内訳!AB42 -> 531 | AO42: =ごみ処理量内訳!AC42 -> 38 | AP42: 569 | AQ42: 081310
A43: 茨城県 | B43: 08341 | C43: 東海村 | D43: 38,374 | E43: 38,374 | F43: 0 | G43: 292 | H43: =SUM(ごみ搬入量内訳!E43,+ごみ搬入量内訳!AD43) -> 12,281 | I43: =ごみ搬入量内訳!BC43 -> 986 | J43: =資源化量内訳!BO43 -> 48 | K43: 13,315 | L43: 951 | M43: =IF(D43<>0,(ごみ搬入量内訳!BR43+ごみ処理概要!J43)/ごみ処理概要!D43/365*1000000,"-") -> 759 | N43: =IF(D43<>0,ごみ搬入量内訳!CM43/ごみ処理概要!D43/365*1000000,"-") -> 191 | O43: =ごみ搬入量内訳!DH43 -> 0 | P43: =ごみ処理量内訳!E43 -> 9,546 | Q43: =ごみ処理量内訳!N43 -> 0 | R43: 1,808 | S43: =ごみ処理量内訳!G43 -> 755 | T43: =ごみ処理量内訳!L43 -> 671 | U43: =ごみ処理量内訳!H43 -> 382 | V43: =ごみ処理量内訳!I43 -> 0 | W43: =ごみ処理量内訳!J43 -> 0 | X43: =ごみ処理量内訳!K43 -> 0 | Y43: =ごみ処理量内訳!M43 -> 0 | Z43: =資源化量内訳!Y43 -> 2,295 | AA43: 13,649 | AB43: 100.0 | AC43: =施設資源化量内訳!Y43 -> 0 | AD43: =施設資源化量内訳!AT43 -> 0 | AE43: =施設資源化量内訳!BO43 -> 382 | AF43: =施設資源化量内訳!CJ43 -> 0 | AG43: =施設資源化量内訳!DE43 -> 0 | AH43: =施設資源化量内訳!DZ43 -> 0 | AI43: =施設資源化量内訳!EU43 -> 671 | AJ43: 1,053 | AK43: 24.8 | AL43: =IF((AA43+J43)<>0,(資源化量内訳!D43-資源化量内訳!R43-資源化量内訳!T43-資源化量内訳!V43-資源化量内訳!U43)/(AA43+J43)*100,"-") -> 24.8 | AM43: =ごみ処理量内訳!AA43 -> 0 | AN43: =ごみ処理量内訳!AB43 -> 420 | AO43: =ごみ処理量内訳!AC43 -> 149 | AP43: 569 | AQ43: 081341
A44: 茨城県 | B44: 08364 | C44: 大子町 | D44: 18,268 | E44: 18,268 | F44: 0 | G44: 82 | H44: =SUM(ごみ搬入量内訳!E44,+ごみ搬入量内訳!AD44) -> 5,509 | I44: =ごみ搬入量内訳!BC44 -> 1,204 | J44: =資源化量内訳!BO44 -> 0 | K44: 6,713 | L44: 1,007 | M44: =IF(D44<>0,(ごみ搬入量内訳!BR44+ごみ処理概要!J44)/ごみ処理概要!D44/365*1000000,"-") -> 769 | N44: =IF(D44<>0,ごみ搬入量内訳!CM44/ごみ処理概要!D44/365*1000000,"-") -> 238 | O44: =ごみ搬入量内訳!DH44 -> 0 | P44: =ごみ処理量内訳!E44 -> 5,357 | Q44: =ごみ処理量内訳!N44 -> 0 | R44: 264 | S44: =ごみ処理量内訳!G44 -> 0 | T44: =ごみ処理量内訳!L44 -> 264 | U44: =ごみ処理量内訳!H44 -> 0 | V44: =ごみ処理量内訳!I44 -> 0 | W44: =ごみ処理量内訳!J44 -> 0 | X44: =ごみ処理量内訳!K44 -> 0 | Y44: =ごみ処理量内訳!M44 -> 0 | Z44: =資源化量内訳!Y44 -> 1,092 | AA44: 6,713 | AB44: 100.0 | AC44: =施設資源化量内訳!Y44 -> 0 | AD44: =施設資源化量内訳!AT44 -> 0 | AE44: =施設資源化量内訳!BO44 -> 0 | AF44: =施設資源化量内訳!CJ44 -> 0 | AG44: =施設資源化量内訳!DE44 -> 0 | AH44: =施設資源化量内訳!DZ44 -> 0 | AI44: =施設資源化量内訳!EU44 -> 264 | AJ44: 264 | AK44: 20.2 | AL44: =IF((AA44+J44)<>0,(資源化量内訳!D44-資源化量内訳!R44-資源化量内訳!T44-資源化量内訳!V44-資源化量内訳!U44)/(AA44+J44)*100,"-") -> 20.2 | AM44: =ごみ処理量内訳!AA44 -> 0 | AN44: =ごみ処理量内訳!AB44 -> 508 | AO44: =ごみ処理量内訳!AC44 -> 0 | AP44: 508 | AQ44: 081364
A45: 茨城県 | B45: 08442 | C45: 美浦村 | D45: 16,081 | E45: 16,081 | F45: 0 | G45: 290 | H45: =SUM(ごみ搬入量内訳!E45,+ごみ搬入量内訳!AD45) -> 5,278 | I45: =ごみ搬入量内訳!BC45 -> 436 | J45: =資源化量内訳!BO45 -> 251 | K45: 5,965 | L45: 1,016 | M45: =IF(D45<>0,(ごみ搬入量内訳!BR45+ごみ処理概要!J45)/ごみ処理概要!D45/365*1000000,"-") -> 737 | N45: =IF(D45<>0,ごみ搬入量内訳!CM45/ごみ処理概要!D45/365*1000000,"-") -> 279 | O45: =ごみ搬入量内訳!DH45 -> 0 | P45: =ごみ処理量内訳!E45 -> 4,184 | Q45: =ごみ処理量内訳!N45 -> 0 | R45: 750 | S45: =ごみ処理量内訳!G45 -> 510 | T45: =ごみ処理量内訳!L45 -> 240 | U45: =ごみ処理量内訳!H45 -> 0 | V45: =ごみ処理量内訳!I45 -> 0 | W45: =ごみ処理量内訳!J45 -> 0 | X45: =ごみ処理量内訳!K45 -> 0 | Y45: =ごみ処理量内訳!M45 -> 0 | Z45: =資源化量内訳!Y45 -> 1,001 | AA45: 5,935 | AB45: 100.0 | AC45: =施設資源化量内訳!Y45 -> 39 | AD45: =施設資源化量内訳!AT45 -> 0 | AE45: =施設資源化量内訳!BO45 -> 0 | AF45: =施設資源化量内訳!CJ45 -> 0 | AG45: =施設資源化量内訳!DE45 -> 0 | AH45: =施設資源化量内訳!DZ45 -> 0 | AI45: =施設資源化量内訳!EU45 -> 193 | AJ45: 232 | AK45: 24.0 | AL45: =IF((AA45+J45)<>0,(資源化量内訳!D45-資源化量内訳!R45-資源化量内訳!T45-資源化量内訳!V45-資源化量内訳!U45)/(AA45+J45)*100,"-") -> 24.0 | AM45: =ごみ処理量内訳!AA45 -> 0 | AN45: =ごみ処理量内訳!AB45 -> 703 | AO45: =ごみ処理量内訳!AC45 -> 47 | AP45: 750 | AQ45: 081442
A46: 茨城県 | B46: 08443 | C46: 阿見町 | D46: 47,481 | E46: 47,481 | F46: 0 | G46: 759 | H46: =SUM(ごみ搬入量内訳!E46,+ごみ搬入量内訳!AD46) -> 16,138 | I46: =ごみ搬入量内訳!BC46 -> 1,851 | J46: =資源化量内訳!BO46 -> 2,886 | K46: 20,875 | L46: 1,205 | M46: =IF(D46<>0,(ごみ搬入量内訳!BR46+ごみ処理概要!J46)/ごみ処理概要!D46/365*1000000,"-") -> 953 | N46: =IF(D46<>0,ごみ搬入量内訳!CM46/ごみ処理概要!D46/365*1000000,"-") -> 252 | O46: =ごみ搬入量内訳!DH46 -> 0 | P46: =ごみ処理量内訳!E46 -> 15,513 | Q46: =ごみ処理量内訳!N46 -> 0 | R46: 1,790 | S46: =ごみ処理量内訳!G46 -> 1,669 | T46: =ごみ処理量内訳!L46 -> 121 | U46: =ごみ処理量内訳!H46 -> 0 | V46: =ごみ処理量内訳!I46 -> 0 | W46: =ごみ処理量内訳!J46 -> 0 | X46: =ごみ処理量内訳!K46 -> 0 | Y46: =ごみ処理量内訳!M46 -> 0 | Z46: =資源化量内訳!Y46 -> 713 | AA46: 18,016 | AB46: 100.0 | AC46: =施設資源化量内訳!Y46 -> 0 | AD46: =施設資源化量内訳!AT46 -> 659 | AE46: =施設資源化量内訳!BO46 -> 0 | AF46: =施設資源化量内訳!CJ46 -> 0 | AG46: =施設資源化量内訳!DE46 -> 0 | AH46: =施設資源化量内訳!DZ46 -> 0 | AI46: =施設資源化量内訳!EU46 -> 105 | AJ46: 764 | AK46: 20.9 | AL46: =IF((AA46+J46)<>0,(資源化量内訳!D46-資源化量内訳!R46-資源化量内訳!T46-資源化量内訳!V46-資源化量内訳!U46)/(AA46+J46)*100,"-") -> 20.9 | AM46: =ごみ処理量内訳!AA46 -> 0 | AN46: =ごみ処理量内訳!AB46 -> 2,132 | AO46: =ごみ処理量内訳!AC46 -> 352 | AP46: 2,484 | AQ46: 081443
A47: 茨城県 | B47: 08447 | C47: 河内町 | D47: 9,284 | E47: 9,284 | F47: 0 | G47: 97 | H47: =SUM(ごみ搬入量内訳!E47,+ごみ搬入量内訳!AD47) -> 2,697 | I47: =ごみ搬入量内訳!BC47 -> 322 | J47: =資源化量内訳!BO47 -> 8 | K47: 3,027 | L47: 893 | M47: =IF(D47<>0,(ごみ搬入量内訳!BR47+ごみ処理概要!J47)/ごみ処理概要!D47/365*1000000,"-") -> 716 | N47: =IF(D47<>0,ごみ搬入量内訳!CM47/ごみ処理概要!D47/365*1000000,"-") -> 177 | O47: =ごみ搬入量内訳!DH47 -> 0 | P47: =ごみ処理量内訳!E47 -> 2,292 | Q47: =ごみ処理量内訳!N47 -> 0 | R47: 201 | S47: =ごみ処理量内訳!G47 -> 147 | T47: =ごみ処理量内訳!L47 -> 54 | U47: =ごみ処理量内訳!H47 -> 0 | V47: =ごみ処理量内訳!I47 -> 0 | W47: =ごみ処理量内訳!J47 -> 0 | X47: =ごみ処理量内訳!K47 -> 0 | Y47: =ごみ処理量内訳!M47 -> 0 | Z47: =資源化量内訳!Y47 -> 526 | AA47: 3,019 | AB47: 100.0 | AC47: =施設資源化量内訳!Y47 -> 201 | AD47: =施設資源化量内訳!AT47 -> 60 | AE47: =施設資源化量内訳!BO47 -> 0 | AF47: =施設資源化量内訳!CJ47 -> 0 | AG47: =施設資源化量内訳!DE47 -> 0 | AH47: =施設資源化量内訳!DZ47 -> 0 | AI47: =施設資源化量内訳!EU47 -> 45 | AJ47: 306 | AK47: 27.8 | AL47: =IF((AA47+J47)<>0,(資源化量内訳!D47-資源化量内訳!R47-資源化量内訳!T47-資源化量内訳!V47-資源化量内訳!U47)/(AA47+J47)*100,"-") -> 27.8 | AM47: =ごみ処理量内訳!AA47 -> 0 | AN47: =ごみ処理量内訳!AB47 -> 270 | AO47: =ごみ処理量内訳!AC47 -> 67 | AP47: 337 | AQ47: 081447
A48: 茨城県 | B48: 08521 | C48: 八千代町 | D48: 23,835 | E48: 23,835 | F48: 0 | G48: 1,064 | H48: =SUM(ごみ搬入量内訳!E48,+ごみ搬入量内訳!AD48) -> 4,909 | I48: =ごみ搬入量内訳!BC48 -> 658 | J48: =資源化量内訳!BO48 -> 37 | K48: 5,604 | L48: 644 | M48: =IF(D48<>0,(ごみ搬入量内訳!BR48+ごみ処理概要!J48)/ごみ処理概要!D48/365*1000000,"-") -> 441 | N48: =IF(D48<>0,ごみ搬入量内訳!CM48/ごみ処理概要!D48/365*1000000,"-") -> 203 | O48: =ごみ搬入量内訳!DH48 -> 0 | P48: =ごみ処理量内訳!E48 -> 4,621 | Q48: =ごみ処理量内訳!N48 -> 0 | R48: 308 | S48: =ごみ処理量内訳!G48 -> 300 | T48: =ごみ処理量内訳!L48 -> 8 | U48: =ごみ処理量内訳!H48 -> 0 | V48: =ごみ処理量内訳!I48 -> 0 | W48: =ごみ処理量内訳!J48 -> 0 | X48: =ごみ処理量内訳!K48 -> 0 | Y48: =ごみ処理量内訳!M48 -> 0 | Z48: =資源化量内訳!Y48 -> 638 | AA48: 5,567 | AB48: 100.0 | AC48: =施設資源化量内訳!Y48 -> 0 | AD48: =施設資源化量内訳!AT48 -> 100 | AE48: =施設資源化量内訳!BO48 -> 0 | AF48: =施設資源化量内訳!CJ48 -> 0 | AG48: =施設資源化量内訳!DE48 -> 0 | AH48: =施設資源化量内訳!DZ48 -> 0 | AI48: =施設資源化量内訳!EU48 -> 7 | AJ48: 107 | AK48: 14.0 | AL48: =IF((AA48+J48)<>0,(資源化量内訳!D48-資源化量内訳!R48-資源化量内訳!T48-資源化量内訳!V48-資源化量内訳!U48)/(AA48+J48)*100,"-") -> 14.0 | AM48: =ごみ処理量内訳!AA48 -> 0 | AN48: =ごみ処理量内訳!AB48 -> 717 | AO48: =ごみ処理量内訳!AC48 -> 125 | AP48: 842 | AQ48: 081521
A49: 茨城県 | B49: 08542 | C49: 五霞町 | D49: 8,879 | E49: 8,879 | F49: 0 | G49: 138 | H49: =SUM(ごみ搬入量内訳!E49,+ごみ搬入量内訳!AD49) -> 3,271 | I49: =ごみ搬入量内訳!BC49 -> 122 | J49: =資源化量内訳!BO49 -> 114 | K49: 3,507 | L49: 1,082 | M49: =IF(D49<>0,(ごみ搬入量内訳!BR49+ごみ処理概要!J49)/ごみ処理概要!D49/365*1000000,"-") -> 798 | N49: =IF(D49<>0,ごみ搬入量内訳!CM49/ごみ処理概要!D49/365*1000000,"-") -> 284 | O49: =ごみ搬入量内訳!DH49 -> 0 | P49: =ごみ処理量内訳!E49 -> 2,960 | Q49: =ごみ処理量内訳!N49 -> 0 | R49: 352 | S49: =ごみ処理量内訳!G49 -> 352 | T49: =ごみ処理量内訳!L49 -> 0 | U49: =ごみ処理量内訳!H49 -> 0 | V49: =ごみ処理量内訳!I49 -> 0 | W49: =ごみ処理量内訳!J49 -> 0 | X49: =ごみ処理量内訳!K49 -> 0 | Y49: =ごみ処理量内訳!M49 -> 0 | Z49: =資源化量内訳!Y49 -> 81 | AA49: 3,393 | AB49: 100.0 | AC49: =施設資源化量内訳!Y49 -> 166 | AD49: =施設資源化量内訳!AT49 -> 151 | AE49: =施設資源化量内訳!BO49 -> 0 | AF49: =施設資源化量内訳!CJ49 -> 0 | AG49: =施設資源化量内訳!DE49 -> 0 | AH49: =施設資源化量内訳!DZ49 -> 0 | AI49: =施設資源化量内訳!EU49 -> 0 | AJ49: 317 | AK49: 14.6 | AL49: =IF((AA49+J49)<>0,(資源化量内訳!D49-資源化量内訳!R49-資源化量内訳!T49-資源化量内訳!V49-資源化量内訳!U49)/(AA49+J49)*100,"-") -> 14.6 | AM49: =ごみ処理量内訳!AA49 -> 0 | AN49: =ごみ処理量内訳!AB49 -> 166 | AO49: =ごみ処理量内訳!AC49 -> 0 | AP49: 166 | AQ49: 081542
A50: 茨城県 | B50: 08546 | C50: 境町 | D50: 25,418 | E50: 25,418 | F50: 0 | G50: 763 | H50: =SUM(ごみ搬入量内訳!E50,+ごみ搬入量内訳!AD50) -> 7,650 | I50: =ごみ搬入量内訳!BC50 -> 587 | J50: =資源化量内訳!BO50 -> 212 | K50: 8,449 | L50: 911 | M50: =IF(D50<>0,(ごみ搬入量内訳!BR50+ごみ処理概要!J50)/ごみ処理概要!D50/365*1000000,"-") -> 702 | N50: =IF(D50<>0,ごみ搬入量内訳!CM50/ごみ処理概要!D50/365*1000000,"-") -> 209 | O50: =ごみ搬入量内訳!DH50 -> 0 | P50: =ごみ処理量内訳!E50 -> 6,703 | Q50: =ごみ処理量内訳!N50 -> 0 | R50: 915 | S50: =ごみ処理量内訳!G50 -> 915 | T50: =ごみ処理量内訳!L50 -> 0 | U50: =ごみ処理量内訳!H50 -> 0 | V50: =ごみ処理量内訳!I50 -> 0 | W50: =ごみ処理量内訳!J50 -> 0 | X50: =ごみ処理量内訳!K50 -> 0 | Y50: =ごみ処理量内訳!M50 -> 0 | Z50: =資源化量内訳!Y50 -> 619 | AA50: 8,237 | AB50: 100.0 | AC50: =施設資源化量内訳!Y50 -> 328 | AD50: =施設資源化量内訳!AT50 -> 369 | AE50: =施設資源化量内訳!BO50 -> 0 | AF50: =施設資源化量内訳!CJ50 -> 0 | AG50: =施設資源化量内訳!DE50 -> 0 | AH50: =施設資源化量内訳!DZ50 -> 0 | AI50: =施設資源化量内訳!EU50 -> 0 | AJ50: 697 | AK50: 18.1 | AL50: =IF((AA50+J50)<>0,(資源化量内訳!D50-資源化量内訳!R50-資源化量内訳!T50-資源化量内訳!V50-資源化量内訳!U50)/(AA50+J50)*100,"-") -> 18.1 | AM50: =ごみ処理量内訳!AA50 -> 0 | AN50: =ごみ処理量内訳!AB50 -> 383 | AO50: =ごみ処理量内訳!AC50 -> 0 | AP50: 383 | AQ50: 081546
A51: 茨城県 | B51: 08564 | C51: 利根町 | D51: 16,772 | E51: 16,772 | F51: 0 | G51: 286 | H51: =SUM(ごみ搬入量内訳!E51,+ごみ搬入量内訳!AD51) -> 4,766 | I51: =ごみ搬入量内訳!BC51 -> 75 | J51: =資源化量内訳!BO51 -> 0 | K51: 4,841 | L51: 791 | M51: =IF(D51<>0,(ごみ搬入量内訳!BR51+ごみ処理概要!J51)/ごみ処理概要!D51/365*1000000,"-") -> 723 | N51: =IF(D51<>0,ごみ搬入量内訳!CM51/ごみ処理概要!D51/365*1000000,"-") -> 68 | O51: =ごみ搬入量内訳!DH51 -> 0 | P51: =ごみ処理量内訳!E51 -> 4,135 | Q51: =ごみ処理量内訳!N51 -> 0 | R51: 344 | S51: =ごみ処理量内訳!G51 -> 279 | T51: =ごみ処理量内訳!L51 -> 65 | U51: =ごみ処理量内訳!H51 -> 0 | V51: =ごみ処理量内訳!I51 -> 0 | W51: =ごみ処理量内訳!J51 -> 0 | X51: =ごみ処理量内訳!K51 -> 0 | Y51: =ごみ処理量内訳!M51 -> 0 | Z51: =資源化量内訳!Y51 -> 362 | AA51: 4,841 | AB51: 100.0 | AC51: =施設資源化量内訳!Y51 -> 364 | AD51: =施設資源化量内訳!AT51 -> 114 | AE51: =施設資源化量内訳!BO51 -> 0 | AF51: =施設資源化量内訳!CJ51 -> 0 | AG51: =施設資源化量内訳!DE51 -> 0 | AH51: =施設資源化量内訳!DZ51 -> 0 | AI51: =施設資源化量内訳!EU51 -> 54 | AJ51: 532 | AK51: 18.5 | AL51: =IF((AA51+J51)<>0,(資源化量内訳!D51-資源化量内訳!R51-資源化量内訳!T51-資源化量内訳!V51-資源化量内訳!U51)/(AA51+J51)*100,"-") -> 18.5 | AM51: =ごみ処理量内訳!AA51 -> 0 | AN51: =ごみ処理量内訳!AB51 -> 489 | AO51: =ごみ処理量内訳!AC51 -> 126 | AP51: 615 | AQ51: 081564

Sheet ごみ搬入量内訳
A1: ごみ搬入量の状況（平成28年度実績）
A2: 都道府県名 | B2: 地方公共団体コード | C2: 市区町村名 | D2: ごみ搬入量 (生活系ごみ収集量+事業系ごみ収集量+直接搬入量) | BR2: 生活系ごみ搬入量 | CM2: 事業系ごみ搬入量 | DH2: 自家処理量 | DI2: 家電４品目収集量(直営+委託+許可+直接搬入)
E3: 生活系ごみ収集量 (混合ごみ+可燃ごみ+不燃ごみ+資源ごみ+その他+粗大ごみ) | AD3: 事業系ごみ収集量 (混合ごみ+可燃ごみ+不燃ごみ+資源ごみ+その他+粗大ごみ) | BC3: 直接搬入量 | BS3: 生活系ごみ収集量＋直接搬入量 | CN3: 事業系ごみ収集量＋直接搬入量 | DI3: 合計 | DJ3: 直営 | DK3: 委託 | DL3: 許可 | DM3: 直接搬入
F4: 混合ごみ (直営+委託+許可) | J4: 可燃ごみ (直営+委託+許可) | N4: 不燃ごみ (直営+委託+許可) | R4: 資源ごみ (直営+委託+許可) | V4: その他のごみ (直営+委託+許可) | Z4: 粗大ごみ (直営+委託+許可) | AE4: 混合ごみ (直営+委託+許可) | AI4: 可燃ごみ (直営+委託+許可) | AM4: 不燃ごみ (直営+委託+許可) | AQ4: 資源ごみ (直営+委託+許可) | AU4: その他のごみ (直営+委託+許可) | AY4: 粗大ごみ (直営+委託+許可) | BD4: 直接搬入量（生活系ごみ） | BK4: 直接搬入量（事業系ごみ） | BY4: 生活系ごみ収集量 (混合ごみ+可燃ごみ+不燃ごみ+資源ごみ+その他+粗大ごみ) | CF4: 直接搬入量(混合ごみ+可燃ごみ+不燃ごみ+資源ごみ+その他+粗大ごみ) | CT4: 事業系ごみ収集量 (混合ごみ+可燃ごみ+不燃ごみ+資源ごみ+その他+粗大ごみ) | DA4: 直接搬入量(混合ごみ+可燃ごみ+不燃ごみ+資源ごみ+その他+粗大ごみ)
D5: 合計 | E5: 合計 | F5: 合計 | G5: 直営 | H5: 委託 | I5: 許可 | J5: 合計 | K5: 直営 | L5: 委託 | M5: 許可 | N5: 合計 | O5: 直営 | P5: 委託 | Q5: 許可 | R5: 合計 | S5: 直営 | T5: 委託 | U5: 許可 | V5: 合計 | W5: 直営 | X5: 委託 | Y5: 許可 | Z5: 合計 | AA5: 直営 | AB5: 委託 | AC5: 許可 | AD5: 合計 | AE5: 合計 | AF5: 直営 | AG5: 委託 | AH5: 許可 | AI5: 合計 | AJ5: 直営 | AK5: 委託 | AL5: 許可 | AM5: 合計 | AN5: 直営 | AO5: 委託 | AP5: 許可 | AQ5: 合計 | AR5: 直営 | AS5: 委託 | AT5: 許可 | AU5: 合計 | AV5: 直営 | AW5: 委託 | AX5: 許可 | AY5: 合計 | AZ5: 直営 | BA5: 委託 | BB5: 許可 | BC5: 合計 | BD5: 合計 | BE5: 混合ごみ | BF5: 可燃ごみ | BG5: 不燃ごみ | BH5: 資源ごみ | BI5: その他のごみ | BJ5: 粗大ごみ | BK5: 合計 | BL5: 混合ごみ | BM5: 可燃ごみ | BN5: 不燃ごみ | BO5: 資源ごみ | BP5: その他のごみ | BQ5: 粗大ごみ | BR5: 合計 | BS5: 混合ごみ | BT5: 可燃ごみ | BU5: 不燃ごみ | BV5: 資源ごみ | BW5: その他のごみ | BX5: 粗大ごみ | BY5: 合計 | BZ5: 混合ごみ | CA5: 可燃ごみ | CB5: 不燃ごみ | CC5: 資源ごみ | CD5: その他のごみ | CE5: 粗大ごみ | CF5: 合計 | CG5: 混合ごみ | CH5: 可燃ごみ | CI5: 不燃ごみ | CJ5: 資源ごみ | CK5: その他のごみ | CL5: 粗大ごみ | CM5: 合計 | CN5: 混合ごみ | CO5: 可燃ごみ | CP5: 不燃ごみ | CQ5: 資源ごみ | CR5: その他のごみ | CS5: 粗大ごみ | CT5: 合計 | CU5: 混合ごみ | CV5: 可燃ごみ | CW5: 不燃ごみ | CX5: 資源ごみ | CY5: その他のごみ | CZ5: 粗大ごみ | DA5: 合計 | DB5: 混合ごみ | DC5: 可燃ごみ | DD5: 不燃ごみ | DE5: 資源ごみ | DF5: その他のごみ | DG5: 粗大ごみ
D6: （ｔ） | E6: （ｔ） | F6: （ｔ） | G6: （ｔ） | H6: （ｔ） | I6: （ｔ） | J6: （ｔ） | K6: （ｔ） | L6: （ｔ） | M6: （ｔ） | N6: （ｔ） | O6: （ｔ） | P6: （ｔ） | Q6: （ｔ） | R6: （ｔ） | S6: （ｔ） | T6: （ｔ） | U6: （ｔ） | V6: （ｔ） | W6: （ｔ） | X6: （ｔ） | Y6: （ｔ） | Z6: （ｔ） | AA6: （ｔ） | AB6: （ｔ） | AC6: （ｔ） | AD6: （ｔ） | AE6: （ｔ） | AF6: （ｔ） | AG6: （ｔ） | AH6: （ｔ） | AI6: （ｔ） | AJ6: （ｔ） | AK6: （ｔ） | AL6: （ｔ） | AM6: （ｔ） | AN6: （ｔ） | AO6: （ｔ） | AP6: （ｔ） | AQ6: （ｔ） | AR6: （ｔ） | AS6: （ｔ） | AT6: （ｔ） | AU6: （ｔ） | AV6: （ｔ） | AW6: （ｔ） | AX6: （ｔ） | AY6: （ｔ） | AZ6: （ｔ） | BA6: （ｔ） | BB6: （ｔ） | BC6: （ｔ） | BD6: （ｔ） | BE6: （ｔ） | BF6: （ｔ） | BG6: （ｔ） | BH6: （ｔ） | BI6: （ｔ） | BJ6: （ｔ） | BK6: （ｔ） | BL6: （ｔ） | BM6: （ｔ） | BN6: （ｔ） | BO6: （ｔ） | BP6: （ｔ） | BQ6: （ｔ） | BR6: （ｔ） | BS6: （ｔ） | BT6: （ｔ） | BU6: （ｔ） | BV6: （ｔ） | BW6: （ｔ） | BX6: （ｔ） | BY6: （ｔ） | BZ6: （ｔ） | CA6: （ｔ） | CB6: （ｔ） | CC6: （ｔ） | CD6: （ｔ） | CE6: （ｔ） | CF6: （ｔ） | CG6: （ｔ） | CH6: （ｔ） | CI6: （ｔ） | CJ6: （ｔ） | CK6: （ｔ） | CL6: （ｔ） | CM6: （ｔ） | CN6: （ｔ） | CO6: （ｔ） | CP6: （ｔ） | CQ6: （ｔ） | CR6: （ｔ） | CS6: （ｔ） | CT6: （ｔ） | CU6: （ｔ） | CV6: （ｔ） | CW6: （ｔ） | CX6: （ｔ） | CY6: （ｔ） | CZ6: （ｔ） | DA6: （ｔ） | DB6: （ｔ） | DC6: （ｔ） | DD6: （ｔ） | DE6: （ｔ） | DF6: （ｔ） | DG6: （ｔ） | DH6: （ｔ） | DI6: (t) | DJ6: （ｔ） | DK6: （ｔ） | DL6: （ｔ） | DM6: （ｔ）
A7: =ごみ処理概要!A7 -> 茨城県 | B7: =ごみ処理概要!B7 -> 08000 | C7: 合計 | D7: =SUM(E7,AD7,BC7) -> 1,029,367 | E7: =SUM(F7,J7,N7,R7,V7,Z7) -> 683,013 | F7: =SUM(G7:I7) -> 96 | G7: =SUM(G$8:G$1000) -> 39 | H7: =SUM(H$8:H$1000) -> 3 | I7: =SUM(I$8:I$1000) -> 54 | J7: =SUM(K7:M7) -> 570,453 | K7: =SUM(K$8:K$1000) -> 65,901 | L7: =SUM(L$8:L$1000) -> 500,107 | M7: =SUM(M$8:M$1000) -> 4,445 | N7: =SUM(O7:Q7) -> 35,139 | O7: =SUM(O$8:O$1000) -> 3,382 | P7: =SUM(P$8:P$1000) -> 31,695 | Q7: =SUM(Q$8:Q$1000) -> 62 | R7: =SUM(S7:U7) -> 71,035 | S7: =SUM(S$8:S$1000) -> 3,714 | T7: =SUM(T$8:T$1000) -> 67,319 | U7: =SUM(U$8:U$1000) -> 2 | V7: =SUM(W7:Y7) -> 326 | W7: =SUM(W$8:W$1000) -> 94 | X7: =SUM(X$8:X$1000) -> 232 | Y7: =SUM(Y$8:Y$1000) -> 0 | Z7: =SUM(AA7:AC7) -> 5,964 | AA7: =SUM(AA$8:AA$1000) -> 790 | AB7: =SUM(AB$8:AB$1000) -> 5,174 | AC7: =SUM(AC$8:AC$1000) -> 0 | AD7: =SUM(AE7,AI7,AM7,AQ7,AU7,AY7) -> 262,244 | AE7: =SUM(AF7:AH7) -> 13,438 | AF7: =SUM(AF$8:AF$1000) -> 0 | AG7: =SUM(AG$8:AG$1000) -> 827 | AH7: =SUM(AH$8:AH$1000) -> 12,611 | AI7: =SUM(AJ7:AL7) -> 190,409 | AJ7: =SUM(AJ$8:AJ$1000) -> 1,094 | AK7: =SUM(AK$8:AK$1000) -> 853 | AL7: =SUM(AL$8:AL$1000) -> 188,462 | AM7: =SUM(AN7:AP7) -> 4,188 | AN7: =SUM(AN$8:AN$1000) -> 40 | AO7: =SUM(AO$8:AO$1000) -> 107 | AP7: =SUM(AP$8:AP$1000) -> 4,041 | AQ7: =SUM(AR7:AT7) -> 53,414 | AR7: =SUM(AR$8:AR$1000) -> 484 | AS7: =SUM(AS$8:AS$1000) -> 32 | AT7: =SUM(AT$8:AT$1000) -> 52,898 | AU7: =SUM(AV7:AX7) -> 3 | AV7: =SUM(AV$8:AV$1000) -> 0 | AW7: =SUM(AW$8:AW$1000) -> 0 | AX7: =SUM(AX$8:AX$1000) -> 3 | AY7: =SUM(AZ7:BB7) -> 792 | AZ7: =SUM(AZ$8:AZ$1000) -> 1 | BA7: =SUM(BA$8:BA$1000) -> 2 | BB7: =SUM(BB$8:BB$1000) -> 789 | BC7: =SUM(BD7,BK7) -> 84,110 | BD7: =SUM(BE7:BJ7) -> 49,923 | BE7: =SUM(BE$8:BE$1000) -> 5,887 | BF7: 25,108 | BG7: 4,509 | BH7: 2,901 | BI7: 108 | BJ7: 11,410 | BK7: =SUM(BL7:BQ7) -> 34,187 | BL7: =SUM(BL$8:BL$1000) -> 3,656 | BM7: 24,199 | BN7: 1,486 | BO7: 3,057 | BP7: 423 | BQ7: 1,366 | BR7: =SUM(BY7,CF7) -> 732,936 | BS7: 5,983 | BT7: 595,561 | BU7: 39,648 | BV7: 73,936 | BW7: 434 | BX7: 17,374 | BY7: =SUM(BZ7:CE7) -> 683,013 | BZ7: =F7 -> 96 | CA7: =J7 -> 570,453 | CB7: =N7 -> 35,139 | CC7: =R7 -> 71,035 | CD7: =V7 -> 326 | CE7: =Z7 -> 5,964 | CF7: =SUM(CG7:CL7) -> 49,923 | CG7: =BE7 -> 5,887 | CH7: 25,108 | CI7: 4,509 | CJ7: 2,901 | CK7: 108 | CL7: 11,410 | CM7: =SUM(CT7,DA7) -> 296,431 | CN7: 17,094 | CO7: 214,608 | CP7: 5,674 | CQ7: 56,471 | CR7: 426 | CS7: 2,158 | CT7: =SUM(CU7:CZ7) -> 262,244 | CU7: =AE7 -> 13,438 | CV7: =AI7 -> 190,409 | CW7: =AM7 -> 4,188 | CX7: =AQ7 -> 53,414 | CY7: =AU7 -> 3 | CZ7: =AY7 -> 792 | DA7: =SUM(DB7:DG7) -> 34,187 | DB7: =BL7 -> 3,656 | DC7: 24,199 | DD7: 1,486 | DE7: 3,057 | DF7: 423 | DG7: 1,366 | DH7: =SUM(DH$8:DH$1000) -> 12,701 | DI7: =SUM(DJ7:DM7) -> 63 | DJ7: =SUM(DJ$8:DJ$1000) -> 12 | DK7: =SUM(DK$8:DK$1000) -> 29 | DL7: =SUM(DL$8:DL$1000) -> 7 | DM7: =SUM(DM$8:DM$1000) -> 15
A8: 茨城県 | B8: 08201 | C8: 水戸市 | D8: 112,741 | E8: 70,822 | F8: 0 | G8: 0 | H8: 0 | I8: 0 | J8: 64,242 | K8: 56,621 | L8: 3,176 | M8: 4,445 | N8: 3,130 | O8: 2,814 | P8: 254 | Q8: 62 | R8: 3,442 | S8: 0 | T8: 3,442 | U8: 0 | V8: 0 | W8: 0 | X8: 0 | Y8: 0 | Z8: 8 | AA8: 1 | AB8: 7 | AC8: 0 | AD8: 35,689 | AE8: 0 | AF8: 0 | AG8: 0 | AH8: 0 | AI8: 23,007 | AJ8: 0 | AK8: 0 | AL8: 23,007 | AM8: 303 | AN8: 0 | AO8: 0 | AP8: 303 | AQ8: 12,377 | AR8: 0 | AS8: 0 | AT8: 12,377 | AU8: 0 | AV8: 0 | AW8: 0 | AX8: 0 | AY8: 2 | AZ8: 0 | BA8: 0 | BB8: 2 | BC8: 6,230 | BD8: 1,548 | BE8: 0 | BF8: 1,177 | BG8: 200 | BH8: 56 | BI8: 0 | BJ8: 115 | BK8: 4,682 | BL8: 0 | BM8: 4,005 | BN8: 669 | BO8: 3 | BP8: 0 | BQ8: 5 | BR8: =SUM(BY8,CF8) -> 72,370 | BS8: =SUM(BZ8,CG8) -> 0 | BT8: =SUM(CA8,CH8) -> 65,419 | BU8: =SUM(CB8,CI8) -> 3,330 | BV8: =SUM(CC8,CJ8) -> 3,498 | BW8: =SUM(CD8,CK8) -> 0 | BX8: =SUM(CE8,CL8) -> 123 | BY8: 70,822 | BZ8: 0 | CA8: 64,242 | CB8: 3,130 | CC8: 3,442 | CD8: 0 | CE8: 8 | CF8: 1,548 | CG8: =BE8 -> 0 | CH8: =BF8 -> 1,177 | CI8: =BG8 -> 200 | CJ8: =BH8 -> 56 | CK8: =BI8 -> 0 | CL8: =BJ8 -> 115 | CM8: =SUM(CT8,DA8) -> 40,371 | CN8: =SUM(CU8,DB8) -> 0 | CO8: =SUM(CV8,DC8) -> 27,012 | CP8: =SUM(CW8,DD8) -> 972 | CQ8: =SUM(CX8,DE8) -> 12,380 | CR8: =SUM(CY8,DF8) -> 0 | CS8: =SUM(CZ8,DG8) -> 7 | CT8: 35,689 | CU8: 0 | CV8: 23,007 | CW8: 303 | CX8: 12,377 | CY8: 0 | CZ8: 2 | DA8: 4,682 | DB8: =BL8 -> 0 | DC8: =BM8 -> 4,005 | DD8: =BN8 -> 669 | DE8: =BO8 -> 3 | DF8: =BP8 -> 0 | DG8: =BQ8 -> 5 | DH8: 0 | DI8: 1 | DJ8: 0 | DK8: 0 | DL8: 0 | DM8: 1
A9: 茨城県 | B9: 08202 | C9: 日立市 | D9: 62,637 | E9: 39,627 | F9: 93 | G9: 39 | H9: 0 | I9: 54 | J9: 35,525 | K9: 0 | L9: 35,525 | M9: 0 | N9: 189 | O9: 0 | P9: 189 | Q9: 0 | R9: 3,557 | S9: 0 | T9: 3,557 | U9: 0 | V9: 30 | W9: 0 | X9: 30 | Y9: 0 | Z9: 233 | AA9: 0 | AB9: 233 | AC9: 0 | AD9: 13,438 | AE9: 13,438 | AF9: 0 | AG9: 827 | AH9: 12,611 | AI9: 0 | AJ9: 0 | AK9: 0 | AL9: 0 | AM9: 0 | AN9: 0 | AO9: 0 | AP9: 0 | AQ9: 0 | AR9: 0 | AS9: 0 | AT9: 0 | AU9: 0 | AV9: 0 | AW9: 0 | AX9: 0 | AY9: 0 | AZ9: 0 | BA9: 0 | BB9: 0 | BC9: 9,572 | BD9: 5,887 | BE9: 5,887 | BF9: 0 | BG9: 0 | BH9: 0 | BI9: 0 | BJ9: 0 | BK9: 3,685 | BL9: 3,656 | BM9: 0 | BN9: 0 | BO9: 22 | BP9: 7 | BQ9: 0 | BR9: 45,514 | BS9: 5,980 | BT9: 35,525 | BU9: 189 | BV9: 3,557 | BW9: 30 | BX9: 233 | BY9: 39,627 | BZ9: 93 | CA9: 35,525 | CB9: 189 | CC9: 3,557 | CD9: 30 | CE9: 233 | CF9: 5,887 | CG9: 5,887 | CH9: 0 | CI9: 0 | CJ9: 0 | CK9: 0 | CL9: 0 | CM9: 17,123 | CN9: 17,094 | CO9: 0 | CP9: 0 | CQ9: 22 | CR9: 7 | CS9: 0 | CT9: 13,438 | CU9: 13,438 | CV9: 0 | CW9: 0 | CX9: 0 | CY9: 0 | CZ9: 0 | DA9: 3,685 | DB9: 3,656 | DC9: 0 | DD9: 0 | DE9: 22 | DF9: 7 | DG9: 0 | DH9: 0 | DI9: 0 | DJ9: 0 | DK9: 0 | DL9: 0 | DM9: 0
A10: 茨城県 | B10: 08203 | C10: 土浦市 | D10: 59,348 | E10: 34,174 | F10: 0 | G10: 0 | H10: 0 | I10: 0 | J10: 23,848 | K10: 0 | L10: 23,848 | M10: 0 | N10: 1,978 | O10: 0 | P10: 1,978 | Q10: 0 | R10: 8,076 | S10: 9 | T10: 8,067 | U10: 0 | V10: 0 | W10: 0 | X10: 0 | Y10: 0 | Z10: 272 | AA10: 0 | AB10: 272 | AC10: 0 | AD10: 21,967 | AE10: 0 | AF10: 0 | AG10: 0 | AH10: 0 | AI10: 15,880 | AJ10: 74 | AK10: 279 | AL10: 15,527 | AM10: 836 | AN10: 30 | AO10: 99 | AP10: 707 | AQ10: 5,219 | AR10: 0 | AS10: 0 | AT10: 5,219 | AU10: 0 | AV10: 0 | AW10: 0 | AX10: 0 | AY10: 32 | AZ10: 1 | BA10: 0 | BB10: 31 | BC10: 3,207 | BD10: 1,446 | BE10: 0 | BF10: 774 | BG10: 101 | BH10: 0 | BI10: 0 | BJ10: 571 | BK10: 1,761 | BL10: 0 | BM10: 1,682 | BN10: 13 | BO10: 0 | BP10: 0 | BQ10: 66 | BR10: 35,620 | BS10: 0 | BT10: 24,622 | BU10: 2,079 | BV10: 8,076 | BW10: 0 | BX10: 843 | BY10: 34,174 | BZ10: 0 | CA10: 23,848 | CB10: 1,978 | CC10: 8,076 | CD10: 0 | CE10: 272 | CF10: 1,446 | CG10: 0 | CH10: 774 | CI10: 101 | CJ10: 0 | CK10: 0 | CL10: 571 | CM10: 23,728 | CN10: 0 | CO10: 17,562 | CP10: 849 | CQ10: 5,219 | CR10: 0 | CS10: 98 | CT10: 21,967 | CU10: 0 | CV10: 15,880 | CW10: 836 | CX10: 5,219 | CY10: 0 | CZ10: 32 | DA10: 1,761 | DB10: 0 | DC10: 1,682 | DD10: 13 | DE10: 0 | DF10: 0 | DG10: 66 | DH10: 0 | DI10: 2 | DJ10: 2 | DK10: 0 | DL10: 0 | DM10: 0
A11: 茨城県 | B11: 08204 | C11: 古河市 | D11: 47,581 | E11: 35,942 | F11: 0 | G11: 0 | H11: 0 | I11: 0 | J11: 29,511 | K11: 0 | L11: 29,511 | M11: 0 | N11: 1,298 | O11: 0 | P11: 1,298 | Q11: 0 | R11: 4,678 | S11: 0 | T11: 4,678 | U11: 0 | V11: 0 | W11: 0 | X11: 0 | Y11: 0 | Z11: 455 | AA11: 0 | AB11: 455 | AC11: 0 | AD11: 9,084 | AE11: 0 | AF11: 0 | AG11: 0 | AH11: 0 | AI11: 9,008 | AJ11: 0 | AK11: 0 | AL11: 9,008 | AM11: 9 | AN11: 0 | AO11: 0 | AP11: 9 | AQ11: 60 | AR11: 0 | AS11: 0 | AT11: 60 | AU11: 0 | AV11: 0 | AW11: 0 | AX11: 0 | AY11: 7 | AZ11: 0 | BA11: 0 | BB11: 7 | BC11: 2,555 | BD11: 625 | BE11: 0 | BF11: 460 | BG11: 32 | BH11: 4 | BI11: 0 | BJ11: 129 | BK11: 1,930 | BL11: 0 | BM11: 1,615 | BN11: 40 | BO11: 26 | BP11: 0 | BQ11: 249 | BR11: 36,567 | BS11: 0 | BT11: 29,971 | BU11: 1,330 | BV11: 4,682 | BW11: 0 | BX11: 584 | BY11: 35,942 | BZ11: 0 | CA11: 29,511 | CB11: 1,298 | CC11: 4,678 | CD11: 0 | CE11: 455 | CF11: 625 | CG11: 0 | CH11: 460 | CI11: 32 | CJ11: 4 | CK11: 0 | CL11: 129 | CM11: 11,014 | CN11: 0 | CO11: 10,623 | CP11: 49 | CQ11: 86 | CR11: 0 | CS11: 256 | CT11: 9,084 | CU11: 0 | CV11: 9,008 | CW11: 9 | CX11: 60 | CY11: 0 | CZ11: 7 | DA11: 1,930 | DB11: 0 | DC11: 1,615 | DD11: 40 | DE11: 26 | DF11: 0 | DG11: 249 | DH11: 0 | DI11: 0 | DJ11: 0 | DK11: 0 | DL11: 0 | DM11: 0
A12: 茨城県 | B12: 08205 | C12: 石岡市 | D12: 30,398 | E12: 17,706 | F12: 0 | G12: 0 | H12: 0 | I12: 0 | J12: 15,606 | K12: 184 | L12: 15,422 | M12: 0 | N12: 967 | O12: 4 | P12: 963 | Q12: 0 | R12: 967 | S12: 5 | T12: 962 | U12: 0 | V12: 0 | W12: 0 | X12: 0 | Y12: 0 | Z12: 166 | AA12: 1 | AB12: 165 | AC12: 0 | AD12: 8,936 | AE12: 0 | AF12: 0 | AG12: 0 | AH12: 0 | AI12: 4,758 | AJ12: 0 | AK12: 0 | AL12: 4,758 | AM12: 57 | AN12: 0 | AO12: 0 | AP12: 57 | AQ12: 4,118 | AR12: 0 | AS12: 0 | AT12: 4,118 | AU12: 0 | AV12: 0 | AW12: 0 | AX12: 0 | AY12: 3 | AZ12: 0 | BA12: 0 | BB12: 3 | BC12: 3,756 | BD12: 2,165 | BE12: 0 | BF12: 1,495 | BG12: 109 | BH12: 29 | BI12: 0 | BJ12: 532 | BK12: 1,591 | BL12: 0 | BM12: 1,537 | BN12: 18 | BO12: 2 | BP12: 0 | BQ12: 34 | BR12: 19,871 | BS12: 0 | BT12: 17,101 | BU12: 1,076 | BV12: 996 | BW12: 0 | BX12: 698 | BY12: 17,706 | BZ12: 0 | CA12: 15,606 | CB12: 967 | CC12: 967 | CD12: 0 | CE12: 166 | CF12: 2,165 | CG12: 0 | CH12: 1,495 | CI12: 109 | CJ12: 29 | CK12: 0 | CL12: 532 | CM12: 10,527 | CN12: 0 | CO12: 6,295 | CP12: 75 | CQ12: 4,120 | CR12: 0 | CS12: 37 | CT12: 8,936 | CU12: 0 | CV12: 4,758 | CW12: 57 | CX12: 4,118 | CY12: 0 | CZ12: 3 | DA12: 1,591 | DB12: 0 | DC12: 1,537 | DD12: 18 | DE12: 2 | DF12: 0 | DG12: 34 | DH12: 0 | DI12: 9 | DJ12: 8 | DK12: 0 | DL12: 1 | DM12: 0
A13: 茨城県 | B13: 08207 | C13: 結城市 | D13: 20,766 | E13: 12,987 | F13: 0 | G13: 0 | H13: 0 | I13: 0 | J13: 10,621 | K13: 194 | L13: 10,427 | M13: 0 | N13: 497 | O13: 21 | P13: 476 | Q13: 0 | R13: 1,617 | S13: 0 | T13: 1,617 | U13: 0 | V13: 14 | W13: 0 | X13: 14 | Y13: 0 | Z13: 238 | AA13: 0 | AB13: 238 | AC13: 0 | AD13: 7,298 | AE13: 0 | AF13: 0 | AG13: 0 | AH13: 0 | AI13: 7,136 | AJ13: 0 | AK13: 0 | AL13: 7,136 | AM13: 162 | AN13: 0 | AO13: 0 | AP13: 162 | AQ13: 0 | AR13: 0 | AS13: 0 | AT13: 0 | AU13: 0 | AV13: 0 | AW13: 0 | AX13: 0 | AY13: 0 | AZ13: 0 | BA13: 0 | BB13: 0 | BC13: 481 | BD13: 481 | BE13: 0 | BF13: 383 | BG13: 98 | BH13: 0 | BI13: 0 | BJ13: 0 | BK13: 0 | BL13: 0 | BM13: 0 | BN13: 0 | BO13: 0 | BP13: 0 | BQ13: 0 | BR13: 13,468 | BS13: 0 | BT13: 11,004 | BU13: 595 | BV13: 1,617 | BW13: 14 | BX13: 238 | BY13: 12,987 | BZ13: 0 | CA13: 10,621 | CB13: 497 | CC13: 1,617 | CD13: 14 | CE13: 238 | CF13: 481 | CG13: 0 | CH13: 383 | CI13: 98 | CJ13: 0 | CK13: 0 | CL13: 0 | CM13: 7,298 | CN13: 0 | CO13: 7,136 | CP13: 162 | CQ13: 0 | CR13: 0 | CS13: 0 | CT13: 7,298 | CU13: 0 | CV13: 7,136 | CW13: 162 | CX13: 0 | CY13: 0 | CZ13: 0 | DA13: 0 | DB13: 0 | DC13: 0 | DD13: 0 | DE13: 0 | DF13: 0 | DG13: 0 | DH13: 0 | DI13: 1 | DJ13: 1 | DK13: 0 | DL13: 0 | DM13: 0
A14: 茨城県 | B14: 08208 | C14: 龍ケ崎市 | D14: 29,289 | E14: 20,616 | F14: 0 | G14: 0 | H14: 0 | I14: 0 | J14: 17,348 | K14: 185 | L14: 17,163 | M14: 0 | N14: 813 | O14: 10 | P14: 803 | Q14: 0 | R14: 2,392 | S14: 210 | T14: 2,182 | U14: 0 | V14: 0 | W14: 0 | X14: 0 | Y14: 0 | Z14: 63 | AA14: 63 | AB14: 0 | AC14: 0 | AD14: 7,781 | AE14: 0 | AF14: 0 | AG14: 0 | AH14: 0 | AI14: 5,372 | AJ14: 0 | AK14: 0 | AL14: 5,372 | AM14: 76 | AN14: 0 | AO14: 0 | AP14: 76 | AQ14: 2,326 | AR14: 0 | AS14: 0 | AT14: 2,326 | AU14: 0 | AV14: 0 | AW14: 0 | AX14: 0 | AY14: 7 | AZ14: 0 | BA14: 0 | BB14: 7 | BC14: 892 | BD14: 652 | BE14: 0 | BF14: 408 | BG14: 84 | BH14: 0 | BI14: 0 | BJ14: 160 | BK14: 240 | BL14: 0 | BM14: 210 | BN14: 4 | BO14: 0 | BP14: 0 | BQ14: 26 | BR14: 21,268 | BS14: 0 | BT14: 17,756 | BU14: 897 | BV14: 2,392 | BW14: 0 | BX14: 223 | BY14: 20,616 | BZ14: 0 | CA14: 17,348 | CB14: 813 | CC14: 2,392 | CD14: 0 | CE14: 63 | CF14: 652 | CG14: 0 | CH14: 408 | CI14: 84 | CJ14: 0 | CK14: 0 | CL14: 160 | CM14: 8,021 | CN14: 0 | CO14: 5,582 | CP14: 80 | CQ14: 2,326 | CR14: 0 | CS14: 33 | CT14: 7,781 | CU14: 0 | CV14: 5,372 | CW14: 76 | CX14: 2,326 | CY14: 0 | CZ14: 7 | DA14: 240 | DB14: 0 | DC14: 210 | DD14: 4 | DE14: 0 | DF14: 0 | DG14: 26 | DH14: 0 | DI14: 0 | DJ14: 0 | DK14: 0 | DL14: 0 | DM14: 0
A15: 茨城県 | B15: 08210 | C15: 下妻市 | D15: 16,699 | E15: 9,251 | F15: 0 | G15: 0 | H15: 0 | I15: 0 | J15: 8,017 | K15: 0 | L15: 8,017 | M15: 0 | N15: 440 | O15: 0 | P15: 440 | Q15: 0 | R15: 751 | S15: 131 | T15: 620 | U15: 0 | V15: 13 | W15: 13 | X15: 0 | Y15: 0 | Z15: 30 | AA15: 0 | AB15: 30 | AC15: 0 | AD15: 4,040 | AE15: 0 | AF15: 0 | AG15: 0 | AH15: 0 | AI15: 3,364 | AJ15: 163 | AK15: 0 | AL15: 3,201 | AM15: 62 | AN15: 10 | AO15: 0 | AP15: 52 | AQ15: 614 | AR15: 0 | AS15: 0 | AT15: 614 | AU15: 0 | AV15: 0 | AW15: 0 | AX15: 0 | AY15: 0 | AZ15: 0 | BA15: 0 | BB15: 0 | BC15: 3,408 | BD15: 1,123 | BE15: 0 | BF15: 613 | BG15: 71 | BH15: 0 | BI15: 0 | BJ15: 439 | BK15: 2,285 | BL15: 0 | BM15: 1,116 | BN15: 21 | BO15: 1,148 | BP15: 0 | BQ15: 0 | BR15: 10,374 | BS15: 0 | BT15: 8,630 | BU15: 511 | BV15: 751 | BW15: 13 | BX15: 469 | BY15: 9,251 | BZ15: 0 | CA15: 8,017 | CB15: 440 | CC15: 751 | CD15: 13 | CE15: 30 | CF15: 1,123 | CG15: 0 | CH15: 613 | CI15: 71 | CJ15: 0 | CK15: 0 | CL15: 439 | CM15: 6,325 | CN15: 0 | CO15: 4,480 | CP15: 83 | CQ15: 1,762 | CR15: 0 | CS15: 0 | CT15: 4,040 | CU15: 0 | CV15: 3,364 | CW15: 62 | CX15: 614 | CY15: 0 | CZ15: 0 | DA15: 2,285 | DB15: 0 | DC15: 1,116 | DD15: 21 | DE15: 1,148 | DF15: 0 | DG15: 0 | DH15: 0 | DI15: 2 | DJ15: 0 | DK15: 2 | DL15: 0 | DM15: 0
A16: 茨城県 | B16: 08211 | C16: 常総市 | D16: 18,544 | E16: 12,887 | F16: 0 | G16: 0 | H16: 0 | I16: 0 | J16: 10,013 | K16: 24 | L16: 9,989 | M16: 0 | N16: 1,538 | O16: 2 | P16: 1,536 | Q16: 0 | R16: 1,194 | S16: 1 | T16: 1,193 | U16: 0 | V16: 20 | W16: 20 | X16: 0 | Y16: 0 | Z16: 122 | AA16: 26 | AB16: 96 | AC16: 0 | AD16: 4,619 | AE16: 0 | AF16: 0 | AG16: 0 | AH16: 0 | AI16: 3,013 | AJ16: 0 | AK16: 0 | AL16: 3,013 | AM16: 48 | AN16: 0 | AO16: 0 | AP16: 48 | AQ16: 1,558 | AR16: 0 | AS16: 0 | AT16: 1,558 | AU16: 0 | AV16: 0 | AW16: 0 | AX16: 0 | AY16: 0 | AZ16: 0 | BA16: 0 | BB16: 0 | BC16: 1,038 | BD16: 547 | BE16: 0 | BF16: 212 | BG16: 42 | BH16: 0 | BI16: 0 | BJ16: 293 | BK16: 491 | BL16: 0 | BM16: 483 | BN16: 8 | BO16: 0 | BP16: 0 | BQ16: 0 | BR16: 13,434 | BS16: 0 | BT16: 10,225 | BU16: 1,580 | BV16: 1,194 | BW16: 20 | BX16: 415 | BY16: 12,887 | BZ16: 0 | CA16: 10,013 | CB16: 1,538 | CC16: 1,194 | CD16: 20 | CE16: 122 | CF16: 547 | CG16: 0 | CH16: 212 | CI16: 42 | CJ16: 0 | CK16: 0 | CL16: 293 | CM16: 5,110 | CN16: 0 | CO16: 3,496 | CP16: 56 | CQ16: 1,558 | CR16: 0 | CS16: 0 | CT16: 4,619 | CU16: 0 | CV16: 3,013 | CW16: 48 | CX16: 1,558 | CY16: 0 | CZ16: 0 | DA16: 491 | DB16: 0 | DC16: 483 | DD16: 8 | DE16: 0 | DF16: 0 | DG16: 0 | DH16: 0 | DI16: 0 | DJ16: 0 | DK16: 0 | DL16: 0 | DM16: 0
A17: 茨城県 | B17: 08212 | C17: 常陸太田市 | D17: 16,068 | E17: 11,298 | F17: 0 | G17: 0 | H17: 0 | I17: 0 | J17: 9,518 | K17: 0 | L17: 9,518 | M17: 0 | N17: 0 | O17: 0 | P17: 0 | Q17: 0 | R17: 1,780 | S17: 0 | T17: 1,780 | U17: 0 | V17: 0 | W17: 0 | X17: 0 | Y17: 0 | Z17: 0 | AA17: 0 | AB17: 0 | AC17: 0 | AD17: 1,940 | AE17: 0 | AF17: 0 | AG17: 0 | AH17: 0 | AI17: 1,929 | AJ17: 0 | AK17: 0 | AL17: 1,929 | AM17: 0 | AN17: 0 | AO17: 0 | AP17: 0 | AQ17: 11 | AR17: 0 | AS17: 0 | AT17: 11 | AU17: 0 | AV17: 0 | AW17: 0 | AX17: 0 | AY17: 0 | AZ17: 0 | BA17: 0 | BB17: 0 | BC17: 2,830 | BD17: 1,479 | BE17: 0 | BF17: 1,469 | BG17: 0 | BH17: 10 | BI17: 0 | BJ17: 0 | BK17: 1,351 | BL17: 0 | BM17: 1,341 | BN17: 0 | BO17: 10 | BP17: 0 | BQ17: 0 | BR17: 12,777 | BS17: 0 | BT17: 10,987 | BU17: 0 | BV17: 1,790 | BW17: 0 | BX17: 0 | BY17: 11,298 | BZ17: 0 | CA17: 9,518 | CB17: 0 | CC17: 1,780 | CD17: 0 | CE17: 0 | CF17: 1,479 | CG17: 0 | CH17: 1,469 | CI17: 0 | CJ17: 10 | CK17: 0 | CL17: 0 | CM17: 3,291 | CN17: 0 | CO17: 3,270 | CP17: 0 | CQ17: 21 | CR17: 0 | CS17: 0 | CT17: 1,940 | CU17: 0 | CV17: 1,929 | CW17: 0 | CX17: 11 | CY17: 0 | CZ17: 0 | DA17: 1,351 | DB17: 0 | DC17: 1,341 | DD17: 0 | DE17: 10 | DF17: 0 | DG17: 0 | DH17: 0 | DI17: 2 | DJ17: 0 | DK17: 0 | DL17: 0 | DM17: 2
A18: 茨城県 | B18: 08214 | C18: 高萩市 | D18: 9,369 | E18: 6,474 | F18: 0 | G18: 0 | H18: 0 | I18: 0 | J18: 5,126 | K18: 0 | L18: 5,126 | M18: 0 | N18: 76 | O18: 0 | P18: 76 | Q18: 0 | R18: 1,207 | S18: 0 | T18: 1,207 | U18: 0 | V18: 0 | W18: 0 | X18: 0 | Y18: 0 | Z18: 65 | AA18: 0 | AB18: 65 | AC18: 0 | AD18: 1,670 | AE18: 0 | AF18: 0 | AG18: 0 | AH18: 0 | AI18: 1,589 | AJ18: 0 | AK18: 0 | AL18: 1,589 | AM18: 6 | AN18: 0 | AO18: 0 | AP18: 6 | AQ18: 72 | AR18: 0 | AS18: 0 | AT18: 72 | AU18: 1 | AV18: 0 | AW18: 0 | AX18: 1 | AY18: 2 | AZ18: 0 | BA18: 0 | BB18: 2 | BC18: 1,225 | BD18: 538 | BE18: 0 | BF18: 82 | BG18: 33 | BH18: 92 | BI18: 94 | BJ18: 237 | BK18: 687 | BL18: 0 | BM18: 229 | BN18: 11 | BO18: 31 | BP18: 394 | BQ18: 22 | BR18: 7,012 | BS18: 0 | BT18: 5,208 | BU18: 109 | BV18: 1,299 | BW18: 94 | BX18: 302 | BY18: 6,474 | BZ18: 0 | CA18: 5,126 | CB18: 76 | CC18: 1,207 | CD18: 0 | CE18: 65 | CF18: 538 | CG18: 0 | CH18: 82 | CI18: 33 | CJ18: 92 | CK18: 94 | CL18: 237 | CM18: 2,357 | CN18: 0 | CO18: 1,818 | CP18: 17 | CQ18: 103 | CR18: 395 | CS18: 24 | CT18: 1,670 | CU18: 0 | CV18: 1,589 | CW18: 6 | CX18: 72 | CY18: 1 | CZ18: 2 | DA18: 687 | DB18: 0 | DC18: 229 | DD18: 11 | DE18: 31 | DF18: 394 | DG18: 22 | DH18: 0 | DI18: 0 | DJ18: 0 | DK18: 0 | DL18: 0 | DM18: 0
A19: 茨城県 | B19: 08215 | C19: 北茨城市 | D19: 15,697 | E19: 10,868 | F19: 0 | G19: 0 | H19: 0 | I19: 0 | J19: 8,661 | K19: 2,673 | L19: 5,988 | M19: 0 | N19: 193 | O19: 193 | P19: 0 | Q19: 0 | R19: 1,990 | S19: 1,990 | T19: 0 | U19: 0 | V19: 0 | W19: 0 | X19: 0 | Y19: 0 | Z19: 24 | AA19: 24 | AB19: 0 | AC19: 0 | AD19: 2,008 | AE19: 0 | AF19: 0 | AG19: 0 | AH19: 0 | AI19: 2,008 | AJ19: 0 | AK19: 0 | AL19: 2,008 | AM19: 0 | AN19: 0 | AO19: 0 | AP19: 0 | AQ19: 0 | AR19: 0 | AS19: 0 | AT19: 0 | AU19: 0 | AV19: 0 | AW19: 0 | AX19: 0 | AY19: 0 | AZ19: 0 | BA19: 0 | BB19: 0 | BC19: 2,821 | BD19: 1,833 | BE19: 0 | BF19: 1,515 | BG19: 318 | BH19: 0 | BI19: 0 | BJ19: 0 | BK19: 988 | BL19: 0 | BM19: 988 | BN19: 0 | BO19: 0 | BP19: 0 | BQ19: 0 | BR19: 12,701 | BS19: 0 | BT19: 10,176 | BU19: 511 | BV19: 1,990 | BW19: 0 | BX19: 24 | BY19: 10,868 | BZ19: 0 | CA19: 8,661 | CB19: 193 | CC19: 1,990 | CD19: 0 | CE19: 24 | CF19: 1,833 | CG19: 0 | CH19: 1,515 | CI19: 318 | CJ19: 0 | CK19: 0 | CL19: 0 | CM19: 2,996 | CN19: 0 | CO19: 2,996 | CP19: 0 | CQ19: 0 | CR19: 0 | CS19: 0 | CT19: 2,008 | CU19: 0 | CV19: 2,008 | CW19: 0 | CX19: 0 | CY19: 0 | CZ19: 0 | DA19: 988 | DB19: 0 | DC19: 988 | DD19: 0 | DE19: 0 | DF19: 0 | DG19: 0 | DH19: 12,701 | DI19: 3 | DJ19: 0 | DK19: 0 | DL19: 0 | DM19: 3
A20: 茨城県 | B20: 08216 | C20: 笠間市 | D20: 25,136 | E20: 16,117 | F20: 0 | G20: 0 | H20: 0 | I20: 0 | J20: 14,643 | K20: 0 | L20: 14,643 | M20: 0 | N20: 286 | O20: 0 | P20: 286 | Q20: 0 | R20: 1,157 | S20: 0 | T20: 1,157 | U20: 0 | V20: 0 | W20: 0 | X20: 0 | Y20: 0 | Z20: 31 | AA20: 0 | AB20: 31 | AC20: 0 | AD20: 4,887 | AE20: 0 | AF20: 0 | AG20: 0 | AH20: 0 | AI20: 4,843 | AJ20: 0 | AK20: 0 | AL20: 4,843 | AM20: 17 | AN20: 0 | AO20: 0 | AP20: 17 | AQ20: 8 | AR20: 0 | AS20: 0 | AT20: 8 | AU20: 0 | AV20: 0 | AW20: 0 | AX20: 0 | AY20: 19 | AZ20: 0 | BA20: 0 | BB20: 19 | BC20: 4,132 | BD20: 2,699 | BE20: 0 | BF20: 1,177 | BG20: 237 | BH20: 220 | BI20: 0 | BJ20: 1,065 | BK20: 1,433 | BL20: 0 | BM20: 1,294 | BN20: 41 | BO20: 21 | BP20: 0 | BQ20: 77 | BR20: 18,816 | BS20: 0 | BT20: 15,820 | BU20: 523 | BV20: 1,377 | BW20: 0 | BX20: 1,096 | BY20: 16,117 | BZ20: 0 | CA20: 14,643 | CB20: 286 | CC20: 1,157 | CD20: 0 | CE20: 31 | CF20: 2,699 | CG20: 0 | CH20: 1,177 | CI20: 237 | CJ20: 220 | CK20: 0 | CL20: 1,065 | CM20: 6,320 | CN20: 0 | CO20: 6,137 | CP20: 58 | CQ20: 29 | CR20: 0 | CS20: 96 | CT20: 4,887 | CU20: 0 | CV20: 4,843 | CW20: 17 | CX20: 8 | CY20: 0 | CZ20: 19 | DA20: 1,433 | DB20: 0 | DC20: 1,294 | DD20: 41 | DE20: 21 | DF20: 0 | DG20: 77 | DH20: 0 | DI20: 0 | DJ20: 0 | DK20: 0 | DL20: 0 | DM20: 0
A21: 茨城県 | B21: 08217 | C21: 取手市 | D21: 34,180 | E21: 26,079 | F21: 0 | G21: 0 | H21: 0 | I21: 0 | J21: 18,354 | K21: 32 | L21: 18,322 | M21: 0 | N21: 3,508 | O21: 6 | P21: 3,502 | Q21: 0 | R21: 3,852 | S21: 0 | T21: 3,852 | U21: 0 | V21: 29 | W21: 29 | X21: 0 | Y21: 0 | Z21: 336 | AA21: 46 | AB21: 290 | AC21: 0 | AD21: 7,656 | AE21: 0 | AF21: 0 | AG21: 0 | AH21: 0 | AI21: 4,799 | AJ21: 0 | AK21: 0 | AL21: 4,799 | AM21: 112 | AN21: 0 | AO21: 0 | AP21: 112 | AQ21: 2,745 | AR21: 0 | AS21: 0 | AT21: 2,745 | AU21: 0 | AV21: 0 | AW21: 0 | AX21: 0 | AY21: 0 | AZ21: 0 | BA21: 0 | BB21: 0 | BC21: 445 | BD21: 392 | BE21: 0 | BF21: 7 | BG21: 4 | BH21: 0 | BI21: 0 | BJ21: 381 | BK21: 53 | BL21: 0 | BM21: 50 | BN21: 3 | BO21: 0 | BP21: 0 | BQ21: 0 | BR21: 26,471 | BS21: 0 | BT21: 18,361 | BU21: 3,512 | BV21: 3,852 | BW21: 29 | BX21: 717 | BY21: 26,079 | BZ21: 0 | CA21: 18,354 | CB21: 3,508 | CC21: 3,852 | CD21: 29 | CE21: 336 | CF21: 392 | CG21: 0 | CH21: 7 | CI21: 4 | CJ21: 0 | CK21: 0 | CL21: 381 | CM21: 7,709 | CN21: 0 | CO21: 4,849 | CP21: 115 | CQ21: 2,745 | CR21: 0 | CS21: 0 | CT21: 7,656 | CU21: 0 | CV21: 4,799 | CW21: 112 | CX21: 2,745 | CY21: 0 | CZ21: 0 | DA21: 53 | DB21: 0 | DC21: 50 | DD21: 3 | DE21: 0 | DF21: 0 | DG21: 0 | DH21: 0 | DI21: 7 | DJ21: 1 | DK21: 0 | DL21: 6 | DM21: 0
A22: 茨城県 | B22: 08219 | C22: 牛久市 | D22: 28,816 | E22: 20,733 | F22: 0 | G22: 0 | H22: 0 | I22: 0 | J22: 16,555 | K22: 0 | L22: 16,555 | M22: 0 | N22: 551 | O22: 0 | P22: 551 | Q22: 0 | R22: 3,599 | S22: 64 | T22: 3,535 | U22: 0 | V22: 9 | W22: 0 | X22: 9 | Y22: 0 | Z22: 19 | AA22: 0 | AB22: 19 | AC22: 0 | AD22: 5,667 | AE22: 0 | AF22: 0 | AG22: 0 | AH22: 0 | AI22: 5,556 | AJ22: 0 | AK22: 0 | AL22: 5,556 | AM22: 49 | AN22: 0 | AO22: 0 | AP22: 49 | AQ22: 33 | AR22: 0 | AS22: 32 | AT22: 1 | AU22: 0 | AV22: 0 | AW22: 0 | AX22: 0 | AY22: 29 | AZ22: 0 | BA22: 0 | BB22: 29 | BC22: 2,416 | BD22: 1,593 | BE22: 0 | BF22: 572 | BG22: 463 | BH22: 0 | BI22: 0 | BJ22: 558 | BK22: 823 | BL22: 0 | BM22: 750 | BN22: 21 | BO22: 0 | BP22: 0 | BQ22: 52 | BR22: 22,326 | BS22: 0 | BT22: 17,127 | BU22: 1,014 | BV22: 3,599 | BW22: 9 | BX22: 577 | BY22: 20,733 | BZ22: 0 | CA22: 16,555 | CB22: 551 | CC22: 3,599 | CD22: 9 | CE22: 19 | CF22: 1,593 | CG22: 0 | CH22: 572 | CI22: 463 | CJ22: 0 | CK22: 0 | CL22: 558 | CM22: 6,490 | CN22: 0 | CO22: 6,306 | CP22: 70 | CQ22: 33 | CR22: 0 | CS22: 81 | CT22: 5,667 | CU22: 0 | CV22: 5,556 | CW22: 49 | CX22: 33 | CY22: 0 | CZ22: 29 | DA22: 823 | DB22: 0 | DC22: 750 | DD22: 21 | DE22: 0 | DF22: 0 | DG22: 52 | DH22: 0 | DI22: 5 | DJ22: 0 | DK22: 0 | DL22: 0 | DM22: 5
A23: 茨城県 | B23: 08220 | C23: つくば市 | D23: 91,362 | E23: 52,814 | F23: 0 | G23: 0 | H23: 0 | I23: 0 | J23: 45,565 | K23: 0 | L23: 45,565 | M23: 0 | N23: 2,014 | O23: 0 | P23: 2,014 | Q23: 0 | R23: 4,924 | S23: 52 | T23: 4,872 | U23: 0 | V23: 44 | W23: 0 | X23: 44 | Y23: 0 | Z23: 267 | AA23: 0 | AB23: 267 | AC23: 0 | AD23: 35,307 | AE23: 0 | AF23: 0 | AG23: 0 | AH23: 0 | AI23: 24,344 | AJ23: 0 | AK23: 0 | AL23: 24,344 | AM23: 474 | AN23: 0 | AO23: 0 | AP23: 474 | AQ23: 10,277 | AR23: 0 | AS23: 0 | AT23: 10,277 | AU23: 0 | AV23: 0 | AW23: 0 | AX23: 0 | AY23: 212 | AZ23: 0 | BA23: 0 | BB23: 212 | BC23: 3,241 | BD23: 3,228 | BE23: 0 | BF23: 1,344 | BG23: 260 | BH23: 191 | BI23: 0 | BJ23: 1,433 | BK23: 13 | BL23: 0 | BM23: 0 | BN23: 0 | BO23: 13 | BP23: 0 | BQ23: 0 | BR23: 56,042 | BS23: 0 | BT23: 46,909 | BU23: 2,274 | BV23: 5,115 | BW23: 44 | BX23: 1,700 | BY23: 52,814 | BZ23: 0 | CA23: 45,565 | CB23: 2,014 | CC23: 4,924 | CD23: 44 | CE23: 267 | CF23: 3,228 | CG23: 0 | CH23: 1,344 | CI23: 260 | CJ23: 191 | CK23: 0 | CL23: 1,433 | CM23: 35,320 | CN23: 0 | CO23: 24,344 | CP23: 474 | CQ23: 10,290 | CR23: 0 | CS23: 212 | CT23: 35,307 | CU23: 0 | CV23: 24,344 | CW23: 474 | CX23: 10,277 | CY23: 0 | CZ23: 212 | DA23: 13 | DB23: 0 | DC23: 0 | DD23: 0 | DE23: 13 | DF23: 0 | DG23: 0 | DH23: 0 | DI23: 0 | DJ23: 0 | DK23: 0 | DL23: 0 | DM23: 0
A24: 茨城県 | B24: 08221 | C24: ひたちなか市 | D24: 53,962 | E24: 37,180 | F24: 0 | G24: 0 | H24: 0 | I24: 0 | J24: 34,524 | K24: 1,287 | L24: 33,237 | M24: 0 | N24: 1,910 | O24: 269 | P24: 1,641 | Q24: 0 | R24: 704 | S24: 484 | T24: 220 | U24: 0 | V24: 10 | W24: 0 | X24: 10 | Y24: 0 | Z24: 32 | AA24: 0 | AB24: 32 | AC24: 0 | AD24: 13,914 | AE24: 0 | AF24: 0 | AG24: 0 | AH24: 0 | AI24: 13,851 | AJ24: 0 | AK24: 0 | AL24: 13,851 | AM24: 63 | AN24: 0 | AO24: 0 | AP24: 63 | AQ24: 0 | AR24: 0 | AS24: 0 | AT24: 0 | AU24: 0 | AV24: 0 | AW24: 0 | AX24: 0 | AY24: 0 | AZ24: 0 | BA24: 0 | BB24: 0 | BC24: 2,868 | BD24: 2,152 | BE24: 0 | BF24: 2,079 | BG24: 73 | BH24: 0 | BI24: 0 | BJ24: 0 | BK24: 716 | BL24: 0 | BM24: 692 | BN24: 24 | BO24: 0 | BP24: 0 | BQ24: 0 | BR24: 39,332 | BS24: 0 | BT24: 36,603 | BU24: 1,983 | BV24: 704 | BW24: 10 | BX24: 32 | BY24: 37,180 | BZ24: 0 | CA24: 34,524 | CB24: 1,910 | CC24: 704 | CD24: 10 | CE24: 32 | CF24: 2,152 | CG24: 0 | CH24: 2,079 | CI24: 73 | CJ24: 0 | CK24: 0 | CL24: 0 | CM24: 14,630 | CN24: 0 | CO24: 14,543 | CP24: 87 | CQ24: 0 | CR24: 0 | CS24: 0 | CT24: 13,914 | CU24: 0 | CV24: 13,851 | CW24: 63 | CX24: 0 | CY24: 0 | CZ24: 0 | DA24: 716 | DB24: 0 | DC24: 692 | DD24: 24 | DE24: 0 | DF24: 0 | DG24: 0 | DH24: 0 | DI24: 0 | DJ24: 0 | DK24: 0 | DL24: 0 | DM24: 0
A25: 茨城県 | B25: 08222 | C25: 鹿嶋市 | D25: 22,772 | E25: 14,965 | F25: 0 | G25: 0 | H25: 0 | I25: 0 | J25: 12,251 | K25: 0 | L25: 12,251 | M25: 0 | N25: 2,603 | O25: 0 | P25: 2,603 | Q25: 0 | R25: 0 | S25: 0 | T25: 0 | U25: 0 | V25: 0 | W25: 0 | X25: 0 | Y25: 0 | Z25: 111 | AA25: 0 | AB25: 111 | AC25: 0 | AD25: 4,663 | AE25: 0 | AF25: 0 | AG25: 0 | AH25: 0 | AI25: 4,375 | AJ25: 0 | AK25: 0 | AL25: 4,375 | AM25: 288 | AN25: 0 | AO25: 0 | AP25: 288 | AQ25: 0 | AR25: 0 | AS25: 0 | AT25: 0 | AU25: 0 | AV25: 0 | AW25: 0 | AX25: 0 | AY25: 0 | AZ25: 0 | BA25: 0 | BB25: 0 | BC25: 3,144 | BD25: 2,421 | BE25: 0 | BF25: 1,080 | BG25: 449 | BH25: 439 | BI25: 0 | BJ25: 453 | BK25: 723 | BL25: 0 | BM25: 383 | BN25: 340 | BO25: 0 | BP25: 0 | BQ25: 0 | BR25: 17,386 | BS25: 0 | BT25: 13,331 | BU25: 3,052 | BV25: 439 | BW25: 0 | BX25: 564 | BY25: 14,965 | BZ25: 0 | CA25: 12,251 | CB25: 2,603 | CC25: 0 | CD25: 0 | CE25: 111 | CF25: 2,421 | CG25: 0 | CH25: 1,080 | CI25: 449 | CJ25: 439 | CK25: 0 | CL25: 453 | CM25: 5,386 | CN25: 0 | CO25: 4,758 | CP25: 628 | CQ25: 0 | CR25: 0 | CS25: 0 | CT25: 4,663 | CU25: 0 | CV25: 4,375 | CW25: 288 | CX25: 0 | CY25: 0 | CZ25: 0 | DA25: 723 | DB25: 0 | DC25: 383 | DD25: 340 | DE25: 0 | DF25: 0 | DG25: 0 | DH25: 0 | DI25: 0 | DJ25: 0 | DK25: 0 | DL25: 0 | DM25: 0
A26: 茨城県 | B26: 08223 | C26: 潮来市 | D26: 10,886 | E26: 6,777 | F26: 0 | G26: 0 | H26: 0 | I26: 0 | J26: 5,090 | K26: 0 | L26: 5,090 | M26: 0 | N26: 428 | O26: 0 | P26: 428 | Q26: 0 | R26: 1,259 | S26: 0 | T26: 1,259 | U26: 0 | V26: 0 | W26: 0 | X26: 0 | Y26: 0 | Z26: 0 | AA26: 0 | AB26: 0 | AC26: 0 | AD26: 2,950 | AE26: 0 | AF26: 0 | AG26: 0 | AH26: 0 | AI26: 1,992 | AJ26: 0 | AK26: 0 | AL26: 1,992 | AM26: 2 | AN26: 0 | AO26: 0 | AP26: 2 | AQ26: 948 | AR26: 0 | AS26: 0 | AT26: 948 | AU26: 0 | AV26: 0 | AW26: 0 | AX26: 0 | AY26: 8 | AZ26: 0 | BA26: 0 | BB26: 8 | BC26: 1,159 | BD26: 773 | BE26: 0 | BF26: 493 | BG26: 58 | BH26: 0 | BI26: 0 | BJ26: 222 | BK26: 386 | BL26: 0 | BM26: 307 | BN26: 75 | BO26: 4 | BP26: 0 | BQ26: 0 | BR26: 7,550 | BS26: 0 | BT26: 5,583 | BU26: 486 | BV26: 1,259 | BW26: 0 | BX26: 222 | BY26: 6,777 | BZ26: 0 | CA26: 5,090 | CB26: 428 | CC26: 1,259 | CD26: 0 | CE26: 0 | CF26: 773 | CG26: 0 | CH26: 493 | CI26: 58 | CJ26: 0 | CK26: 0 | CL26: 222 | CM26: 3,336 | CN26: 0 | CO26: 2,299 | CP26: 77 | CQ26: 952 | CR26: 0 | CS26: 8 | CT26: 2,950 | CU26: 0 | CV26: 1,992 | CW26: 2 | CX26: 948 | CY26: 0 | CZ26: 8 | DA26: 386 | DB26: 0 | DC26: 307 | DD26: 75 | DE26: 4 | DF26: 0 | DG26: 0 | DH26: 0 | DI26: 0 | DJ26: 0 | DK26: 0 | DL26: 0 | DM26: 0
A27: 茨城県 | B27: 08224 | C27: 守谷市 | D27: 18,738 | E27: 14,456 | F27: 0 | G27: 0 | H27: 0 | I27: 0 | J27: 9,554 | K27: 17 | L27: 9,537 | M27: 0 | N27: 2,087 | O27: 5 | P27: 2,082 | Q27: 0 | R27: 2,606 | S27: 0 | T27: 2,606 | U27: 0 | V27: 16 | W27: 16 | X27: 0 | Y27: 0 | Z27: 193 | AA27: 22 | AB27: 171 | AC27: 0 | AD27: 3,941 | AE27: 0 | AF27: 0 | AG27: 0 | AH27: 0 | AI27: 3,814 | AJ27: 0 | AK27: 0 | AL27: 3,814 | AM27: 127 | AN27: 0 | AO27: 0 | AP27: 127 | AQ27: 0 | AR27: 0 | AS27: 0 | AT27: 0 | AU27: 0 | AV27: 0 | AW27: 0 | AX27: 0 | AY27: 0 | AZ27: 0 | BA27: 0 | BB27: 0 | BC27: 341 | BD27: 268 | BE27: 0 | BF27: 9 | BG27: 3 | BH27: 0 | BI27: 0 | BJ27: 256 | BK27: 73 | BL27: 0 | BM27: 71 | BN27: 1 | BO27: 1 | BP27: 0 | BQ27: 0 | BR27: 14,724 | BS27: 0 | BT27: 9,563 | BU27: 2,090 | BV27: 2,606 | BW27: 16 | BX27: 449 | BY27: 14,456 | BZ27: 0 | CA27: 9,554 | CB27: 2,087 | CC27: 2,606 | CD27: 16 | CE27: 193 | CF27: 268 | CG27: 0 | CH27: 9 | CI27: 3 | CJ27: 0 | CK27: 0 | CL27: 256 | CM27: 4,014 | CN27: 0 | CO27: 3,885 | CP27: 128 | CQ27: 1 | CR27: 0 | CS27: 0 | CT27: 3,941 | CU27: 0 | CV27: 3,814 | CW27: 127 | CX27: 0 | CY27: 0 | CZ27: 0 | DA27: 73 | DB27: 0 | DC27: 71 | DD27: 1 | DE27: 1 | DF27: 0 | DG27: 0 | DH27: 0 | DI27: 0 | DJ27: 0 | DK27: 0 | DL27: 0 | DM27: 0
A28: 茨城県 | B28: 08225 | C28: 常陸大宮市 | D28: 14,193 | E28: 9,941 | F28: 0 | G28: 0 | H28: 0 | I28: 0 | J28: 7,750 | K28: 85 | L28: 7,665 | M28: 0 | N28: 0 | O28: 0 | P28: 0 | Q28: 0 | R28: 1,486 | S28: 8 | T28: 1,478 | U28: 0 | V28: 0 | W28: 0 | X28: 0 | Y28: 0 | Z28: 705 | AA28: 58 | AB28: 647 | AC28: 0 | AD28: 2,836 | AE28: 0 | AF28: 0 | AG28: 0 | AH28: 0 | AI28: 2,823 | AJ28: 0 | AK28: 0 | AL28: 2,823 | AM28: 0 | AN28: 0 | AO28: 0 | AP28: 0 | AQ28: 10 | AR28: 0 | AS28: 0 | AT28: 10 | AU28: 0 | AV28: 0 | AW28: 0 | AX28: 0 | AY28: 3 | AZ28: 0 | BA28: 0 | BB28: 3 | BC28: 1,416 | BD28: 804 | BE28: 0 | BF28: 643 | BG28: 0 | BH28: 19 | BI28: 0 | BJ28: 142 | BK28: 612 | BL28: 0 | BM28: 584 | BN28: 0 | BO28: 14 | BP28: 0 | BQ28: 14 | BR28: 10,745 | BS28: 0 | BT28: 8,393 | BU28: 0 | BV28: 1,505 | BW28: 0 | BX28: 847 | BY28: 9,941 | BZ28: 0 | CA28: 7,750 | CB28: 0 | CC28: 1,486 | CD28: 0 | CE28: 705 | CF28: 804 | CG28: 0 | CH28: 643 | CI28: 0 | CJ28: 19 | CK28: 0 | CL28: 142 | CM28: 3,448 | CN28: 0 | CO28: 3,407 | CP28: 0 | CQ28: 24 | CR28: 0 | CS28: 17 | CT28: 2,836 | CU28: 0 | CV28: 2,823 | CW28: 0 | CX28: 10 | CY28: 0 | CZ28: 3 | DA28: 612 | DB28: 0 | DC28: 584 | DD28: 0 | DE28: 14 | DF28: 0 | DG28: 14 | DH28: 0 | DI28: 0 | DJ28: 0 | DK28: 0 | DL28: 0 | DM28: 0
A29: 茨城県 | B29: 08226 | C29: 那珂市 | D29: 16,772 | E29: 12,009 | F29: 0 | G29: 0 | H29: 0 | I29: 0 | J29: 10,113 | K29: 354 | L29: 9,759 | M29: 0 | N29: 0 | O29: 0 | P29: 0 | Q29: 0 | R29: 1,558 | S29: 21 | T29: 1,537 | U29: 0 | V29: 0 | W29: 0 | X29: 0 | Y29: 0 | Z29: 338 | AA29: 42 | AB29: 296 | AC29: 0 | AD29: 2,091 | AE29: 0 | AF29: 0 | AG29: 0 | AH29: 0 | AI29: 2,073 | AJ29: 0 | AK29: 0 | AL29: 2,073 | AM29: 0 | AN29: 0 | AO29: 0 | AP29: 0 | AQ29: 2 | AR29: 0 | AS29: 0 | AT29: 2 | AU29: 0 | AV29: 0 | AW29: 0 | AX29: 0 | AY29: 16 | AZ29: 0 | BA29: 0 | BB29: 16 | BC29: 2,672 | BD29: 1,581 | BE29: 0 | BF29: 1,287 | BG29: 0 | BH29: 31 | BI29: 0 | BJ29: 263 | BK29: 1,091 | BL29: 0 | BM29: 1,059 | BN29: 0 | BO29: 14 | BP29: 0 | BQ29: 18 | BR29: 13,590 | BS29: 0 | BT29: 11,400 | BU29: 0 | BV29: 1,589 | BW29: 0 | BX29: 601 | BY29: 12,009 | BZ29: 0 | CA29: 10,113 | CB29: 0 | CC29: 1,558 | CD29: 0 | CE29: 338 | CF29: 1,581 | CG29: 0 | CH29: 1,287 | CI29: 0 | CJ29: 31 | CK29: 0 | CL29: 263 | CM29: 3,182 | CN29: 0 | CO29: 3,132 | CP29: 0 | CQ29: 16 | CR29: 0 | CS29: 34 | CT29: 2,091 | CU29: 0 | CV29: 2,073 | CW29: 0 | CX29: 2 | CY29: 0 | CZ29: 16 | DA29: 1,091 | DB29: 0 | DC29: 1,059 | DD29: 0 | DE29: 14 | DF29: 0 | DG29: 18 | DH29: 0 | DI29: 0 | DJ29: 0 | DK29: 0 | DL29: 0 | DM29: 0
A30: 茨城県 | B30: 08227 | C30: 筑西市 | D30: 30,981 | E30: 25,560 | F30: 0 | G30: 0 | H30: 0 | I30: 0 | J30: 21,524 | K30: 97 | L30: 21,427 | M30: 0 | N30: 1,462 | O30: 37 | P30: 1,425 | Q30: 0 | R30: 2,551 | S30: 0 | T30: 2,551 | U30: 0 | V30: 0 | W30: 0 | X30: 0 | Y30: 0 | Z30: 23 | AA30: 0 | AB30: 23 | AC30: 0 | AD30: 4,532 | AE30: 0 | AF30: 0 | AG30: 0 | AH30: 0 | AI30: 4,377 | AJ30: 0 | AK30: 0 | AL30: 4,377 | AM30: 155 | AN30: 0 | AO30: 0 | AP30: 155 | AQ30: 0 | AR30: 0 | AS30: 0 | AT30: 0 | AU30: 0 | AV30: 0 | AW30: 0 | AX30: 0 | AY30: 0 | AZ30: 0 | BA30: 0 | BB30: 0 | BC30: 889 | BD30: 889 | BE30: 0 | BF30: 695 | BG30: 194 | BH30: 0 | BI30: 0 | BJ30: 0 | BK30: 0 | BL30: 0 | BM30: 0 | BN30: 0 | BO30: 0 | BP30: 0 | BQ30: 0 | BR30: 26,449 | BS30: 0 | BT30: 22,219 | BU30: 1,656 | BV30: 2,551 | BW30: 0 | BX30: 23 | BY30: 25,560 | BZ30: 0 | CA30: 21,524 | CB30: 1,462 | CC30: 2,551 | CD30: 0 | CE30: 23 | CF30: 889 | CG30: 0 | CH30: 695 | CI30: 194 | CJ30: 0 | CK30: 0 | CL30: 0 | CM30: 4,532 | CN30: 0 | CO30: 4,377 | CP30: 155 | CQ30: 0 | CR30: 0 | CS30: 0 | CT30: 4,532 | CU30: 0 | CV30: 4,377 | CW30: 155 | CX30: 0 | CY30: 0 | CZ30: 0 | DA30: 0 | DB30: 0 | DC30: 0 | DD30: 0 | DE30: 0 | DF30: 0 | DG30: 0 | DH30: 0 | DI30: 0 | DJ30: 0 | DK30: 0 | DL30: 0 | DM30: 0
A31: 茨城県 | B31: 08228 | C31: 坂東市 | D31: 16,626 | E31: 12,205 | F31: 3 | G31: 0 | H31: 3 | I31: 0 | J31: 9,919 | K31: 241 | L31: 9,678 | M31: 0 | N31: 512 | O31: 8 | P31: 504 | Q31: 0 | R31: 1,320 | S31: 16 | T31: 1,304 | U31: 0 | V31: 0 | W31: 0 | X31: 0 | Y31: 0 | Z31: 451 | AA31: 76 | AB31: 375 | AC31: 0 | AD31: 2,824 | AE31: 0 | AF31: 0 | AG31: 0 | AH31: 0 | AI31: 2,800 | AJ31: 0 | AK31: 0 | AL31: 2,800 | AM31: 0 | AN31: 0 | AO31: 0 | AP31: 0 | AQ31: 24 | AR31: 0 | AS31: 0 | AT31: 24 | AU31: 0 | AV31: 0 | AW31: 0 | AX31: 0 | AY31: 0 | AZ31: 0 | BA31: 0 | BB31: 0 | BC31: 1,597 | BD31: 192 | BE31: 0 | BF31: 61 | BG31: 21 | BH31: 5 | BI31: 0 | BJ31: 105 | BK31: 1,405 | BL31: 0 | BM31: 165 | BN31: 0 | BO31: 1,190 | BP31: 0 | BQ31: 50 | BR31: 12,397 | BS31: 3 | BT31: 9,980 | BU31: 533 | BV31: 1,325 | BW31: 0 | BX31: 556 | BY31: 12,205 | BZ31: 3 | CA31: 9,919 | CB31: 512 | CC31: 1,320 | CD31: 0 | CE31: 451 | CF31: 192 | CG31: 0 | CH31: 61 | CI31: 21 | CJ31: 5 | CK31: 0 | CL31: 105 | CM31: 4,229 | CN31: 0 | CO31: 2,965 | CP31: 0 | CQ31: 1,214 | CR31: 0 | CS31: 50 | CT31: 2,824 | CU31: 0 | CV31: 2,800 | CW31: 0 | CX31: 24 | CY31: 0 | CZ31: 0 | DA31: 1,405 | DB31: 0 | DC31: 165 | DD31: 0 | DE31: 1,190 | DF31: 0 | DG31: 50 | DH31: 0 | DI31: 7 | DJ31: 0 | DK31: 7 | DL31: 0 | DM31: 0
A32: 茨城県 | B32: 08229 | C32: 稲敷市 | D32: 14,405 | E32: 9,696 | F32: 0 | G32: 0 | H32: 0 | I32: 0 | J32: 8,331 | K32: 0 | L32: 8,331 | M32: 0 | N32: 538 | O32: 0 | P32: 538 | Q32: 0 | R32: 702 | S32: 0 | T32: 702 | U32: 0 | V32: 45 | W32: 0 | X32: 45 | Y32: 0 | Z32: 80 | AA32: 0 | AB32: 80 | AC32: 0 | AD32: 3,083 | AE32: 0 | AF32: 0 | AG32: 0 | AH32: 0 | AI32: 2,266 | AJ32: 0 | AK32: 0 | AL32: 2,266 | AM32: 6 | AN32: 0 | AO32: 0 | AP32: 6 | AQ32: 609 | AR32: 0 | AS32: 0 | AT32: 609 | AU32: 1 | AV32: 0 | AW32: 0 | AX32: 1 | AY32: 201 | AZ32: 0 | BA32: 0 | BB32: 201 | BC32: 1,626 | BD32: 833 | BE32: 0 | BF32: 60 | BG32: 5 | BH32: 0 | BI32: 6 | BJ32: 762 | BK32: 793 | BL32: 0 | BM32: 464 | BN32: 9 | BO32: 0 | BP32: 11 | BQ32: 309 | BR32: 10,529 | BS32: 0 | BT32: 8,391 | BU32: 543 | BV32: 702 | BW32: 51 | BX32: 842 | BY32: 9,696 | BZ32: 0 | CA32: 8,331 | CB32: 538 | CC32: 702 | CD32: 45 | CE32: 80 | CF32: 833 | CG32: 0 | CH32: 60 | CI32: 5 | CJ32: 0 | CK32: 6 | CL32: 762 | CM32: 3,876 | CN32: 0 | CO32: 2,730 | CP32: 15 | CQ32: 609 | CR32: 12 | CS32: 510 | CT32: 3,083 | CU32: 0 | CV32: 2,266 | CW32: 6 | CX32: 609 | CY32: 1 | CZ32: 201 | DA32: 793 | DB32: 0 | DC32: 464 | DD32: 9 | DE32: 0 | DF32: 11 | DG32: 309 | DH32: 0 | DI32: 7 | DJ32: 0 | DK32: 7 | DL32: 0 | DM32: 0
A33: 茨城県 | B33: 08230 | C33: かすみがうら市 | D33: 16,600 | E33: 10,276 | F33: 0 | G33: 0 | H33: 0 | I33: 0 | J33: 8,792 | K33: 0 | L33: 8,792 | M33: 0 | N33: 391 | O33: 0 | P33: 391 | Q33: 0 | R33: 830 | S33: 0 | T33: 830 | U33: 0 | V33: 0 | W33: 0 | X33: 0 | Y33: 0 | Z33: 263 | AA33: 0 | AB33: 263 | AC33: 0 | AD33: 4,806 | AE33: 0 | AF33: 0 | AG33: 0 | AH33: 0 | AI33: 3,095 | AJ33: 0 | AK33: 0 | AL33: 3,095 | AM33: 6 | AN33: 0 | AO33: 0 | AP33: 6 | AQ33: 1,696 | AR33: 0 | AS33: 0 | AT33: 1,696 | AU33: 0 | AV33: 0 | AW33: 0 | AX33: 0 | AY33: 9 | AZ33: 0 | BA33: 0 | BB33: 9 | BC33: 1,518 | BD33: 1,096 | BE33: 0 | BF33: 660 | BG33: 24 | BH33: 2 | BI33: 0 | BJ33: 410 | BK33: 422 | BL33: 0 | BM33: 370 | BN33: 1 | BO33: 0 | BP33: 0 | BQ33: 51 | BR33: 11,372 | BS33: 0 | BT33: 9,452 | BU33: 415 | BV33: 832 | BW33: 0 | BX33: 673 | BY33: 10,276 | BZ33: 0 | CA33: 8,792 | CB33: 391 | CC33: 830 | CD33: 0 | CE33: 263 | CF33: 1,096 | CG33: 0 | CH33: 660 | CI33: 24 | CJ33: 2 | CK33: 0 | CL33: 410 | CM33: 5,228 | CN33: 0 | CO33: 3,465 | CP33: 7 | CQ33: 1,696 | CR33: 0 | CS33: 60 | CT33: 4,806 | CU33: 0 | CV33: 3,095 | CW33: 6 | CX33: 1,696 | CY33: 0 | CZ33: 9 | DA33: 422 | DB33: 0 | DC33: 370 | DD33: 1 | DE33: 0 | DF33: 0 | DG33: 51 | DH33: 0 | DI33: 2 | DJ33: 0 | DK33: 2 | DL33: 0 | DM33: 0
A34: 茨城県 | B34: 08231 | C34: 桜川市 | D34: 10,947 | E34: 9,009 | F34: 0 | G34: 0 | H34: 0 | I34: 0 | J34: 8,419 | K34: 0 | L34: 8,419 | M34: 0 | N34: 256 | O34: 0 | P34: 256 | Q34: 0 | R34: 0 | S34: 0 | T34: 0 | U34: 0 | V34: 0 | W34: 0 | X34: 0 | Y34: 0 | Z34: 334 | AA34: 334 | AB34: 0 | AC34: 0 | AD34: 1,834 | AE34: 0 | AF34: 0 | AG34: 0 | AH34: 0 | AI34: 1,771 | AJ34: 0 | AK34: 0 | AL34: 1,771 | AM34: 63 | AN34: 0 | AO34: 0 | AP34: 63 | AQ34: 0 | AR34: 0 | AS34: 0 | AT34: 0 | AU34: 0 | AV34: 0 | AW34: 0 | AX34: 0 | AY34: 0 | AZ34: 0 | BA34: 0 | BB34: 0 | BC34: 104 | BD34: 104 | BE34: 0 | BF34: 80 | BG34: 24 | BH34: 0 | BI34: 0 | BJ34: 0 | BK34: 0 | BL34: 0 | BM34: 0 | BN34: 0 | BO34: 0 | BP34: 0 | BQ34: 0 | BR34: 9,113 | BS34: 0 | BT34: 8,499 | BU34: 280 | BV34: 0 | BW34: 0 | BX34: 334 | BY34: 9,009 | BZ34: 0 | CA34: 8,419 | CB34: 256 | CC34: 0 | CD34: 0 | CE34: 334 | CF34: 104 | CG34: 0 | CH34: 80 | CI34: 24 | CJ34: 0 | CK34: 0 | CL34: 0 | CM34: 1,834 | CN34: 0 | CO34: 1,771 | CP34: 63 | CQ34: 0 | CR34: 0 | CS34: 0 | CT34: 1,834 | CU34: 0 | CV34: 1,771 | CW34: 63 | CX34: 0 | CY34: 0 | CZ34: 0 | DA34: 0 | DB34: 0 | DC34: 0 | DD34: 0 | DE34: 0 | DF34: 0 | DG34: 0 | DH34: 0 | DI34: 0 | DJ34: 0 | DK34: 0 | DL34: 0 | DM34: 0
A35: 茨城県 | B35: 08232 | C35: 神栖市 | D35: 36,614 | E35: 19,788 | F35: 0 | G35: 0 | H35: 0 | I35: 0 | J35: 16,228 | K35: 0 | L35: 16,228 | M35: 0 | N35: 1,977 | O35: 0 | P35: 1,977 | Q35: 0 | R35: 1,455 | S35: 0 | T35: 1,455 | U35: 0 | V35: 39 | W35: 0 | X35: 39 | Y35: 0 | Z35: 89 | AA35: 0 | AB35: 89 | AC35: 0 | AD35: 13,301 | AE35: 0 | AF35: 0 | AG35: 0 | AH35: 0 | AI35: 4,862 | AJ35: 0 | AK35: 0 | AL35: 4,862 | AM35: 1,076 | AN35: 0 | AO35: 0 | AP35: 1,076 | AQ35: 7,253 | AR35: 0 | AS35: 0 | AT35: 7,253 | AU35: 1 | AV35: 0 | AW35: 0 | AX35: 1 | AY35: 109 | AZ35: 0 | BA35: 0 | BB35: 109 | BC35: 3,525 | BD35: 3,115 | BE35: 0 | BF35: 600 | BG35: 794 | BH35: 764 | BI35: 1 | BJ35: 956 | BK35: 410 | BL35: 0 | BM35: 284 | BN35: 57 | BO35: 22 | BP35: 1 | BQ35: 46 | BR35: 22,903 | BS35: 0 | BT35: 16,828 | BU35: 2,771 | BV35: 2,219 | BW35: 40 | BX35: 1,045 | BY35: 19,788 | BZ35: 0 | CA35: 16,228 | CB35: 1,977 | CC35: 1,455 | CD35: 39 | CE35: 89 | CF35: 3,115 | CG35: 0 | CH35: 600 | CI35: 794 | CJ35: 764 | CK35: 1 | CL35: 956 | CM35: 13,711 | CN35: 0 | CO35: 5,146 | CP35: 1,133 | CQ35: 7,275 | CR35: 2 | CS35: 155 | CT35: 13,301 | CU35: 0 | CV35: 4,862 | CW35: 1,076 | CX35: 7,253 | CY35: 1 | CZ35: 109 | DA35: 410 | DB35: 0 | DC35: 284 | DD35: 57 | DE35: 22 | DF35: 1 | DG35: 46 | DH35: 0 | DI35: 0 | DJ35: 0 | DK35: 0 | DL35: 0 | DM35: 0
A36: 茨城県 | B36: 08233 | C36: 行方市 | D36: 10,661 | E36: 7,055 | F36: 0 | G36: 0 | H36: 0 | I36: 0 | J36: 5,934 | K36: 0 | L36: 5,934 | M36: 0 | N36: 383 | O36: 0 | P36: 383 | Q36: 0 | R36: 732 | S36: 0 | T36: 732 | U36: 0 | V36: 0 | W36: 0 | X36: 0 | Y36: 0 | Z36: 6 | AA36: 6 | AB36: 0 | AC36: 0 | AD36: 1,855 | AE36: 0 | AF36: 0 | AG36: 0 | AH36: 0 | AI36: 1,855 | AJ36: 0 | AK36: 0 | AL36: 1,855 | AM36: 0 | AN36: 0 | AO36: 0 | AP36: 0 | AQ36: 0 | AR36: 0 | AS36: 0 | AT36: 0 | AU36: 0 | AV36: 0 | AW36: 0 | AX36: 0 | AY36: 0 | AZ36: 0 | BA36: 0 | BB36: 0 | BC36: 1,751 | BD36: 1,140 | BE36: 0 | BF36: 746 | BG36: 144 | BH36: 45 | BI36: 0 | BJ36: 205 | BK36: 611 | BL36: 0 | BM36: 563 | BN36: 32 | BO36: 5 | BP36: 0 | BQ36: 11 | BR36: 8,195 | BS36: 0 | BT36: 6,680 | BU36: 527 | BV36: 777 | BW36: 0 | BX36: 211 | BY36: 7,055 | BZ36: 0 | CA36: 5,934 | CB36: 383 | CC36: 732 | CD36: 0 | CE36: 6 | CF36: 1,140 | CG36: 0 | CH36: 746 | CI36: 144 | CJ36: 45 | CK36: 0 | CL36: 205 | CM36: 2,466 | CN36: 0 | CO36: 2,418 | CP36: 32 | CQ36: 5 | CR36: 0 | CS36: 11 | CT36: 1,855 | CU36: 0 | CV36: 1,855 | CW36: 0 | CX36: 0 | CY36: 0 | CZ36: 0 | DA36: 611 | DB36: 0 | DC36: 563 | DD36: 32 | DE36: 5 | DF36: 0 | DG36: 11 | DH36: 0 | DI36: 0 | DJ36: 0 | DK36: 0 | DL36: 0 | DM36: 0
A37: 茨城県 | B37: 08234 | C37: 鉾田市 | D37: 12,159 | E37: 8,787 | F37: 0 | G37: 0 | H37: 0 | I37: 0 | J37: 7,728 | K37: 0 | L37: 7,728 | M37: 0 | N37: 742 | O37: 0 | P37: 742 | Q37: 0 | R37: 309 | S37: 0 | T37: 309 | U37: 0 | V37: 7 | W37: 0 | X37: 7 | Y37: 0 | Z37: 1 | AA37: 0 | AB37: 1 | AC37: 0 | AD37: 1,403 | AE37: 0 | AF37: 0 | AG37: 0 | AH37: 0 | AI37: 1,391 | AJ37: 0 | AK37: 0 | AL37: 1,391 | AM37: 9 | AN37: 0 | AO37: 0 | AP37: 9 | AQ37: 0 | AR37: 0 | AS37: 0 | AT37: 0 | AU37: 0 | AV37: 0 | AW37: 0 | AX37: 0 | AY37: 3 | AZ37: 0 | BA37: 0 | BB37: 3 | BC37: 1,969 | BD37: 1,665 | BE37: 0 | BF37: 1,072 | BG37: 161 | BH37: 74 | BI37: 6 | BJ37: 352 | BK37: 304 | BL37: 0 | BM37: 282 | BN37: 5 | BO37: 16 | BP37: 0 | BQ37: 1 | BR37: 10,452 | BS37: 0 | BT37: 8,800 | BU37: 903 | BV37: 383 | BW37: 13 | BX37: 353 | BY37: 8,787 | BZ37: 0 | CA37: 7,728 | CB37: 742 | CC37: 309 | CD37: 7 | CE37: 1 | CF37: 1,665 | CG37: 0 | CH37: 1,072 | CI37: 161 | CJ37: 74 | CK37: 6 | CL37: 352 | CM37: 1,707 | CN37: 0 | CO37: 1,673 | CP37: 14 | CQ37: 16 | CR37: 0 | CS37: 4 | CT37: 1,403 | CU37: 0 | CV37: 1,391 | CW37: 9 | CX37: 0 | CY37: 0 | CZ37: 3 | DA37: 304 | DB37: 0 | DC37: 282 | DD37: 5 | DE37: 16 | DF37: 0 | DG37: 1 | DH37: 0 | DI37: 3 | DJ37: 0 | DK37: 0 | DL37: 0 | DM37: 3
A38: 茨城県 | B38: 08235 | C38: つくばみらい市 | D38: 12,875 | E38: 10,923 | F38: 0 | G38: 0 | H38: 0 | I38: 0 | J38: 7,498 | K38: 17 | L38: 7,481 | M38: 0 | N38: 1,673 | O38: 2 | P38: 1,671 | Q38: 0 | R38: 1,582 | S38: 0 | T38: 1,582 | U38: 0 | V38: 16 | W38: 16 | X38: 0 | Y38: 0 | Z38: 154 | AA38: 27 | AB38: 127 | AC38: 0 | AD38: 1,838 | AE38: 0 | AF38: 0 | AG38: 0 | AH38: 0 | AI38: 1,821 | AJ38: 0 | AK38: 0 | AL38: 1,821 | AM38: 17 | AN38: 0 | AO38: 0 | AP38: 17 | AQ38: 0 | AR38: 0 | AS38: 0 | AT38: 0 | AU38: 0 | AV38: 0 | AW38: 0 | AX38: 0 | AY38: 0 | AZ38: 0 | BA38: 0 | BB38: 0 | BC38: 114 | BD38: 101 | BE38: 0 | BF38: 2 | BG38: 1 | BH38: 0 | BI38: 0 | BJ38: 98 | BK38: 13 | BL38: 0 | BM38: 11 | BN38: 0 | BO38: 2 | BP38: 0 | BQ38: 0 | BR38: 11,024 | BS38: 0 | BT38: 7,500 | BU38: 1,674 | BV38: 1,582 | BW38: 16 | BX38: 252 | BY38: 10,923 | BZ38: 0 | CA38: 7,498 | CB38: 1,673 | CC38: 1,582 | CD38: 16 | CE38: 154 | CF38: 101 | CG38: 0 | CH38: 2 | CI38: 1 | CJ38: 0 | CK38: 0 | CL38: 98 | CM38: 1,851 | CN38: 0 | CO38: 1,832 | CP38: 17 | CQ38: 2 | CR38: 0 | CS38: 0 | CT38: 1,838 | CU38: 0 | CV38: 1,821 | CW38: 17 | CX38: 0 | CY38: 0 | CZ38: 0 | DA38: 13 | DB38: 0 | DC38: 11 | DD38: 0 | DE38: 2 | DF38: 0 | DG38: 0 | DH38: 0 | DI38: 0 | DJ38: 0 | DK38: 0 | DL38: 0 | DM38: 0
A39: 茨城県 | B39: 08236 | C39: 小美玉市 | D39: 17,485 | E39: 10,842 | F39: 0 | G39: 0 | H39: 0 | I39: 0 | J39: 9,724 | K39: 2 | L39: 9,722 | M39: 0 | N39: 536 | O39: 0 | P39: 536 | Q39: 0 | R39: 560 | S39: 0 | T39: 560 | U39: 0 | V39: 0 | W39: 0 | X39: 0 | Y39: 0 | Z39: 22 | AA39: 0 | AB39: 22 | AC39: 0 | AD39: 3,764 | AE39: 0 | AF39: 0 | AG39: 0 | AH39: 0 | AI39: 2,809 | AJ39: 0 | AK39: 0 | AL39: 2,809 | AM39: 24 | AN39: 0 | AO39: 0 | AP39: 24 | AQ39: 931 | AR39: 0 | AS39: 0 | AT39: 931 | AU39: 0 | AV39: 0 | AW39: 0 | AX39: 0 | AY39: 0 | AZ39: 0 | BA39: 0 | BB39: 0 | BC39: 2,879 | BD39: 1,246 | BE39: 0 | BF39: 881 | BG39: 91 | BH39: 152 | BI39: 0 | BJ39: 122 | BK39: 1,633 | BL39: 0 | BM39: 1,550 | BN39: 24 | BO39: 33 | BP39: 0 | BQ39: 26 | BR39: 12,088 | BS39: 0 | BT39: 10,605 | BU39: 627 | BV39: 712 | BW39: 0 | BX39: 144 | BY39: 10,842 | BZ39: 0 | CA39: 9,724 | CB39: 536 | CC39: 560 | CD39: 0 | CE39: 22 | CF39: 1,246 | CG39: 0 | CH39: 881 | CI39: 91 | CJ39: 152 | CK39: 0 | CL39: 122 | CM39: 5,397 | CN39: 0 | CO39: 4,359 | CP39: 48 | CQ39: 964 | CR39: 0 | CS39: 26 | CT39: 3,764 | CU39: 0 | CV39: 2,809 | CW39: 24 | CX39: 931 | CY39: 0 | CZ39: 0 | DA39: 1,633 | DB39: 0 | DC39: 1,550 | DD39: 24 | DE39: 33 | DF39: 0 | DG39: 26 | DH39: 0 | DI39: 5 | DJ39: 0 | DK39: 5 | DL39: 0 | DM39: 0
A40: 茨城県 | B40: 08302 | C40: 茨城町 | D40: 10,536 | E40: 7,176 | F40: 0 | G40: 0 | H40: 0 | I40: 0 | J40: 6,454 | K40: 0 | L40: 6,454 | M40: 0 | N40: 200 | O40: 0 | P40: 200 | Q40: 0 | R40: 511 | S40: 0 | T40: 511 | U40: 0 | V40: 0 | W40: 0 | X40: 0 | Y40: 0 | Z40: 11 | AA40: 0 | AB40: 11 | AC40: 0 | AD40: 2,825 | AE40: 0 | AF40: 0 | AG40: 0 | AH40: 0 | AI40: 1,914 | AJ40: 0 | AK40: 0 | AL40: 1,914 | AM40: 7 | AN40: 0 | AO40: 0 | AP40: 7 | AQ40: 904 | AR40: 0 | AS40: 0 | AT40: 904 | AU40: 0 | AV40: 0 | AW40: 0 | AX40: 0 | AY40: 0 | AZ40: 0 | BA40: 0 | BB40: 0 | BC40: 535 | BD40: 392 | BE40: 0 | BF40: 240 | BG40: 37 | BH40: 115 | BI40: 0 | BJ40: 0 | BK40: 143 | BL40: 0 | BM40: 142 | BN40: 1 | BO40: 0 | BP40: 0 | BQ40: 0 | BR40: 7,568 | BS40: 0 | BT40: 6,694 | BU40: 237 | BV40: 626 | BW40: 0 | BX40: 11 | BY40: 7,176 | BZ40: 0 | CA40: 6,454 | CB40: 200 | CC40: 511 | CD40: 0 | CE40: 11 | CF40: 392 | CG40: 0 | CH40: 240 | CI40: 37 | CJ40: 115 | CK40: 0 | CL40: 0 | CM40: 2,968 | CN40: 0 | CO40: 2,056 | CP40: 8 | CQ40: 904 | CR40: 0 | CS40: 0 | CT40: 2,825 | CU40: 0 | CV40: 1,914 | CW40: 7 | CX40: 904 | CY40: 0 | CZ40: 0 | DA40: 143 | DB40: 0 | DC40: 142 | DD40: 1 | DE40: 0 | DF40: 0 | DG40: 0 | DH40: 0 | DI40: 0 | DJ40: 0 | DK40: 0 | DL40: 0 | DM40: 0
A41: 茨城県 | B41: 08309 | C41: 大洗町 | D41: 9,137 | E41: 4,998 | F41: 0 | G41: 0 | H41: 0 | I41: 0 | J41: 3,991 | K41: 0 | L41: 3,991 | M41: 0 | N41: 129 | O41: 0 | P41: 129 | Q41: 0 | R41: 846 | S41: 0 | T41: 846 | U41: 0 | V41: 0 | W41: 0 | X41: 0 | Y41: 0 | Z41: 32 | AA41: 0 | AB41: 32 | AC41: 0 | AD41: 3,300 | AE41: 0 | AF41: 0 | AG41: 0 | AH41: 0 | AI41: 3,256 | AJ41: 0 | AK41: 574 | AL41: 2,682 | AM41: 35 | AN41: 0 | AO41: 8 | AP41: 27 | AQ41: 0 | AR41: 0 | AS41: 0 | AT41: 0 | AU41: 0 | AV41: 0 | AW41: 0 | AX41: 0 | AY41: 9 | AZ41: 0 | BA41: 2 | BB41: 7 | BC41: 839 | BD41: 445 | BE41: 0 | BF41: 338 | BG41: 17 | BH41: 0 | BI41: 0 | BJ41: 90 | BK41: 394 | BL41: 0 | BM41: 386 | BN41: 2 | BO41: 0 | BP41: 0 | BQ41: 6 | BR41: 5,443 | BS41: 0 | BT41: 4,329 | BU41: 146 | BV41: 846 | BW41: 0 | BX41: 122 | BY41: 4,998 | BZ41: 0 | CA41: 3,991 | CB41: 129 | CC41: 846 | CD41: 0 | CE41: 32 | CF41: 445 | CG41: 0 | CH41: 338 | CI41: 17 | CJ41: 0 | CK41: 0 | CL41: 90 | CM41: 3,694 | CN41: 0 | CO41: 3,642 | CP41: 37 | CQ41: 0 | CR41: 0 | CS41: 15 | CT41: 3,300 | CU41: 0 | CV41: 3,256 | CW41: 35 | CX41: 0 | CY41: 0 | CZ41: 9 | DA41: 394 | DB41: 0 | DC41: 386 | DD41: 2 | DE41: 0 | DF41: 0 | DG41: 6 | DH41: 0 | DI41: 1 | DJ41: 0 | DK41: 0 | DL41: 0 | DM41: 1
A42: 茨城県 | B42: 08310 | C42: 城里町 | D42: 5,647 | E42: 4,244 | F42: 0 | G42: 0 | H42: 0 | I42: 0 | J42: 3,698 | K42: 0 | L42: 3,698 | M42: 0 | N42: 0 | O42: 0 | P42: 0 | Q42: 0 | R42: 272 | S42: 18 | T42: 254 | U42: 0 | V42: 9 | W42: 0 | X42: 9 | Y42: 0 | Z42: 265 | AA42: 0 | AB42: 265 | AC42: 0 | AD42: 729 | AE42: 0 | AF42: 0 | AG42: 0 | AH42: 0 | AI42: 717 | AJ42: 0 | AK42: 0 | AL42: 717 | AM42: 0 | AN42: 0 | AO42: 0 | AP42: 0 | AQ42: 8 | AR42: 0 | AS42: 0 | AT42: 8 | AU42: 0 | AV42: 0 | AW42: 0 | AX42: 0 | AY42: 4 | AZ42: 0 | BA42: 0 | BB42: 4 | BC42: 674 | BD42: 372 | BE42: 0 | BF42: 335 | BG42: 0 | BH42: 22 | BI42: 0 | BJ42: 15 | BK42: 302 | BL42: 0 | BM42: 277 | BN42: 0 | BO42: 15 | BP42: 0 | BQ42: 10 | BR42: 4,616 | BS42: 0 | BT42: 4,033 | BU42: 0 | BV42: 294 | BW42: 9 | BX42: 280 | BY42: 4,244 | BZ42: 0 | CA42: 3,698 | CB42: 0 | CC42: 272 | CD42: 9 | CE42: 265 | CF42: 372 | CG42: 0 | CH42: 335 | CI42: 0 | CJ42: 22 | CK42: 0 | CL42: 15 | CM42: 1,031 | CN42: 0 | CO42: 994 | CP42: 0 | CQ42: 23 | CR42: 0 | CS42: 14 | CT42: 729 | CU42: 0 | CV42: 717 | CW42: 0 | CX42: 8 | CY42: 0 | CZ42: 4 | DA42: 302 | DB42: 0 | DC42: 277 | DD42: 0 | DE42: 15 | DF42: 0 | DG42: 10 | DH42: 0 | DI42: 0 | DJ42: 0 | DK42: 0 | DL42: 0 | DM42: 0
A43: 茨城県 | B43: 08341 | C43: 東海村 | D43: 13,267 | E43: 9,836 | F43: 0 | G43: 0 | H43: 0 | I43: 0 | J43: 6,954 | K43: 221 | L43: 6,733 | M43: 0 | N43: 489 | O43: 0 | P43: 489 | Q43: 0 | R43: 2,393 | S43: 0 | T43: 2,393 | U43: 0 | V43: 0 | W43: 0 | X43: 0 | Y43: 0 | Z43: 0 | AA43: 0 | AB43: 0 | AC43: 0 | AD43: 2,445 | AE43: 0 | AF43: 0 | AG43: 0 | AH43: 0 | AI43: 2,367 | AJ43: 0 | AK43: 0 | AL43: 2,367 | AM43: 39 | AN43: 0 | AO43: 0 | AP43: 39 | AQ43: 39 | AR43: 0 | AS43: 0 | AT43: 39 | AU43: 0 | AV43: 0 | AW43: 0 | AX43: 0 | AY43: 0 | AZ43: 0 | BA43: 0 | BB43: 0 | BC43: 986 | BD43: 752 | BE43: 0 | BF43: 177 | BG43: 204 | BH43: 371 | BI43: 0 | BJ43: 0 | BK43: 234 | BL43: 0 | BM43: 48 | BN43: 23 | BO43: 163 | BP43: 0 | BQ43: 0 | BR43: 10,588 | BS43: 0 | BT43: 7,131 | BU43: 693 | BV43: 2,764 | BW43: 0 | BX43: 0 | BY43: 9,836 | BZ43: 0 | CA43: 6,954 | CB43: 489 | CC43: 2,393 | CD43: 0 | CE43: 0 | CF43: 752 | CG43: 0 | CH43: 177 | CI43: 204 | CJ43: 371 | CK43: 0 | CL43: 0 | CM43: 2,679 | CN43: 0 | CO43: 2,415 | CP43: 62 | CQ43: 202 | CR43: 0 | CS43: 0 | CT43: 2,445 | CU43: 0 | CV43: 2,367 | CW43: 39 | CX43: 39 | CY43: 0 | CZ43: 0 | DA43: 234 | DB43: 0 | DC43: 48 | DD43: 23 | DE43: 163 | DF43: 0 | DG43: 0 | DH43: 0 | DI43: 0 | DJ43: 0 | DK43: 0 | DL43: 0 | DM43: 0
A44: 茨城県 | B44: 08364 | C44: 大子町 | D44: 6,713 | E44: 4,130 | F44: 0 | G44: 0 | H44: 0 | I44: 0 | J44: 3,429 | K44: 3,429 | L44: 0 | M44: 0 | N44: 0 | O44: 0 | P44: 0 | Q44: 0 | R44: 701 | S44: 701 | T44: 0 | U44: 0 | V44: 0 | W44: 0 | X44: 0 | Y44: 0 | Z44: 0 | AA44: 0 | AB44: 0 | AC44: 0 | AD44: 1,379 | AE44: 0 | AF44: 0 | AG44: 0 | AH44: 0 | AI44: 895 | AJ44: 857 | AK44: 0 | AL44: 38 | AM44: 0 | AN44: 0 | AO44: 0 | AP44: 0 | AQ44: 484 | AR44: 484 | AS44: 0 | AT44: 0 | AU44: 0 | AV44: 0 | AW44: 0 | AX44: 0 | AY44: 0 | AZ44: 0 | BA44: 0 | BB44: 0 | BC44: 1,204 | BD44: 998 | BE44: 0 | BF44: 857 | BG44: 0 | BH44: 141 | BI44: 0 | BJ44: 0 | BK44: 206 | BL44: 0 | BM44: 176 | BN44: 0 | BO44: 30 | BP44: 0 | BQ44: 0 | BR44: 5,128 | BS44: 0 | BT44: 4,286 | BU44: 0 | BV44: 842 | BW44: 0 | BX44: 0 | BY44: 4,130 | BZ44: 0 | CA44: 3,429 | CB44: 0 | CC44: 701 | CD44: 0 | CE44: 0 | CF44: 998 | CG44: 0 | CH44: 857 | CI44: 0 | CJ44: 141 | CK44: 0 | CL44: 0 | CM44: 1,585 | CN44: 0 | CO44: 1,071 | CP44: 0 | CQ44: 514 | CR44: 0 | CS44: 0 | CT44: 1,379 | CU44: 0 | CV44: 895 | CW44: 0 | CX44: 484 | CY44: 0 | CZ44: 0 | DA44: 206 | DB44: 0 | DC44: 176 | DD44: 0 | DE44: 30 | DF44: 0 | DG44: 0 | DH44: 0 | DI44: 0 | DJ44: 0 | DK44: 0 | DL44: 0 | DM44: 0
A45: 茨城県 | B45: 08442 | C45: 美浦村 | D45: 5,714 | E45: 3,951 | F45: 0 | G45: 0 | H45: 0 | I45: 0 | J45: 3,281 | K45: 0 | L45: 3,281 | M45: 0 | N45: 234 | O45: 0 | P45: 234 | Q45: 0 | R45: 341 | S45: 0 | T45: 341 | U45: 0 | V45: 17 | W45: 0 | X45: 17 | Y45: 0 | Z45: 78 | AA45: 0 | AB45: 78 | AC45: 0 | AD45: 1,327 | AE45: 0 | AF45: 0 | AG45: 0 | AH45: 0 | AI45: 802 | AJ45: 0 | AK45: 0 | AL45: 802 | AM45: 2 | AN45: 0 | AO45: 0 | AP45: 2 | AQ45: 411 | AR45: 0 | AS45: 0 | AT45: 411 | AU45: 0 | AV45: 0 | AW45: 0 | AX45: 0 | AY45: 112 | AZ45: 0 | BA45: 0 | BB45: 112 | BC45: 436 | BD45: 126 | BE45: 0 | BF45: 11 | BG45: 1 | BH45: 0 | BI45: 1 | BJ45: 113 | BK45: 310 | BL45: 0 | BM45: 90 | BN45: 3 | BO45: 0 | BP45: 10 | BQ45: 207 | BR45: 4,077 | BS45: 0 | BT45: 3,292 | BU45: 235 | BV45: 341 | BW45: 18 | BX45: 191 | BY45: 3,951 | BZ45: 0 | CA45: 3,281 | CB45: 234 | CC45: 341 | CD45: 17 | CE45: 78 | CF45: 126 | CG45: 0 | CH45: 11 | CI45: 1 | CJ45: 0 | CK45: 1 | CL45: 113 | CM45: 1,637 | CN45: 0 | CO45: 892 | CP45: 5 | CQ45: 411 | CR45: 10 | CS45: 319 | CT45: 1,327 | CU45: 0 | CV45: 802 | CW45: 2 | CX45: 411 | CY45: 0 | CZ45: 112 | DA45: 310 | DB45: 0 | DC45: 90 | DD45: 3 | DE45: 0 | DF45: 10 | DG45: 207 | DH45: 0 | DI45: 4 | DJ45: 0 | DK45: 4 | DL45: 0 | DM45: 0
A46: 茨城県 | B46: 08443 | C46: 阿見町 | D46: 17,989 | E46: 12,275 | F46: 0 | G46: 0 | H46: 0 | I46: 0 | J46: 10,578 | K46: 0 | L46: 10,578 | M46: 0 | N46: 410 | O46: 0 | P46: 410 | Q46: 0 | R46: 1,241 | S46: 0 | T46: 1,241 | U46: 0 | V46: 0 | W46: 0 | X46: 0 | Y46: 0 | Z46: 46 | AA46: 0 | AB46: 46 | AC46: 0 | AD46: 3,863 | AE46: 0 | AF46: 0 | AG46: 0 | AH46: 0 | AI46: 3,814 | AJ46: 0 | AK46: 0 | AL46: 3,814 | AM46: 43 | AN46: 0 | AO46: 0 | AP46: 43 | AQ46: 6 | AR46: 0 | AS46: 0 | AT46: 6 | AU46: 0 | AV46: 0 | AW46: 0 | AX46: 0 | AY46: 0 | AZ46: 0 | BA46: 0 | BB46: 0 | BC46: 1,851 | BD46: 1,351 | BE46: 0 | BF46: 615 | BG46: 72 | BH46: 112 | BI46: 0 | BJ46: 552 | BK46: 500 | BL46: 0 | BM46: 489 | BN46: 8 | BO46: 3 | BP46: 0 | BQ46: 0 | BR46: 13,626 | BS46: 0 | BT46: 11,193 | BU46: 482 | BV46: 1,353 | BW46: 0 | BX46: 598 | BY46: 12,275 | BZ46: 0 | CA46: 10,578 | CB46: 410 | CC46: 1,241 | CD46: 0 | CE46: 46 | CF46: 1,351 | CG46: 0 | CH46: 615 | CI46: 72 | CJ46: 112 | CK46: 0 | CL46: 552 | CM46: 4,363 | CN46: 0 | CO46: 4,303 | CP46: 51 | CQ46: 9 | CR46: 0 | CS46: 0 | CT46: 3,863 | CU46: 0 | CV46: 3,814 | CW46: 43 | CX46: 6 | CY46: 0 | CZ46: 0 | DA46: 500 | DB46: 0 | DC46: 489 | DD46: 8 | DE46: 3 | DF46: 0 | DG46: 0 | DH46: 0 | DI46: 2 | DJ46: 0 | DK46: 2 | DL46: 0 | DM46: 0
A47: 茨城県 | B47: 08447 | C47: 河内町 | D47: 3,019 | E47: 2,373 | F47: 0 | G47: 0 | H47: 0 | I47: 0 | J47: 1,919 | K47: 41 | L47: 1,878 | M47: 0 | N47: 125 | O47: 2 | P47: 123 | Q47: 0 | R47: 311 | S47: 0 | T47: 311 | U47: 0 | V47: 0 | W47: 0 | X47: 0 | Y47: 0 | Z47: 18 | AA47: 4 | AB47: 14 | AC47: 0 | AD47: 324 | AE47: 0 | AF47: 0 | AG47: 0 | AH47: 0 | AI47: 322 | AJ47: 0 | AK47: 0 | AL47: 322 | AM47: 1 | AN47: 0 | AO47: 0 | AP47: 1 | AQ47: 0 | AR47: 0 | AS47: 0 | AT47: 0 | AU47: 0 | AV47: 0 | AW47: 0 | AX47: 0 | AY47: 1 | AZ47: 0 | BA47: 0 | BB47: 1 | BC47: 322 | BD47: 46 | BE47: 0 | BF47: 32 | BG47: 5 | BH47: 0 | BI47: 0 | BJ47: 9 | BK47: 276 | BL47: 0 | BM47: 5 | BN47: 1 | BO47: 269 | BP47: 0 | BQ47: 1 | BR47: 2,419 | BS47: 0 | BT47: 1,951 | BU47: 130 | BV47: 311 | BW47: 0 | BX47: 27 | BY47: 2,373 | BZ47: 0 | CA47: 1,919 | CB47: 125 | CC47: 311 | CD47: 0 | CE47: 18 | CF47: 46 | CG47: 0 | CH47: 32 | CI47: 5 | CJ47: 0 | CK47: 0 | CL47: 9 | CM47: 600 | CN47: 0 | CO47: 327 | CP47: 2 | CQ47: 269 | CR47: 0 | CS47: 2 | CT47: 324 | CU47: 0 | CV47: 322 | CW47: 1 | CX47: 0 | CY47: 0 | CZ47: 1 | DA47: 276 | DB47: 0 | DC47: 5 | DD47: 1 | DE47: 269 | DF47: 0 | DG47: 1 | DH47: 0 | DI47: 0 | DJ47: 0 | DK47: 0 | DL47: 0 | DM47: 0
A48: 茨城県 | B48: 08521 | C48: 八千代町 | D48: 5,567 | E48: 3,438 | F48: 0 | G48: 0 | H48: 0 | I48: 0 | J48: 2,917 | K48: 0 | L48: 2,917 | M48: 0 | N48: 172 | O48: 0 | P48: 172 | Q48: 0 | R48: 333 | S48: 0 | T48: 333 | U48: 0 | V48: 8 | W48: 0 | X48: 8 | Y48: 0 | Z48: 8 | AA48: 0 | AB48: 8 | AC48: 0 | AD48: 1,471 | AE48: 0 | AF48: 0 | AG48: 0 | AH48: 0 | AI48: 1,153 | AJ48: 0 | AK48: 0 | AL48: 1,153 | AM48: 13 | AN48: 0 | AO48: 0 | AP48: 13 | AQ48: 305 | AR48: 0 | AS48: 0 | AT48: 305 | AU48: 0 | AV48: 0 | AW48: 0 | AX48: 0 | AY48: 0 | AZ48: 0 | BA48: 0 | BB48: 0 | BC48: 658 | BD48: 359 | BE48: 0 | BF48: 162 | BG48: 26 | BH48: 0 | BI48: 0 | BJ48: 171 | BK48: 299 | BL48: 0 | BM48: 268 | BN48: 31 | BO48: 0 | BP48: 0 | BQ48: 0 | BR48: 3,797 | BS48: 0 | BT48: 3,079 | BU48: 198 | BV48: 333 | BW48: 8 | BX48: 179 | BY48: 3,438 | BZ48: 0 | CA48: 2,917 | CB48: 172 | CC48: 333 | CD48: 8 | CE48: 8 | CF48: 359 | CG48: 0 | CH48: 162 | CI48: 26 | CJ48: 0 | CK48: 0 | CL48: 171 | CM48: 1,770 | CN48: 0 | CO48: 1,421 | CP48: 44 | CQ48: 305 | CR48: 0 | CS48: 0 | CT48: 1,471 | CU48: 0 | CV48: 1,153 | CW48: 13 | CX48: 305 | CY48: 0 | CZ48: 0 | DA48: 299 | DB48: 0 | DC48: 268 | DD48: 31 | DE48: 0 | DF48: 0 | DG48: 0 | DH48: 0 | DI48: 0 | DJ48: 0 | DK48: 0 | DL48: 0 | DM48: 0
A49: 茨城県 | B49: 08542 | C49: 五霞町 | D49: 3,393 | E49: 2,351 | F49: 0 | G49: 0 | H49: 0 | I49: 0 | J49: 1,979 | K49: 0 | L49: 1,979 | M49: 0 | N49: 64 | O49: 0 | P49: 64 | Q49: 0 | R49: 223 | S49: 0 | T49: 223 | U49: 0 | V49: 0 | W49: 0 | X49: 0 | Y49: 0 | Z49: 85 | AA49: 0 | AB49: 85 | AC49: 0 | AD49: 920 | AE49: 0 | AF49: 0 | AG49: 0 | AH49: 0 | AI49: 919 | AJ49: 0 | AK49: 0 | AL49: 919 | AM49: 0 | AN49: 0 | AO49: 0 | AP49: 0 | AQ49: 1 | AR49: 0 | AS49: 0 | AT49: 1 | AU49: 0 | AV49: 0 | AW49: 0 | AX49: 0 | AY49: 0 | AZ49: 0 | BA49: 0 | BB49: 0 | BC49: 122 | BD49: 122 | BE49: 0 | BF49: 62 | BG49: 5 | BH49: 1 | BI49: 0 | BJ49: 54 | BK49: 0 | BL49: 0 | BM49: 0 | BN49: 0 | BO49: 0 | BP49: 0 | BQ49: 0 | BR49: 2,473 | BS49: 0 | BT49: 2,041 | BU49: 69 | BV49: 224 | BW49: 0 | BX49: 139 | BY49: 2,351 | BZ49: 0 | CA49: 1,979 | CB49: 64 | CC49: 223 | CD49: 0 | CE49: 85 | CF49: 122 | CG49: 0 | CH49: 62 | CI49: 5 | CJ49: 1 | CK49: 0 | CL49: 54 | CM49: 920 | CN49: 0 | CO49: 919 | CP49: 0 | CQ49: 1 | CR49: 0 | CS49: 0 | CT49: 920 | CU49: 0 | CV49: 919 | CW49: 0 | CX49: 1 | CY49: 0 | CZ49: 0 | DA49: 0 | DB49: 0 | DC49: 0 | DD49: 0 | DE49: 0 | DF49: 0 | DG49: 0 | DH49: 0 | DI49: 0 | DJ49: 0 | DK49: 0 | DL49: 0 | DM49: 0
A50: 茨城県 | B50: 08546 | C50: 境町 | D50: 8,237 | E50: 6,020 | F50: 0 | G50: 0 | H50: 0 | I50: 0 | J50: 5,117 | K50: 155 | L50: 4,962 | M50: 0 | N50: 140 | O50: 7 | P50: 133 | Q50: 0 | R50: 599 | S50: 2 | T50: 595 | U50: 2 | V50: 0 | W50: 0 | X50: 0 | Y50: 0 | Z50: 164 | AA50: 56 | AB50: 108 | AC50: 0 | AD50: 1,630 | AE50: 0 | AF50: 0 | AG50: 0 | AH50: 0 | AI50: 1,263 | AJ50: 0 | AK50: 0 | AL50: 1,263 | AM50: 0 | AN50: 0 | AO50: 0 | AP50: 0 | AQ50: 365 | AR50: 0 | AS50: 0 | AT50: 365 | AU50: 0 | AV50: 0 | AW50: 0 | AX50: 0 | AY50: 2 | AZ50: 0 | BA50: 0 | BB50: 2 | BC50: 587 | BD50: 278 | BE50: 0 | BF50: 98 | BG50: 42 | BH50: 6 | BI50: 0 | BJ50: 132 | BK50: 309 | BL50: 0 | BM50: 225 | BN50: 0 | BO50: 0 | BP50: 0 | BQ50: 84 | BR50: 6,298 | BS50: 0 | BT50: 5,215 | BU50: 182 | BV50: 605 | BW50: 0 | BX50: 296 | BY50: 6,020 | BZ50: 0 | CA50: 5,117 | CB50: 140 | CC50: 599 | CD50: 0 | CE50: 164 | CF50: 278 | CG50: 0 | CH50: 98 | CI50: 42 | CJ50: 6 | CK50: 0 | CL50: 132 | CM50: 1,939 | CN50: 0 | CO50: 1,488 | CP50: 0 | CQ50: 365 | CR50: 0 | CS50: 86 | CT50: 1,630 | CU50: 0 | CV50: 1,263 | CW50: 0 | CX50: 365 | CY50: 0 | CZ50: 2 | DA50: 309 | DB50: 0 | DC50: 225 | DD50: 0 | DE50: 0 | DF50: 0 | DG50: 84 | DH50: 0 | DI50: 0 | DJ50: 0 | DK50: 0 | DL50: 0 | DM50: 0
A51: 茨城県 | B51: 08564 | C51: 利根町 | D51: 4,841 | E51: 4,357 | F51: 0 | G51: 0 | H51: 0 | I51: 0 | J51: 3,604 | K51: 42 | L51: 3,562 | M51: 0 | N51: 200 | O51: 2 | P51: 198 | Q51: 0 | R51: 427 | S51: 2 | T51: 425 | U51: 0 | V51: 0 | W51: 0 | X51: 0 | Y51: 0 | Z51: 126 | AA51: 4 | AB51: 122 | AC51: 0 | AD51: 409 | AE51: 0 | AF51: 0 | AG51: 0 | AH51: 0 | AI51: 406 | AJ51: 0 | AK51: 0 | AL51: 406 | AM51: 1 | AN51: 0 | AO51: 0 | AP51: 1 | AQ51: 0 | AR51: 0 | AS51: 0 | AT51: 0 | AU51: 0 | AV51: 0 | AW51: 0 | AX51: 0 | AY51: 2 | AZ51: 0 | BA51: 0 | BB51: 2 | BC51: 75 | BD51: 66 | BE51: 0 | BF51: 45 | BG51: 6 | BH51: 0 | BI51: 0 | BJ51: 15 | BK51: 9 | BL51: 0 | BM51: 8 | BN51: 0 | BO51: 0 | BP51: 0 | BQ51: 1 | BR51: 4,423 | BS51: 0 | BT51: 3,649 | BU51: 206 | BV51: 427 | BW51: 0 | BX51: 141 | BY51: 4,357 | BZ51: 0 | CA51: 3,604 | CB51: 200 | CC51: 427 | CD51: 0 | CE51: 126 | CF51: 66 | CG51: 0 | CH51: 45 | CI51: 6 | CJ51: 0 | CK51: 0 | CL51: 15 | CM51: 418 | CN51: 0 | CO51: 414 | CP51: 1 | CQ51: 0 | CR51: 0 | CS51: 3 | CT51: 409 | CU51: 0 | CV51: 406 | CW51: 1 | CX51: 0 | CY51: 0 | CZ51: 2 | DA51: 9 | DB51: 0 | DC51: 8 | DD51: 0 | DE51: 0 | DF51: 0 | DG51: 1 | DH51: 0 | DI51: 0 | DJ51: 0 | DK51: 0 | DL51: 0 | DM51: 0

Sheet 施設区分別搬入量内訳
A1: 処理施設別ごみ搬入量の状況（平成28年度実績）
A2: 都道府県名 | B2: 地方公共団体コード | C2: 市区町村名 | D2: 処理施設別のごみ搬入量(処理施設+直接資源化+直接埋立)
E3: 焼却施設（収集ごみ＋直接搬入ごみ） | T3: 粗大ごみ処理施設（収集ごみ＋直接搬入ごみ） | AI3: ごみ堆肥化施設（収集ごみ＋直接搬入ごみ） | AX3: ごみ飼料化施設（収集ごみ＋直接搬入ごみ） | BM3: メタン化施設（収集ごみ＋直接搬入ごみ） | CB3: ごみ燃料化施設（収集ごみ＋直接搬入ごみ） | CQ3: その他の資源化等を行う施設（収集ごみ＋直接搬入ごみ） ＋ セメント等への直接投入（収集ごみ＋直接搬入ごみ） | DF3: その他の施設（収集ごみ＋直接搬入ごみ） | DU3: 直接資源化（収集ごみ＋直接搬入ごみ） | DZ3: 直接埋立（収集ごみ＋直接搬入ごみ）
F4: 収集ごみ (混合ごみ+可燃ごみ+不燃ごみ+資源ごみ+その他+粗大ごみ) | M4: 直接搬入ごみ (混合ごみ+可燃ごみ+不燃ごみ+資源ごみ+その他+粗大ごみ) | U4: 収集ごみ (混合ごみ+可燃ごみ+不燃ごみ+資源ごみ+その他+粗大ごみ) | AB4: 直接搬入ごみ (混合ごみ+可燃ごみ+不燃ごみ+資源ごみ+その他+粗大ごみ) | AJ4: 収集ごみ (混合ごみ+可燃ごみ+不燃ごみ+資源ごみ+その他+粗大ごみ) | AQ4: 直接搬入ごみ (混合ごみ+可燃ごみ+不燃ごみ+資源ごみ+その他+粗大ごみ) | AY4: 収集ごみ (混合ごみ+可燃ごみ+不燃ごみ+資源ごみ+その他+粗大ごみ) | BF4: 直接搬入ごみ (混合ごみ+可燃ごみ+不燃ごみ+資源ごみ+その他+粗大ごみ) | BN4: 収集ごみ (混合ごみ+可燃ごみ+不燃ごみ+資源ごみ+その他+粗大ごみ) | BU4: 直接搬入ごみ (混合ごみ+可燃ごみ+不燃ごみ+資源ごみ+その他+粗大ごみ) | CC4: 収集ごみ (混合ごみ+可燃ごみ+不燃ごみ+資源ごみ+その他+粗大ごみ) | CJ4: 直接搬入ごみ (混合ごみ+可燃ごみ+不燃ごみ+資源ごみ+その他+粗大ごみ) | CR4: 収集ごみ (混合ごみ+可燃ごみ+不燃ごみ+資源ごみ+その他+粗大ごみ) | CY4: 直接搬入ごみ (混合ごみ+可燃ごみ+不燃ごみ+資源ごみ+その他+粗大ごみ) | DG4: 収集ごみ (混合ごみ+可燃ごみ+不燃ごみ+資源ごみ+その他+粗大ごみ) | DN4: 直接搬入ごみ (混合ごみ+可燃ごみ+不燃ごみ+資源ごみ+その他+粗大ごみ) | DV4: 収集ごみ | DX4: 直接搬入ごみ | EA4: 収集ごみ (混合ごみ+可燃ごみ+不燃ごみ+資源ごみ+その他+粗大ごみ) | EH4: 直接搬入ごみ (混合ごみ+可燃ごみ+不燃ごみ+資源ごみ+その他+粗大ごみ)
D5: 合計 | E5: 合計 | F5: 合計 | G5: 混合ごみ | H5: 可燃ごみ | I5: 不燃ごみ | J5: 資源ごみ | K5: その他 | L5: 粗大ごみ | M5: 合計 | N5: 混合ごみ | O5: 可燃ごみ | P5: 不燃ごみ | Q5: 資源ごみ | R5: その他 | S5: 粗大ごみ | T5: 合計 | U5: 合計 | V5: 混合ごみ | W5: 可燃ごみ | X5: 不燃ごみ | Y5: 資源ごみ | Z5: その他 | AA5: 粗大ごみ | AB5: 合計 | AC5: 混合ごみ | AD5: 可燃ごみ | AE5: 不燃ごみ | AF5: 資源ごみ | AG5: その他 | AH5: 粗大ごみ | AI5: 合計 | AJ5: 合計 | AK5: 混合ごみ | AL5: 可燃ごみ | AM5: 不燃ごみ | AN5: 資源ごみ | AO5: その他 | AP5: 粗大ごみ | AQ5: 合計 | AR5: 混合ごみ | AS5: 可燃ごみ | AT5: 不燃ごみ | AU5: 資源ごみ | AV5: その他 | AW5: 粗大ごみ | AX5: 合計 | AY5: 合計 | AZ5: 混合ごみ | BA5: 可燃ごみ | BB5: 不燃ごみ | BC5: 資源ごみ | BD5: その他 | BE5: 粗大ごみ | BF5: 合計 | BG5: 混合ごみ | BH5: 可燃ごみ | BI5: 不燃ごみ | BJ5: 資源ごみ | BK5: その他 | BL5: 粗大ごみ | BM5: 合計 | BN5: 合計 | BO5: 混合ごみ | BP5: 可燃ごみ | BQ5: 不燃ごみ | BR5: 資源ごみ | BS5: その他 | BT5: 粗大ごみ | BU5: 合計 | BV5: 混合ごみ | BW5: 可燃ごみ | BX5: 不燃ごみ | BY5: 資源ごみ | BZ5: その他 | CA5: 粗大ごみ | CB5: 合計 | CC5: 合計 | CD5: 混合ごみ | CE5: 可燃ごみ | CF5: 不燃ごみ | CG5: 資源ごみ | CH5: その他 | CI5: 粗大ごみ | CJ5: 合計 | CK5: 混合ごみ | CL5: 可燃ごみ | CM5: 不燃ごみ | CN5: 資源ごみ | CO5: その他 | CP5: 粗大ごみ | CQ5: 合計 | CR5: 合計 | CS5: 混合ごみ | CT5: 可燃ごみ | CU5: 不燃ごみ | CV5: 資源ごみ | CW5: その他 | CX5: 粗大ごみ | CY5: 合計 | CZ5: 混合ごみ | DA5: 可燃ごみ | DB5: 不燃ごみ | DC5: 資源ごみ | DD5: その他 | DE5: 粗大ごみ | DF5: 合計 | DG5: 合計 | DH5: 混合ごみ | DI5: 可燃ごみ | DJ5: 不燃ごみ | DK5: 資源ごみ | DL5: その他 | DM5: 粗大ごみ | DN5: 合計 | DO5: 混合ごみ | DP5: 可燃ごみ | DQ5: 不燃ごみ | DR5: 資源ごみ | DS5: その他 | DT5: 粗大ごみ | DU5: 合計 | DV5: 資源ごみ | DW5: その他 | DX5: 資源ごみ | DY5: その他 | DZ5: 合計 | EA5: 合計 | EB5: 混合ごみ | EC5: 可燃ごみ | ED5: 不燃ごみ | EE5: 資源ごみ | EF5: その他 | EG5: 粗大ごみ | EH5: 合計 | EI5: 混合ごみ | EJ5: 可燃ごみ | EK5: 不燃ごみ | EL5: 資源ごみ | EM5: その他 | EN5: 粗大ごみ
D6: （ｔ） | E6: （ｔ） | F6: （ｔ） | G6: （ｔ） | H6: （ｔ） | I6: （ｔ） | J6: （ｔ） | K6: （ｔ） | L6: （ｔ） | M6: （ｔ） | N6: （ｔ） | O6: （ｔ） | P6: （ｔ） | Q6: （ｔ） | R6: （ｔ） | S6: （ｔ） | T6: （ｔ） | U6: （ｔ） | V6: （ｔ） | W6: （ｔ） | X6: （ｔ） | Y6: （ｔ） | Z6: （ｔ） | AA6: （ｔ） | AB6: （ｔ） | AC6: （ｔ） | AD6: （ｔ） | AE6: （ｔ） | AF6: （ｔ） | AG6: （ｔ） | AH6: （ｔ） | AI6: （ｔ） | AJ6: （ｔ） | AK6: （ｔ） | AL6: （ｔ） | AM6: （ｔ） | AN6: （ｔ） | AO6: （ｔ） | AP6: （ｔ） | AQ6: （ｔ） | AR6: （ｔ） | AS6: （ｔ） | AT6: （ｔ） | AU6: （ｔ） | AV6: （ｔ） | AW6: （ｔ） | AX6: （ｔ） | AY6: （ｔ） | AZ6: （ｔ） | BA6: （ｔ） | BB6: （ｔ） | BC6: （ｔ） | BD6: （ｔ） | BE6: （ｔ） | BF6: （ｔ） | BG6: （ｔ） | BH6: （ｔ） | BI6: （ｔ） | BJ6: （ｔ） | BK6: （ｔ） | BL6: （ｔ） | BM6: （ｔ） | BN6: （ｔ） | BO6: （ｔ） | BP6: （ｔ） | BQ6: （ｔ） | BR6: （ｔ） | BS6: （ｔ） | BT6: （ｔ） | BU6: （ｔ） | BV6: （ｔ） | BW6: （ｔ） | BX6: （ｔ） | BY6: （ｔ） | BZ6: （ｔ） | CA6: （ｔ） | CB6: （ｔ） | CC6: （ｔ） | CD6: （ｔ） | CE6: （ｔ） | CF6: （ｔ） | CG6: （ｔ） | CH6: （ｔ） | CI6: （ｔ） | CJ6: （ｔ） | CK6: （ｔ） | CL6: （ｔ） | CM6: （ｔ） | CN6: （ｔ） | CO6: （ｔ） | CP6: （ｔ） | CQ6: （ｔ） | CR6: （ｔ） | CS6: （ｔ） | CT6: （ｔ） | CU6: （ｔ） | CV6: （ｔ） | CW6: （ｔ） | CX6: （ｔ） | CY6: （ｔ） | CZ6: （ｔ） | DA6: （ｔ） | DB6: （ｔ） | DC6: （ｔ） | DD6: （ｔ） | DE6: （ｔ） | DF6: （ｔ） | DG6: （ｔ） | DH6: （ｔ） | DI6: （ｔ） | DJ6: （ｔ） | DK6: （ｔ） | DL6: （ｔ） | DM6: （ｔ） | DN6: （ｔ） | DO6: （ｔ） | DP6: （ｔ） | DQ6: （ｔ） | DR6: （ｔ） | DS6: （ｔ） | DT6: （ｔ） | DU6: （ｔ） | DV6: （ｔ） | DW6: （ｔ） | DX6: （ｔ） | DY6: （ｔ） | DZ6: （ｔ） | EA6: （ｔ） | EB6: （ｔ） | EC6: （ｔ） | ED6: （ｔ） | EE6: （ｔ） | EF6: （ｔ） | EG6: （ｔ） | EH6: （ｔ） | EI6: （ｔ） | EJ6: （ｔ） | EK6: （ｔ） | EL6: （ｔ） | EM6: （ｔ） | EN6: （ｔ）
A7: =ごみ処理概要!A7 -> 茨城県 | B7: =ごみ処理概要!B7 -> 08000 | C7: 合計 | D7: =SUM(E7,T7,AI7,AX7,BM7,CB7,CQ7,DF7,DU7,DZ7) -> 1,029,367 | E7: =SUM(F7,M7) -> 797,148 | F7: =SUM(G7:L7) -> 739,530 | G7: =SUM(G$8:G$1000) -> 12,990 | H7: 723,146 | I7: 2,782 | J7: 4 | K7: 0 | L7: 608 | M7: =SUM(N7:S7) -> 57,618 | N7: =SUM(N$8:N$1000) -> 9,161 | O7: 46,960 | P7: 288 | Q7: 0 | R7: 0 | S7: 1,209 | T7: =SUM(U7,AB7) -> 41,177 | U7: =SUM(V7:AA7) -> 27,678 | V7: =SUM(V$8:V$1000) -> 541 | W7: 0 | X7: 18,117 | Y7: 3,878 | Z7: 30 | AA7: 5,112 | AB7: =SUM(AC7:AH7) -> 13,499 | AC7: =SUM(AC$8:AC$1000) -> 382 | AD7: 0 | AE7: 3,700 | AF7: 321 | AG7: 0 | AH7: 9,096 | AI7: =SUM(AJ7,AQ7) -> 2,470 | AJ7: =SUM(AK7:AP7) -> 2,470 | AK7: =SUM(AK$8:AK$1000) -> 0 | AL7: 0 | AM7: 0 | AN7: 2,470 | AO7: 0 | AP7: 0 | AQ7: =SUM(AR7:AW7) -> 0 | AR7: =SUM(AR$8:AR$1000) -> 0 | AS7: 0 | AT7: 0 | AU7: 0 | AV7: 0 | AW7: 0 | AX7: =SUM(AY7,BF7) -> 0 | AY7: =SUM(AZ7:BE7) -> 0 | AZ7: =SUM(AZ$8:AZ$1000) -> 0 | BA7: 0 | BB7: 0 | BC7: 0 | BD7: 0 | BE7: 0 | BF7: =SUM(BG7:BL7) -> 0 | BG7: =SUM(BG$8:BG$1000) -> 0 | BH7: 0 | BI7: 0 | BJ7: 0 | BK7: 0 | BL7: 0 | BM7: =SUM(BN7,BU7) -> 0 | BN7: =SUM(BO7:BT7) -> 0 | BO7: =SUM(BO$8:BO$1000) -> 0 | BP7: 0 | BQ7: 0 | BR7: 0 | BS7: 0 | BT7: 0 | BU7: =SUM(BV7:CA7) -> 0 | BV7: =SUM(BV$8:BV$1000) -> 0 | BW7: 0 | BX7: 0 | BY7: 0 | BZ7: 0 | CA7: 0 | CB7: =SUM(CC7,CJ7) -> 40,266 | CC7: =SUM(CD7:CI7) -> 37,919 | CD7: =SUM(CD$8:CD$1000) -> 0 | CE7: 37,716 | CF7: 0 | CG7: 61 | CH7: 0 | CI7: 142 | CJ7: =SUM(CK7:CP7) -> 2,347 | CK7: =SUM(CK$8:CK$1000) -> 0 | CL7: 2,347 | CM7: 0 | CN7: 0 | CO7: 0 | CP7: 0 | CQ7: =SUM(CR7,CY7) -> 59,377 | CR7: =SUM(CS7:CX7) -> 53,498 | CS7: =SUM(CS$8:CS$1000) -> 3 | CT7: 0 | CU7: 18,153 | CV7: 34,424 | CW7: 172 | CX7: 746 | CY7: =SUM(CZ7:DE7) -> 5,879 | CZ7: =SUM(CZ$8:CZ$1000) -> 0 | DA7: 0 | DB7: 1,631 | DC7: 1,402 | DD7: 501 | DE7: 2,345 | DF7: =SUM(DG7,DN7) -> 658 | DG7: =SUM(DH7:DM7) -> 474 | DH7: =SUM(DH$8:DH$1000) -> 0 | DI7: 0 | DJ7: 82 | DK7: 220 | DL7: 24 | DM7: 148 | DN7: =SUM(DO7:DT7) -> 184 | DO7: =SUM(DO$8:DO$1000) -> 0 | DP7: 0 | DQ7: 58 | DR7: 0 | DS7: 0 | DT7: 126 | DU7: =SUM(DV7:DY7) -> 87,760 | DV7: =SUM(DV$8:DV$1000) -> 83,392 | DW7: =SUM(DW$8:DW$1000) -> 103 | DX7: =SUM(DX$8:DX$1000) -> 4,235 | DY7: =SUM(DY$8:DY$1000) -> 30 | DZ7: =SUM(EA7,EH7) -> 511 | EA7: =SUM(EB7:EG7) -> 193 | EB7: =SUM(EB$8:EB$1000) -> 0 | EC7: 0 | ED7: 193 | EE7: 0 | EF7: 0 | EG7: 0 | EH7: =SUM(EI7:EN7) -> 318 | EI7: =SUM(EI$8:EI$1000) -> 0 | EJ7: 0 | EK7: 318 | EL7: 0 | EM7: 0 | EN7: 0
A8: 茨城県 | B8: 08201 | C8: 水戸市 | D8: 112,741 | E8: 92,431 | F8: 87,249 | G8: 0 | H8: 87,249 | I8: 0 | J8: 0 | K8: 0 | L8: 0 | M8: 5,182 | N8: 0 | O8: 5,182 | P8: 0 | Q8: 0 | R8: 0 | S8: 0 | T8: 1,368 | U8: 357 | V8: 0 | W8: 0 | X8: 263 | Y8: 84 | Z8: 0 | AA8: 10 | AB8: 1,011 | AC8: 0 | AD8: 0 | AE8: 869 | AF8: 22 | AG8: 0 | AH8: 120 | AI8: 0 | AJ8: 0 | AK8: 0 | AL8: 0 | AM8: 0 | AN8: 0 | AO8: 0 | AP8: 0 | AQ8: 0 | AR8: 0 | AS8: 0 | AT8: 0 | AU8: 0 | AV8: 0 | AW8: 0 | AX8: 0 | AY8: 0 | AZ8: 0 | BA8: 0 | BB8: 0 | BC8: 0 | BD8: 0 | BE8: 0 | BF8: 0 | BG8: 0 | BH8: 0 | BI8: 0 | BJ8: 0 | BK8: 0 | BL8: 0 | BM8: 0 | BN8: 0 | BO8: 0 | BP8: 0 | BQ8: 0 | BR8: 0 | BS8: 0 | BT8: 0 | BU8: 0 | BV8: 0 | BW8: 0 | BX8: 0 | BY8: 0 | BZ8: 0 | CA8: 0 | CB8: 0 | CC8: 0 | CD8: 0 | CE8: 0 | CF8: 0 | CG8: 0 | CH8: 0 | CI8: 0 | CJ8: 0 | CK8: 0 | CL8: 0 | CM8: 0 | CN8: 0 | CO8: 0 | CP8: 0 | CQ8: 6,447 | CR8: 6,444 | CS8: 0 | CT8: 0 | CU8: 3,170 | CV8: 3,274 | CW8: 0 | CX8: 0 | CY8: 3 | CZ8: 0 | DA8: 0 | DB8: 0 | DC8: 3 | DD8: 0 | DE8: 0 | DF8: 0 | DG8: 0 | DH8: 0 | DI8: 0 | DJ8: 0 | DK8: 0 | DL8: 0 | DM8: 0 | DN8: 0 | DO8: 0 | DP8: 0 | DQ8: 0 | DR8: 0 | DS8: 0 | DT8: 0 | DU8: 12,495 | DV8: 12,461 | DW8: 0 | DX8: 34 | DY8: 0 | DZ8: 0 | EA8: 0 | EB8: 0 | EC8: 0 | ED8: 0 | EE8: 0 | EF8: 0 | EG8: 0 | EH8: 0 | EI8: 0 | EJ8: 0 | EK8: 0 | EL8: 0 | EM8: 0 | EN8: 0
A9: 茨城県 | B9: 08202 | C9: 日立市 | D9: 62,637 | E9: 57,676 | F9: 48,515 | G9: 12,990 | H9: 35,525 | I9: 0 | J9: 0 | K9: 0 | L9: 0 | M9: 9,161 | N9: 9,161 | O9: 0 | P9: 0 | Q9: 0 | R9: 0 | S9: 0 | T9: 2,507 | U9: 2,125 | V9: 541 | W9: 0 | X9: 189 | Y9: 1,132 | Z9: 30 | AA9: 233 | AB9: 382 | AC9: 382 | AD9: 0 | AE9: 0 | AF9: 0 | AG9: 0 | AH9: 0 | AI9: 0 | AJ9: 0 | AK9: 0 | AL9: 0 | AM9: 0 | AN9: 0 | AO9: 0 | AP9: 0 | AQ9: 0 | AR9: 0 | AS9: 0 | AT9: 0 | AU9: 0 | AV9: 0 | AW9: 0 | AX9: 0 | AY9: 0 | AZ9: 0 | BA9: 0 | BB9: 0 | BC9: 0 | BD9: 0 | BE9: 0 | BF9: 0 | BG9: 0 | BH9: 0 | BI9: 0 | BJ9: 0 | BK9: 0 | BL9: 0 | BM9: 0 | BN9: 0 | BO9: 0 | BP9: 0 | BQ9: 0 | BR9: 0 | BS9: 0 | BT9: 0 | BU9: 0 | BV9: 0 | BW9: 0 | BX9: 0 | BY9: 0 | BZ9: 0 | CA9: 0 | CB9: 0 | CC9: 0 | CD9: 0 | CE9: 0 | CF9: 0 | CG9: 0 | CH9: 0 | CI9: 0 | CJ9: 0 | CK9: 0 | CL9: 0 | CM9: 0 | CN9: 0 | CO9: 0 | CP9: 0 | CQ9: 29 | CR9: 0 | CS9: 0 | CT9: 0 | CU9: 0 | CV9: 0 | CW9: 0 | CX9: 0 | CY9: 29 | CZ9: 0 | DA9: 0 | DB9: 0 | DC9: 22 | DD9: 7 | DE9: 0 | DF9: 0 | DG9: 0 | DH9: 0 | DI9: 0 | DJ9: 0 | DK9: 0 | DL9: 0 | DM9: 0 | DN9: 0 | DO9: 0 | DP9: 0 | DQ9: 0 | DR9: 0 | DS9: 0 | DT9: 0 | DU9: 2,425 | DV9: 2,425 | DW9: 0 | DX9: 0 | DY9: 0 | DZ9: 0 | EA9: 0 | EB9: 0 | EC9: 0 | ED9: 0 | EE9: 0 | EF9: 0 | EG9: 0 | EH9: 0 | EI9: 0 | EJ9: 0 | EK9: 0 | EL9: 0 | EM9: 0 | EN9: 0
A10: 茨城県 | B10: 08203 | C10: 土浦市 | D10: 59,348 | E10: 42,777 | F10: 39,877 | G10: 0 | H10: 39,728 | I10: 0 | J10: 0 | K10: 0 | L10: 149 | M10: 2,900 | N10: 0 | O10: 2,456 | P10: 0 | Q10: 0 | R10: 0 | S10: 444 | T10: 3,559 | U10: 3,252 | V10: 0 | W10: 0 | X10: 2,814 | Y10: 283 | Z10: 0 | AA10: 155 | AB10: 307 | AC10: 0 | AD10: 0 | AE10: 114 | AF10: 0 | AG10: 0 | AH10: 193 | AI10: 0 | AJ10: 0 | AK10: 0 | AL10: 0 | AM10: 0 | AN10: 0 | AO10: 0 | AP10: 0 | AQ10: 0 | AR10: 0 | AS10: 0 | AT10: 0 | AU10: 0 | AV10: 0 | AW10: 0 | AX10: 0 | AY10: 0 | AZ10: 0 | BA10: 0 | BB10: 0 | BC10: 0 | BD10: 0 | BE10: 0 | BF10: 0 | BG10: 0 | BH10: 0 | BI10: 0 | BJ10: 0 | BK10: 0 | BL10: 0 | BM10: 0 | BN10: 0 | BO10: 0 | BP10: 0 | BQ10: 0 | BR10: 0 | BS10: 0 | BT10: 0 | BU10: 0 | BV10: 0 | BW10: 0 | BX10: 0 | BY10: 0 | BZ10: 0 | CA10: 0 | CB10: 21 | CC10: 21 | CD10: 0 | CE10: 0 | CF10: 0 | CG10: 21 | CH10: 0 | CI10: 0 | CJ10: 0 | CK10: 0 | CL10: 0 | CM10: 0 | CN10: 0 | CO10: 0 | CP10: 0 | CQ10: 6,931 | CR10: 6,931 | CS10: 0 | CT10: 0 | CU10: 0 | CV10: 6,931 | CW10: 0 | CX10: 0 | CY10: 0 | CZ10: 0 | DA10: 0 | DB10: 0 | DC10: 0 | DD10: 0 | DE10: 0 | DF10: 0 | DG10: 0 | DH10: 0 | DI10: 0 | DJ10: 0 | DK10: 0 | DL10: 0 | DM10: 0 | DN10: 0 | DO10: 0 | DP10: 0 | DQ10: 0 | DR10: 0 | DS10: 0 | DT10: 0 | DU10: 6,060 | DV10: 6,060 | DW10: 0 | DX10: 0 | DY10: 0 | DZ10: 0 | EA10: 0 | EB10: 0 | EC10: 0 | ED10: 0 | EE10: 0 | EF10: 0 | EG10: 0 | EH10: 0 | EI10: 0 | EJ10: 0 | EK10: 0 | EL10: 0 | EM10: 0 | EN10: 0
A11: 茨城県 | B11: 08204 | C11: 古河市 | D11: 47,581 | E11: 41,267 | F11: 39,158 | G11: 0 | H11: 38,519 | I11: 639 | J11: 0 | K11: 0 | L11: 0 | M11: 2,109 | N11: 0 | O11: 2,075 | P11: 34 | Q11: 0 | R11: 0 | S11: 0 | T11: 0 | U11: 0 | V11: 0 | W11: 0 | X11: 0 | Y11: 0 | Z11: 0 | AA11: 0 | AB11: 0 | AC11: 0 | AD11: 0 | AE11: 0 | AF11: 0 | AG11: 0 | AH11: 0 | AI11: 0 | AJ11: 0 | AK11: 0 | AL11: 0 | AM11: 0 | AN11: 0 | AO11: 0 | AP11: 0 | AQ11: 0 | AR11: 0 | AS11: 0 | AT11: 0 | AU11: 0 | AV11: 0 | AW11: 0 | AX11: 0 | AY11: 0 | AZ11: 0 | BA11: 0 | BB11: 0 | BC11: 0 | BD11: 0 | BE11: 0 | BF11: 0 | BG11: 0 | BH11: 0 | BI11: 0 | BJ11: 0 | BK11: 0 | BL11: 0 | BM11: 0 | BN11: 0 | BO11: 0 | BP11: 0 | BQ11: 0 | BR11: 0 | BS11: 0 | BT11: 0 | BU11: 0 | BV11: 0 | BW11: 0 | BX11: 0 | BY11: 0 | BZ11: 0 | CA11: 0 | CB11: 0 | CC11: 0 | CD11: 0 | CE11: 0 | CF11: 0 | CG11: 0 | CH11: 0 | CI11: 0 | CJ11: 0 | CK11: 0 | CL11: 0 | CM11: 0 | CN11: 0 | CO11: 0 | CP11: 0 | CQ11: 4,702 | CR11: 4,261 | CS11: 0 | CT11: 0 | CU11: 668 | CV11: 3,131 | CW11: 0 | CX11: 462 | CY11: 441 | CZ11: 0 | DA11: 0 | DB11: 38 | DC11: 25 | DD11: 0 | DE11: 378 | DF11: 0 | DG11: 0 | DH11: 0 | DI11: 0 | DJ11: 0 | DK11: 0 | DL11: 0 | DM11: 0 | DN11: 0 | DO11: 0 | DP11: 0 | DQ11: 0 | DR11: 0 | DS11: 0 | DT11: 0 | DU11: 1,612 | DV11: 1,607 | DW11: 0 | DX11: 5 | DY11: 0 | DZ11: 0 | EA11: 0 | EB11: 0 | EC11: 0 | ED11: 0 | EE11: 0 | EF11: 0 | EG11: 0 | EH11: 0 | EI11: 0 | EJ11: 0 | EK11: 0 | EL11: 0 | EM11: 0 | EN11: 0
A12: 茨城県 | B12: 08205 | C12: 石岡市 | D12: 30,398 | E12: 23,432 | F12: 20,400 | G12: 0 | H12: 20,364 | I12: 0 | J12: 0 | K12: 0 | L12: 36 | M12: 3,032 | N12: 0 | O12: 3,032 | P12: 0 | Q12: 0 | R12: 0 | S12: 0 | T12: 1,850 | U12: 1,157 | V12: 0 | W12: 0 | X12: 1,024 | Y12: 0 | Z12: 0 | AA12: 133 | AB12: 693 | AC12: 0 | AD12: 0 | AE12: 127 | AF12: 0 | AG12: 0 | AH12: 566 | AI12: 0 | AJ12: 0 | AK12: 0 | AL12: 0 | AM12: 0 | AN12: 0 | AO12: 0 | AP12: 0 | AQ12: 0 | AR12: 0 | AS12: 0 | AT12: 0 | AU12: 0 | AV12: 0 | AW12: 0 | AX12: 0 | AY12: 0 | AZ12: 0 | BA12: 0 | BB12: 0 | BC12: 0 | BD12: 0 | BE12: 0 | BF12: 0 | BG12: 0 | BH12: 0 | BI12: 0 | BJ12: 0 | BK12: 0 | BL12: 0 | BM12: 0 | BN12: 0 | BO12: 0 | BP12: 0 | BQ12: 0 | BR12: 0 | BS12: 0 | BT12: 0 | BU12: 0 | BV12: 0 | BW12: 0 | BX12: 0 | BY12: 0 | BZ12: 0 | CA12: 0 | CB12: 0 | CC12: 0 | CD12: 0 | CE12: 0 | CF12: 0 | CG12: 0 | CH12: 0 | CI12: 0 | CJ12: 0 | CK12: 0 | CL12: 0 | CM12: 0 | CN12: 0 | CO12: 0 | CP12: 0 | CQ12: 812 | CR12: 781 | CS12: 0 | CT12: 0 | CU12: 0 | CV12: 781 | CW12: 0 | CX12: 0 | CY12: 31 | CZ12: 0 | DA12: 0 | DB12: 0 | DC12: 31 | DD12: 0 | DE12: 0 | DF12: 0 | DG12: 0 | DH12: 0 | DI12: 0 | DJ12: 0 | DK12: 0 | DL12: 0 | DM12: 0 | DN12: 0 | DO12: 0 | DP12: 0 | DQ12: 0 | DR12: 0 | DS12: 0 | DT12: 0 | DU12: 4,304 | DV12: 4,304 | DW12: 0 | DX12: 0 | DY12: 0 | DZ12: 0 | EA12: 0 | EB12: 0 | EC12: 0 | ED12: 0 | EE12: 0 | EF12: 0 | EG12: 0 | EH12: 0 | EI12: 0 | EJ12: 0 | EK12: 0 | EL12: 0 | EM12: 0 | EN12: 0
A13: 茨城県 | B13: 08207 | C13: 結城市 | D13: 20,766 | E13: 19,135 | F13: 18,654 | G13: 0 | H13: 17,757 | I13: 659 | J13: 0 | K13: 0 | L13: 238 | M13: 481 | N13: 0 | O13: 383 | P13: 98 | Q13: 0 | R13: 0 | S13: 0 | T13: 0 | U13: 0 | V13: 0 | W13: 0 | X13: 0 | Y13: 0 | Z13: 0 | AA13: 0 | AB13: 0 | AC13: 0 | AD13: 0 | AE13: 0 | AF13: 0 | AG13: 0 | AH13: 0 | AI13: 0 | AJ13: 0 | AK13: 0 | AL13: 0 | AM13: 0 | AN13: 0 | AO13: 0 | AP13: 0 | AQ13: 0 | AR13: 0 | AS13: 0 | AT13: 0 | AU13: 0 | AV13: 0 | AW13: 0 | AX13: 0 | AY13: 0 | AZ13: 0 | BA13: 0 | BB13: 0 | BC13: 0 | BD13: 0 | BE13: 0 | BF13: 0 | BG13: 0 | BH13: 0 | BI13: 0 | BJ13: 0 | BK13: 0 | BL13: 0 | BM13: 0 | BN13: 0 | BO13: 0 | BP13: 0 | BQ13: 0 | BR13: 0 | BS13: 0 | BT13: 0 | BU13: 0 | BV13: 0 | BW13: 0 | BX13: 0 | BY13: 0 | BZ13: 0 | CA13: 0 | CB13: 0 | CC13: 0 | CD13: 0 | CE13: 0 | CF13: 0 | CG13: 0 | CH13: 0 | CI13: 0 | CJ13: 0 | CK13: 0 | CL13: 0 | CM13: 0 | CN13: 0 | CO13: 0 | CP13: 0 | CQ13: 0 | CR13: 0 | CS13: 0 | CT13: 0 | CU13: 0 | CV13: 0 | CW13: 0 | CX13: 0 | CY13: 0 | CZ13: 0 | DA13: 0 | DB13: 0 | DC13: 0 | DD13: 0 | DE13: 0 | DF13: 14 | DG13: 14 | DH13: 0 | DI13: 0 | DJ13: 0 | DK13: 0 | DL13: 14 | DM13: 0 | DN13: 0 | DO13: 0 | DP13: 0 | DQ13: 0 | DR13: 0 | DS13: 0 | DT13: 0 | DU13: 1,617 | DV13: 1,617 | DW13: 0 | DX13: 0 | DY13: 0 | DZ13: 0 | EA13: 0 | EB13: 0 | EC13: 0 | ED13: 0 | EE13: 0 | EF13: 0 | EG13: 0 | EH13: 0 | EI13: 0 | EJ13: 0 | EK13: 0 | EL13: 0 | EM13: 0 | EN13: 0
A14: 茨城県 | B14: 08208 | C14: 龍ケ崎市 | D14: 29,289 | E14: 23,466 | F14: 22,755 | G14: 0 | H14: 22,720 | I14: 0 | J14: 0 | K14: 0 | L14: 35 | M14: 711 | N14: 0 | O14: 618 | P14: 0 | Q14: 0 | R14: 0 | S14: 93 | T14: 1,105 | U14: 924 | V14: 0 | W14: 0 | X14: 889 | Y14: 0 | Z14: 0 | AA14: 35 | AB14: 181 | AC14: 0 | AD14: 0 | AE14: 88 | AF14: 0 | AG14: 0 | AH14: 93 | AI14: 0 | AJ14: 0 | AK14: 0 | AL14: 0 | AM14: 0 | AN14: 0 | AO14: 0 | AP14: 0 | AQ14: 0 | AR14: 0 | AS14: 0 | AT14: 0 | AU14: 0 | AV14: 0 | AW14: 0 | AX14: 0 | AY14: 0 | AZ14: 0 | BA14: 0 | BB14: 0 | BC14: 0 | BD14: 0 | BE14: 0 | BF14: 0 | BG14: 0 | BH14: 0 | BI14: 0 | BJ14: 0 | BK14: 0 | BL14: 0 | BM14: 0 | BN14: 0 | BO14: 0 | BP14: 0 | BQ14: 0 | BR14: 0 | BS14: 0 | BT14: 0 | BU14: 0 | BV14: 0 | BW14: 0 | BX14: 0 | BY14: 0 | BZ14: 0 | CA14: 0 | CB14: 0 | CC14: 0 | CD14: 0 | CE14: 0 | CF14: 0 | CG14: 0 | CH14: 0 | CI14: 0 | CJ14: 0 | CK14: 0 | CL14: 0 | CM14: 0 | CN14: 0 | CO14: 0 | CP14: 0 | CQ14: 349 | CR14: 349 | CS14: 0 | CT14: 0 | CU14: 0 | CV14: 349 | CW14: 0 | CX14: 0 | CY14: 0 | CZ14: 0 | DA14: 0 | DB14: 0 | DC14: 0 | DD14: 0 | DE14: 0 | DF14: 0 | DG14: 0 | DH14: 0 | DI14: 0 | DJ14: 0 | DK14: 0 | DL14: 0 | DM14: 0 | DN14: 0 | DO14: 0 | DP14: 0 | DQ14: 0 | DR14: 0 | DS14: 0 | DT14: 0 | DU14: 4,369 | DV14: 4,369 | DW14: 0 | DX14: 0 | DY14: 0 | DZ14: 0 | EA14: 0 | EB14: 0 | EC14: 0 | ED14: 0 | EE14: 0 | EF14: 0 | EG14: 0 | EH14: 0 | EI14: 0 | EJ14: 0 | EK14: 0 | EL14: 0 | EM14: 0 | EN14: 0
A15: 茨城県 | B15: 08210 | C15: 下妻市 | D15: 16,699 | E15: 13,418 | F15: 11,381 | G15: 0 | H15: 11,381 | I15: 0 | J15: 0 | K15: 0 | L15: 0 | M15: 2,037 | N15: 0 | O15: 1,729 | P15: 0 | Q15: 0 | R15: 0 | S15: 308 | T15: 755 | U15: 532 | V15: 0 | W15: 0 | X15: 502 | Y15: 0 | Z15: 0 | AA15: 30 | AB15: 223 | AC15: 0 | AD15: 0 | AE15: 92 | AF15: 0 | AG15: 0 | AH15: 131 | AI15: 0 | AJ15: 0 | AK15: 0 | AL15: 0 | AM15: 0 | AN15: 0 | AO15: 0 | AP15: 0 | AQ15: 0 | AR15: 0 | AS15: 0 | AT15: 0 | AU15: 0 | AV15: 0 | AW15: 0 | AX15: 0 | AY15: 0 | AZ15: 0 | BA15: 0 | BB15: 0 | BC15: 0 | BD15: 0 | BE15: 0 | BF15: 0 | BG15: 0 | BH15: 0 | BI15: 0 | BJ15: 0 | BK15: 0 | BL15: 0 | BM15: 0 | BN15: 0 | BO15: 0 | BP15: 0 | BQ15: 0 | BR15: 0 | BS15: 0 | BT15: 0 | BU15: 0 | BV15: 0 | BW15: 0 | BX15: 0 | BY15: 0 | BZ15: 0 | CA15: 0 | CB15: 0 | CC15: 0 | CD15: 0 | CE15: 0 | CF15: 0 | CG15: 0 | CH15: 0 | CI15: 0 | CJ15: 0 | CK15: 0 | CL15: 0 | CM15: 0 | CN15: 0 | CO15: 0 | CP15: 0 | CQ15: 13 | CR15: 13 | CS15: 0 | CT15: 0 | CU15: 0 | CV15: 0 | CW15: 13 | CX15: 0 | CY15: 0 | CZ15: 0 | DA15: 0 | DB15: 0 | DC15: 0 | DD15: 0 | DE15: 0 | DF15: 0 | DG15: 0 | DH15: 0 | DI15: 0 | DJ15: 0 | DK15: 0 | DL15: 0 | DM15: 0 | DN15: 0 | DO15: 0 | DP15: 0 | DQ15: 0 | DR15: 0 | DS15: 0 | DT15: 0 | DU15: 2,513 | DV15: 1,365 | DW15: 0 | DX15: 1,148 | DY15: 0 | DZ15: 0 | EA15: 0 | EB15: 0 | EC15: 0 | ED15: 0 | EE15: 0 | EF15: 0 | EG15: 0 | EH15: 0 | EI15: 0 | EJ15: 0 | EK15: 0 | EL15: 0 | EM15: 0 | EN15: 0
A16: 茨城県 | B16: 08211 | C16: 常総市 | D16: 18,544 | E16: 13,861 | F16: 13,026 | G16: 0 | H16: 13,026 | I16: 0 | J16: 0 | K16: 0 | L16: 0 | M16: 835 | N16: 0 | O16: 695 | P16: 0 | Q16: 0 | R16: 0 | S16: 140 | T16: 542 | U16: 362 | V16: 0 | W16: 0 | X16: 240 | Y16: 0 | Z16: 0 | AA16: 122 | AB16: 180 | AC16: 0 | AD16: 0 | AE16: 27 | AF16: 0 | AG16: 0 | AH16: 153 | AI16: 1,006 | AJ16: 1,006 | AK16: 0 | AL16: 0 | AM16: 0 | AN16: 1,006 | AO16: 0 | AP16: 0 | AQ16: 0 | AR16: 0 | AS16: 0 | AT16: 0 | AU16: 0 | AV16: 0 | AW16: 0 | AX16: 0 | AY16: 0 | AZ16: 0 | BA16: 0 | BB16: 0 | BC16: 0 | BD16: 0 | BE16: 0 | BF16: 0 | BG16: 0 | BH16: 0 | BI16: 0 | BJ16: 0 | BK16: 0 | BL16: 0 | BM16: 0 | BN16: 0 | BO16: 0 | BP16: 0 | BQ16: 0 | BR16: 0 | BS16: 0 | BT16: 0 | BU16: 0 | BV16: 0 | BW16: 0 | BX16: 0 | BY16: 0 | BZ16: 0 | CA16: 0 | CB16: 0 | CC16: 0 | CD16: 0 | CE16: 0 | CF16: 0 | CG16: 0 | CH16: 0 | CI16: 0 | CJ16: 0 | CK16: 0 | CL16: 0 | CM16: 0 | CN16: 0 | CO16: 0 | CP16: 0 | CQ16: 2,050 | CR16: 2,027 | CS16: 0 | CT16: 0 | CU16: 1,346 | CV16: 661 | CW16: 20 | CX16: 0 | CY16: 23 | CZ16: 0 | DA16: 0 | DB16: 23 | DC16: 0 | DD16: 0 | DE16: 0 | DF16: 0 | DG16: 0 | DH16: 0 | DI16: 0 | DJ16: 0 | DK16: 0 | DL16: 0 | DM16: 0 | DN16: 0 | DO16: 0 | DP16: 0 | DQ16: 0 | DR16: 0 | DS16: 0 | DT16: 0 | DU16: 1,085 | DV16: 1,085 | DW16: 0 | DX16: 0 | DY16: 0 | DZ16: 0 | EA16: 0 | EB16: 0 | EC16: 0 | ED16: 0 | EE16: 0 | EF16: 0 | EG16: 0 | EH16: 0 | EI16: 0 | EJ16: 0 | EK16: 0 | EL16: 0 | EM16: 0 | EN16: 0
A17: 茨城県 | B17: 08212 | C17: 常陸太田市 | D17: 16,068 | E17: 14,257 | F17: 11,447 | G17: 0 | H17: 11,447 | I17: 0 | J17: 0 | K17: 0 | L17: 0 | M17: 2,810 | N17: 0 | O17: 2,810 | P17: 0 | Q17: 0 | R17: 0 | S17: 0 | T17: 0 | U17: 0 | V17: 0 | W17: 0 | X17: 0 | Y17: 0 | Z17: 0 | AA17: 0 | AB17: 0 | AC17: 0 | AD17: 0 | AE17: 0 | AF17: 0 | AG17: 0 | AH17: 0 | AI17: 0 | AJ17: 0 | AK17: 0 | AL17: 0 | AM17: 0 | AN17: 0 | AO17: 0 | AP17: 0 | AQ17: 0 | AR17: 0 | AS17: 0 | AT17: 0 | AU17: 0 | AV17: 0 | AW17: 0 | AX17: 0 | AY17: 0 | AZ17: 0 | BA17: 0 | BB17: 0 | BC17: 0 | BD17: 0 | BE17: 0 | BF17: 0 | BG17: 0 | BH17: 0 | BI17: 0 | BJ17: 0 | BK17: 0 | BL17: 0 | BM17: 0 | BN17: 0 | BO17: 0 | BP17: 0 | BQ17: 0 | BR17: 0 | BS17: 0 | BT17: 0 | BU17: 0 | BV17: 0 | BW17: 0 | BX17: 0 | BY17: 0 | BZ17: 0 | CA17: 0 | CB17: 0 | CC17: 0 | CD17: 0 | CE17: 0 | CF17: 0 | CG17: 0 | CH17: 0 | CI17: 0 | CJ17: 0 | CK17: 0 | CL17: 0 | CM17: 0 | CN17: 0 | CO17: 0 | CP17: 0 | CQ17: 881 | CR17: 869 | CS17: 0 | CT17: 0 | CU17: 0 | CV17: 869 | CW17: 0 | CX17: 0 | CY17: 12 | CZ17: 0 | DA17: 0 | DB17: 0 | DC17: 12 | DD17: 0 | DE17: 0 | DF17: 0 | DG17: 0 | DH17: 0 | DI17: 0 | DJ17: 0 | DK17: 0 | DL17: 0 | DM17: 0 | DN17: 0 | DO17: 0 | DP17: 0 | DQ17: 0 | DR17: 0 | DS17: 0 | DT17: 0 | DU17: 930 | DV17: 922 | DW17: 0 | DX17: 8 | DY17: 0 | DZ17: 0 | EA17: 0 | EB17: 0 | EC17: 0 | ED17: 0 | EE17: 0 | EF17: 0 | EG17: 0 | EH17: 0 | EI17: 0 | EJ17: 0 | EK17: 0 | EL17: 0 | EM17: 0 | EN17: 0
A18: 茨城県 | B18: 08214 | C18: 高萩市 | D18: 9,369 | E18: 7,026 | F18: 6,715 | G18: 0 | H18: 6,715 | I18: 0 | J18: 0 | K18: 0 | L18: 0 | M18: 311 | N18: 0 | O18: 311 | P18: 0 | Q18: 0 | R18: 0 | S18: 0 | T18: 0 | U18: 0 | V18: 0 | W18: 0 | X18: 0 | Y18: 0 | Z18: 0 | AA18: 0 | AB18: 0 | AC18: 0 | AD18: 0 | AE18: 0 | AF18: 0 | AG18: 0 | AH18: 0 | AI18: 0 | AJ18: 0 | AK18: 0 | AL18: 0 | AM18: 0 | AN18: 0 | AO18: 0 | AP18: 0 | AQ18: 0 | AR18: 0 | AS18: 0 | AT18: 0 | AU18: 0 | AV18: 0 | AW18: 0 | AX18: 0 | AY18: 0 | AZ18: 0 | BA18: 0 | BB18: 0 | BC18: 0 | BD18: 0 | BE18: 0 | BF18: 0 | BG18: 0 | BH18: 0 | BI18: 0 | BJ18: 0 | BK18: 0 | BL18: 0 | BM18: 0 | BN18: 0 | BO18: 0 | BP18: 0 | BQ18: 0 | BR18: 0 | BS18: 0 | BT18: 0 | BU18: 0 | BV18: 0 | BW18: 0 | BX18: 0 | BY18: 0 | BZ18: 0 | CA18: 0 | CB18: 0 | CC18: 0 | CD18: 0 | CE18: 0 | CF18: 0 | CG18: 0 | CH18: 0 | CI18: 0 | CJ18: 0 | CK18: 0 | CL18: 0 | CM18: 0 | CN18: 0 | CO18: 0 | CP18: 0 | CQ18: 2,059 | CR18: 1,315 | CS18: 0 | CT18: 0 | CU18: 0 | CV18: 1,279 | CW18: 1 | CX18: 35 | CY18: 744 | CZ18: 0 | DA18: 0 | DB18: 0 | DC18: 123 | DD18: 488 | DE18: 133 | DF18: 284 | DG18: 114 | DH18: 0 | DI18: 0 | DJ18: 82 | DK18: 0 | DL18: 0 | DM18: 32 | DN18: 170 | DO18: 0 | DP18: 0 | DQ18: 44 | DR18: 0 | DS18: 0 | DT18: 126 | DU18: 0 | DV18: 0 | DW18: 0 | DX18: 0 | DY18: 0 | DZ18: 0 | EA18: 0 | EB18: 0 | EC18: 0 | ED18: 0 | EE18: 0 | EF18: 0 | EG18: 0 | EH18: 0 | EI18: 0 | EJ18: 0 | EK18: 0 | EL18: 0 | EM18: 0 | EN18: 0
A19: 茨城県 | B19: 08215 | C19: 北茨城市 | D19: 15,697 | E19: 13,172 | F19: 10,669 | G19: 0 | H19: 10,669 | I19: 0 | J19: 0 | K19: 0 | L19: 0 | M19: 2,503 | N19: 0 | O19: 2,503 | P19: 0 | Q19: 0 | R19: 0 | S19: 0 | T19: 24 | U19: 24 | V19: 0 | W19: 0 | X19: 0 | Y19: 0 | Z19: 0 | AA19: 24 | AB19: 0 | AC19: 0 | AD19: 0 | AE19: 0 | AF19: 0 | AG19: 0 | AH19: 0 | AI19: 0 | AJ19: 0 | AK19: 0 | AL19: 0 | AM19: 0 | AN19: 0 | AO19: 0 | AP19: 0 | AQ19: 0 | AR19: 0 | AS19: 0 | AT19: 0 | AU19: 0 | AV19: 0 | AW19: 0 | AX19: 0 | AY19: 0 | AZ19: 0 | BA19: 0 | BB19: 0 | BC19: 0 | BD19: 0 | BE19: 0 | BF19: 0 | BG19: 0 | BH19: 0 | BI19: 0 | BJ19: 0 | BK19: 0 | BL19: 0 | BM19: 0 | BN19: 0 | BO19: 0 | BP19: 0 | BQ19: 0 | BR19: 0 | BS19: 0 | BT19: 0 | BU19: 0 | BV19: 0 | BW19: 0 | BX19: 0 | BY19: 0 | BZ19: 0 | CA19: 0 | CB19: 0 | CC19: 0 | CD19: 0 | CE19: 0 | CF19: 0 | CG19: 0 | CH19: 0 | CI19: 0 | CJ19: 0 | CK19: 0 | CL19: 0 | CM19: 0 | CN19: 0 | CO19: 0 | CP19: 0 | CQ19: 0 | CR19: 0 | CS19: 0 | CT19: 0 | CU19: 0 | CV19: 0 | CW19: 0 | CX19: 0 | CY19: 0 | CZ19: 0 | DA19: 0 | DB19: 0 | DC19: 0 | DD19: 0 | DE19: 0 | DF19: 0 | DG19: 0 | DH19: 0 | DI19: 0 | DJ19: 0 | DK19: 0 | DL19: 0 | DM19: 0 | DN19: 0 | DO19: 0 | DP19: 0 | DQ19: 0 | DR19: 0 | DS19: 0 | DT19: 0 | DU19: 1,990 | DV19: 1,990 | DW19: 0 | DX19: 0 | DY19: 0 | DZ19: 511 | EA19: 193 | EB19: 0 | EC19: 0 | ED19: 193 | EE19: 0 | EF19: 0 | EG19: 0 | EH19: 318 | EI19: 0 | EJ19: 0 | EK19: 318 | EL19: 0 | EM19: 0 | EN19: 0
A20: 茨城県 | B20: 08216 | C20: 笠間市 | D20: 25,136 | E20: 21,957 | F20: 19,486 | G20: 0 | H20: 19,486 | I20: 0 | J20: 0 | K20: 0 | L20: 0 | M20: 2,471 | N20: 0 | O20: 2,471 | P20: 0 | Q20: 0 | R20: 0 | S20: 0 | T20: 2,308 | U20: 793 | V20: 0 | W20: 0 | X20: 303 | Y20: 440 | Z20: 0 | AA20: 50 | AB20: 1,515 | AC20: 0 | AD20: 0 | AE20: 278 | AF20: 95 | AG20: 0 | AH20: 1,142 | AI20: 0 | AJ20: 0 | AK20: 0 | AL20: 0 | AM20: 0 | AN20: 0 | AO20: 0 | AP20: 0 | AQ20: 0 | AR20: 0 | AS20: 0 | AT20: 0 | AU20: 0 | AV20: 0 | AW20: 0 | AX20: 0 | AY20: 0 | AZ20: 0 | BA20: 0 | BB20: 0 | BC20: 0 | BD20: 0 | BE20: 0 | BF20: 0 | BG20: 0 | BH20: 0 | BI20: 0 | BJ20: 0 | BK20: 0 | BL20: 0 | BM20: 0 | BN20: 0 | BO20: 0 | BP20: 0 | BQ20: 0 | BR20: 0 | BS20: 0 | BT20: 0 | BU20: 0 | BV20: 0 | BW20: 0 | BX20: 0 | BY20: 0 | BZ20: 0 | CA20: 0 | CB20: 0 | CC20: 0 | CD20: 0 | CE20: 0 | CF20: 0 | CG20: 0 | CH20: 0 | CI20: 0 | CJ20: 0 | CK20: 0 | CL20: 0 | CM20: 0 | CN20: 0 | CO20: 0 | CP20: 0 | CQ20: 63 | CR20: 48 | CS20: 0 | CT20: 0 | CU20: 0 | CV20: 48 | CW20: 0 | CX20: 0 | CY20: 15 | CZ20: 0 | DA20: 0 | DB20: 0 | DC20: 15 | DD20: 0 | DE20: 0 | DF20: 0 | DG20: 0 | DH20: 0 | DI20: 0 | DJ20: 0 | DK20: 0 | DL20: 0 | DM20: 0 | DN20: 0 | DO20: 0 | DP20: 0 | DQ20: 0 | DR20: 0 | DS20: 0 | DT20: 0 | DU20: 808 | DV20: 677 | DW20: 0 | DX20: 131 | DY20: 0 | DZ20: 0 | EA20: 0 | EB20: 0 | EC20: 0 | ED20: 0 | EE20: 0 | EF20: 0 | EG20: 0 | EH20: 0 | EI20: 0 | EJ20: 0 | EK20: 0 | EL20: 0 | EM20: 0 | EN20: 0
A21: 茨城県 | B21: 08217 | C21: 取手市 | D21: 34,180 | E21: 23,210 | F21: 23,153 | G21: 0 | H21: 23,153 | I21: 0 | J21: 0 | K21: 0 | L21: 0 | M21: 57 | N21: 0 | O21: 57 | P21: 0 | Q21: 0 | R21: 0 | S21: 0 | T21: 717 | U21: 336 | V21: 0 | W21: 0 | X21: 0 | Y21: 0 | Z21: 0 | AA21: 336 | AB21: 381 | AC21: 0 | AD21: 0 | AE21: 0 | AF21: 0 | AG21: 0 | AH21: 381 | AI21: 343 | AJ21: 343 | AK21: 0 | AL21: 0 | AM21: 0 | AN21: 343 | AO21: 0 | AP21: 0 | AQ21: 0 | AR21: 0 | AS21: 0 | AT21: 0 | AU21: 0 | AV21: 0 | AW21: 0 | AX21: 0 | AY21: 0 | AZ21: 0 | BA21: 0 | BB21: 0 | BC21: 0 | BD21: 0 | BE21: 0 | BF21: 0 | BG21: 0 | BH21: 0 | BI21: 0 | BJ21: 0 | BK21: 0 | BL21: 0 | BM21: 0 | BN21: 0 | BO21: 0 | BP21: 0 | BQ21: 0 | BR21: 0 | BS21: 0 | BT21: 0 | BU21: 0 | BV21: 0 | BW21: 0 | BX21: 0 | BY21: 0 | BZ21: 0 | CA21: 0 | CB21: 0 | CC21: 0 | CD21: 0 | CE21: 0 | CF21: 0 | CG21: 0 | CH21: 0 | CI21: 0 | CJ21: 0 | CK21: 0 | CL21: 0 | CM21: 0 | CN21: 0 | CO21: 0 | CP21: 0 | CQ21: 5,769 | CR21: 5,762 | CS21: 0 | CT21: 0 | CU21: 3,620 | CV21: 2,113 | CW21: 29 | CX21: 0 | CY21: 7 | CZ21: 0 | DA21: 0 | DB21: 7 | DC21: 0 | DD21: 0 | DE21: 0 | DF21: 0 | DG21: 0 | DH21: 0 | DI21: 0 | DJ21: 0 | DK21: 0 | DL21: 0 | DM21: 0 | DN21: 0 | DO21: 0 | DP21: 0 | DQ21: 0 | DR21: 0 | DS21: 0 | DT21: 0 | DU21: 4,141 | DV21: 4,141 | DW21: 0 | DX21: 0 | DY21: 0 | DZ21: 0 | EA21: 0 | EB21: 0 | EC21: 0 | ED21: 0 | EE21: 0 | EF21: 0 | EG21: 0 | EH21: 0 | EI21: 0 | EJ21: 0 | EK21: 0 | EL21: 0 | EM21: 0 | EN21: 0
A22: 茨城県 | B22: 08219 | C22: 牛久市 | D22: 28,816 | E22: 23,433 | F22: 22,111 | G22: 0 | H22: 22,111 | I22: 0 | J22: 0 | K22: 0 | L22: 0 | M22: 1,322 | N22: 0 | O22: 1,322 | P22: 0 | Q22: 0 | R22: 0 | S22: 0 | T22: 0 | U22: 0 | V22: 0 | W22: 0 | X22: 0 | Y22: 0 | Z22: 0 | AA22: 0 | AB22: 0 | AC22: 0 | AD22: 0 | AE22: 0 | AF22: 0 | AG22: 0 | AH22: 0 | AI22: 84 | AJ22: 84 | AK22: 0 | AL22: 0 | AM22: 0 | AN22: 84 | AO22: 0 | AP22: 0 | AQ22: 0 | AR22: 0 | AS22: 0 | AT22: 0 | AU22: 0 | AV22: 0 | AW22: 0 | AX22: 0 | AY22: 0 | AZ22: 0 | BA22: 0 | BB22: 0 | BC22: 0 | BD22: 0 | BE22: 0 | BF22: 0 | BG22: 0 | BH22: 0 | BI22: 0 | BJ22: 0 | BK22: 0 | BL22: 0 | BM22: 0 | BN22: 0 | BO22: 0 | BP22: 0 | BQ22: 0 | BR22: 0 | BS22: 0 | BT22: 0 | BU22: 0 | BV22: 0 | BW22: 0 | BX22: 0 | BY22: 0 | BZ22: 0 | CA22: 0 | CB22: 40 | CC22: 40 | CD22: 0 | CE22: 0 | CF22: 0 | CG22: 40 | CH22: 0 | CI22: 0 | CJ22: 0 | CK22: 0 | CL22: 0 | CM22: 0 | CN22: 0 | CO22: 0 | CP22: 0 | CQ22: 2,916 | CR22: 1,822 | CS22: 0 | CT22: 0 | CU22: 600 | CV22: 1,165 | CW22: 9 | CX22: 48 | CY22: 1,094 | CZ22: 0 | DA22: 0 | DB22: 484 | DC22: 0 | DD22: 0 | DE22: 610 | DF22: 0 | DG22: 0 | DH22: 0 | DI22: 0 | DJ22: 0 | DK22: 0 | DL22: 0 | DM22: 0 | DN22: 0 | DO22: 0 | DP22: 0 | DQ22: 0 | DR22: 0 | DS22: 0 | DT22: 0 | DU22: 2,343 | DV22: 2,343 | DW22: 0 | DX22: 0 | DY22: 0 | DZ22: 0 | EA22: 0 | EB22: 0 | EC22: 0 | ED22: 0 | EE22: 0 | EF22: 0 | EG22: 0 | EH22: 0 | EI22: 0 | EJ22: 0 | EK22: 0 | EL22: 0 | EM22: 0 | EN22: 0
A23: 茨城県 | B23: 08220 | C23: つくば市 | D23: 91,362 | E23: 71,253 | F23: 69,909 | G23: 0 | H23: 69,909 | I23: 0 | J23: 0 | K23: 0 | L23: 0 | M23: 1,344 | N23: 0 | O23: 1,344 | P23: 0 | Q23: 0 | R23: 0 | S23: 0 | T23: 4,660 | U23: 2,967 | V23: 0 | W23: 0 | X23: 2,488 | Y23: 0 | Z23: 0 | AA23: 479 | AB23: 1,693 | AC23: 0 | AD23: 0 | AE23: 260 | AF23: 0 | AG23: 0 | AH23: 1,433 | AI23: 0 | AJ23: 0 | AK23: 0 | AL23: 0 | AM23: 0 | AN23: 0 | AO23: 0 | AP23: 0 | AQ23: 0 | AR23: 0 | AS23: 0 | AT23: 0 | AU23: 0 | AV23: 0 | AW23: 0 | AX23: 0 | AY23: 0 | AZ23: 0 | BA23: 0 | BB23: 0 | BC23: 0 | BD23: 0 | BE23: 0 | BF23: 0 | BG23: 0 | BH23: 0 | BI23: 0 | BJ23: 0 | BK23: 0 | BL23: 0 | BM23: 0 | BN23: 0 | BO23: 0 | BP23: 0 | BQ23: 0 | BR23: 0 | BS23: 0 | BT23: 0 | BU23: 0 | BV23: 0 | BW23: 0 | BX23: 0 | BY23: 0 | BZ23: 0 | CA23: 0 | CB23: 0 | CC23: 0 | CD23: 0 | CE23: 0 | CF23: 0 | CG23: 0 | CH23: 0 | CI23: 0 | CJ23: 0 | CK23: 0 | CL23: 0 | CM23: 0 | CN23: 0 | CO23: 0 | CP23: 0 | CQ23: 5,178 | CR23: 4,974 | CS23: 0 | CT23: 0 | CU23: 0 | CV23: 4,930 | CW23: 44 | CX23: 0 | CY23: 204 | CZ23: 0 | DA23: 0 | DB23: 0 | DC23: 204 | DD23: 0 | DE23: 0 | DF23: 0 | DG23: 0 | DH23: 0 | DI23: 0 | DJ23: 0 | DK23: 0 | DL23: 0 | DM23: 0 | DN23: 0 | DO23: 0 | DP23: 0 | DQ23: 0 | DR23: 0 | DS23: 0 | DT23: 0 | DU23: 10,271 | DV23: 10,271 | DW23: 0 | DX23: 0 | DY23: 0 | DZ23: 0 | EA23: 0 | EB23: 0 | EC23: 0 | ED23: 0 | EE23: 0 | EF23: 0 | EG23: 0 | EH23: 0 | EI23: 0 | EJ23: 0 | EK23: 0 | EL23: 0 | EM23: 0 | EN23: 0
A24: 茨城県 | B24: 08221 | C24: ひたちなか市 | D24: 53,962 | E24: 51,146 | F24: 48,375 | G24: 0 | H24: 48,375 | I24: 0 | J24: 0 | K24: 0 | L24: 0 | M24: 2,771 | N24: 0 | O24: 2,771 | P24: 0 | Q24: 0 | R24: 0 | S24: 0 | T24: 2,102 | U24: 2,005 | V24: 0 | W24: 0 | X24: 1,973 | Y24: 0 | Z24: 0 | AA24: 32 | AB24: 97 | AC24: 0 | AD24: 0 | AE24: 97 | AF24: 0 | AG24: 0 | AH24: 0 | AI24: 0 | AJ24: 0 | AK24: 0 | AL24: 0 | AM24: 0 | AN24: 0 | AO24: 0 | AP24: 0 | AQ24: 0 | AR24: 0 | AS24: 0 | AT24: 0 | AU24: 0 | AV24: 0 | AW24: 0 | AX24: 0 | AY24: 0 | AZ24: 0 | BA24: 0 | BB24: 0 | BC24: 0 | BD24: 0 | BE24: 0 | BF24: 0 | BG24: 0 | BH24: 0 | BI24: 0 | BJ24: 0 | BK24: 0 | BL24: 0 | BM24: 0 | BN24: 0 | BO24: 0 | BP24: 0 | BQ24: 0 | BR24: 0 | BS24: 0 | BT24: 0 | BU24: 0 | BV24: 0 | BW24: 0 | BX24: 0 | BY24: 0 | BZ24: 0 | CA24: 0 | CB24: 0 | CC24: 0 | CD24: 0 | CE24: 0 | CF24: 0 | CG24: 0 | CH24: 0 | CI24: 0 | CJ24: 0 | CK24: 0 | CL24: 0 | CM24: 0 | CN24: 0 | CO24: 0 | CP24: 0 | CQ24: 0 | CR24: 0 | CS24: 0 | CT24: 0 | CU24: 0 | CV24: 0 | CW24: 0 | CX24: 0 | CY24: 0 | CZ24: 0 | DA24: 0 | DB24: 0 | DC24: 0 | DD24: 0 | DE24: 0 | DF24: 230 | DG24: 230 | DH24: 0 | DI24: 0 | DJ24: 0 | DK24: 220 | DL24: 10 | DM24: 0 | DN24: 0 | DO24: 0 | DP24: 0 | DQ24: 0 | DR24: 0 | DS24: 0 | DT24: 0 | DU24: 484 | DV24: 484 | DW24: 0 | DX24: 0 | DY24: 0 | DZ24: 0 | EA24: 0 | EB24: 0 | EC24: 0 | ED24: 0 | EE24: 0 | EF24: 0 | EG24: 0 | EH24: 0 | EI24: 0 | EJ24: 0 | EK24: 0 | EL24: 0 | EM24: 0 | EN24: 0
A25: 茨城県 | B25: 08222 | C25: 鹿嶋市 | D25: 22,772 | E25: 0 | F25: 0 | G25: 0 | H25: 0 | I25: 0 | J25: 0 | K25: 0 | L25: 0 | M25: 0 | N25: 0 | O25: 0 | P25: 0 | Q25: 0 | R25: 0 | S25: 0 | T25: 4,244 | U25: 3,002 | V25: 0 | W25: 0 | X25: 2,891 | Y25: 0 | Z25: 0 | AA25: 111 | AB25: 1,242 | AC25: 0 | AD25: 0 | AE25: 789 | AF25: 0 | AG25: 0 | AH25: 453 | AI25: 0 | AJ25: 0 | AK25: 0 | AL25: 0 | AM25: 0 | AN25: 0 | AO25: 0 | AP25: 0 | AQ25: 0 | AR25: 0 | AS25: 0 | AT25: 0 | AU25: 0 | AV25: 0 | AW25: 0 | AX25: 0 | AY25: 0 | AZ25: 0 | BA25: 0 | BB25: 0 | BC25: 0 | BD25: 0 | BE25: 0 | BF25: 0 | BG25: 0 | BH25: 0 | BI25: 0 | BJ25: 0 | BK25: 0 | BL25: 0 | BM25: 0 | BN25: 0 | BO25: 0 | BP25: 0 | BQ25: 0 | BR25: 0 | BS25: 0 | BT25: 0 | BU25: 0 | BV25: 0 | BW25: 0 | BX25: 0 | BY25: 0 | BZ25: 0 | CA25: 0 | CB25: 18,089 | CC25: 16,626 | CD25: 0 | CE25: 16,626 | CF25: 0 | CG25: 0 | CH25: 0 | CI25: 0 | CJ25: 1,463 | CK25: 0 | CL25: 1,463 | CM25: 0 | CN25: 0 | CO25: 0 | CP25: 0 | CQ25: 439 | CR25: 0 | CS25: 0 | CT25: 0 | CU25: 0 | CV25: 0 | CW25: 0 | CX25: 0 | CY25: 439 | CZ25: 0 | DA25: 0 | DB25: 0 | DC25: 439 | DD25: 0 | DE25: 0 | DF25: 0 | DG25: 0 | DH25: 0 | DI25: 0 | DJ25: 0 | DK25: 0 | DL25: 0 | DM25: 0 | DN25: 0 | DO25: 0 | DP25: 0 | DQ25: 0 | DR25: 0 | DS25: 0 | DT25: 0 | DU25: 0 | DV25: 0 | DW25: 0 | DX25: 0 | DY25: 0 | DZ25: 0 | EA25: 0 | EB25: 0 | EC25: 0 | ED25: 0 | EE25: 0 | EF25: 0 | EG25: 0 | EH25: 0 | EI25: 0 | EJ25: 0 | EK25: 0 | EL25: 0 | EM25: 0 | EN25: 0
A26: 茨城県 | B26: 08223 | C26: 潮来市 | D26: 10,886 | E26: 7,882 | F26: 7,082 | G26: 0 | H26: 7,082 | I26: 0 | J26: 0 | K26: 0 | L26: 0 | M26: 800 | N26: 0 | O26: 800 | P26: 0 | Q26: 0 | R26: 0 | S26: 0 | T26: 793 | U26: 438 | V26: 0 | W26: 0 | X26: 430 | Y26: 0 | Z26: 0 | AA26: 8 | AB26: 355 | AC26: 0 | AD26: 0 | AE26: 133 | AF26: 0 | AG26: 0 | AH26: 222 | AI26: 0 | AJ26: 0 | AK26: 0 | AL26: 0 | AM26: 0 | AN26: 0 | AO26: 0 | AP26: 0 | AQ26: 0 | AR26: 0 | AS26: 0 | AT26: 0 | AU26: 0 | AV26: 0 | AW26: 0 | AX26: 0 | AY26: 0 | AZ26: 0 | BA26: 0 | BB26: 0 | BC26: 0 | BD26: 0 | BE26: 0 | BF26: 0 | BG26: 0 | BH26: 0 | BI26: 0 | BJ26: 0 | BK26: 0 | BL26: 0 | BM26: 0 | BN26: 0 | BO26: 0 | BP26: 0 | BQ26: 0 | BR26: 0 | BS26: 0 | BT26: 0 | BU26: 0 | BV26: 0 | BW26: 0 | BX26: 0 | BY26: 0 | BZ26: 0 | CA26: 0 | CB26: 0 | CC26: 0 | CD26: 0 | CE26: 0 | CF26: 0 | CG26: 0 | CH26: 0 | CI26: 0 | CJ26: 0 | CK26: 0 | CL26: 0 | CM26: 0 | CN26: 0 | CO26: 0 | CP26: 0 | CQ26: 1,263 | CR26: 1,259 | CS26: 0 | CT26: 0 | CU26: 0 | CV26: 1,259 | CW26: 0 | CX26: 0 | CY26: 4 | CZ26: 0 | DA26: 0 | DB26: 0 | DC26: 4 | DD26: 0 | DE26: 0 | DF26: 0 | DG26: 0 | DH26: 0 | DI26: 0 | DJ26: 0 | DK26: 0 | DL26: 0 | DM26: 0 | DN26: 0 | DO26: 0 | DP26: 0 | DQ26: 0 | DR26: 0 | DS26: 0 | DT26: 0 | DU26: 948 | DV26: 948 | DW26: 0 | DX26: 0 | DY26: 0 | DZ26: 0 | EA26: 0 | EB26: 0 | EC26: 0 | ED26: 0 | EE26: 0 | EF26: 0 | EG26: 0 | EH26: 0 | EI26: 0 | EJ26: 0 | EK26: 0 | EL26: 0 | EM26: 0 | EN26: 0
A27: 茨城県 | B27: 08224 | C27: 守谷市 | D27: 18,738 | E27: 13,448 | F27: 13,368 | G27: 0 | H27: 13,368 | I27: 0 | J27: 0 | K27: 0 | L27: 0 | M27: 80 | N27: 0 | O27: 80 | P27: 0 | Q27: 0 | R27: 0 | S27: 0 | T27: 449 | U27: 193 | V27: 0 | W27: 0 | X27: 0 | Y27: 0 | Z27: 0 | AA27: 193 | AB27: 256 | AC27: 0 | AD27: 0 | AE27: 0 | AF27: 0 | AG27: 0 | AH27: 256 | AI27: 490 | AJ27: 490 | AK27: 0 | AL27: 0 | AM27: 0 | AN27: 490 | AO27: 0 | AP27: 0 | AQ27: 0 | AR27: 0 | AS27: 0 | AT27: 0 | AU27: 0 | AV27: 0 | AW27: 0 | AX27: 0 | AY27: 0 | AZ27: 0 | BA27: 0 | BB27: 0 | BC27: 0 | BD27: 0 | BE27: 0 | BF27: 0 | BG27: 0 | BH27: 0 | BI27: 0 | BJ27: 0 | BK27: 0 | BL27: 0 | BM27: 0 | BN27: 0 | BO27: 0 | BP27: 0 | BQ27: 0 | BR27: 0 | BS27: 0 | BT27: 0 | BU27: 0 | BV27: 0 | BW27: 0 | BX27: 0 | BY27: 0 | BZ27: 0 | CA27: 0 | CB27: 0 | CC27: 0 | CD27: 0 | CE27: 0 | CF27: 0 | CG27: 0 | CH27: 0 | CI27: 0 | CJ27: 0 | CK27: 0 | CL27: 0 | CM27: 0 | CN27: 0 | CO27: 0 | CP27: 0 | CQ27: 3,269 | CR27: 3,264 | CS27: 0 | CT27: 0 | CU27: 2,214 | CV27: 1,034 | CW27: 16 | CX27: 0 | CY27: 5 | CZ27: 0 | DA27: 0 | DB27: 4 | DC27: 1 | DD27: 0 | DE27: 0 | DF27: 0 | DG27: 0 | DH27: 0 | DI27: 0 | DJ27: 0 | DK27: 0 | DL27: 0 | DM27: 0 | DN27: 0 | DO27: 0 | DP27: 0 | DQ27: 0 | DR27: 0 | DS27: 0 | DT27: 0 | DU27: 1,082 | DV27: 1,082 | DW27: 0 | DX27: 0 | DY27: 0 | DZ27: 0 | EA27: 0 | EB27: 0 | EC27: 0 | ED27: 0 | EE27: 0 | EF27: 0 | EG27: 0 | EH27: 0 | EI27: 0 | EJ27: 0 | EK27: 0 | EL27: 0 | EM27: 0 | EN27: 0
A28: 茨城県 | B28: 08225 | C28: 常陸大宮市 | D28: 14,193 | E28: 11,800 | F28: 10,573 | G28: 0 | H28: 10,573 | I28: 0 | J28: 0 | K28: 0 | L28: 0 | M28: 1,227 | N28: 0 | O28: 1,227 | P28: 0 | Q28: 0 | R28: 0 | S28: 0 | T28: 1,165 | U28: 997 | V28: 0 | W28: 0 | X28: 0 | Y28: 289 | Z28: 0 | AA28: 708 | AB28: 168 | AC28: 0 | AD28: 0 | AE28: 0 | AF28: 12 | AG28: 0 | AH28: 156 | AI28: 0 | AJ28: 0 | AK28: 0 | AL28: 0 | AM28: 0 | AN28: 0 | AO28: 0 | AP28: 0 | AQ28: 0 | AR28: 0 | AS28: 0 | AT28: 0 | AU28: 0 | AV28: 0 | AW28: 0 | AX28: 0 | AY28: 0 | AZ28: 0 | BA28: 0 | BB28: 0 | BC28: 0 | BD28: 0 | BE28: 0 | BF28: 0 | BG28: 0 | BH28: 0 | BI28: 0 | BJ28: 0 | BK28: 0 | BL28: 0 | BM28: 0 | BN28: 0 | BO28: 0 | BP28: 0 | BQ28: 0 | BR28: 0 | BS28: 0 | BT28: 0 | BU28: 0 | BV28: 0 | BW28: 0 | BX28: 0 | BY28: 0 | BZ28: 0 | CA28: 0 | CB28: 0 | CC28: 0 | CD28: 0 | CE28: 0 | CF28: 0 | CG28: 0 | CH28: 0 | CI28: 0 | CJ28: 0 | CK28: 0 | CL28: 0 | CM28: 0 | CN28: 0 | CO28: 0 | CP28: 0 | CQ28: 1,228 | CR28: 1,207 | CS28: 0 | CT28: 0 | CU28: 0 | CV28: 1,207 | CW28: 0 | CX28: 0 | CY28: 21 | CZ28: 0 | DA28: 0 | DB28: 0 | DC28: 21 | DD28: 0 | DE28: 0 | DF28: 0 | DG28: 0 | DH28: 0 | DI28: 0 | DJ28: 0 | DK28: 0 | DL28: 0 | DM28: 0 | DN28: 0 | DO28: 0 | DP28: 0 | DQ28: 0 | DR28: 0 | DS28: 0 | DT28: 0 | DU28: 0 | DV28: 0 | DW28: 0 | DX28: 0 | DY28: 0 | DZ28: 0 | EA28: 0 | EB28: 0 | EC28: 0 | ED28: 0 | EE28: 0 | EF28: 0 | EG28: 0 | EH28: 0 | EI28: 0 | EJ28: 0 | EK28: 0 | EL28: 0 | EM28: 0 | EN28: 0
A29: 茨城県 | B29: 08226 | C29: 那珂市 | D29: 16,772 | E29: 14,532 | F29: 12,186 | G29: 0 | H29: 12,186 | I29: 0 | J29: 0 | K29: 0 | L29: 0 | M29: 2,346 | N29: 0 | O29: 2,346 | P29: 0 | Q29: 0 | R29: 0 | S29: 0 | T29: 979 | U29: 678 | V29: 0 | W29: 0 | X29: 0 | Y29: 324 | Z29: 0 | AA29: 354 | AB29: 301 | AC29: 0 | AD29: 0 | AE29: 0 | AF29: 20 | AG29: 0 | AH29: 281 | AI29: 0 | AJ29: 0 | AK29: 0 | AL29: 0 | AM29: 0 | AN29: 0 | AO29: 0 | AP29: 0 | AQ29: 0 | AR29: 0 | AS29: 0 | AT29: 0 | AU29: 0 | AV29: 0 | AW29: 0 | AX29: 0 | AY29: 0 | AZ29: 0 | BA29: 0 | BB29: 0 | BC29: 0 | BD29: 0 | BE29: 0 | BF29: 0 | BG29: 0 | BH29: 0 | BI29: 0 | BJ29: 0 | BK29: 0 | BL29: 0 | BM29: 0 | BN29: 0 | BO29: 0 | BP29: 0 | BQ29: 0 | BR29: 0 | BS29: 0 | BT29: 0 | BU29: 0 | BV29: 0 | BW29: 0 | BX29: 0 | BY29: 0 | BZ29: 0 | CA29: 0 | CB29: 0 | CC29: 0 | CD29: 0 | CE29: 0 | CF29: 0 | CG29: 0 | CH29: 0 | CI29: 0 | CJ29: 0 | CK29: 0 | CL29: 0 | CM29: 0 | CN29: 0 | CO29: 0 | CP29: 0 | CQ29: 1,261 | CR29: 1,236 | CS29: 0 | CT29: 0 | CU29: 0 | CV29: 1,236 | CW29: 0 | CX29: 0 | CY29: 25 | CZ29: 0 | DA29: 0 | DB29: 0 | DC29: 25 | DD29: 0 | DE29: 0 | DF29: 0 | DG29: 0 | DH29: 0 | DI29: 0 | DJ29: 0 | DK29: 0 | DL29: 0 | DM29: 0 | DN29: 0 | DO29: 0 | DP29: 0 | DQ29: 0 | DR29: 0 | DS29: 0 | DT29: 0 | DU29: 0 | DV29: 0 | DW29: 0 | DX29: 0 | DY29: 0 | DZ29: 0 | EA29: 0 | EB29: 0 | EC29: 0 | ED29: 0 | EE29: 0 | EF29: 0 | EG29: 0 | EH29: 0 | EI29: 0 | EJ29: 0 | EK29: 0 | EL29: 0 | EM29: 0 | EN29: 0
A30: 茨城県 | B30: 08227 | C30: 筑西市 | D30: 30,981 | E30: 27,893 | F30: 27,066 | G30: 0 | H30: 25,901 | I30: 1,165 | J30: 0 | K30: 0 | L30: 0 | M30: 827 | N30: 0 | O30: 695 | P30: 132 | Q30: 0 | R30: 0 | S30: 0 | T30: 23 | U30: 23 | V30: 0 | W30: 0 | X30: 0 | Y30: 0 | Z30: 0 | AA30: 23 | AB30: 0 | AC30: 0 | AD30: 0 | AE30: 0 | AF30: 0 | AG30: 0 | AH30: 0 | AI30: 0 | AJ30: 0 | AK30: 0 | AL30: 0 | AM30: 0 | AN30: 0 | AO30: 0 | AP30: 0 | AQ30: 0 | AR30: 0 | AS30: 0 | AT30: 0 | AU30: 0 | AV30: 0 | AW30: 0 | AX30: 0 | AY30: 0 | AZ30: 0 | BA30: 0 | BB30: 0 | BC30: 0 | BD30: 0 | BE30: 0 | BF30: 0 | BG30: 0 | BH30: 0 | BI30: 0 | BJ30: 0 | BK30: 0 | BL30: 0 | BM30: 0 | BN30: 0 | BO30: 0 | BP30: 0 | BQ30: 0 | BR30: 0 | BS30: 0 | BT30: 0 | BU30: 0 | BV30: 0 | BW30: 0 | BX30: 0 | BY30: 0 | BZ30: 0 | CA30: 0 | CB30: 0 | CC30: 0 | CD30: 0 | CE30: 0 | CF30: 0 | CG30: 0 | CH30: 0 | CI30: 0 | CJ30: 0 | CK30: 0 | CL30: 0 | CM30: 0 | CN30: 0 | CO30: 0 | CP30: 0 | CQ30: 696 | CR30: 634 | CS30: 0 | CT30: 0 | CU30: 452 | CV30: 182 | CW30: 0 | CX30: 0 | CY30: 62 | CZ30: 0 | DA30: 0 | DB30: 62 | DC30: 0 | DD30: 0 | DE30: 0 | DF30: 0 | DG30: 0 | DH30: 0 | DI30: 0 | DJ30: 0 | DK30: 0 | DL30: 0 | DM30: 0 | DN30: 0 | DO30: 0 | DP30: 0 | DQ30: 0 | DR30: 0 | DS30: 0 | DT30: 0 | DU30: 2,369 | DV30: 2,369 | DW30: 0 | DX30: 0 | DY30: 0 | DZ30: 0 | EA30: 0 | EB30: 0 | EC30: 0 | ED30: 0 | EE30: 0 | EF30: 0 | EG30: 0 | EH30: 0 | EI30: 0 | EJ30: 0 | EK30: 0 | EL30: 0 | EM30: 0 | EN30: 0
A31: 茨城県 | B31: 08228 | C31: 坂東市 | D31: 16,626 | E31: 12,945 | F31: 12,719 | G31: 0 | H31: 12,719 | I31: 0 | J31: 0 | K31: 0 | L31: 0 | M31: 226 | N31: 0 | O31: 226 | P31: 0 | Q31: 0 | R31: 0 | S31: 0 | T31: 1,136 | U31: 960 | V31: 0 | W31: 0 | X31: 512 | Y31: 0 | Z31: 0 | AA31: 448 | AB31: 176 | AC31: 0 | AD31: 0 | AE31: 21 | AF31: 0 | AG31: 0 | AH31: 155 | AI31: 0 | AJ31: 0 | AK31: 0 | AL31: 0 | AM31: 0 | AN31: 0 | AO31: 0 | AP31: 0 | AQ31: 0 | AR31: 0 | AS31: 0 | AT31: 0 | AU31: 0 | AV31: 0 | AW31: 0 | AX31: 0 | AY31: 0 | AZ31: 0 | BA31: 0 | BB31: 0 | BC31: 0 | BD31: 0 | BE31: 0 | BF31: 0 | BG31: 0 | BH31: 0 | BI31: 0 | BJ31: 0 | BK31: 0 | BL31: 0 | BM31: 0 | BN31: 0 | BO31: 0 | BP31: 0 | BQ31: 0 | BR31: 0 | BS31: 0 | BT31: 0 | BU31: 0 | BV31: 0 | BW31: 0 | BX31: 0 | BY31: 0 | BZ31: 0 | CA31: 0 | CB31: 0 | CC31: 0 | CD31: 0 | CE31: 0 | CF31: 0 | CG31: 0 | CH31: 0 | CI31: 0 | CJ31: 0 | CK31: 0 | CL31: 0 | CM31: 0 | CN31: 0 | CO31: 0 | CP31: 0 | CQ31: 803 | CR31: 798 | CS31: 3 | CT31: 0 | CU31: 0 | CV31: 792 | CW31: 0 | CX31: 3 | CY31: 5 | CZ31: 0 | DA31: 0 | DB31: 0 | DC31: 5 | DD31: 0 | DE31: 0 | DF31: 0 | DG31: 0 | DH31: 0 | DI31: 0 | DJ31: 0 | DK31: 0 | DL31: 0 | DM31: 0 | DN31: 0 | DO31: 0 | DP31: 0 | DQ31: 0 | DR31: 0 | DS31: 0 | DT31: 0 | DU31: 1,742 | DV31: 552 | DW31: 0 | DX31: 1,190 | DY31: 0 | DZ31: 0 | EA31: 0 | EB31: 0 | EC31: 0 | ED31: 0 | EE31: 0 | EF31: 0 | EG31: 0 | EH31: 0 | EI31: 0 | EJ31: 0 | EK31: 0 | EL31: 0 | EM31: 0 | EN31: 0
A32: 茨城県 | B32: 08229 | C32: 稲敷市 | D32: 14,405 | E32: 11,121 | F32: 10,597 | G32: 0 | H32: 10,597 | I32: 0 | J32: 0 | K32: 0 | L32: 0 | M32: 524 | N32: 0 | O32: 524 | P32: 0 | Q32: 0 | R32: 0 | S32: 0 | T32: 1,352 | U32: 281 | V32: 0 | W32: 0 | X32: 0 | Y32: 0 | Z32: 0 | AA32: 281 | AB32: 1,071 | AC32: 0 | AD32: 0 | AE32: 0 | AF32: 0 | AG32: 0 | AH32: 1,071 | AI32: 0 | AJ32: 0 | AK32: 0 | AL32: 0 | AM32: 0 | AN32: 0 | AO32: 0 | AP32: 0 | AQ32: 0 | AR32: 0 | AS32: 0 | AT32: 0 | AU32: 0 | AV32: 0 | AW32: 0 | AX32: 0 | AY32: 0 | AZ32: 0 | BA32: 0 | BB32: 0 | BC32: 0 | BD32: 0 | BE32: 0 | BF32: 0 | BG32: 0 | BH32: 0 | BI32: 0 | BJ32: 0 | BK32: 0 | BL32: 0 | BM32: 0 | BN32: 0 | BO32: 0 | BP32: 0 | BQ32: 0 | BR32: 0 | BS32: 0 | BT32: 0 | BU32: 0 | BV32: 0 | BW32: 0 | BX32: 0 | BY32: 0 | BZ32: 0 | CA32: 0 | CB32: 0 | CC32: 0 | CD32: 0 | CE32: 0 | CF32: 0 | CG32: 0 | CH32: 0 | CI32: 0 | CJ32: 0 | CK32: 0 | CL32: 0 | CM32: 0 | CN32: 0 | CO32: 0 | CP32: 0 | CQ32: 544 | CR32: 544 | CS32: 0 | CT32: 0 | CU32: 544 | CV32: 0 | CW32: 0 | CX32: 0 | CY32: 0 | CZ32: 0 | DA32: 0 | DB32: 0 | DC32: 0 | DD32: 0 | DE32: 0 | DF32: 14 | DG32: 0 | DH32: 0 | DI32: 0 | DJ32: 0 | DK32: 0 | DL32: 0 | DM32: 0 | DN32: 14 | DO32: 0 | DP32: 0 | DQ32: 14 | DR32: 0 | DS32: 0 | DT32: 0 | DU32: 1,374 | DV32: 1,311 | DW32: 46 | DX32: 0 | DY32: 17 | DZ32: 0 | EA32: 0 | EB32: 0 | EC32: 0 | ED32: 0 | EE32: 0 | EF32: 0 | EG32: 0 | EH32: 0 | EI32: 0 | EJ32: 0 | EK32: 0 | EL32: 0 | EM32: 0 | EN32: 0
A33: 茨城県 | B33: 08230 | C33: かすみがうら市 | D33: 16,600 | E33: 12,917 | F33: 11,887 | G33: 0 | H33: 11,887 | I33: 0 | J33: 0 | K33: 0 | L33: 0 | M33: 1,030 | N33: 0 | O33: 1,030 | P33: 0 | Q33: 0 | R33: 0 | S33: 0 | T33: 1,155 | U33: 669 | V33: 0 | W33: 0 | X33: 397 | Y33: 0 | Z33: 0 | AA33: 272 | AB33: 486 | AC33: 0 | AD33: 0 | AE33: 25 | AF33: 0 | AG33: 0 | AH33: 461 | AI33: 377 | AJ33: 377 | AK33: 0 | AL33: 0 | AM33: 0 | AN33: 377 | AO33: 0 | AP33: 0 | AQ33: 0 | AR33: 0 | AS33: 0 | AT33: 0 | AU33: 0 | AV33: 0 | AW33: 0 | AX33: 0 | AY33: 0 | AZ33: 0 | BA33: 0 | BB33: 0 | BC33: 0 | BD33: 0 | BE33: 0 | BF33: 0 | BG33: 0 | BH33: 0 | BI33: 0 | BJ33: 0 | BK33: 0 | BL33: 0 | BM33: 0 | BN33: 0 | BO33: 0 | BP33: 0 | BQ33: 0 | BR33: 0 | BS33: 0 | BT33: 0 | BU33: 0 | BV33: 0 | BW33: 0 | BX33: 0 | BY33: 0 | BZ33: 0 | CA33: 0 | CB33: 0 | CC33: 0 | CD33: 0 | CE33: 0 | CF33: 0 | CG33: 0 | CH33: 0 | CI33: 0 | CJ33: 0 | CK33: 0 | CL33: 0 | CM33: 0 | CN33: 0 | CO33: 0 | CP33: 0 | CQ33: 528 | CR33: 526 | CS33: 0 | CT33: 0 | CU33: 0 | CV33: 526 | CW33: 0 | CX33: 0 | CY33: 2 | CZ33: 0 | DA33: 0 | DB33: 0 | DC33: 2 | DD33: 0 | DE33: 0 | DF33: 0 | DG33: 0 | DH33: 0 | DI33: 0 | DJ33: 0 | DK33: 0 | DL33: 0 | DM33: 0 | DN33: 0 | DO33: 0 | DP33: 0 | DQ33: 0 | DR33: 0 | DS33: 0 | DT33: 0 | DU33: 1,623 | DV33: 1,623 | DW33: 0 | DX33: 0 | DY33: 0 | DZ33: 0 | EA33: 0 | EB33: 0 | EC33: 0 | ED33: 0 | EE33: 0 | EF33: 0 | EG33: 0 | EH33: 0 | EI33: 0 | EJ33: 0 | EK33: 0 | EL33: 0 | EM33: 0 | EN33: 0
A34: 茨城県 | B34: 08231 | C34: 桜川市 | D34: 10,947 | E34: 10,689 | F34: 10,585 | G34: 0 | H34: 10,190 | I34: 319 | J34: 0 | K34: 0 | L34: 76 | M34: 104 | N34: 0 | O34: 80 | P34: 24 | Q34: 0 | R34: 0 | S34: 0 | T34: 0 | U34: 0 | V34: 0 | W34: 0 | X34: 0 | Y34: 0 | Z34: 0 | AA34: 0 | AB34: 0 | AC34: 0 | AD34: 0 | AE34: 0 | AF34: 0 | AG34: 0 | AH34: 0 | AI34: 0 | AJ34: 0 | AK34: 0 | AL34: 0 | AM34: 0 | AN34: 0 | AO34: 0 | AP34: 0 | AQ34: 0 | AR34: 0 | AS34: 0 | AT34: 0 | AU34: 0 | AV34: 0 | AW34: 0 | AX34: 0 | AY34: 0 | AZ34: 0 | BA34: 0 | BB34: 0 | BC34: 0 | BD34: 0 | BE34: 0 | BF34: 0 | BG34: 0 | BH34: 0 | BI34: 0 | BJ34: 0 | BK34: 0 | BL34: 0 | BM34: 0 | BN34: 0 | BO34: 0 | BP34: 0 | BQ34: 0 | BR34: 0 | BS34: 0 | BT34: 0 | BU34: 0 | BV34: 0 | BW34: 0 | BX34: 0 | BY34: 0 | BZ34: 0 | CA34: 0 | CB34: 142 | CC34: 142 | CD34: 0 | CE34: 0 | CF34: 0 | CG34: 0 | CH34: 0 | CI34: 142 | CJ34: 0 | CK34: 0 | CL34: 0 | CM34: 0 | CN34: 0 | CO34: 0 | CP34: 0 | CQ34: 0 | CR34: 0 | CS34: 0 | CT34: 0 | CU34: 0 | CV34: 0 | CW34: 0 | CX34: 0 | CY34: 0 | CZ34: 0 | DA34: 0 | DB34: 0 | DC34: 0 | DD34: 0 | DE34: 0 | DF34: 116 | DG34: 116 | DH34: 0 | DI34: 0 | DJ34: 0 | DK34: 0 | DL34: 0 | DM34: 116 | DN34: 0 | DO34: 0 | DP34: 0 | DQ34: 0 | DR34: 0 | DS34: 0 | DT34: 0 | DU34: 0 | DV34: 0 | DW34: 0 | DX34: 0 | DY34: 0 | DZ34: 0 | EA34: 0 | EB34: 0 | EC34: 0 | ED34: 0 | EE34: 0 | EF34: 0 | EG34: 0 | EH34: 0 | EI34: 0 | EJ34: 0 | EK34: 0 | EL34: 0 | EM34: 0 | EN34: 0
A35: 茨城県 | B35: 08232 | C35: 神栖市 | D35: 36,614 | E35: 0 | F35: 0 | G35: 0 | H35: 0 | I35: 0 | J35: 0 | K35: 0 | L35: 0 | M35: 0 | N35: 0 | O35: 0 | P35: 0 | Q35: 0 | R35: 0 | S35: 0 | T35: 0 | U35: 0 | V35: 0 | W35: 0 | X35: 0 | Y35: 0 | Z35: 0 | AA35: 0 | AB35: 0 | AC35: 0 | AD35: 0 | AE35: 0 | AF35: 0 | AG35: 0 | AH35: 0 | AI35: 0 | AJ35: 0 | AK35: 0 | AL35: 0 | AM35: 0 | AN35: 0 | AO35: 0 | AP35: 0 | AQ35: 0 | AR35: 0 | AS35: 0 | AT35: 0 | AU35: 0 | AV35: 0 | AW35: 0 | AX35: 0 | AY35: 0 | AZ35: 0 | BA35: 0 | BB35: 0 | BC35: 0 | BD35: 0 | BE35: 0 | BF35: 0 | BG35: 0 | BH35: 0 | BI35: 0 | BJ35: 0 | BK35: 0 | BL35: 0 | BM35: 0 | BN35: 0 | BO35: 0 | BP35: 0 | BQ35: 0 | BR35: 0 | BS35: 0 | BT35: 0 | BU35: 0 | BV35: 0 | BW35: 0 | BX35: 0 | BY35: 0 | BZ35: 0 | CA35: 0 | CB35: 21,974 | CC35: 21,090 | CD35: 0 | CE35: 21,090 | CF35: 0 | CG35: 0 | CH35: 0 | CI35: 0 | CJ35: 884 | CK35: 0 | CL35: 884 | CM35: 0 | CN35: 0 | CO35: 0 | CP35: 0 | CQ35: 5,104 | CR35: 3,251 | CS35: 0 | CT35: 0 | CU35: 3,053 | CV35: 0 | CW35: 0 | CX35: 198 | CY35: 1,853 | CZ35: 0 | DA35: 0 | DB35: 851 | DC35: 0 | DD35: 0 | DE35: 1,002 | DF35: 0 | DG35: 0 | DH35: 0 | DI35: 0 | DJ35: 0 | DK35: 0 | DL35: 0 | DM35: 0 | DN35: 0 | DO35: 0 | DP35: 0 | DQ35: 0 | DR35: 0 | DS35: 0 | DT35: 0 | DU35: 9,536 | DV35: 8,708 | DW35: 40 | DX35: 786 | DY35: 2 | DZ35: 0 | EA35: 0 | EB35: 0 | EC35: 0 | ED35: 0 | EE35: 0 | EF35: 0 | EG35: 0 | EH35: 0 | EI35: 0 | EJ35: 0 | EK35: 0 | EL35: 0 | EM35: 0 | EN35: 0
A36: 茨城県 | B36: 08233 | C36: 行方市 | D36: 10,661 | E36: 9,098 | F36: 7,789 | G36: 0 | H36: 7,789 | I36: 0 | J36: 0 | K36: 0 | L36: 0 | M36: 1,309 | N36: 0 | O36: 1,309 | P36: 0 | Q36: 0 | R36: 0 | S36: 0 | T36: 1,250 | U36: 808 | V36: 0 | W36: 0 | X36: 383 | Y36: 419 | Z36: 0 | AA36: 6 | AB36: 442 | AC36: 0 | AD36: 0 | AE36: 176 | AF36: 50 | AG36: 0 | AH36: 216 | AI36: 0 | AJ36: 0 | AK36: 0 | AL36: 0 | AM36: 0 | AN36: 0 | AO36: 0 | AP36: 0 | AQ36: 0 | AR36: 0 | AS36: 0 | AT36: 0 | AU36: 0 | AV36: 0 | AW36: 0 | AX36: 0 | AY36: 0 | AZ36: 0 | BA36: 0 | BB36: 0 | BC36: 0 | BD36: 0 | BE36: 0 | BF36: 0 | BG36: 0 | BH36: 0 | BI36: 0 | BJ36: 0 | BK36: 0 | BL36: 0 | BM36: 0 | BN36: 0 | BO36: 0 | BP36: 0 | BQ36: 0 | BR36: 0 | BS36: 0 | BT36: 0 | BU36: 0 | BV36: 0 | BW36: 0 | BX36: 0 | BY36: 0 | BZ36: 0 | CA36: 0 | CB36: 0 | CC36: 0 | CD36: 0 | CE36: 0 | CF36: 0 | CG36: 0 | CH36: 0 | CI36: 0 | CJ36: 0 | CK36: 0 | CL36: 0 | CM36: 0 | CN36: 0 | CO36: 0 | CP36: 0 | CQ36: 0 | CR36: 0 | CS36: 0 | CT36: 0 | CU36: 0 | CV36: 0 | CW36: 0 | CX36: 0 | CY36: 0 | CZ36: 0 | DA36: 0 | DB36: 0 | DC36: 0 | DD36: 0 | DE36: 0 | DF36: 0 | DG36: 0 | DH36: 0 | DI36: 0 | DJ36: 0 | DK36: 0 | DL36: 0 | DM36: 0 | DN36: 0 | DO36: 0 | DP36: 0 | DQ36: 0 | DR36: 0 | DS36: 0 | DT36: 0 | DU36: 313 | DV36: 313 | DW36: 0 | DX36: 0 | DY36: 0 | DZ36: 0 | EA36: 0 | EB36: 0 | EC36: 0 | ED36: 0 | EE36: 0 | EF36: 0 | EG36: 0 | EH36: 0 | EI36: 0 | EJ36: 0 | EK36: 0 | EL36: 0 | EM36: 0 | EN36: 0
A37: 茨城県 | B37: 08234 | C37: 鉾田市 | D37: 12,159 | E37: 10,568 | F37: 9,123 | G37: 0 | H37: 9,119 | I37: 0 | J37: 4 | K37: 0 | L37: 0 | M37: 1,445 | N37: 0 | O37: 1,354 | P37: 0 | Q37: 0 | R37: 0 | S37: 91 | T37: 244 | U37: 195 | V37: 0 | W37: 0 | X37: 191 | Y37: 0 | Z37: 0 | AA37: 4 | AB37: 49 | AC37: 0 | AD37: 0 | AE37: 9 | AF37: 0 | AG37: 0 | AH37: 40 | AI37: 0 | AJ37: 0 | AK37: 0 | AL37: 0 | AM37: 0 | AN37: 0 | AO37: 0 | AP37: 0 | AQ37: 0 | AR37: 0 | AS37: 0 | AT37: 0 | AU37: 0 | AV37: 0 | AW37: 0 | AX37: 0 | AY37: 0 | AZ37: 0 | BA37: 0 | BB37: 0 | BC37: 0 | BD37: 0 | BE37: 0 | BF37: 0 | BG37: 0 | BH37: 0 | BI37: 0 | BJ37: 0 | BK37: 0 | BL37: 0 | BM37: 0 | BN37: 0 | BO37: 0 | BP37: 0 | BQ37: 0 | BR37: 0 | BS37: 0 | BT37: 0 | BU37: 0 | BV37: 0 | BW37: 0 | BX37: 0 | BY37: 0 | BZ37: 0 | CA37: 0 | CB37: 0 | CC37: 0 | CD37: 0 | CE37: 0 | CF37: 0 | CG37: 0 | CH37: 0 | CI37: 0 | CJ37: 0 | CK37: 0 | CL37: 0 | CM37: 0 | CN37: 0 | CO37: 0 | CP37: 0 | CQ37: 1,042 | CR37: 654 | CS37: 0 | CT37: 0 | CU37: 560 | CV37: 87 | CW37: 7 | CX37: 0 | CY37: 388 | CZ37: 0 | DA37: 0 | DB37: 157 | DC37: 3 | DD37: 6 | DE37: 222 | DF37: 0 | DG37: 0 | DH37: 0 | DI37: 0 | DJ37: 0 | DK37: 0 | DL37: 0 | DM37: 0 | DN37: 0 | DO37: 0 | DP37: 0 | DQ37: 0 | DR37: 0 | DS37: 0 | DT37: 0 | DU37: 305 | DV37: 218 | DW37: 0 | DX37: 87 | DY37: 0 | DZ37: 0 | EA37: 0 | EB37: 0 | EC37: 0 | ED37: 0 | EE37: 0 | EF37: 0 | EG37: 0 | EH37: 0 | EI37: 0 | EJ37: 0 | EK37: 0 | EL37: 0 | EM37: 0 | EN37: 0
A38: 茨城県 | B38: 08235 | C38: つくばみらい市 | D38: 12,875 | E38: 9,332 | F38: 9,319 | G38: 0 | H38: 9,319 | I38: 0 | J38: 0 | K38: 0 | L38: 0 | M38: 13 | N38: 0 | O38: 13 | P38: 0 | Q38: 0 | R38: 0 | S38: 0 | T38: 252 | U38: 154 | V38: 0 | W38: 0 | X38: 0 | Y38: 0 | Z38: 0 | AA38: 154 | AB38: 98 | AC38: 0 | AD38: 0 | AE38: 0 | AF38: 0 | AG38: 0 | AH38: 98 | AI38: 170 | AJ38: 170 | AK38: 0 | AL38: 0 | AM38: 0 | AN38: 170 | AO38: 0 | AP38: 0 | AQ38: 0 | AR38: 0 | AS38: 0 | AT38: 0 | AU38: 0 | AV38: 0 | AW38: 0 | AX38: 0 | AY38: 0 | AZ38: 0 | BA38: 0 | BB38: 0 | BC38: 0 | BD38: 0 | BE38: 0 | BF38: 0 | BG38: 0 | BH38: 0 | BI38: 0 | BJ38: 0 | BK38: 0 | BL38: 0 | BM38: 0 | BN38: 0 | BO38: 0 | BP38: 0 | BQ38: 0 | BR38: 0 | BS38: 0 | BT38: 0 | BU38: 0 | BV38: 0 | BW38: 0 | BX38: 0 | BY38: 0 | BZ38: 0 | CA38: 0 | CB38: 0 | CC38: 0 | CD38: 0 | CE38: 0 | CF38: 0 | CG38: 0 | CH38: 0 | CI38: 0 | CJ38: 0 | CK38: 0 | CL38: 0 | CM38: 0 | CN38: 0 | CO38: 0 | CP38: 0 | CQ38: 2,518 | CR38: 2,515 | CS38: 0 | CT38: 0 | CU38: 1,690 | CV38: 809 | CW38: 16 | CX38: 0 | CY38: 3 | CZ38: 0 | DA38: 0 | DB38: 1 | DC38: 2 | DD38: 0 | DE38: 0 | DF38: 0 | DG38: 0 | DH38: 0 | DI38: 0 | DJ38: 0 | DK38: 0 | DL38: 0 | DM38: 0 | DN38: 0 | DO38: 0 | DP38: 0 | DQ38: 0 | DR38: 0 | DS38: 0 | DT38: 0 | DU38: 603 | DV38: 603 | DW38: 0 | DX38: 0 | DY38: 0 | DZ38: 0 | EA38: 0 | EB38: 0 | EC38: 0 | ED38: 0 | EE38: 0 | EF38: 0 | EG38: 0 | EH38: 0 | EI38: 0 | EJ38: 0 | EK38: 0 | EL38: 0 | EM38: 0 | EN38: 0
A39: 茨城県 | B39: 08236 | C39: 小美玉市 | D39: 17,485 | E39: 14,964 | F39: 12,533 | G39: 0 | H39: 12,533 | I39: 0 | J39: 0 | K39: 0 | L39: 0 | M39: 2,431 | N39: 0 | O39: 2,431 | P39: 0 | Q39: 0 | R39: 0 | S39: 0 | T39: 845 | U39: 582 | V39: 0 | W39: 0 | X39: 560 | Y39: 0 | Z39: 0 | AA39: 22 | AB39: 263 | AC39: 0 | AD39: 0 | AE39: 115 | AF39: 0 | AG39: 0 | AH39: 148 | AI39: 0 | AJ39: 0 | AK39: 0 | AL39: 0 | AM39: 0 | AN39: 0 | AO39: 0 | AP39: 0 | AQ39: 0 | AR39: 0 | AS39: 0 | AT39: 0 | AU39: 0 | AV39: 0 | AW39: 0 | AX39: 0 | AY39: 0 | AZ39: 0 | BA39: 0 | BB39: 0 | BC39: 0 | BD39: 0 | BE39: 0 | BF39: 0 | BG39: 0 | BH39: 0 | BI39: 0 | BJ39: 0 | BK39: 0 | BL39: 0 | BM39: 0 | BN39: 0 | BO39: 0 | BP39: 0 | BQ39: 0 | BR39: 0 | BS39: 0 | BT39: 0 | BU39: 0 | BV39: 0 | BW39: 0 | BX39: 0 | BY39: 0 | BZ39: 0 | CA39: 0 | CB39: 0 | CC39: 0 | CD39: 0 | CE39: 0 | CF39: 0 | CG39: 0 | CH39: 0 | CI39: 0 | CJ39: 0 | CK39: 0 | CL39: 0 | CM39: 0 | CN39: 0 | CO39: 0 | CP39: 0 | CQ39: 327 | CR39: 184 | CS39: 0 | CT39: 0 | CU39: 0 | CV39: 184 | CW39: 0 | CX39: 0 | CY39: 143 | CZ39: 0 | DA39: 0 | DB39: 0 | DC39: 143 | DD39: 0 | DE39: 0 | DF39: 0 | DG39: 0 | DH39: 0 | DI39: 0 | DJ39: 0 | DK39: 0 | DL39: 0 | DM39: 0 | DN39: 0 | DO39: 0 | DP39: 0 | DQ39: 0 | DR39: 0 | DS39: 0 | DT39: 0 | DU39: 1,349 | DV39: 1,307 | DW39: 0 | DX39: 42 | DY39: 0 | DZ39: 0 | EA39: 0 | EB39: 0 | EC39: 0 | ED39: 0 | EE39: 0 | EF39: 0 | EG39: 0 | EH39: 0 | EI39: 0 | EJ39: 0 | EK39: 0 | EL39: 0 | EM39: 0 | EN39: 0
A40: 茨城県 | B40: 08302 | C40: 茨城町 | D40: 10,536 | E40: 8,750 | F40: 8,368 | G40: 0 | H40: 8,368 | I40: 0 | J40: 0 | K40: 0 | L40: 0 | M40: 382 | N40: 0 | O40: 382 | P40: 0 | Q40: 0 | R40: 0 | S40: 0 | T40: 256 | U40: 218 | V40: 0 | W40: 0 | X40: 207 | Y40: 0 | Z40: 0 | AA40: 11 | AB40: 38 | AC40: 0 | AD40: 0 | AE40: 38 | AF40: 0 | AG40: 0 | AH40: 0 | AI40: 0 | AJ40: 0 | AK40: 0 | AL40: 0 | AM40: 0 | AN40: 0 | AO40: 0 | AP40: 0 | AQ40: 0 | AR40: 0 | AS40: 0 | AT40: 0 | AU40: 0 | AV40: 0 | AW40: 0 | AX40: 0 | AY40: 0 | AZ40: 0 | BA40: 0 | BB40: 0 | BC40: 0 | BD40: 0 | BE40: 0 | BF40: 0 | BG40: 0 | BH40: 0 | BI40: 0 | BJ40: 0 | BK40: 0 | BL40: 0 | BM40: 0 | BN40: 0 | BO40: 0 | BP40: 0 | BQ40: 0 | BR40: 0 | BS40: 0 | BT40: 0 | BU40: 0 | BV40: 0 | BW40: 0 | BX40: 0 | BY40: 0 | BZ40: 0 | CA40: 0 | CB40: 0 | CC40: 0 | CD40: 0 | CE40: 0 | CF40: 0 | CG40: 0 | CH40: 0 | CI40: 0 | CJ40: 0 | CK40: 0 | CL40: 0 | CM40: 0 | CN40: 0 | CO40: 0 | CP40: 0 | CQ40: 407 | CR40: 292 | CS40: 0 | CT40: 0 | CU40: 0 | CV40: 292 | CW40: 0 | CX40: 0 | CY40: 115 | CZ40: 0 | DA40: 0 | DB40: 0 | DC40: 115 | DD40: 0 | DE40: 0 | DF40: 0 | DG40: 0 | DH40: 0 | DI40: 0 | DJ40: 0 | DK40: 0 | DL40: 0 | DM40: 0 | DN40: 0 | DO40: 0 | DP40: 0 | DQ40: 0 | DR40: 0 | DS40: 0 | DT40: 0 | DU40: 1,123 | DV40: 1,123 | DW40: 0 | DX40: 0 | DY40: 0 | DZ40: 0 | EA40: 0 | EB40: 0 | EC40: 0 | ED40: 0 | EE40: 0 | EF40: 0 | EG40: 0 | EH40: 0 | EI40: 0 | EJ40: 0 | EK40: 0 | EL40: 0 | EM40: 0 | EN40: 0
A41: 茨城県 | B41: 08309 | C41: 大洗町 | D41: 9,137 | E41: 7,971 | F41: 7,247 | G41: 0 | H41: 7,247 | I41: 0 | J41: 0 | K41: 0 | L41: 0 | M41: 724 | N41: 0 | O41: 724 | P41: 0 | Q41: 0 | R41: 0 | S41: 0 | T41: 320 | U41: 205 | V41: 0 | W41: 0 | X41: 164 | Y41: 0 | Z41: 0 | AA41: 41 | AB41: 115 | AC41: 0 | AD41: 0 | AE41: 19 | AF41: 0 | AG41: 0 | AH41: 96 | AI41: 0 | AJ41: 0 | AK41: 0 | AL41: 0 | AM41: 0 | AN41: 0 | AO41: 0 | AP41: 0 | AQ41: 0 | AR41: 0 | AS41: 0 | AT41: 0 | AU41: 0 | AV41: 0 | AW41: 0 | AX41: 0 | AY41: 0 | AZ41: 0 | BA41: 0 | BB41: 0 | BC41: 0 | BD41: 0 | BE41: 0 | BF41: 0 | BG41: 0 | BH41: 0 | BI41: 0 | BJ41: 0 | BK41: 0 | BL41: 0 | BM41: 0 | BN41: 0 | BO41: 0 | BP41: 0 | BQ41: 0 | BR41: 0 | BS41: 0 | BT41: 0 | BU41: 0 | BV41: 0 | BW41: 0 | BX41: 0 | BY41: 0 | BZ41: 0 | CA41: 0 | CB41: 0 | CC41: 0 | CD41: 0 | CE41: 0 | CF41: 0 | CG41: 0 | CH41: 0 | CI41: 0 | CJ41: 0 | CK41: 0 | CL41: 0 | CM41: 0 | CN41: 0 | CO41: 0 | CP41: 0 | CQ41: 0 | CR41: 0 | CS41: 0 | CT41: 0 | CU41: 0 | CV41: 0 | CW41: 0 | CX41: 0 | CY41: 0 | CZ41: 0 | DA41: 0 | DB41: 0 | DC41: 0 | DD41: 0 | DE41: 0 | DF41: 0 | DG41: 0 | DH41: 0 | DI41: 0 | DJ41: 0 | DK41: 0 | DL41: 0 | DM41: 0 | DN41: 0 | DO41: 0 | DP41: 0 | DQ41: 0 | DR41: 0 | DS41: 0 | DT41: 0 | DU41: 846 | DV41: 846 | DW41: 0 | DX41: 0 | DY41: 0 | DZ41: 0 | EA41: 0 | EB41: 0 | EC41: 0 | ED41: 0 | EE41: 0 | EF41: 0 | EG41: 0 | EH41: 0 | EI41: 0 | EJ41: 0 | EK41: 0 | EL41: 0 | EM41: 0 | EN41: 0
A42: 茨城県 | B42: 08310 | C42: 城里町 | D42: 5,647 | E42: 5,027 | F42: 4,415 | G42: 0 | H42: 4,415 | I42: 0 | J42: 0 | K42: 0 | L42: 0 | M42: 612 | N42: 0 | O42: 612 | P42: 0 | Q42: 0 | R42: 0 | S42: 0 | T42: 294 | U42: 269 | V42: 0 | W42: 0 | X42: 0 | Y42: 0 | Z42: 0 | AA42: 269 | AB42: 25 | AC42: 0 | AD42: 0 | AE42: 0 | AF42: 0 | AG42: 0 | AH42: 25 | AI42: 0 | AJ42: 0 | AK42: 0 | AL42: 0 | AM42: 0 | AN42: 0 | AO42: 0 | AP42: 0 | AQ42: 0 | AR42: 0 | AS42: 0 | AT42: 0 | AU42: 0 | AV42: 0 | AW42: 0 | AX42: 0 | AY42: 0 | AZ42: 0 | BA42: 0 | BB42: 0 | BC42: 0 | BD42: 0 | BE42: 0 | BF42: 0 | BG42: 0 | BH42: 0 | BI42: 0 | BJ42: 0 | BK42: 0 | BL42: 0 | BM42: 0 | BN42: 0 | BO42: 0 | BP42: 0 | BQ42: 0 | BR42: 0 | BS42: 0 | BT42: 0 | BU42: 0 | BV42: 0 | BW42: 0 | BX42: 0 | BY42: 0 | BZ42: 0 | CA42: 0 | CB42: 0 | CC42: 0 | CD42: 0 | CE42: 0 | CF42: 0 | CG42: 0 | CH42: 0 | CI42: 0 | CJ42: 0 | CK42: 0 | CL42: 0 | CM42: 0 | CN42: 0 | CO42: 0 | CP42: 0 | CQ42: 326 | CR42: 289 | CS42: 0 | CT42: 0 | CU42: 0 | CV42: 280 | CW42: 9 | CX42: 0 | CY42: 37 | CZ42: 0 | DA42: 0 | DB42: 0 | DC42: 37 | DD42: 0 | DE42: 0 | DF42: 0 | DG42: 0 | DH42: 0 | DI42: 0 | DJ42: 0 | DK42: 0 | DL42: 0 | DM42: 0 | DN42: 0 | DO42: 0 | DP42: 0 | DQ42: 0 | DR42: 0 | DS42: 0 | DT42: 0 | DU42: 0 | DV42: 0 | DW42: 0 | DX42: 0 | DY42: 0 | DZ42: 0 | EA42: 0 | EB42: 0 | EC42: 0 | ED42: 0 | EE42: 0 | EF42: 0 | EG42: 0 | EH42: 0 | EI42: 0 | EJ42: 0 | EK42: 0 | EL42: 0 | EM42: 0 | EN42: 0
A43: 茨城県 | B43: 08341 | C43: 東海村 | D43: 13,267 | E43: 9,546 | F43: 9,321 | G43: 0 | H43: 9,321 | I43: 0 | J43: 0 | K43: 0 | L43: 0 | M43: 225 | N43: 0 | O43: 225 | P43: 0 | Q43: 0 | R43: 0 | S43: 0 | T43: 755 | U43: 528 | V43: 0 | W43: 0 | X43: 528 | Y43: 0 | Z43: 0 | AA43: 0 | AB43: 227 | AC43: 0 | AD43: 0 | AE43: 227 | AF43: 0 | AG43: 0 | AH43: 0 | AI43: 0 | AJ43: 0 | AK43: 0 | AL43: 0 | AM43: 0 | AN43: 0 | AO43: 0 | AP43: 0 | AQ43: 0 | AR43: 0 | AS43: 0 | AT43: 0 | AU43: 0 | AV43: 0 | AW43: 0 | AX43: 0 | AY43: 0 | AZ43: 0 | BA43: 0 | BB43: 0 | BC43: 0 | BD43: 0 | BE43: 0 | BF43: 0 | BG43: 0 | BH43: 0 | BI43: 0 | BJ43: 0 | BK43: 0 | BL43: 0 | BM43: 0 | BN43: 0 | BO43: 0 | BP43: 0 | BQ43: 0 | BR43: 0 | BS43: 0 | BT43: 0 | BU43: 0 | BV43: 0 | BW43: 0 | BX43: 0 | BY43: 0 | BZ43: 0 | CA43: 0 | CB43: 0 | CC43: 0 | CD43: 0 | CE43: 0 | CF43: 0 | CG43: 0 | CH43: 0 | CI43: 0 | CJ43: 0 | CK43: 0 | CL43: 0 | CM43: 0 | CN43: 0 | CO43: 0 | CP43: 0 | CQ43: 671 | CR43: 550 | CS43: 0 | CT43: 0 | CU43: 0 | CV43: 550 | CW43: 0 | CX43: 0 | CY43: 121 | CZ43: 0 | DA43: 0 | DB43: 0 | DC43: 121 | DD43: 0 | DE43: 0 | DF43: 0 | DG43: 0 | DH43: 0 | DI43: 0 | DJ43: 0 | DK43: 0 | DL43: 0 | DM43: 0 | DN43: 0 | DO43: 0 | DP43: 0 | DQ43: 0 | DR43: 0 | DS43: 0 | DT43: 0 | DU43: 2,295 | DV43: 1,882 | DW43: 0 | DX43: 413 | DY43: 0 | DZ43: 0 | EA43: 0 | EB43: 0 | EC43: 0 | ED43: 0 | EE43: 0 | EF43: 0 | EG43: 0 | EH43: 0 | EI43: 0 | EJ43: 0 | EK43: 0 | EL43: 0 | EM43: 0 | EN43: 0
A44: 茨城県 | B44: 08364 | C44: 大子町 | D44: 6,713 | E44: 5,357 | F44: 4,324 | G44: 0 | H44: 4,324 | I44: 0 | J44: 0 | K44: 0 | L44: 0 | M44: 1,033 | N44: 0 | O44: 1,033 | P44: 0 | Q44: 0 | R44: 0 | S44: 0 | T44: 0 | U44: 0 | V44: 0 | W44: 0 | X44: 0 | Y44: 0 | Z44: 0 | AA44: 0 | AB44: 0 | AC44: 0 | AD44: 0 | AE44: 0 | AF44: 0 | AG44: 0 | AH44: 0 | AI44: 0 | AJ44: 0 | AK44: 0 | AL44: 0 | AM44: 0 | AN44: 0 | AO44: 0 | AP44: 0 | AQ44: 0 | AR44: 0 | AS44: 0 | AT44: 0 | AU44: 0 | AV44: 0 | AW44: 0 | AX44: 0 | AY44: 0 | AZ44: 0 | BA44: 0 | BB44: 0 | BC44: 0 | BD44: 0 | BE44: 0 | BF44: 0 | BG44: 0 | BH44: 0 | BI44: 0 | BJ44: 0 | BK44: 0 | BL44: 0 | BM44: 0 | BN44: 0 | BO44: 0 | BP44: 0 | BQ44: 0 | BR44: 0 | BS44: 0 | BT44: 0 | BU44: 0 | BV44: 0 | BW44: 0 | BX44: 0 | BY44: 0 | BZ44: 0 | CA44: 0 | CB44: 0 | CC44: 0 | CD44: 0 | CE44: 0 | CF44: 0 | CG44: 0 | CH44: 0 | CI44: 0 | CJ44: 0 | CK44: 0 | CL44: 0 | CM44: 0 | CN44: 0 | CO44: 0 | CP44: 0 | CQ44: 264 | CR44: 215 | CS44: 0 | CT44: 0 | CU44: 0 | CV44: 215 | CW44: 0 | CX44: 0 | CY44: 49 | CZ44: 0 | DA44: 0 | DB44: 0 | DC44: 49 | DD44: 0 | DE44: 0 | DF44: 0 | DG44: 0 | DH44: 0 | DI44: 0 | DJ44: 0 | DK44: 0 | DL44: 0 | DM44: 0 | DN44: 0 | DO44: 0 | DP44: 0 | DQ44: 0 | DR44: 0 | DS44: 0 | DT44: 0 | DU44: 1,092 | DV44: 970 | DW44: 0 | DX44: 122 | DY44: 0 | DZ44: 0 | EA44: 0 | EB44: 0 | EC44: 0 | ED44: 0 | EE44: 0 | EF44: 0 | EG44: 0 | EH44: 0 | EI44: 0 | EJ44: 0 | EK44: 0 | EL44: 0 | EM44: 0 | EN44: 0
A45: 茨城県 | B45: 08442 | C45: 美浦村 | D45: 5,714 | E45: 4,184 | F45: 4,083 | G45: 0 | H45: 4,083 | I45: 0 | J45: 0 | K45: 0 | L45: 0 | M45: 101 | N45: 0 | O45: 101 | P45: 0 | Q45: 0 | R45: 0 | S45: 0 | T45: 510 | U45: 190 | V45: 0 | W45: 0 | X45: 0 | Y45: 0 | Z45: 0 | AA45: 190 | AB45: 320 | AC45: 0 | AD45: 0 | AE45: 0 | AF45: 0 | AG45: 0 | AH45: 320 | AI45: 0 | AJ45: 0 | AK45: 0 | AL45: 0 | AM45: 0 | AN45: 0 | AO45: 0 | AP45: 0 | AQ45: 0 | AR45: 0 | AS45: 0 | AT45: 0 | AU45: 0 | AV45: 0 | AW45: 0 | AX45: 0 | AY45: 0 | AZ45: 0 | BA45: 0 | BB45: 0 | BC45: 0 | BD45: 0 | BE45: 0 | BF45: 0 | BG45: 0 | BH45: 0 | BI45: 0 | BJ45: 0 | BK45: 0 | BL45: 0 | BM45: 0 | BN45: 0 | BO45: 0 | BP45: 0 | BQ45: 0 | BR45: 0 | BS45: 0 | BT45: 0 | BU45: 0 | BV45: 0 | BW45: 0 | BX45: 0 | BY45: 0 | BZ45: 0 | CA45: 0 | CB45: 0 | CC45: 0 | CD45: 0 | CE45: 0 | CF45: 0 | CG45: 0 | CH45: 0 | CI45: 0 | CJ45: 0 | CK45: 0 | CL45: 0 | CM45: 0 | CN45: 0 | CO45: 0 | CP45: 0 | CQ45: 240 | CR45: 236 | CS45: 0 | CT45: 0 | CU45: 236 | CV45: 0 | CW45: 0 | CX45: 0 | CY45: 4 | CZ45: 0 | DA45: 0 | DB45: 4 | DC45: 0 | DD45: 0 | DE45: 0 | DF45: 0 | DG45: 0 | DH45: 0 | DI45: 0 | DJ45: 0 | DK45: 0 | DL45: 0 | DM45: 0 | DN45: 0 | DO45: 0 | DP45: 0 | DQ45: 0 | DR45: 0 | DS45: 0 | DT45: 0 | DU45: 780 | DV45: 752 | DW45: 17 | DX45: 0 | DY45: 11 | DZ45: 0 | EA45: 0 | EB45: 0 | EC45: 0 | ED45: 0 | EE45: 0 | EF45: 0 | EG45: 0 | EH45: 0 | EI45: 0 | EJ45: 0 | EK45: 0 | EL45: 0 | EM45: 0 | EN45: 0
A46: 茨城県 | B46: 08443 | C46: 阿見町 | D46: 17,989 | E46: 15,496 | F46: 14,392 | G46: 0 | H46: 14,392 | I46: 0 | J46: 0 | K46: 0 | L46: 0 | M46: 1,104 | N46: 0 | O46: 1,104 | P46: 0 | Q46: 0 | R46: 0 | S46: 0 | T46: 1,665 | U46: 918 | V46: 0 | W46: 0 | X46: 453 | Y46: 419 | Z46: 0 | AA46: 46 | AB46: 747 | AC46: 0 | AD46: 0 | AE46: 80 | AF46: 115 | AG46: 0 | AH46: 552 | AI46: 0 | AJ46: 0 | AK46: 0 | AL46: 0 | AM46: 0 | AN46: 0 | AO46: 0 | AP46: 0 | AQ46: 0 | AR46: 0 | AS46: 0 | AT46: 0 | AU46: 0 | AV46: 0 | AW46: 0 | AX46: 0 | AY46: 0 | AZ46: 0 | BA46: 0 | BB46: 0 | BC46: 0 | BD46: 0 | BE46: 0 | BF46: 0 | BG46: 0 | BH46: 0 | BI46: 0 | BJ46: 0 | BK46: 0 | BL46: 0 | BM46: 0 | BN46: 0 | BO46: 0 | BP46: 0 | BQ46: 0 | BR46: 0 | BS46: 0 | BT46: 0 | BU46: 0 | BV46: 0 | BW46: 0 | BX46: 0 | BY46: 0 | BZ46: 0 | CA46: 0 | CB46: 0 | CC46: 0 | CD46: 0 | CE46: 0 | CF46: 0 | CG46: 0 | CH46: 0 | CI46: 0 | CJ46: 0 | CK46: 0 | CL46: 0 | CM46: 0 | CN46: 0 | CO46: 0 | CP46: 0 | CQ46: 121 | CR46: 121 | CS46: 0 | CT46: 0 | CU46: 0 | CV46: 121 | CW46: 0 | CX46: 0 | CY46: 0 | CZ46: 0 | DA46: 0 | DB46: 0 | DC46: 0 | DD46: 0 | DE46: 0 | DF46: 0 | DG46: 0 | DH46: 0 | DI46: 0 | DJ46: 0 | DK46: 0 | DL46: 0 | DM46: 0 | DN46: 0 | DO46: 0 | DP46: 0 | DQ46: 0 | DR46: 0 | DS46: 0 | DT46: 0 | DU46: 707 | DV46: 707 | DW46: 0 | DX46: 0 | DY46: 0 | DZ46: 0 | EA46: 0 | EB46: 0 | EC46: 0 | ED46: 0 | EE46: 0 | EF46: 0 | EG46: 0 | EH46: 0 | EI46: 0 | EJ46: 0 | EK46: 0 | EL46: 0 | EM46: 0 | EN46: 0
A47: 茨城県 | B47: 08447 | C47: 河内町 | D47: 3,019 | E47: 2,292 | F47: 2,251 | G47: 0 | H47: 2,241 | I47: 0 | J47: 0 | K47: 0 | L47: 10 | M47: 41 | N47: 0 | O47: 37 | P47: 0 | Q47: 0 | R47: 0 | S47: 4 | T47: 147 | U47: 135 | V47: 0 | W47: 0 | X47: 126 | Y47: 0 | Z47: 0 | AA47: 9 | AB47: 12 | AC47: 0 | AD47: 0 | AE47: 6 | AF47: 0 | AG47: 0 | AH47: 6 | AI47: 0 | AJ47: 0 | AK47: 0 | AL47: 0 | AM47: 0 | AN47: 0 | AO47: 0 | AP47: 0 | AQ47: 0 | AR47: 0 | AS47: 0 | AT47: 0 | AU47: 0 | AV47: 0 | AW47: 0 | AX47: 0 | AY47: 0 | AZ47: 0 | BA47: 0 | BB47: 0 | BC47: 0 | BD47: 0 | BE47: 0 | BF47: 0 | BG47: 0 | BH47: 0 | BI47: 0 | BJ47: 0 | BK47: 0 | BL47: 0 | BM47: 0 | BN47: 0 | BO47: 0 | BP47: 0 | BQ47: 0 | BR47: 0 | BS47: 0 | BT47: 0 | BU47: 0 | BV47: 0 | BW47: 0 | BX47: 0 | BY47: 0 | BZ47: 0 | CA47: 0 | CB47: 0 | CC47: 0 | CD47: 0 | CE47: 0 | CF47: 0 | CG47: 0 | CH47: 0 | CI47: 0 | CJ47: 0 | CK47: 0 | CL47: 0 | CM47: 0 | CN47: 0 | CO47: 0 | CP47: 0 | CQ47: 54 | CR47: 54 | CS47: 0 | CT47: 0 | CU47: 0 | CV47: 54 | CW47: 0 | CX47: 0 | CY47: 0 | CZ47: 0 | DA47: 0 | DB47: 0 | DC47: 0 | DD47: 0 | DE47: 0 | DF47: 0 | DG47: 0 | DH47: 0 | DI47: 0 | DJ47: 0 | DK47: 0 | DL47: 0 | DM47: 0 | DN47: 0 | DO47: 0 | DP47: 0 | DQ47: 0 | DR47: 0 | DS47: 0 | DT47: 0 | DU47: 526 | DV47: 257 | DW47: 0 | DX47: 269 | DY47: 0 | DZ47: 0 | EA47: 0 | EB47: 0 | EC47: 0 | ED47: 0 | EE47: 0 | EF47: 0 | EG47: 0 | EH47: 0 | EI47: 0 | EJ47: 0 | EK47: 0 | EL47: 0 | EM47: 0 | EN47: 0
A48: 茨城県 | B48: 08521 | C48: 八千代町 | D48: 5,567 | E48: 4,621 | F48: 4,070 | G48: 0 | H48: 4,070 | I48: 0 | J48: 0 | K48: 0 | L48: 0 | M48: 551 | N48: 0 | O48: 430 | P48: 0 | Q48: 0 | R48: 0 | S48: 121 | T48: 300 | U48: 193 | V48: 0 | W48: 0 | X48: 185 | Y48: 0 | Z48: 0 | AA48: 8 | AB48: 107 | AC48: 0 | AD48: 0 | AE48: 57 | AF48: 0 | AG48: 0 | AH48: 50 | AI48: 0 | AJ48: 0 | AK48: 0 | AL48: 0 | AM48: 0 | AN48: 0 | AO48: 0 | AP48: 0 | AQ48: 0 | AR48: 0 | AS48: 0 | AT48: 0 | AU48: 0 | AV48: 0 | AW48: 0 | AX48: 0 | AY48: 0 | AZ48: 0 | BA48: 0 | BB48: 0 | BC48: 0 | BD48: 0 | BE48: 0 | BF48: 0 | BG48: 0 | BH48: 0 | BI48: 0 | BJ48: 0 | BK48: 0 | BL48: 0 | BM48: 0 | BN48: 0 | BO48: 0 | BP48: 0 | BQ48: 0 | BR48: 0 | BS48: 0 | BT48: 0 | BU48: 0 | BV48: 0 | BW48: 0 | BX48: 0 | BY48: 0 | BZ48: 0 | CA48: 0 | CB48: 0 | CC48: 0 | CD48: 0 | CE48: 0 | CF48: 0 | CG48: 0 | CH48: 0 | CI48: 0 | CJ48: 0 | CK48: 0 | CL48: 0 | CM48: 0 | CN48: 0 | CO48: 0 | CP48: 0 | CQ48: 8 | CR48: 8 | CS48: 0 | CT48: 0 | CU48: 0 | CV48: 0 | CW48: 8 | CX48: 0 | CY48: 0 | CZ48: 0 | DA48: 0 | DB48: 0 | DC48: 0 | DD48: 0 | DE48: 0 | DF48: 0 | DG48: 0 | DH48: 0 | DI48: 0 | DJ48: 0 | DK48: 0 | DL48: 0 | DM48: 0 | DN48: 0 | DO48: 0 | DP48: 0 | DQ48: 0 | DR48: 0 | DS48: 0 | DT48: 0 | DU48: 638 | DV48: 638 | DW48: 0 | DX48: 0 | DY48: 0 | DZ48: 0 | EA48: 0 | EB48: 0 | EC48: 0 | ED48: 0 | EE48: 0 | EF48: 0 | EG48: 0 | EH48: 0 | EI48: 0 | EJ48: 0 | EK48: 0 | EL48: 0 | EM48: 0 | EN48: 0
A49: 茨城県 | B49: 08542 | C49: 五霞町 | D49: 3,393 | E49: 2,960 | F49: 2,898 | G49: 0 | H49: 2,898 | I49: 0 | J49: 0 | K49: 0 | L49: 0 | M49: 62 | N49: 0 | O49: 62 | P49: 0 | Q49: 0 | R49: 0 | S49: 0 | T49: 352 | U49: 292 | V49: 0 | W49: 0 | X49: 64 | Y49: 143 | Z49: 0 | AA49: 85 | AB49: 60 | AC49: 0 | AD49: 0 | AE49: 5 | AF49: 1 | AG49: 0 | AH49: 54 | AI49: 0 | AJ49: 0 | AK49: 0 | AL49: 0 | AM49: 0 | AN49: 0 | AO49: 0 | AP49: 0 | AQ49: 0 | AR49: 0 | AS49: 0 | AT49: 0 | AU49: 0 | AV49: 0 | AW49: 0 | AX49: 0 | AY49: 0 | AZ49: 0 | BA49: 0 | BB49: 0 | BC49: 0 | BD49: 0 | BE49: 0 | BF49: 0 | BG49: 0 | BH49: 0 | BI49: 0 | BJ49: 0 | BK49: 0 | BL49: 0 | BM49: 0 | BN49: 0 | BO49: 0 | BP49: 0 | BQ49: 0 | BR49: 0 | BS49: 0 | BT49: 0 | BU49: 0 | BV49: 0 | BW49: 0 | BX49: 0 | BY49: 0 | BZ49: 0 | CA49: 0 | CB49: 0 | CC49: 0 | CD49: 0 | CE49: 0 | CF49: 0 | CG49: 0 | CH49: 0 | CI49: 0 | CJ49: 0 | CK49: 0 | CL49: 0 | CM49: 0 | CN49: 0 | CO49: 0 | CP49: 0 | CQ49: 0 | CR49: 0 | CS49: 0 | CT49: 0 | CU49: 0 | CV49: 0 | CW49: 0 | CX49: 0 | CY49: 0 | CZ49: 0 | DA49: 0 | DB49: 0 | DC49: 0 | DD49: 0 | DE49: 0 | DF49: 0 | DG49: 0 | DH49: 0 | DI49: 0 | DJ49: 0 | DK49: 0 | DL49: 0 | DM49: 0 | DN49: 0 | DO49: 0 | DP49: 0 | DQ49: 0 | DR49: 0 | DS49: 0 | DT49: 0 | DU49: 81 | DV49: 81 | DW49: 0 | DX49: 0 | DY49: 0 | DZ49: 0 | EA49: 0 | EB49: 0 | EC49: 0 | ED49: 0 | EE49: 0 | EF49: 0 | EG49: 0 | EH49: 0 | EI49: 0 | EJ49: 0 | EK49: 0 | EL49: 0 | EM49: 0 | EN49: 0
A50: 茨城県 | B50: 08546 | C50: 境町 | D50: 8,237 | E50: 6,703 | F50: 6,380 | G50: 0 | H50: 6,380 | I50: 0 | J50: 0 | K50: 0 | L50: 0 | M50: 323 | N50: 0 | O50: 323 | P50: 0 | Q50: 0 | R50: 0 | S50: 0 | T50: 915 | U50: 651 | V50: 0 | W50: 0 | X50: 140 | Y50: 345 | Z50: 0 | AA50: 166 | AB50: 264 | AC50: 0 | AD50: 0 | AE50: 42 | AF50: 6 | AG50: 0 | AH50: 216 | AI50: 0 | AJ50: 0 | AK50: 0 | AL50: 0 | AM50: 0 | AN50: 0 | AO50: 0 | AP50: 0 | AQ50: 0 | AR50: 0 | AS50: 0 | AT50: 0 | AU50: 0 | AV50: 0 | AW50: 0 | AX50: 0 | AY50: 0 | AZ50: 0 | BA50: 0 | BB50: 0 | BC50: 0 | BD50: 0 | BE50: 0 | BF50: 0 | BG50: 0 | BH50: 0 | BI50: 0 | BJ50: 0 | BK50: 0 | BL50: 0 | BM50: 0 | BN50: 0 | BO50: 0 | BP50: 0 | BQ50: 0 | BR50: 0 | BS50: 0 | BT50: 0 | BU50: 0 | BV50: 0 | BW50: 0 | BX50: 0 | BY50: 0 | BZ50: 0 | CA50: 0 | CB50: 0 | CC50: 0 | CD50: 0 | CE50: 0 | CF50: 0 | CG50: 0 | CH50: 0 | CI50: 0 | CJ50: 0 | CK50: 0 | CL50: 0 | CM50: 0 | CN50: 0 | CO50: 0 | CP50: 0 | CQ50: 0 | CR50: 0 | CS50: 0 | CT50: 0 | CU50: 0 | CV50: 0 | CW50: 0 | CX50: 0 | CY50: 0 | CZ50: 0 | DA50: 0 | DB50: 0 | DC50: 0 | DD50: 0 | DE50: 0 | DF50: 0 | DG50: 0 | DH50: 0 | DI50: 0 | DJ50: 0 | DK50: 0 | DL50: 0 | DM50: 0 | DN50: 0 | DO50: 0 | DP50: 0 | DQ50: 0 | DR50: 0 | DS50: 0 | DT50: 0 | DU50: 619 | DV50: 619 | DW50: 0 | DX50: 0 | DY50: 0 | DZ50: 0 | EA50: 0 | EB50: 0 | EC50: 0 | ED50: 0 | EE50: 0 | EF50: 0 | EG50: 0 | EH50: 0 | EI50: 0 | EJ50: 0 | EK50: 0 | EL50: 0 | EM50: 0 | EN50: 0
A51: 茨城県 | B51: 08564 | C51: 利根町 | D51: 4,841 | E51: 4,135 | F51: 4,074 | G51: 0 | H51: 4,010 | I51: 0 | J51: 0 | K51: 0 | L51: 64 | M51: 61 | N51: 0 | O51: 53 | P51: 0 | Q51: 0 | R51: 0 | S51: 8 | T51: 279 | U51: 265 | V51: 0 | W51: 0 | X51: 201 | Y51: 0 | Z51: 0 | AA51: 64 | AB51: 14 | AC51: 0 | AD51: 0 | AE51: 6 | AF51: 0 | AG51: 0 | AH51: 8 | AI51: 0 | AJ51: 0 | AK51: 0 | AL51: 0 | AM51: 0 | AN51: 0 | AO51: 0 | AP51: 0 | AQ51: 0 | AR51: 0 | AS51: 0 | AT51: 0 | AU51: 0 | AV51: 0 | AW51: 0 | AX51: 0 | AY51: 0 | AZ51: 0 | BA51: 0 | BB51: 0 | BC51: 0 | BD51: 0 | BE51: 0 | BF51: 0 | BG51: 0 | BH51: 0 | BI51: 0 | BJ51: 0 | BK51: 0 | BL51: 0 | BM51: 0 | BN51: 0 | BO51: 0 | BP51: 0 | BQ51: 0 | BR51: 0 | BS51: 0 | BT51: 0 | BU51: 0 | BV51: 0 | BW51: 0 | BX51: 0 | BY51: 0 | BZ51: 0 | CA51: 0 | CB51: 0 | CC51: 0 | CD51: 0 | CE51: 0 | CF51: 0 | CG51: 0 | CH51: 0 | CI51: 0 | CJ51: 0 | CK51: 0 | CL51: 0 | CM51: 0 | CN51: 0 | CO51: 0 | CP51: 0 | CQ51: 65 | CR51: 65 | CS51: 0 | CT51: 0 | CU51: 0 | CV51: 65 | CW51: 0 | CX51: 0 | CY51: 0 | CZ51: 0 | DA51: 0 | DB51: 0 | DC51: 0 | DD51: 0 | DE51: 0 | DF51: 0 | DG51: 0 | DH51: 0 | DI51: 0 | DJ51: 0 | DK51: 0 | DL51: 0 | DM51: 0 | DN51: 0 | DO51: 0 | DP51: 0 | DQ51: 0 | DR51: 0 | DS51: 0 | DT51: 0 | DU51: 362 | DV51: 362 | DW51: 0 | DX51: 0 | DY51: 0 | DZ51: 0 | EA51: 0 | EB51: 0 | EC51: 0 | ED51: 0 | EE51: 0 | EF51: 0 | EG51: 0 | EH51: 0 | EI51: 0 | EJ51: 0 | EK51: 0 | EL51: 0 | EM51: 0 | EN51: 0

Sheet ごみ処理量内訳
A1: ごみ処理の状況（平成28年度実績）
A2: 都道府県名 | B2: 地方公共団体コード | C2: 市区町村名 | D2: 処理量（直接焼却量+焼却以外の中間処理量+直接最終処分量+直接資源化量) | P2: 焼却処理量 (直接焼却量+焼却施設以外の中間処理施設からの搬入量) | Z2: 最終処分量 (直接最終処分量+焼却残渣量+焼却施設以外の中間処理施設からの残渣量) | AK2: 処理残渣保管量
D3: 合計 | E3: 直接焼却量 | F3: 焼却以外の中間処理量 (粗大ごみ処理施設+ごみ堆肥化施設+ごみ飼料化施設+メタン化施設+ごみ燃料化施設+その他の資源化等を行う施設+その他の施設) | N3: 直接 最終処分量 | O3: 直接 資源化量 | P3: 合計 | Q3: 直接焼却量 | R3: 焼却施設以外の中間処理施設からの搬入量 | Z3: 合計 | AA3: 直接最終 処分量 | AB3: 焼却残渣量 | AC3: 焼却施設以外の中間処理施設からの残渣量 | AK3: 合計 | AL3: 焼却処理残渣の保管量 | AM3: 粗大ごみ 処理施設 | AN3: ごみ堆肥化施設 | AO3: ごみ飼料化施設 | AP3: メタン化施設 | AQ3: ごみ燃料化 施設 | AR3: その他の資源化等を行う施設 | AS3: その他の 施設
F4: 合計 | G4: 粗大ごみ 処理施設 | H4: ごみ堆肥化施設 | I4: ごみ飼料化施設 | J4: メタン化施設 | K4: ごみ燃料化 施設 | L4: その他の資源化等を行う施設 | M4: その他の 施設 | R4: 合計 | S4: 粗大ごみ 処理施設 | T4: ごみ堆肥化施設 | U4: ごみ飼料化施設 | V4: メタン化施設 | W4: ごみ燃料化 施設 | X4: その他の資源化等を行う施設 | Y4: その他の 施設 | AC4: 合計 | AD4: 粗大ごみ 処理施設 | AE4: ごみ堆肥化施設 | AF4: ごみ飼料化施設 | AG4: メタン化施設 | AH4: ごみ燃料化 施設 | AI4: その他の資源化等を行う施設 | AJ4: その他の 施設
D6: （ｔ） | E6: （ｔ） | F6: （ｔ） | G6: （ｔ） | H6: （ｔ） | I6: （ｔ） | J6: （ｔ） | K6: （ｔ） | L6: （ｔ） | M6: （ｔ） | N6: （ｔ） | O6: （ｔ） | P6: （ｔ） | Q6: （ｔ） | R6: （ｔ） | S6: （ｔ） | T6: （ｔ） | U6: （ｔ） | V6: （ｔ） | W6: （ｔ） | X6: （ｔ） | Y6: （ｔ） | Z6: （ｔ） | AA6: （ｔ） | AB6: （ｔ） | AC6: （ｔ） | AD6: （ｔ） | AE6: （ｔ） | AF6: （ｔ） | AG6: （ｔ） | AH6: （ｔ） | AI6: （ｔ） | AJ6: （ｔ） | AK6: （ｔ） | AL6: （ｔ） | AM6: （ｔ） | AN6: （ｔ） | AO6: （ｔ） | AP6: （ｔ） | AQ6: （ｔ） | AR6: （ｔ） | AS6: （ｔ）
A7: =ごみ処理概要!A7 -> 茨城県 | B7: =ごみ処理概要!B7 -> 08000 | C7: 合計 | D7: =SUM(E7,F7,N7,O7) -> 1,036,552 | E7: =+Q7 -> 793,577 | F7: =SUM(G7:M7) -> 150,923 | G7: =SUM(G$8:G$1000) -> 43,643 | H7: 2,852 | I7: 0 | J7: 0 | K7: 40,124 | L7: 64,006 | M7: 298 | N7: =+AA7 -> 511 | O7: =+資源化量内訳!Y7 -> 91,541 | P7: =+SUM(Q7,R7) -> 825,118 | Q7: =SUM(Q$8:Q$1000) -> 793,577 | R7: =+SUM(S7,T7,U7,V7,W7,X7,Y7) -> 31,541 | S7: =SUM(S$8:S$1000) -> 15,793 | T7: 89 | U7: 0 | V7: 0 | W7: 0 | X7: 15,645 | Y7: 14 | Z7: =SUM(AA7:AC7) -> 81,791 | AA7: =SUM(AA$8:AA$1000) -> 511 | AB7: =SUM(AB$8:AB$1000) -> 73,418 | AC7: =SUM(AD7:AJ7) -> 7,862 | AD7: =SUM(AD$8:AD$1000) -> 6,676 | AE7: 0 | AF7: 0 | AG7: 0 | AH7: 0 | AI7: 902 | AJ7: 284 | AK7: =SUM(AL7:AS7) -> 45 | AL7: =SUM(AL$8:AL$1000) -> 45 | AM7: 0 | AN7: 0 | AO7: 0 | AP7: 0 | AQ7: 0 | AR7: 0 | AS7: 0
A8: 茨城県 | B8: 08201 | C8: 水戸市 | D8: 112,610 | E8: 92,433 | F8: 7,815 | G8: 1,368 | H8: 0 | I8: 0 | J8: 0 | K8: 0 | L8: 6,447 | M8: 0 | N8: 0 | O8: =+資源化量内訳!Y8 -> 12,362 | P8: 93,031 | Q8: 92,433 | R8: 598 | S8: 34 | T8: 0 | U8: 0 | V8: 0 | W8: 0 | X8: 564 | Y8: 0 | Z8: 9,626 | AA8: 0 | AB8: 9,455 | AC8: 171 | AD8: 171 | AE8: 0 | AF8: 0 | AG8: 0 | AH8: 0 | AI8: 0 | AJ8: 0 | AK8: 0 | AL8: 0 | AM8: 0 | AN8: 0 | AO8: 0 | AP8: 0 | AQ8: 0 | AR8: 0 | AS8: 0
A9: 茨城県 | B9: 08202 | C9: 日立市 | D9: 61,280 | E9: 51,119 | F9: 7,736 | G9: 3,166 | H9: 0 | I9: 0 | J9: 0 | K9: 0 | L9: 4,570 | M9: 0 | N9: 0 | O9: =+資源化量内訳!Y9 -> 2,425 | P9: 51,646 | Q9: 51,119 | R9: 527 | S9: 527 | T9: 0 | U9: 0 | V9: 0 | W9: 0 | X9: 0 | Y9: 0 | Z9: 2,047 | AA9: 0 | AB9: 1,130 | AC9: 917 | AD9: 917 | AE9: 0 | AF9: 0 | AG9: 0 | AH9: 0 | AI9: 0 | AJ9: 0 | AK9: 0 | AL9: 0 | AM9: 0 | AN9: 0 | AO9: 0 | AP9: 0 | AQ9: 0 | AR9: 0 | AS9: 0
A10: 茨城県 | B10: 08203 | C10: 土浦市 | D10: 60,111 | E10: 43,540 | F10: 10,511 | G10: 3,559 | H10: 0 | I10: 0 | J10: 0 | K10: 21 | L10: 6,931 | M10: 0 | N10: 0 | O10: =+資源化量内訳!Y10 -> 6,060 | P10: 44,726 | Q10: 43,540 | R10: 1,186 | S10: 1,169 | T10: 0 | U10: 0 | V10: 0 | W10: 0 | X10: 17 | Y10: 0 | Z10: 6,853 | AA10: 0 | AB10: 5,646 | AC10: 1,207 | AD10: 1,195 | AE10: 0 | AF10: 0 | AG10: 0 | AH10: 0 | AI10: 12 | AJ10: 0 | AK10: 0 | AL10: 0 | AM10: 0 | AN10: 0 | AO10: 0 | AP10: 0 | AQ10: 0 | AR10: 0 | AS10: 0
A11: 茨城県 | B11: 08204 | C11: 古河市 | D11: 47,581 | E11: 41,267 | F11: 4,702 | G11: 0 | H11: 0 | I11: 0 | J11: 0 | K11: 0 | L11: 4,702 | M11: 0 | N11: 0 | O11: =+資源化量内訳!Y11 -> 1,612 | P11: 42,886 | Q11: 41,267 | R11: 1,619 | S11: 0 | T11: 0 | U11: 0 | V11: 0 | W11: 0 | X11: 1,619 | Y11: 0 | Z11: 4,803 | AA11: 0 | AB11: 4,803 | AC11: 0 | AD11: 0 | AE11: 0 | AF11: 0 | AG11: 0 | AH11: 0 | AI11: 0 | AJ11: 0 | AK11: 0 | AL11: 0 | AM11: 0 | AN11: 0 | AO11: 0 | AP11: 0 | AQ11: 0 | AR11: 0 | AS11: 0
A12: 茨城県 | B12: 08205 | C12: 石岡市 | D12: 30,408 | E12: 23,432 | F12: 2,672 | G12: 1,850 | H12: 0 | I12: 0 | J12: 0 | K12: 0 | L12: 822 | M12: 0 | N12: 0 | O12: =+資源化量内訳!Y12 -> 4,304 | P12: 23,811 | Q12: 23,432 | R12: 379 | S12: 333 | T12: 0 | U12: 0 | V12: 0 | W12: 0 | X12: 46 | Y12: 0 | Z12: 861 | AA12: 0 | AB12: 741 | AC12: 120 | AD12: 74 | AE12: 0 | AF12: 0 | AG12: 0 | AH12: 0 | AI12: 46 | AJ12: 0 | AK12: 0 | AL12: 0 | AM12: 0 | AN12: 0 | AO12: 0 | AP12: 0 | AQ12: 0 | AR12: 0 | AS12: 0
A13: 茨城県 | B13: 08207 | C13: 結城市 | D13: 20,766 | E13: 19,135 | F13: 14 | G13: 0 | H13: 0 | I13: 0 | J13: 0 | K13: 0 | L13: 0 | M13: 14 | N13: 0 | O13: =+資源化量内訳!Y13 -> 1,617 | P13: 19,149 | Q13: 19,135 | R13: 14 | S13: 0 | T13: 0 | U13: 0 | V13: 0 | W13: 0 | X13: 0 | Y13: 14 | Z13: 933 | AA13: 0 | AB13: 933 | AC13: 0 | AD13: 0 | AE13: 0 | AF13: 0 | AG13: 0 | AH13: 0 | AI13: 0 | AJ13: 0 | AK13: 0 | AL13: 0 | AM13: 0 | AN13: 0 | AO13: 0 | AP13: 0 | AQ13: 0 | AR13: 0 | AS13: 0
A14: 茨城県 | B14: 08208 | C14: 龍ケ崎市 | D14: 29,769 | E14: 23,451 | F14: 1,454 | G14: 1,105 | H14: 0 | I14: 0 | J14: 0 | K14: 0 | L14: 349 | M14: 0 | N14: 0 | O14: =+資源化量内訳!Y14 -> 4,864 | P14: 23,605 | Q14: 23,451 | R14: 154 | S14: 154 | T14: 0 | U14: 0 | V14: 0 | W14: 0 | X14: 0 | Y14: 0 | Z14: 3,263 | AA14: 0 | AB14: 2,762 | AC14: 501 | AD14: 501 | AE14: 0 | AF14: 0 | AG14: 0 | AH14: 0 | AI14: 0 | AJ14: 0 | AK14: 0 | AL14: 0 | AM14: 0 | AN14: 0 | AO14: 0 | AP14: 0 | AQ14: 0 | AR14: 0 | AS14: 0
A15: 茨城県 | B15: 08210 | C15: 下妻市 | D15: 16,699 | E15: 13,418 | F15: 768 | G15: 755 | H15: 0 | I15: 0 | J15: 0 | K15: 0 | L15: 13 | M15: 0 | N15: 0 | O15: =+資源化量内訳!Y15 -> 2,513 | P15: 13,606 | Q15: 13,418 | R15: 188 | S15: 188 | T15: 0 | U15: 0 | V15: 0 | W15: 0 | X15: 0 | Y15: 0 | Z15: 2,398 | AA15: 0 | AB15: 2,082 | AC15: 316 | AD15: 316 | AE15: 0 | AF15: 0 | AG15: 0 | AH15: 0 | AI15: 0 | AJ15: 0 | AK15: 0 | AL15: 0 | AM15: 0 | AN15: 0 | AO15: 0 | AP15: 0 | AQ15: 0 | AR15: 0 | AS15: 0
A16: 茨城県 | B16: 08211 | C16: 常総市 | D16: 18,577 | E16: 13,861 | F16: 3,596 | G16: 541 | H16: 1,006 | I16: 0 | J16: 0 | K16: 0 | L16: 2,049 | M16: 0 | N16: 0 | O16: =+資源化量内訳!Y16 -> 1,120 | P16: 15,474 | Q16: 13,861 | R16: 1,613 | S16: 191 | T16: 4 | U16: 0 | V16: 0 | W16: 0 | X16: 1,418 | Y16: 0 | Z16: 1,428 | AA16: 0 | AB16: 1,282 | AC16: 146 | AD16: 146 | AE16: 0 | AF16: 0 | AG16: 0 | AH16: 0 | AI16: 0 | AJ16: 0 | AK16: 0 | AL16: 0 | AM16: 0 | AN16: 0 | AO16: 0 | AP16: 0 | AQ16: 0 | AR16: 0 | AS16: 0
A17: 茨城県 | B17: 08212 | C17: 常陸太田市 | D17: 16,079 | E17: 14,257 | F17: 892 | G17: 0 | H17: 0 | I17: 0 | J17: 0 | K17: 0 | L17: 892 | M17: 0 | N17: 0 | O17: =+資源化量内訳!Y17 -> 930 | P17: 14,257 | Q17: 14,257 | R17: 0 | S17: 0 | T17: 0 | U17: 0 | V17: 0 | W17: 0 | X17: 0 | Y17: 0 | Z17: 1,598 | AA17: 0 | AB17: 1,578 | AC17: 20 | AD17: 0 | AE17: 0 | AF17: 0 | AG17: 0 | AH17: 0 | AI17: 20 | AJ17: 0 | AK17: 0 | AL17: 0 | AM17: 0 | AN17: 0 | AO17: 0 | AP17: 0 | AQ17: 0 | AR17: 0 | AS17: 0
A18: 茨城県 | B18: 08214 | C18: 高萩市 | D18: 9,323 | E18: 7,026 | F18: 2,297 | G18: 0 | H18: 0 | I18: 0 | J18: 0 | K18: 0 | L18: 2,013 | M18: 284 | N18: 0 | O18: =+資源化量内訳!Y18 -> 0 | P18: 7,026 | Q18: 7,026 | R18: 0 | S18: 0 | T18: 0 | U18: 0 | V18: 0 | W18: 0 | X18: 0 | Y18: 0 | Z18: 986 | AA18: 0 | AB18: 702 | AC18: 284 | AD18: 0 | AE18: 0 | AF18: 0 | AG18: 0 | AH18: 0 | AI18: 0 | AJ18: 284 | AK18: 0 | AL18: 0 | AM18: 0 | AN18: 0 | AO18: 0 | AP18: 0 | AQ18: 0 | AR18: 0 | AS18: 0
A19: 茨城県 | B19: 08215 | C19: 北茨城市 | D19: 16,134 | E19: 13,484 | F19: 566 | G19: 0 | H19: 0 | I19: 0 | J19: 0 | K19: 0 | L19: 566 | M19: 0 | N19: 511 | O19: =+資源化量内訳!Y19 -> 1,573 | P19: 13,484 | Q19: 13,484 | R19: 0 | S19: 0 | T19: 0 | U19: 0 | V19: 0 | W19: 0 | X19: 0 | Y19: 0 | Z19: 2,146 | AA19: 511 | AB19: 1,635 | AC19: 0 | AD19: 0 | AE19: 0 | AF19: 0 | AG19: 0 | AH19: 0 | AI19: 0 | AJ19: 0 | AK19: 0 | AL19: 0 | AM19: 0 | AN19: 0 | AO19: 0 | AP19: 0 | AQ19: 0 | AR19: 0 | AS19: 0
A20: 茨城県 | B20: 08216 | C20: 笠間市 | D20: 27,874 | E20: 21,957 | F20: 2,371 | G20: 2,308 | H20: 0 | I20: 0 | J20: 0 | K20: 0 | L20: 63 | M20: 0 | N20: 0 | O20: =+資源化量内訳!Y20 -> 3,546 | P20: 22,071 | Q20: 21,957 | R20: 114 | S20: 114 | T20: 0 | U20: 0 | V20: 0 | W20: 0 | X20: 0 | Y20: 0 | Z20: 2,213 | AA20: 0 | AB20: 1,870 | AC20: 343 | AD20: 343 | AE20: 0 | AF20: 0 | AG20: 0 | AH20: 0 | AI20: 0 | AJ20: 0 | AK20: 0 | AL20: 0 | AM20: 0 | AN20: 0 | AO20: 0 | AP20: 0 | AQ20: 0 | AR20: 0 | AS20: 0
A21: 茨城県 | B21: 08217 | C21: 取手市 | D21: 34,180 | E21: 23,210 | F21: 6,829 | G21: 717 | H21: 343 | I21: 0 | J21: 0 | K21: 0 | L21: 5,769 | M21: 0 | N21: 0 | O21: =+資源化量内訳!Y21 -> 4,141 | P21: 27,627 | Q21: 23,210 | R21: 4,417 | S21: 388 | T21: 21 | U21: 0 | V21: 0 | W21: 0 | X21: 4,008 | Y21: 0 | Z21: 1,104 | AA21: 0 | AB21: 1,104 | AC21: 0 | AD21: 0 | AE21: 0 | AF21: 0 | AG21: 0 | AH21: 0 | AI21: 0 | AJ21: 0 | AK21: 0 | AL21: 0 | AM21: 0 | AN21: 0 | AO21: 0 | AP21: 0 | AQ21: 0 | AR21: 0 | AS21: 0
A22: 茨城県 | B22: 08219 | C22: 牛久市 | D22: 28,816 | E22: 23,433 | F22: 3,040 | G22: 0 | H22: 84 | I22: 0 | J22: 0 | K22: 40 | L22: 2,916 | M22: 0 | N22: 0 | O22: =+資源化量内訳!Y22 -> 2,343 | P22: 24,858 | Q22: 23,433 | R22: 1,425 | S22: 0 | T22: 0 | U22: 0 | V22: 0 | W22: 0 | X22: 1,425 | Y22: 0 | Z22: 1,694 | AA22: 0 | AB22: 1,694 | AC22: 0 | AD22: 0 | AE22: 0 | AF22: 0 | AG22: 0 | AH22: 0 | AI22: 0 | AJ22: 0 | AK22: 0 | AL22: 0 | AM22: 0 | AN22: 0 | AO22: 0 | AP22: 0 | AQ22: 0 | AR22: 0 | AS22: 0
A23: 茨城県 | B23: 08220 | C23: つくば市 | D23: 91,362 | E23: 71,254 | F23: 9,838 | G23: 4,660 | H23: 0 | I23: 0 | J23: 0 | K23: 0 | L23: 5,178 | M23: 0 | N23: 0 | O23: =+資源化量内訳!Y23 -> 10,270 | P23: 76,153 | Q23: 71,254 | R23: 4,899 | S23: 3,445 | T23: 0 | U23: 0 | V23: 0 | W23: 0 | X23: 1,454 | Y23: 0 | Z23: 11,390 | AA23: 0 | AB23: 10,892 | AC23: 498 | AD23: 498 | AE23: 0 | AF23: 0 | AG23: 0 | AH23: 0 | AI23: 0 | AJ23: 0 | AK23: 0 | AL23: 0 | AM23: 0 | AN23: 0 | AO23: 0 | AP23: 0 | AQ23: 0 | AR23: 0 | AS23: 0
A24: 茨城県 | B24: 08221 | C24: ひたちなか市 | D24: 53,588 | E24: 51,146 | F24: 2,102 | G24: 2,102 | H24: 0 | I24: 0 | J24: 0 | K24: 0 | L24: 0 | M24: 0 | N24: 0 | O24: =+資源化量内訳!Y24 -> 340 | P24: 51,146 | Q24: 51,146 | R24: 0 | S24: 0 | T24: 0 | U24: 0 | V24: 0 | W24: 0 | X24: 0 | Y24: 0 | Z24: 2,592 | AA24: 0 | AB24: 2,592 | AC24: 0 | AD24: 0 | AE24: 0 | AF24: 0 | AG24: 0 | AH24: 0 | AI24: 0 | AJ24: 0 | AK24: 0 | AL24: 0 | AM24: 0 | AN24: 0 | AO24: 0 | AP24: 0 | AQ24: 0 | AR24: 0 | AS24: 0
A25: 茨城県 | B25: 08222 | C25: 鹿嶋市 | D25: 24,400 | E25: 1,215 | F25: 22,772 | G25: 4,244 | H25: 0 | I25: 0 | J25: 0 | K25: 18,089 | L25: 439 | M25: 0 | N25: 0 | O25: =+資源化量内訳!Y25 -> 413 | P25: 2,691 | Q25: 1,215 | R25: 1,476 | S25: 1,476 | T25: 0 | U25: 0 | V25: 0 | W25: 0 | X25: 0 | Y25: 0 | Z25: 244 | AA25: 0 | AB25: 101 | AC25: 143 | AD25: 143 | AE25: 0 | AF25: 0 | AG25: 0 | AH25: 0 | AI25: 0 | AJ25: 0 | AK25: 0 | AL25: 0 | AM25: 0 | AN25: 0 | AO25: 0 | AP25: 0 | AQ25: 0 | AR25: 0 | AS25: 0
A26: 茨城県 | B26: 08223 | C26: 潮来市 | D26: 10,886 | E26: 7,882 | F26: 2,056 | G26: 793 | H26: 0 | I26: 0 | J26: 0 | K26: 0 | L26: 1,263 | M26: 0 | N26: 0 | O26: =+資源化量内訳!Y26 -> 948 | P26: 8,105 | Q26: 7,882 | R26: 223 | S26: 196 | T26: 0 | U26: 0 | V26: 0 | W26: 0 | X26: 27 | Y26: 0 | Z26: 440 | AA26: 0 | AB26: 0 | AC26: 440 | AD26: 440 | AE26: 0 | AF26: 0 | AG26: 0 | AH26: 0 | AI26: 0 | AJ26: 0 | AK26: 0 | AL26: 0 | AM26: 0 | AN26: 0 | AO26: 0 | AP26: 0 | AQ26: 0 | AR26: 0 | AS26: 0
A27: 茨城県 | B27: 08224 | C27: 守谷市 | D27: 18,738 | E27: 13,448 | F27: 4,208 | G27: 449 | H27: 490 | I27: 0 | J27: 0 | K27: 0 | L27: 3,269 | M27: 0 | N27: 0 | O27: =+資源化量内訳!Y27 -> 1,082 | P27: 16,009 | Q27: 13,448 | R27: 2,561 | S27: 243 | T27: 47 | U27: 0 | V27: 0 | W27: 0 | X27: 2,271 | Y27: 0 | Z27: 640 | AA27: 0 | AB27: 640 | AC27: 0 | AD27: 0 | AE27: 0 | AF27: 0 | AG27: 0 | AH27: 0 | AI27: 0 | AJ27: 0 | AK27: 0 | AL27: 0 | AM27: 0 | AN27: 0 | AO27: 0 | AP27: 0 | AQ27: 0 | AR27: 0 | AS27: 0
A28: 茨城県 | B28: 08225 | C28: 常陸大宮市 | D28: 14,193 | E28: 11,800 | F28: 2,393 | G28: 1,165 | H28: 0 | I28: 0 | J28: 0 | K28: 0 | L28: 1,228 | M28: 0 | N28: 0 | O28: =+資源化量内訳!Y28 -> 0 | P28: 12,300 | Q28: 11,800 | R28: 500 | S28: 500 | T28: 0 | U28: 0 | V28: 0 | W28: 0 | X28: 0 | Y28: 0 | Z28: 1,832 | AA28: 0 | AB28: 1,711 | AC28: 121 | AD28: 121 | AE28: 0 | AF28: 0 | AG28: 0 | AH28: 0 | AI28: 0 | AJ28: 0 | AK28: 0 | AL28: 0 | AM28: 0 | AN28: 0 | AO28: 0 | AP28: 0 | AQ28: 0 | AR28: 0 | AS28: 0
A29: 茨城県 | B29: 08226 | C29: 那珂市 | D29: 16,772 | E29: 14,532 | F29: 2,240 | G29: 979 | H29: 0 | I29: 0 | J29: 0 | K29: 0 | L29: 1,261 | M29: 0 | N29: 0 | O29: =+資源化量内訳!Y29 -> 0 | P29: 14,942 | Q29: 14,532 | R29: 410 | S29: 410 | T29: 0 | U29: 0 | V29: 0 | W29: 0 | X29: 0 | Y29: 0 | Z29: 2,198 | AA29: 0 | AB29: 2,109 | AC29: 89 | AD29: 89 | AE29: 0 | AF29: 0 | AG29: 0 | AH29: 0 | AI29: 0 | AJ29: 0 | AK29: 0 | AL29: 0 | AM29: 0 | AN29: 0 | AO29: 0 | AP29: 0 | AQ29: 0 | AR29: 0 | AS29: 0
A30: 茨城県 | B30: 08227 | C30: 筑西市 | D30: 32,264 | E30: 27,893 | F30: 1,986 | G30: 1,821 | H30: 0 | I30: 0 | J30: 0 | K30: 0 | L30: 165 | M30: 0 | N30: 0 | O30: =+資源化量内訳!Y30 -> 2,385 | P30: 29,155 | Q30: 27,893 | R30: 1,262 | S30: 1,262 | T30: 0 | U30: 0 | V30: 0 | W30: 0 | X30: 0 | Y30: 0 | Z30: 1,392 | AA30: 0 | AB30: 1,392 | AC30: 0 | AD30: 0 | AE30: 0 | AF30: 0 | AG30: 0 | AH30: 0 | AI30: 0 | AJ30: 0 | AK30: 0 | AL30: 0 | AM30: 0 | AN30: 0 | AO30: 0 | AP30: 0 | AQ30: 0 | AR30: 0 | AS30: 0
A31: 茨城県 | B31: 08228 | C31: 坂東市 | D31: 16,626 | E31: 12,945 | F31: 1,939 | G31: 1,136 | H31: 0 | I31: 0 | J31: 0 | K31: 0 | L31: 803 | M31: 0 | N31: 0 | O31: =+資源化量内訳!Y31 -> 1,742 | P31: 14,027 | Q31: 12,945 | R31: 1,082 | S31: 995 | T31: 0 | U31: 0 | V31: 0 | W31: 0 | X31: 87 | Y31: 0 | Z31: 748 | AA31: 0 | AB31: 748 | AC31: 0 | AD31: 0 | AE31: 0 | AF31: 0 | AG31: 0 | AH31: 0 | AI31: 0 | AJ31: 0 | AK31: 0 | AL31: 0 | AM31: 0 | AN31: 0 | AO31: 0 | AP31: 0 | AQ31: 0 | AR31: 0 | AS31: 0
A32: 茨城県 | B32: 08229 | C32: 稲敷市 | D32: 14,955 | E32: 11,121 | F32: 1,910 | G32: 1,352 | H32: 0 | I32: 0 | J32: 0 | K32: 0 | L32: 558 | M32: 0 | N32: 0 | O32: =+資源化量内訳!Y32 -> 1,924 | P32: 12,473 | Q32: 11,121 | R32: 1,352 | S32: 1,352 | T32: 0 | U32: 0 | V32: 0 | W32: 0 | X32: 0 | Y32: 0 | Z32: 1,910 | AA32: 0 | AB32: 1,757 | AC32: 153 | AD32: 0 | AE32: 0 | AF32: 0 | AG32: 0 | AH32: 0 | AI32: 153 | AJ32: 0 | AK32: 0 | AL32: 0 | AM32: 0 | AN32: 0 | AO32: 0 | AP32: 0 | AQ32: 0 | AR32: 0 | AS32: 0
A33: 茨城県 | B33: 08230 | C33: かすみがうら市 | D33: 16,602 | E33: 12,917 | F33: 2,060 | G33: 1,155 | H33: 377 | I33: 0 | J33: 0 | K33: 0 | L33: 528 | M33: 0 | N33: 0 | O33: =+資源化量内訳!Y33 -> 1,625 | P33: 13,578 | Q33: 12,917 | R33: 661 | S33: 559 | T33: 0 | U33: 0 | V33: 0 | W33: 0 | X33: 102 | Y33: 0 | Z33: 1,649 | AA33: 0 | AB33: 1,457 | AC33: 192 | AD33: 133 | AE33: 0 | AF33: 0 | AG33: 0 | AH33: 0 | AI33: 59 | AJ33: 0 | AK33: 0 | AL33: 0 | AM33: 0 | AN33: 0 | AO33: 0 | AP33: 0 | AQ33: 0 | AR33: 0 | AS33: 0
A34: 茨城県 | B34: 08231 | C34: 桜川市 | D34: 10,375 | E34: 10,270 | F34: 105 | G34: 0 | H34: 0 | I34: 0 | J34: 0 | K34: 0 | L34: 105 | M34: 0 | N34: 0 | O34: =+資源化量内訳!Y34 -> 0 | P34: 10,270 | Q34: 10,270 | R34: 0 | S34: 0 | T34: 0 | U34: 0 | V34: 0 | W34: 0 | X34: 0 | Y34: 0 | Z34: 528 | AA34: 0 | AB34: 528 | AC34: 0 | AD34: 0 | AE34: 0 | AF34: 0 | AG34: 0 | AH34: 0 | AI34: 0 | AJ34: 0 | AK34: 0 | AL34: 0 | AM34: 0 | AN34: 0 | AO34: 0 | AP34: 0 | AQ34: 0 | AR34: 0 | AS34: 0
A35: 茨城県 | B35: 08232 | C35: 神栖市 | D35: 36,614 | E35: 0 | F35: 27,078 | G35: 0 | H35: 0 | I35: 0 | J35: 0 | K35: 21,974 | L35: 5,104 | M35: 0 | N35: 0 | O35: =+資源化量内訳!Y35 -> 9,536 | P35: 829 | Q35: 0 | R35: 829 | S35: 0 | T35: 0 | U35: 0 | V35: 0 | W35: 0 | X35: 829 | Y35: 0 | Z35: 819 | AA35: 0 | AB35: 261 | AC35: 558 | AD35: 0 | AE35: 0 | AF35: 0 | AG35: 0 | AH35: 0 | AI35: 558 | AJ35: 0 | AK35: 0 | AL35: 0 | AM35: 0 | AN35: 0 | AO35: 0 | AP35: 0 | AQ35: 0 | AR35: 0 | AS35: 0
A36: 茨城県 | B36: 08233 | C36: 行方市 | D36: 10,661 | E36: 9,098 | F36: 1,250 | G36: 1,250 | H36: 0 | I36: 0 | J36: 0 | K36: 0 | L36: 0 | M36: 0 | N36: 0 | O36: =+資源化量内訳!Y36 -> 313 | P36: 9,261 | Q36: 9,098 | R36: 163 | S36: 163 | T36: 0 | U36: 0 | V36: 0 | W36: 0 | X36: 0 | Y36: 0 | Z36: 1,647 | AA36: 0 | AB36: 1,285 | AC36: 362 | AD36: 362 | AE36: 0 | AF36: 0 | AG36: 0 | AH36: 0 | AI36: 0 | AJ36: 0 | AK36: 0 | AL36: 0 | AM36: 0 | AN36: 0 | AO36: 0 | AP36: 0 | AQ36: 0 | AR36: 0 | AS36: 0
A37: 茨城県 | B37: 08234 | C37: 鉾田市 | D37: 12,210 | E37: 10,837 | F37: 1,068 | G37: 253 | H37: 0 | I37: 0 | J37: 0 | K37: 0 | L37: 815 | M37: 0 | N37: 0 | O37: =+資源化量内訳!Y37 -> 305 | P37: 10,869 | Q37: 10,837 | R37: 32 | S37: 32 | T37: 0 | U37: 0 | V37: 0 | W37: 0 | X37: 0 | Y37: 0 | Z37: 496 | AA37: 0 | AB37: 429 | AC37: 67 | AD37: 67 | AE37: 0 | AF37: 0 | AG37: 0 | AH37: 0 | AI37: 0 | AJ37: 0 | AK37: 0 | AL37: 0 | AM37: 0 | AN37: 0 | AO37: 0 | AP37: 0 | AQ37: 0 | AR37: 0 | AS37: 0
A38: 茨城県 | B38: 08235 | C38: つくばみらい市 | D38: 12,875 | E38: 9,332 | F38: 2,940 | G38: 252 | H38: 170 | I38: 0 | J38: 0 | K38: 0 | L38: 2,518 | M38: 0 | N38: 0 | O38: =+資源化量内訳!Y38 -> 603 | P38: 11,232 | Q38: 9,332 | R38: 1,900 | S38: 136 | T38: 17 | U38: 0 | V38: 0 | W38: 0 | X38: 1,747 | Y38: 0 | Z38: 444 | AA38: 0 | AB38: 444 | AC38: 0 | AD38: 0 | AE38: 0 | AF38: 0 | AG38: 0 | AH38: 0 | AI38: 0 | AJ38: 0 | AK38: 0 | AL38: 0 | AM38: 0 | AN38: 0 | AO38: 0 | AP38: 0 | AQ38: 0 | AR38: 0 | AS38: 0
A39: 茨城県 | B39: 08236 | C39: 小美玉市 | D39: 17,698 | E39: 14,964 | F39: 1,385 | G39: 845 | H39: 0 | I39: 0 | J39: 0 | K39: 0 | L39: 540 | M39: 0 | N39: 0 | O39: =+資源化量内訳!Y39 -> 1,349 | P39: 14,964 | Q39: 14,964 | R39: 0 | S39: 0 | T39: 0 | U39: 0 | V39: 0 | W39: 0 | X39: 0 | Y39: 0 | Z39: 1,004 | AA39: 0 | AB39: 906 | AC39: 98 | AD39: 98 | AE39: 0 | AF39: 0 | AG39: 0 | AH39: 0 | AI39: 0 | AJ39: 0 | AK39: 20 | AL39: 20 | AM39: 0 | AN39: 0 | AO39: 0 | AP39: 0 | AQ39: 0 | AR39: 0 | AS39: 0
A40: 茨城県 | B40: 08302 | C40: 茨城町 | D40: 10,536 | E40: 8,750 | F40: 663 | G40: 256 | H40: 0 | I40: 0 | J40: 0 | K40: 0 | L40: 407 | M40: 0 | N40: 0 | O40: =+資源化量内訳!Y40 -> 1,123 | P40: 8,750 | Q40: 8,750 | R40: 0 | S40: 0 | T40: 0 | U40: 0 | V40: 0 | W40: 0 | X40: 0 | Y40: 0 | Z40: 1,231 | AA40: 0 | AB40: 1,107 | AC40: 124 | AD40: 124 | AE40: 0 | AF40: 0 | AG40: 0 | AH40: 0 | AI40: 0 | AJ40: 0 | AK40: 25 | AL40: 25 | AM40: 0 | AN40: 0 | AO40: 0 | AP40: 0 | AQ40: 0 | AR40: 0 | AS40: 0
A41: 茨城県 | B41: 08309 | C41: 大洗町 | D41: 9,990 | E41: 8,812 | F41: 332 | G41: 332 | H41: 0 | I41: 0 | J41: 0 | K41: 0 | L41: 0 | M41: 0 | N41: 0 | O41: =+資源化量内訳!Y41 -> 846 | P41: 8,851 | Q41: 8,812 | R41: 39 | S41: 39 | T41: 0 | U41: 0 | V41: 0 | W41: 0 | X41: 0 | Y41: 0 | Z41: 1,411 | AA41: 0 | AB41: 1,323 | AC41: 88 | AD41: 88 | AE41: 0 | AF41: 0 | AG41: 0 | AH41: 0 | AI41: 0 | AJ41: 0 | AK41: 0 | AL41: 0 | AM41: 0 | AN41: 0 | AO41: 0 | AP41: 0 | AQ41: 0 | AR41: 0 | AS41: 0
A42: 茨城県 | B42: 08310 | C42: 城里町 | D42: 5,630 | E42: 5,027 | F42: 603 | G42: 303 | H42: 0 | I42: 0 | J42: 0 | K42: 0 | L42: 300 | M42: 0 | N42: 0 | O42: =+資源化量内訳!Y42 -> 0 | P42: 5,135 | Q42: 5,027 | R42: 108 | S42: 93 | T42: 0 | U42: 0 | V42: 0 | W42: 0 | X42: 15 | Y42: 0 | Z42: 569 | AA42: 0 | AB42: 531 | AC42: 38 | AD42: 31 | AE42: 0 | AF42: 0 | AG42: 0 | AH42: 0 | AI42: 7 | AJ42: 0 | AK42: 0 | AL42: 0 | AM42: 0 | AN42: 0 | AO42: 0 | AP42: 0 | AQ42: 0 | AR42: 0 | AS42: 0
A43: 茨城県 | B43: 08341 | C43: 東海村 | D43: 13,649 | E43: 9,546 | F43: 1,808 | G43: 755 | H43: 382 | I43: 0 | J43: 0 | K43: 0 | L43: 671 | M43: 0 | N43: 0 | O43: =+資源化量内訳!Y43 -> 2,295 | P43: 9,546 | Q43: 9,546 | R43: 0 | S43: 0 | T43: 0 | U43: 0 | V43: 0 | W43: 0 | X43: 0 | Y43: 0 | Z43: 569 | AA43: 0 | AB43: 420 | AC43: 149 | AD43: 149 | AE43: 0 | AF43: 0 | AG43: 0 | AH43: 0 | AI43: 0 | AJ43: 0 | AK43: 0 | AL43: 0 | AM43: 0 | AN43: 0 | AO43: 0 | AP43: 0 | AQ43: 0 | AR43: 0 | AS43: 0
A44: 茨城県 | B44: 08364 | C44: 大子町 | D44: 6,713 | E44: 5,357 | F44: 264 | G44: 0 | H44: 0 | I44: 0 | J44: 0 | K44: 0 | L44: 264 | M44: 0 | N44: 0 | O44: =+資源化量内訳!Y44 -> 1,092 | P44: 5,357 | Q44: 5,357 | R44: 0 | S44: 0 | T44: 0 | U44: 0 | V44: 0 | W44: 0 | X44: 0 | Y44: 0 | Z44: 508 | AA44: 0 | AB44: 508 | AC44: 0 | AD44: 0 | AE44: 0 | AF44: 0 | AG44: 0 | AH44: 0 | AI44: 0 | AJ44: 0 | AK44: 0 | AL44: 0 | AM44: 0 | AN44: 0 | AO44: 0 | AP44: 0 | AQ44: 0 | AR44: 0 | AS44: 0
A45: 茨城県 | B45: 08442 | C45: 美浦村 | D45: 5,935 | E45: 4,184 | F45: 750 | G45: 510 | H45: 0 | I45: 0 | J45: 0 | K45: 0 | L45: 240 | M45: 0 | N45: 0 | O45: =+資源化量内訳!Y45 -> 1,001 | P45: 4,694 | Q45: 4,184 | R45: 510 | S45: 510 | T45: 0 | U45: 0 | V45: 0 | W45: 0 | X45: 0 | Y45: 0 | Z45: 750 | AA45: 0 | AB45: 703 | AC45: 47 | AD45: 0 | AE45: 0 | AF45: 0 | AG45: 0 | AH45: 0 | AI45: 47 | AJ45: 0 | AK45: 0 | AL45: 0 | AM45: 0 | AN45: 0 | AO45: 0 | AP45: 0 | AQ45: 0 | AR45: 0 | AS45: 0
A46: 茨城県 | B46: 08443 | C46: 阿見町 | D46: 18,016 | E46: 15,513 | F46: 1,790 | G46: 1,669 | H46: 0 | I46: 0 | J46: 0 | K46: 0 | L46: 121 | M46: 0 | N46: 0 | O46: =+資源化量内訳!Y46 -> 713 | P46: 15,959 | Q46: 15,513 | R46: 446 | S46: 430 | T46: 0 | U46: 0 | V46: 0 | W46: 0 | X46: 16 | Y46: 0 | Z46: 2,484 | AA46: 0 | AB46: 2,132 | AC46: 352 | AD46: 352 | AE46: 0 | AF46: 0 | AG46: 0 | AH46: 0 | AI46: 0 | AJ46: 0 | AK46: 0 | AL46: 0 | AM46: 0 | AN46: 0 | AO46: 0 | AP46: 0 | AQ46: 0 | AR46: 0 | AS46: 0
A47: 茨城県 | B47: 08447 | C47: 河内町 | D47: 3,019 | E47: 2,292 | F47: 201 | G47: 147 | H47: 0 | I47: 0 | J47: 0 | K47: 0 | L47: 54 | M47: 0 | N47: 0 | O47: =+資源化量内訳!Y47 -> 526 | P47: 2,312 | Q47: 2,292 | R47: 20 | S47: 20 | T47: 0 | U47: 0 | V47: 0 | W47: 0 | X47: 0 | Y47: 0 | Z47: 337 | AA47: 0 | AB47: 270 | AC47: 67 | AD47: 67 | AE47: 0 | AF47: 0 | AG47: 0 | AH47: 0 | AI47: 0 | AJ47: 0 | AK47: 0 | AL47: 0 | AM47: 0 | AN47: 0 | AO47: 0 | AP47: 0 | AQ47: 0 | AR47: 0 | AS47: 0
A48: 茨城県 | B48: 08521 | C48: 八千代町 | D48: 5,567 | E48: 4,621 | F48: 308 | G48: 300 | H48: 0 | I48: 0 | J48: 0 | K48: 0 | L48: 8 | M48: 0 | N48: 0 | O48: =+資源化量内訳!Y48 -> 638 | P48: 4,696 | Q48: 4,621 | R48: 75 | S48: 75 | T48: 0 | U48: 0 | V48: 0 | W48: 0 | X48: 0 | Y48: 0 | Z48: 842 | AA48: 0 | AB48: 717 | AC48: 125 | AD48: 125 | AE48: 0 | AF48: 0 | AG48: 0 | AH48: 0 | AI48: 0 | AJ48: 0 | AK48: 0 | AL48: 0 | AM48: 0 | AN48: 0 | AO48: 0 | AP48: 0 | AQ48: 0 | AR48: 0 | AS48: 0
A49: 茨城県 | B49: 08542 | C49: 五霞町 | D49: 3,393 | E49: 2,960 | F49: 352 | G49: 352 | H49: 0 | I49: 0 | J49: 0 | K49: 0 | L49: 0 | M49: 0 | N49: 0 | O49: =+資源化量内訳!Y49 -> 81 | P49: 3,160 | Q49: 2,960 | R49: 200 | S49: 200 | T49: 0 | U49: 0 | V49: 0 | W49: 0 | X49: 0 | Y49: 0 | Z49: 166 | AA49: 0 | AB49: 166 | AC49: 0 | AD49: 0 | AE49: 0 | AF49: 0 | AG49: 0 | AH49: 0 | AI49: 0 | AJ49: 0 | AK49: 0 | AL49: 0 | AM49: 0 | AN49: 0 | AO49: 0 | AP49: 0 | AQ49: 0 | AR49: 0 | AS49: 0
A50: 茨城県 | B50: 08546 | C50: 境町 | D50: 8,237 | E50: 6,703 | F50: 915 | G50: 915 | H50: 0 | I50: 0 | J50: 0 | K50: 0 | L50: 0 | M50: 0 | N50: 0 | O50: =+資源化量内訳!Y50 -> 619 | P50: 7,223 | Q50: 6,703 | R50: 520 | S50: 520 | T50: 0 | U50: 0 | V50: 0 | W50: 0 | X50: 0 | Y50: 0 | Z50: 383 | AA50: 0 | AB50: 383 | AC50: 0 | AD50: 0 | AE50: 0 | AF50: 0 | AG50: 0 | AH50: 0 | AI50: 0 | AJ50: 0 | AK50: 0 | AL50: 0 | AM50: 0 | AN50: 0 | AO50: 0 | AP50: 0 | AQ50: 0 | AR50: 0 | AS50: 0
A51: 茨城県 | B51: 08564 | C51: 利根町 | D51: 4,841 | E51: 4,135 | F51: 344 | G51: 279 | H51: 0 | I51: 0 | J51: 0 | K51: 0 | L51: 65 | M51: 0 | N51: 0 | O51: =+資源化量内訳!Y51 -> 362 | P51: 4,174 | Q51: 4,135 | R51: 39 | S51: 39 | T51: 0 | U51: 0 | V51: 0 | W51: 0 | X51: 0 | Y51: 0 | Z51: 615 | AA51: 0 | AB51: 489 | AC51: 126 | AD51: 126 | AE51: 0 | AF51: 0 | AG51: 0 | AH51: 0 | AI51: 0 | AJ51: 0 | AK51: 0 | AL51: 0 | AM51: 0 | AN51: 0 | AO51: 0 | AP51: 0 | AQ51: 0 | AR51: 0 | AS51: 0

Sheet 資源化量内訳
A1: ごみ資源化の状況（平成28年度実績）
A2: 都道府県名 | B2: 地方公共団体コード | C2: 市区町村名 | D2: 資源化量 (直接資源化量+中間処理後再生利用量+集団回収量) | Y2: 直接資源化量 (紙類+金属類+ガラス類+ペットボトル+容器包装プラスチック+プラスチック類+布類+廃食用油+その他) | AT2: 中間処理後再生利用量 (紙類+金属類+ガラス類+ペットボトル+容器包装プラスチック+プラスチック類+布類+肥料+飼料+溶融スラグ+固形燃料+燃料+焼却灰・飛灰+セメント直接投入+廃食用油+その他) | BO2: 集団回収量 (紙類+金属類+ガラス類+ペットボトル+容器包装プラスチック+プラスチック類+布類+廃食用油+その他) | CJ2: 最終処分場の有無
D3: 合計 | E3: 紙類(02、03を除く) | F3: 紙パック | G3: 紙製容器包装 | H3: 金属類 | I3: ガラス類 | J3: ペットボトル | K3: 白色トレイ | L3: 容器包装プラスチック(07を除く) | M3: プラスチック類(07,08を除く) | N3: 布類 | O3: 肥料 | P3: 飼料 | Q3: 溶融スラグ | R3: 固形燃料 （RDF,RPF） | S3: 燃料 （14を除く） | T3: 焼却灰・飛灰のセメント原料化 | U3: セメント等への直接投入 | V3: 飛灰の山元還元 | W3: 廃食用油（BDF) | X3: その他 | Y3: 合計 | Z3: 紙類(02、03を除く) | AA3: 紙パック | AB3: 紙製容器包装 | AC3: 金属類 | AD3: ガラス類 | AE3: ペットボトル | AF3: 白色トレイ | AG3: 容器包装プラスチック(07を除く) | AH3: プラスチック類(07,08を除く) | AI3: 布類 | AJ3: 肥料 | AK3: 飼料 | AL3: 溶融スラグ | AM3: 固形燃料 （RDF,RPF） | AN3: 燃料 （14を除く） | AO3: 焼却灰・飛灰のセメント原料化 | AP3: セメント等への直接投入 | AQ3: 飛灰の山元還元 | AR3: 廃食用油（BDF) | AS3: その他 | AT3: 合計 | AU3: 紙類(02、03を除く) | AV3: 紙パック | AW3: 紙製容器包装 | AX3: 金属類 | AY3: ガラス類 | AZ3: ペットボトル | BA3: 白色トレイ | BB3: 容器包装プラスチック(07を除く) | BC3: プラスチック類(07,08を除く) | BD3: 布類 | BE3: 肥料 | BF3: 飼料 | BG3: 溶融スラグ | BH3: 固形燃料 （RDF,RPF） | BI3: 燃料 （14を除く） | BJ3: 焼却灰・飛灰のセメント原料化 | BK3: セメント等への直接投入 | BL3: 飛灰の山元還元 | BM3: 廃食用油（BDF) | BN3: その他 | BO3: 合計 | BP3: 紙類(02、03を除く) | BQ3: 紙パック | BR3: 紙製容器包装 | BS3: 金属類 | BT3: ガラス類 | BU3: ペットボトル | BV3: 白色トレイ | BW3: 容器包装プラスチック(07を除く) | BX3: プラスチック類(07,08を除く) | BY3: 布類 | BZ3: 肥料 | CA3: 飼料 | CB3: 溶融スラグ | CC3: 固形燃料 （RDF,RPF） | CD3: 燃料 （14を除く） | CE3: 焼却灰・飛灰のセメント原料化 | CF3: セメント等への直接投入 | CG3: 飛灰の山元還元 | CH3: 廃食用油（BDF) | CI3: その他
D6: （ｔ） | E6: （ｔ） | F6: （ｔ） | G6: （ｔ） | H6: （ｔ） | I6: （ｔ） | J6: （ｔ） | K6: （ｔ） | L6: （ｔ） | M6: （ｔ） | N6: （ｔ） | O6: （ｔ） | P6: （ｔ） | Q6: （ｔ） | R6: （ｔ） | S6: （ｔ） | T6: （ｔ） | U6: （ｔ） | V6: （ｔ） | W6: （ｔ） | X6: （ｔ） | Y6: （ｔ） | Z6: （ｔ） | AA6: （ｔ） | AB6: （ｔ） | AC6: （ｔ） | AD6: （ｔ） | AE6: （ｔ） | AF6: （ｔ） | AG6: （ｔ） | AH6: （ｔ） | AI6: （ｔ） | AJ6: （ｔ） | AK6: （ｔ） | AL6: （ｔ） | AM6: （ｔ） | AN6: （ｔ） | AO6: （ｔ） | AP6: （ｔ） | AQ6: （ｔ） | AR6: （ｔ） | AS6: （ｔ） | AT6: （ｔ） | AU6: （ｔ） | AV6: （ｔ） | AW6: （ｔ） | AX6: （ｔ） | AY6: （ｔ） | AZ6: （ｔ） | BA6: （ｔ） | BB6: （ｔ） | BC6: （ｔ） | BD6: （ｔ） | BE6: （ｔ） | BF6: （ｔ） | BG6: （ｔ） | BH6: （ｔ） | BI6: （ｔ） | BJ6: （ｔ） | BK6: （ｔ） | BL6: （ｔ） | BM6: （ｔ） | BN6: （ｔ） | BO6: （ｔ） | BP6: （ｔ） | BQ6: （ｔ） | BR6: （ｔ） | BS6: （ｔ） | BT6: （ｔ） | BU6: （ｔ） | BV6: （ｔ） | BW6: （ｔ） | BX6: （ｔ） | BY6: （ｔ） | BZ6: （ｔ） | CA6: （ｔ） | CB6: （ｔ） | CC6: （ｔ） | CD6: （ｔ） | CE6: （ｔ） | CF6: （ｔ） | CG6: （ｔ） | CH6: （ｔ） | CI6: （ｔ）
A7: =ごみ処理概要!A7 -> 茨城県 | B7: =ごみ処理概要!B7 -> 08000 | C7: 合計 | D7: =SUM(Y7,AT7,BO7) -> 238,505 | E7: 108,550 | F7: 552 | G7: 1,335 | H7: 26,398 | I7: 18,674 | J7: 6,648 | K7: 101 | L7: 2,782 | M7: 612 | N7: 3,253 | O7: 874 | P7: 16 | Q7: 26,784 | R7: 25,147 | S7: 0 | T7: 0 | U7: 0 | V7: 0 | W7: 132 | X7: 16,647 | Y7: =SUM(Z7:AS7) -> 91,541 | Z7: =SUM(Z$8:Z$1000) -> 71,752 | AA7: 185 | AB7: 1,038 | AC7: 5,065 | AD7: 3,156 | AE7: 1,703 | AF7: 15 | AG7: 219 | AH7: 0 | AI7: 2,209 | AJ7: - | AK7: - | AL7: - | AM7: - | AN7: - | AO7: - | AP7: - | AQ7: - | AR7: 53 | AS7: 6,146 | AT7: =施設資源化量内訳!D7 -> 115,040 | AU7: =施設資源化量内訳!E7 -> 9,710 | AV7: =施設資源化量内訳!F7 -> 315 | AW7: =施設資源化量内訳!G7 -> 53 | AX7: =施設資源化量内訳!H7 -> 19,810 | AY7: =施設資源化量内訳!I7 -> 13,918 | AZ7: =施設資源化量内訳!J7 -> 4,293 | BA7: =施設資源化量内訳!K7 -> 70 | BB7: =施設資源化量内訳!L7 -> 2,210 | BC7: =施設資源化量内訳!M7 -> 611 | BD7: =施設資源化量内訳!N7 -> 672 | BE7: =施設資源化量内訳!O7 -> 874 | BF7: =施設資源化量内訳!P7 -> 16 | BG7: =施設資源化量内訳!Q7 -> 26,784 | BH7: =施設資源化量内訳!R7 -> 25,147 | BI7: =施設資源化量内訳!S7 -> 0 | BJ7: =施設資源化量内訳!T7 -> 0 | BK7: =施設資源化量内訳!U7 -> 0 | BL7: =施設資源化量内訳!V7 -> 0 | BM7: =施設資源化量内訳!W7 -> 78 | BN7: =施設資源化量内訳!X7 -> 10,479 | BO7: =SUM(BP7:CI7) -> 31,924 | BP7: =SUM(BP$8:BP$1000) -> 27,088 | BQ7: 52 | BR7: 244 | BS7: 1,523 | BT7: 1,600 | BU7: 652 | BV7: 16 | BW7: 353 | BX7: 1 | BY7: 372 | BZ7: - | CA7: - | CB7: - | CC7: - | CD7: - | CE7: - | CF7: - | CG7: - | CH7: 1 | CI7: 22 | CJ7: =+COUNTIF(CJ$8:CJ$1000,"有る") -> 22
A8: 茨城県 | B8: 08201 | C8: 水戸市 | D8: =SUM(Y8,AT8,BO8) -> 22,276 | E8: =SUM(Z8,AU8,BP8) -> 14,663 | F8: =SUM(AA8,AV8,BQ8) -> 9 | G8: =SUM(AB8,AW8,BR8) -> 0 | H8: =SUM(AC8,AX8,BS8) -> 2,232 | I8: =SUM(AD8,AY8,BT8) -> 1,420 | J8: =SUM(AE8,AZ8,BU8) -> 614 | K8: =SUM(AF8,BA8,BV8) -> 0 | L8: =SUM(AG8,BB8,BW8) -> 0 | M8: =SUM(AH8,BC8,BX8) -> 0 | N8: =SUM(AI8,BD8,BY8) -> 78 | O8: =SUM(AJ8,BE8,BZ8) -> 0 | P8: =SUM(AK8,BF8,CA8) -> 0 | Q8: =SUM(AL8,BG8,CB8) -> 0 | R8: =SUM(AM8,BH8,CC8) -> 0 | S8: =SUM(AN8,BI8,CD8) -> 0 | T8: =SUM(AO8,BJ8,CE8) -> 0 | U8: =SUM(AP8,BK8,CF8) -> 0 | V8: =SUM(AQ8,BL8,CG8) -> 0 | W8: =SUM(AR8,BM8,CH8) -> 0 | X8: =SUM(AS8,BN8,CI8) -> 3,260 | Y8: 12,362 | Z8: 9,007 | AA8: 0 | AB8: 0 | AC8: 469 | AD8: 13 | AE8: 397 | AF8: 0 | AG8: 0 | AH8: 0 | AI8: 0 | AJ8: - | AK8: - | AL8: - | AM8: - | AN8: - | AO8: - | AP8: - | AQ8: - | AR8: 0 | AS8: 2,476 | AT8: =施設資源化量内訳!D8 -> 5,381 | AU8: =施設資源化量内訳!E8 -> 2,171 | AV8: =施設資源化量内訳!F8 -> 1 | AW8: =施設資源化量内訳!G8 -> 0 | AX8: =施設資源化量内訳!H8 -> 1,417 | AY8: =施設資源化量内訳!I8 -> 849 | AZ8: =施設資源化量内訳!J8 -> 100 | BA8: =施設資源化量内訳!K8 -> 0 | BB8: =施設資源化量内訳!L8 -> 0 | BC8: =施設資源化量内訳!M8 -> 0 | BD8: =施設資源化量内訳!N8 -> 59 | BE8: =施設資源化量内訳!O8 -> 0 | BF8: =施設資源化量内訳!P8 -> 0 | BG8: =施設資源化量内訳!Q8 -> 0 | BH8: =施設資源化量内訳!R8 -> 0 | BI8: =施設資源化量内訳!S8 -> 0 | BJ8: =施設資源化量内訳!T8 -> 0 | BK8: =施設資源化量内訳!U8 -> 0 | BL8: =施設資源化量内訳!V8 -> 0 | BM8: =施設資源化量内訳!W8 -> 0 | BN8: =施設資源化量内訳!X8 -> 784 | BO8: 4,533 | BP8: 3,485 | BQ8: 8 | BR8: 0 | BS8: 346 | BT8: 558 | BU8: 117 | BV8: 0 | BW8: 0 | BX8: 0 | BY8: 19 | BZ8: - | CA8: - | CB8: - | CC8: - | CD8: - | CE8: - | CF8: - | CG8: - | CH8: 0 | CI8: 0 | CJ8: 有る
A9: 茨城県 | B9: 08202 | C9: 日立市 | D9: 12,973 | E9: 4,680 | F9: 50 | G9: 0 | H9: 1,315 | I9: 1,162 | J9: 461 | K9: 52 | L9: 64 | M9: 0 | N9: 240 | O9: 0 | P9: 0 | Q9: 3,906 | R9: 0 | S9: 0 | T9: 0 | U9: 0 | V9: 0 | W9: 22 | X9: 1,021 | Y9: 2,425 | Z9: 2,024 | AA9: 5 | AB9: 0 | AC9: 114 | AD9: 6 | AE9: 104 | AF9: 0 | AG9: 0 | AH9: 0 | AI9: 172 | AJ9: - | AK9: - | AL9: - | AM9: - | AN9: - | AO9: - | AP9: - | AQ9: - | AR9: 0 | AS9: 0 | AT9: =施設資源化量内訳!D9 -> 10,367 | AU9: =施設資源化量内訳!E9 -> 2,483 | AV9: =施設資源化量内訳!F9 -> 45 | AW9: =施設資源化量内訳!G9 -> 0 | AX9: =施設資源化量内訳!H9 -> 1,196 | AY9: =施設資源化量内訳!I9 -> 1,155 | AZ9: =施設資源化量内訳!J9 -> 356 | BA9: =施設資源化量内訳!K9 -> 52 | BB9: =施設資源化量内訳!L9 -> 64 | BC9: =施設資源化量内訳!M9 -> 0 | BD9: =施設資源化量内訳!N9 -> 67 | BE9: =施設資源化量内訳!O9 -> 0 | BF9: =施設資源化量内訳!P9 -> 0 | BG9: =施設資源化量内訳!Q9 -> 3,906 | BH9: =施設資源化量内訳!R9 -> 0 | BI9: =施設資源化量内訳!S9 -> 0 | BJ9: =施設資源化量内訳!T9 -> 0 | BK9: =施設資源化量内訳!U9 -> 0 | BL9: =施設資源化量内訳!V9 -> 0 | BM9: =施設資源化量内訳!W9 -> 22 | BN9: =施設資源化量内訳!X9 -> 1,021 | BO9: 181 | BP9: 173 | BQ9: 0 | BR9: 0 | BS9: 5 | BT9: 1 | BU9: 1 | BV9: 0 | BW9: 0 | BX9: 0 | BY9: 1 | BZ9: - | CA9: - | CB9: - | CC9: - | CD9: - | CE9: - | CF9: - | CG9: - | CH9: 0 | CI9: 0 | CJ9: 有る
A10: 茨城県 | B10: 08203 | C10: 土浦市 | D10: 16,984 | E10: 8,578 | F10: 0 | G10: 0 | H10: 1,332 | I10: 745 | J10: 267 | K10: 0 | L10: 789 | M10: 0 | N10: 218 | O10: 0 | P10: 0 | Q10: 57 | R10: 0 | S10: 0 | T10: 0 | U10: 0 | V10: 0 | W10: 21 | X10: 4,977 | Y10: 6,060 | Z10: 5,921 | AA10: 0 | AB10: 0 | AC10: 131 | AD10: 0 | AE10: 0 | AF10: 0 | AG10: 0 | AH10: 0 | AI10: 8 | AJ10: - | AK10: - | AL10: - | AM10: - | AN10: - | AO10: - | AP10: - | AQ10: - | AR10: 0 | AS10: 0 | AT10: =施設資源化量内訳!D10 -> 8,271 | AU10: =施設資源化量内訳!E10 -> 95 | AV10: =施設資源化量内訳!F10 -> 0 | AW10: =施設資源化量内訳!G10 -> 0 | AX10: =施設資源化量内訳!H10 -> 1,194 | AY10: =施設資源化量内訳!I10 -> 737 | AZ10: =施設資源化量内訳!J10 -> 267 | BA10: =施設資源化量内訳!K10 -> 0 | BB10: =施設資源化量内訳!L10 -> 789 | BC10: =施設資源化量内訳!M10 -> 0 | BD10: =施設資源化量内訳!N10 -> 134 | BE10: =施設資源化量内訳!O10 -> 0 | BF10: =施設資源化量内訳!P10 -> 0 | BG10: =施設資源化量内訳!Q10 -> 57 | BH10: =施設資源化量内訳!R10 -> 0 | BI10: =施設資源化量内訳!S10 -> 0 | BJ10: =施設資源化量内訳!T10 -> 0 | BK10: =施設資源化量内訳!U10 -> 0 | BL10: =施設資源化量内訳!V10 -> 0 | BM10: =施設資源化量内訳!W10 -> 21 | BN10: =施設資源化量内訳!X10 -> 4,977 | BO10: 2,653 | BP10: 2,562 | BQ10: 0 | BR10: 0 | BS10: 7 | BT10: 8 | BU10: 0 | BV10: 0 | BW10: 0 | BX10: 0 | BY10: 76 | BZ10: - | CA10: - | CB10: - | CC10: - | CD10: - | CE10: - | CF10: - | CG10: - | CH10: 0 | CI10: 0 | CJ10: 有る
A11: 茨城県 | B11: 08204 | C11: 古河市 | D11: 8,289 | E11: 3,587 | F11: 0 | G11: 0 | H11: 1,276 | I11: 989 | J11: 496 | K11: 0 | L11: 702 | M11: 0 | N11: 111 | O11: 0 | P11: 0 | Q11: 1,128 | R11: 0 | S11: 0 | T11: 0 | U11: 0 | V11: 0 | W11: 0 | X11: 0 | Y11: 1,612 | Z11: 1,504 | AA11: 0 | AB11: 0 | AC11: 0 | AD11: 0 | AE11: 0 | AF11: 0 | AG11: 0 | AH11: 0 | AI11: 108 | AJ11: - | AK11: - | AL11: - | AM11: - | AN11: - | AO11: - | AP11: - | AQ11: - | AR11: 0 | AS11: 0 | AT11: =施設資源化量内訳!D11 -> 4,397 | AU11: =施設資源化量内訳!E11 -> 13 | AV11: =施設資源化量内訳!F11 -> 0 | AW11: =施設資源化量内訳!G11 -> 0 | AX11: =施設資源化量内訳!H11 -> 1,077 | AY11: =施設資源化量内訳!I11 -> 982 | AZ11: =施設資源化量内訳!J11 -> 495 | BA11: =施設資源化量内訳!K11 -> 0 | BB11: =施設資源化量内訳!L11 -> 702 | BC11: =施設資源化量内訳!M11 -> 0 | BD11: =施設資源化量内訳!N11 -> 0 | BE11: =施設資源化量内訳!O11 -> 0 | BF11: =施設資源化量内訳!P11 -> 0 | BG11: =施設資源化量内訳!Q11 -> 1,128 | BH11: =施設資源化量内訳!R11 -> 0 | BI11: =施設資源化量内訳!S11 -> 0 | BJ11: =施設資源化量内訳!T11 -> 0 | BK11: =施設資源化量内訳!U11 -> 0 | BL11: =施設資源化量内訳!V11 -> 0 | BM11: =施設資源化量内訳!W11 -> 0 | BN11: =施設資源化量内訳!X11 -> 0 | BO11: 2,280 | BP11: 2,070 | BQ11: 0 | BR11: 0 | BS11: 199 | BT11: 7 | BU11: 1 | BV11: 0 | BW11: 0 | BX11: 0 | BY11: 3 | BZ11: - | CA11: - | CB11: - | CC11: - | CD11: - | CE11: - | CF11: - | CG11: - | CH11: 0 | CI11: 0 | CJ11: 有る
A12: 茨城県 | B12: 08205 | C12: 石岡市 | D12: 8,797 | E12: 4,559 | F12: 0 | G12: 0 | H12: 1,004 | I12: 609 | J12: 140 | K12: 0 | L12: 9 | M12: 0 | N12: 41 | O12: 0 | P12: 0 | Q12: 2,250 | R12: 0 | S12: 0 | T12: 0 | U12: 0 | V12: 0 | W12: 0 | X12: 185 | Y12: 4,304 | Z12: 3,783 | AA12: 0 | AB12: 0 | AC12: 383 | AD12: 28 | AE12: 38 | AF12: 0 | AG12: 0 | AH12: 0 | AI12: 31 | AJ12: - | AK12: - | AL12: - | AM12: - | AN12: - | AO12: - | AP12: - | AQ12: - | AR12: 0 | AS12: 41 | AT12: =施設資源化量内訳!D12 -> 4,118 | AU12: =施設資源化量内訳!E12 -> 443 | AV12: =施設資源化量内訳!F12 -> 0 | AW12: =施設資源化量内訳!G12 -> 0 | AX12: =施設資源化量内訳!H12 -> 597 | AY12: =施設資源化量内訳!I12 -> 568 | AZ12: =施設資源化量内訳!J12 -> 102 | BA12: =施設資源化量内訳!K12 -> 0 | BB12: =施設資源化量内訳!L12 -> 9 | BC12: =施設資源化量内訳!M12 -> 0 | BD12: =施設資源化量内訳!N12 -> 5 | BE12: =施設資源化量内訳!O12 -> 0 | BF12: =施設資源化量内訳!P12 -> 0 | BG12: =施設資源化量内訳!Q12 -> 2,250 | BH12: =施設資源化量内訳!R12 -> 0 | BI12: =施設資源化量内訳!S12 -> 0 | BJ12: =施設資源化量内訳!T12 -> 0 | BK12: =施設資源化量内訳!U12 -> 0 | BL12: =施設資源化量内訳!V12 -> 0 | BM12: =施設資源化量内訳!W12 -> 0 | BN12: =施設資源化量内訳!X12 -> 144 | BO12: 375 | BP12: 333 | BQ12: 0 | BR12: 0 | BS12: 24 | BT12: 13 | BU12: 0 | BV12: 0 | BW12: 0 | BX12: 0 | BY12: 5 | BZ12: - | CA12: - | CB12: - | CC12: - | CD12: - | CE12: - | CF12: - | CG12: - | CH12: 0 | CI12: 0 | CJ12: 無い
A13: 茨城県 | B13: 08207 | C13: 結城市 | D13: 3,380 | E13: 866 | F13: 8 | G13: 112 | H13: 118 | I13: 289 | J13: 122 | K13: 1 | L13: 10 | M13: 0 | N13: 91 | O13: 0 | P13: 0 | Q13: 1,356 | R13: 0 | S13: 0 | T13: 0 | U13: 0 | V13: 0 | W13: 0 | X13: 407 | Y13: 1,617 | Z13: 866 | AA13: 8 | AB13: 112 | AC13: 118 | AD13: 289 | AE13: 122 | AF13: 1 | AG13: 10 | AH13: 0 | AI13: 91 | AJ13: - | AK13: - | AL13: - | AM13: - | AN13: - | AO13: - | AP13: - | AQ13: - | AR13: 0 | AS13: 0 | AT13: =施設資源化量内訳!D13 -> 1,763 | AU13: =施設資源化量内訳!E13 -> 0 | AV13: =施設資源化量内訳!F13 -> 0 | AW13: =施設資源化量内訳!G13 -> 0 | AX13: =施設資源化量内訳!H13 -> 0 | AY13: =施設資源化量内訳!I13 -> 0 | AZ13: =施設資源化量内訳!J13 -> 0 | BA13: =施設資源化量内訳!K13 -> 0 | BB13: =施設資源化量内訳!L13 -> 0 | BC13: =施設資源化量内訳!M13 -> 0 | BD13: =施設資源化量内訳!N13 -> 0 | BE13: =施設資源化量内訳!O13 -> 0 | BF13: =施設資源化量内訳!P13 -> 0 | BG13: =施設資源化量内訳!Q13 -> 1,356 | BH13: =施設資源化量内訳!R13 -> 0 | BI13: =施設資源化量内訳!S13 -> 0 | BJ13: =施設資源化量内訳!T13 -> 0 | BK13: =施設資源化量内訳!U13 -> 0 | BL13: =施設資源化量内訳!V13 -> 0 | BM13: =施設資源化量内訳!W13 -> 0 | BN13: =施設資源化量内訳!X13 -> 407 | BO13: 0 | BP13: 0 | BQ13: 0 | BR13: 0 | BS13: 0 | BT13: 0 | BU13: 0 | BV13: 0 | BW13: 0 | BX13: 0 | BY13: 0 | BZ13: - | CA13: - | CB13: - | CC13: - | CD13: - | CE13: - | CF13: - | CG13: - | CH13: 0 | CI13: 0 | CJ13: 無い
A14: 茨城県 | B14: 08208 | C14: 龍ケ崎市 | D14: 7,870 | E14: 3,679 | F14: 20 | G14: 0 | H14: 834 | I14: 400 | J14: 283 | K14: 3 | L14: 11 | M14: 0 | N14: 70 | O14: 0 | P14: 0 | Q14: 2,045 | R14: 0 | S14: 0 | T14: 0 | U14: 0 | V14: 0 | W14: 0 | X14: 525 | Y14: 4,864 | Z14: 3,482 | AA14: 20 | AB14: 0 | AC14: 197 | AD14: 398 | AE14: 163 | AF14: 3 | AG14: 11 | AH14: 0 | AI14: 65 | AJ14: - | AK14: - | AL14: - | AM14: - | AN14: - | AO14: - | AP14: - | AQ14: - | AR14: 0 | AS14: 525 | AT14: =施設資源化量内訳!D14 -> 2,802 | AU14: =施設資源化量内訳!E14 -> 0 | AV14: =施設資源化量内訳!F14 -> 0 | AW14: =施設資源化量内訳!G14 -> 0 | AX14: =施設資源化量内訳!H14 -> 637 | AY14: =施設資源化量内訳!I14 -> 0 | AZ14: =施設資源化量内訳!J14 -> 120 | BA14: =施設資源化量内訳!K14 -> 0 | BB14: =施設資源化量内訳!L14 -> 0 | BC14: =施設資源化量内訳!M14 -> 0 | BD14: =施設資源化量内訳!N14 -> 0 | BE14: =施設資源化量内訳!O14 -> 0 | BF14: =施設資源化量内訳!P14 -> 0 | BG14: =施設資源化量内訳!Q14 -> 2,045 | BH14: =施設資源化量内訳!R14 -> 0 | BI14: =施設資源化量内訳!S14 -> 0 | BJ14: =施設資源化量内訳!T14 -> 0 | BK14: =施設資源化量内訳!U14 -> 0 | BL14: =施設資源化量内訳!V14 -> 0 | BM14: =施設資源化量内訳!W14 -> 0 | BN14: =施設資源化量内訳!X14 -> 0 | BO14: 204 | BP14: 197 | BQ14: 0 | BR14: 0 | BS14: 0 | BT14: 2 | BU14: 0 | BV14: 0 | BW14: 0 | BX14: 0 | BY14: 5 | BZ14: - | CA14: - | CB14: - | CC14: - | CD14: - | CE14: - | CF14: - | CG14: - | CH14: 0 | CI14: 0 | CJ14: 有る
A15: 茨城県 | B15: 08210 | C15: 下妻市 | D15: 3,025 | E15: 2,061 | F15: 7 | G15: 0 | H15: 403 | I15: 333 | J15: 167 | K15: 4 | L15: 0 | M15: 0 | N15: 24 | O15: 0 | P15: 0 | Q15: 0 | R15: 0 | S15: 0 | T15: 0 | U15: 0 | V15: 0 | W15: 0 | X15: 26 | Y15: 2,513 | Z15: 1,823 | AA15: 5 | AB15: 0 | AC15: 141 | AD15: 327 | AE15: 164 | AF15: 4 | AG15: 0 | AH15: 0 | AI15: 23 | AJ15: - | AK15: - | AL15: - | AM15: - | AN15: - | AO15: - | AP15: - | AQ15: - | AR15: 0 | AS15: 26 | AT15: =施設資源化量内訳!D15 -> 262 | AU15: =施設資源化量内訳!E15 -> 0 | AV15: =施設資源化量内訳!F15 -> 0 | AW15: =施設資源化量内訳!G15 -> 0 | AX15: =施設資源化量内訳!H15 -> 259 | AY15: =施設資源化量内訳!I15 -> 3 | AZ15: =施設資源化量内訳!J15 -> 0 | BA15: =施設資源化量内訳!K15 -> 0 | BB15: =施設資源化量内訳!L15 -> 0 | BC15: =施設資源化量内訳!M15 -> 0 | BD15: =施設資源化量内訳!N15 -> 0 | BE15: =施設資源化量内訳!O15 -> 0 | BF15: =施設資源化量内訳!P15 -> 0 | BG15: =施設資源化量内訳!Q15 -> 0 | BH15: =施設資源化量内訳!R15 -> 0 | BI15: =施設資源化量内訳!S15 -> 0 | BJ15: =施設資源化量内訳!T15 -> 0 | BK15: =施設資源化量内訳!U15 -> 0 | BL15: =施設資源化量内訳!V15 -> 0 | BM15: =施設資源化量内訳!W15 -> 0 | BN15: =施設資源化量内訳!X15 -> 0 | BO15: 250 | BP15: 238 | BQ15: 2 | BR15: 0 | BS15: 3 | BT15: 3 | BU15: 3 | BV15: 0 | BW15: 0 | BX15: 0 | BY15: 1 | BZ15: - | CA15: - | CB15: - | CC15: - | CD15: - | CE15: - | CF15: - | CG15: - | CH15: 0 | CI15: 0 | CJ15: 有る
A16: 茨城県 | B16: 08211 | C16: 常総市 | D16: 3,586 | E16: 2,303 | F16: 263 | G16: 53 | H16: 229 | I16: 139 | J16: 58 | K16: 0 | L16: 0 | M16: 0 | N16: 38 | O16: 378 | P16: 16 | Q16: 0 | R16: 0 | S16: 0 | T16: 0 | U16: 0 | V16: 0 | W16: 0 | X16: 109 | Y16: 1,120 | Z16: 869 | AA16: 0 | AB16: 0 | AC16: 58 | AD16: 130 | AE16: 58 | AF16: 0 | AG16: 0 | AH16: 0 | AI16: 2 | AJ16: - | AK16: - | AL16: - | AM16: - | AN16: - | AO16: - | AP16: - | AQ16: - | AR16: 0 | AS16: 3 | AT16: =施設資源化量内訳!D16 -> 1,082 | AU16: =施設資源化量内訳!E16 -> 122 | AV16: =施設資源化量内訳!F16 -> 263 | AW16: =施設資源化量内訳!G16 -> 53 | AX16: =施設資源化量内訳!H16 -> 155 | AY16: =施設資源化量内訳!I16 -> 0 | AZ16: =施設資源化量内訳!J16 -> 0 | BA16: =施設資源化量内訳!K16 -> 0 | BB16: =施設資源化量内訳!L16 -> 0 | BC16: =施設資源化量内訳!M16 -> 0 | BD16: =施設資源化量内訳!N16 -> 0 | BE16: =施設資源化量内訳!O16 -> 378 | BF16: =施設資源化量内訳!P16 -> 16 | BG16: =施設資源化量内訳!Q16 -> 0 | BH16: =施設資源化量内訳!R16 -> 0 | BI16: =施設資源化量内訳!S16 -> 0 | BJ16: =施設資源化量内訳!T16 -> 0 | BK16: =施設資源化量内訳!U16 -> 0 | BL16: =施設資源化量内訳!V16 -> 0 | BM16: =施設資源化量内訳!W16 -> 0 | BN16: =施設資源化量内訳!X16 -> 95 | BO16: 1,384 | BP16: 1,312 | BQ16: 0 | BR16: 0 | BS16: 16 | BT16: 9 | BU16: 0 | BV16: 0 | BW16: 0 | BX16: 0 | BY16: 36 | BZ16: - | CA16: - | CB16: - | CC16: - | CD16: - | CE16: - | CF16: - | CG16: - | CH16: 0 | CI16: 11 | CJ16: 有る
A17: 茨城県 | B17: 08212 | C17: 常陸太田市 | D17: 2,230 | E17: 832 | F17: 3 | G17: 170 | H17: 448 | I17: 621 | J17: 63 | K17: 10 | L17: 0 | M17: 0 | N17: 54 | O17: 0 | P17: 0 | Q17: 0 | R17: 0 | S17: 0 | T17: 0 | U17: 0 | V17: 0 | W17: 0 | X17: 29 | Y17: 930 | Z17: 423 | AA17: 0 | AB17: 170 | AC17: 277 | AD17: 0 | AE17: 0 | AF17: 0 | AG17: 0 | AH17: 0 | AI17: 49 | AJ17: - | AK17: - | AL17: - | AM17: - | AN17: - | AO17: - | AP17: - | AQ17: - | AR17: 0 | AS17: 11 | AT17: =施設資源化量内訳!D17 -> 869 | AU17: =施設資源化量内訳!E17 -> 0 | AV17: =施設資源化量内訳!F17 -> 3 | AW17: =施設資源化量内訳!G17 -> 0 | AX17: =施設資源化量内訳!H17 -> 165 | AY17: =施設資源化量内訳!I17 -> 610 | AZ17: =施設資源化量内訳!J17 -> 63 | BA17: =施設資源化量内訳!K17 -> 10 | BB17: =施設資源化量内訳!L17 -> 0 | BC17: =施設資源化量内訳!M17 -> 0 | BD17: =施設資源化量内訳!N17 -> 0 | BE17: =施設資源化量内訳!O17 -> 0 | BF17: =施設資源化量内訳!P17 -> 0 | BG17: =施設資源化量内訳!Q17 -> 0 | BH17: =施設資源化量内訳!R17 -> 0 | BI17: =施設資源化量内訳!S17 -> 0 | BJ17: =施設資源化量内訳!T17 -> 0 | BK17: =施設資源化量内訳!U17 -> 0 | BL17: =施設資源化量内訳!V17 -> 0 | BM17: =施設資源化量内訳!W17 -> 0 | BN17: =施設資源化量内訳!X17 -> 18 | BO17: 431 | BP17: 409 | BQ17: 0 | BR17: 0 | BS17: 6 | BT17: 11 | BU17: 0 | BV17: 0 | BW17: 0 | BX17: 0 | BY17: 5 | BZ17: - | CA17: - | CB17: - | CC17: - | CD17: - | CE17: - | CF17: - | CG17: - | CH17: 0 | CI17: 0 | CJ17: 無い
A18: 茨城県 | B18: 08214 | C18: 高萩市 | D18: 2,058 | E18: 811 | F18: 0 | G18: 0 | H18: 208 | I18: 240 | J18: 66 | K18: 7 | L18: 0 | M18: 0 | N18: 141 | O18: 0 | P18: 0 | Q18: 0 | R18: 0 | S18: 0 | T18: 0 | U18: 0 | V18: 0 | W18: 0 | X18: 585 | Y18: 0 | Z18: 0 | AA18: 0 | AB18: 0 | AC18: 0 | AD18: 0 | AE18: 0 | AF18: 0 | AG18: 0 | AH18: 0 | AI18: 0 | AJ18: - | AK18: - | AL18: - | AM18: - | AN18: - | AO18: - | AP18: - | AQ18: - | AR18: 0 | AS18: 0 | AT18: =施設資源化量内訳!D18 -> 2,013 | AU18: =施設資源化量内訳!E18 -> 766 | AV18: =施設資源化量内訳!F18 -> 0 | AW18: =施設資源化量内訳!G18 -> 0 | AX18: =施設資源化量内訳!H18 -> 208 | AY18: =施設資源化量内訳!I18 -> 240 | AZ18: =施設資源化量内訳!J18 -> 66 | BA18: =施設資源化量内訳!K18 -> 7 | BB18: =施設資源化量内訳!L18 -> 0 | BC18: =施設資源化量内訳!M18 -> 0 | BD18: =施設資源化量内訳!N18 -> 141 | BE18: =施設資源化量内訳!O18 -> 0 | BF18: =施設資源化量内訳!P18 -> 0 | BG18: =施設資源化量内訳!Q18 -> 0 | BH18: =施設資源化量内訳!R18 -> 0 | BI18: =施設資源化量内訳!S18 -> 0 | BJ18: =施設資源化量内訳!T18 -> 0 | BK18: =施設資源化量内訳!U18 -> 0 | BL18: =施設資源化量内訳!V18 -> 0 | BM18: =施設資源化量内訳!W18 -> 0 | BN18: =施設資源化量内訳!X18 -> 585 | BO18: 45 | BP18: 45 | BQ18: 0 | BR18: 0 | BS18: 0 | BT18: 0 | BU18: 0 | BV18: 0 | BW18: 0 | BX18: 0 | BY18: 0 | BZ18: - | CA18: - | CB18: - | CC18: - | CD18: - | CE18: - | CF18: - | CG18: - | CH18: 0 | CI18: 0 | CJ18: 無い
A19: 茨城県 | B19: 08215 | C19: 北茨城市 | D19: 2,139 | E19: 1,002 | F19: 0 | G19: 0 | H19: 324 | I19: 373 | J19: 239 | K19: 0 | L19: 0 | M19: 0 | N19: 201 | O19: 0 | P19: 0 | Q19: 0 | R19: 0 | S19: 0 | T19: 0 | U19: 0 | V19: 0 | W19: 0 | X19: 0 | Y19: 1,573 | Z19: 1,002 | AA19: 0 | AB19: 0 | AC19: 324 | AD19: 37 | AE19: 9 | AF19: 0 | AG19: 0 | AH19: 0 | AI19: 201 | AJ19: - | AK19: - | AL19: - | AM19: - | AN19: - | AO19: - | AP19: - | AQ19: - | AR19: 0 | AS19: 0 | AT19: =施設資源化量内訳!D19 -> 566 | AU19: =施設資源化量内訳!E19 -> 0 | AV19: =施設資源化量内訳!F19 -> 0 | AW19: =施設資源化量内訳!G19 -> 0 | AX19: =施設資源化量内訳!H19 -> 0 | AY19: =施設資源化量内訳!I19 -> 336 | AZ19: =施設資源化量内訳!J19 -> 230 | BA19: =施設資源化量内訳!K19 -> 0 | BB19: =施設資源化量内訳!L19 -> 0 | BC19: =施設資源化量内訳!M19 -> 0 | BD19: =施設資源化量内訳!N19 -> 0 | BE19: =施設資源化量内訳!O19 -> 0 | BF19: =施設資源化量内訳!P19 -> 0 | BG19: =施設資源化量内訳!Q19 -> 0 | BH19: =施設資源化量内訳!R19 -> 0 | BI19: =施設資源化量内訳!S19 -> 0 | BJ19: =施設資源化量内訳!T19 -> 0 | BK19: =施設資源化量内訳!U19 -> 0 | BL19: =施設資源化量内訳!V19 -> 0 | BM19: =施設資源化量内訳!W19 -> 0 | BN19: =施設資源化量内訳!X19 -> 0 | BO19: 0 | BP19: 0 | BQ19: 0 | BR19: 0 | BS19: 0 | BT19: 0 | BU19: 0 | BV19: 0 | BW19: 0 | BX19: 0 | BY19: 0 | BZ19: - | CA19: - | CB19: - | CC19: - | CD19: - | CE19: - | CF19: - | CG19: - | CH19: 0 | CI19: 0 | CJ19: 無い
A20: 茨城県 | B20: 08216 | C20: 笠間市 | D20: 6,593 | E20: 2,942 | F20: 2 | G20: 0 | H20: 618 | I20: 420 | J20: 106 | K20: 1 | L20: 0 | M20: 0 | N20: 79 | O20: 0 | P20: 0 | Q20: 1,479 | R20: 0 | S20: 0 | T20: 0 | U20: 0 | V20: 0 | W20: 4 | X20: 942 | Y20: 3,546 | Z20: 2,168 | AA20: 2 | AB20: 0 | AC20: 118 | AD20: 187 | AE20: 50 | AF20: 0 | AG20: 0 | AH20: 0 | AI20: 77 | AJ20: - | AK20: - | AL20: - | AM20: - | AN20: - | AO20: - | AP20: - | AQ20: - | AR20: 3 | AS20: 941 | AT20: =施設資源化量内訳!D20 -> 2,211 | AU20: =施設資源化量内訳!E20 -> 0 | AV20: =施設資源化量内訳!F20 -> 0 | AW20: =施設資源化量内訳!G20 -> 0 | AX20: =施設資源化量内訳!H20 -> 473 | AY20: =施設資源化量内訳!I20 -> 202 | AZ20: =施設資源化量内訳!J20 -> 56 | BA20: =施設資源化量内訳!K20 -> 1 | BB20: =施設資源化量内訳!L20 -> 0 | BC20: =施設資源化量内訳!M20 -> 0 | BD20: =施設資源化量内訳!N20 -> 0 | BE20: =施設資源化量内訳!O20 -> 0 | BF20: =施設資源化量内訳!P20 -> 0 | BG20: =施設資源化量内訳!Q20 -> 1,479 | BH20: =施設資源化量内訳!R20 -> 0 | BI20: =施設資源化量内訳!S20 -> 0 | BJ20: =施設資源化量内訳!T20 -> 0 | BK20: =施設資源化量内訳!U20 -> 0 | BL20: =施設資源化量内訳!V20 -> 0 | BM20: =施設資源化量内訳!W20 -> 0 | BN20: =施設資源化量内訳!X20 -> 0 | BO20: 836 | BP20: 774 | BQ20: 0 | BR20: 0 | BS20: 27 | BT20: 31 | BU20: 0 | BV20: 0 | BW20: 0 | BX20: 0 | BY20: 2 | BZ20: - | CA20: - | CB20: - | CC20: - | CD20: - | CE20: - | CF20: - | CG20: - | CH20: 1 | CI20: 1 | CJ20: 有る
A21: 茨城県 | B21: 08217 | C21: 取手市 | D21: 9,503 | E21: 4,437 | F21: 16 | G21: 0 | H21: 1,678 | I21: 762 | J21: 178 | K21: 0 | L21: 0 | M21: 350 | N21: 165 | O21: 87 | P21: 0 | Q21: 1,489 | R21: 0 | S21: 0 | T21: 0 | U21: 0 | V21: 0 | W21: 0 | X21: 341 | Y21: 4,141 | Z21: 2,953 | AA21: 1 | AB21: 0 | AC21: 1,030 | AD21: 32 | AE21: 4 | AF21: 0 | AG21: 0 | AH21: 0 | AI21: 121 | AJ21: - | AK21: - | AL21: - | AM21: - | AN21: - | AO21: - | AP21: - | AQ21: - | AR21: 0 | AS21: 0 | AT21: =施設資源化量内訳!D21 -> 3,770 | AU21: =施設資源化量内訳!E21 -> 0 | AV21: =施設資源化量内訳!F21 -> 0 | AW21: =施設資源化量内訳!G21 -> 0 | AX21: =施設資源化量内訳!H21 -> 600 | AY21: =施設資源化量内訳!I21 -> 729 | AZ21: =施設資源化量内訳!J21 -> 174 | BA21: =施設資源化量内訳!K21 -> 0 | BB21: =施設資源化量内訳!L21 -> 0 | BC21: =施設資源化量内訳!M21 -> 350 | BD21: =施設資源化量内訳!N21 -> 0 | BE21: =施設資源化量内訳!O21 -> 87 | BF21: =施設資源化量内訳!P21 -> 0 | BG21: =施設資源化量内訳!Q21 -> 1,489 | BH21: =施設資源化量内訳!R21 -> 0 | BI21: =施設資源化量内訳!S21 -> 0 | BJ21: =施設資源化量内訳!T21 -> 0 | BK21: =施設資源化量内訳!U21 -> 0 | BL21: =施設資源化量内訳!V21 -> 0 | BM21: =施設資源化量内訳!W21 -> 0 | BN21: =施設資源化量内訳!X21 -> 341 | BO21: 1,592 | BP21: 1,484 | BQ21: 15 | BR21: 0 | BS21: 48 | BT21: 1 | BU21: 0 | BV21: 0 | BW21: 0 | BX21: 0 | BY21: 44 | BZ21: - | CA21: - | CB21: - | CC21: - | CD21: - | CE21: - | CF21: - | CG21: - | CH21: 0 | CI21: 0 | CJ21: 無い
A22: 茨城県 | B22: 08219 | C22: 牛久市 | D22: 5,439 | E22: 2,259 | F22: 22 | G22: 3 | H22: 730 | I22: 503 | J22: 145 | K22: 0 | L22: 0 | M22: 0 | N22: 147 | O22: 17 | P22: 0 | Q22: 1,152 | R22: 0 | S22: 0 | T22: 0 | U22: 0 | V22: 0 | W22: 32 | X22: 429 | Y22: 2,343 | Z22: 1,941 | AA22: 22 | AB22: 3 | AC22: 0 | AD22: 0 | AE22: 0 | AF22: 0 | AG22: 0 | AH22: 0 | AI22: 146 | AJ22: - | AK22: - | AL22: - | AM22: - | AN22: - | AO22: - | AP22: - | AQ22: - | AR22: 0 | AS22: 231 | AT22: =施設資源化量内訳!D22 -> 2,774 | AU22: =施設資源化量内訳!E22 -> 0 | AV22: =施設資源化量内訳!F22 -> 0 | AW22: =施設資源化量内訳!G22 -> 0 | AX22: =施設資源化量内訳!H22 -> 727 | AY22: =施設資源化量内訳!I22 -> 503 | AZ22: =施設資源化量内訳!J22 -> 145 | BA22: =施設資源化量内訳!K22 -> 0 | BB22: =施設資源化量内訳!L22 -> 0 | BC22: =施設資源化量内訳!M22 -> 0 | BD22: =施設資源化量内訳!N22 -> 0 | BE22: =施設資源化量内訳!O22 -> 17 | BF22: =施設資源化量内訳!P22 -> 0 | BG22: =施設資源化量内訳!Q22 -> 1,152 | BH22: =施設資源化量内訳!R22 -> 0 | BI22: =施設資源化量内訳!S22 -> 0 | BJ22: =施設資源化量内訳!T22 -> 0 | BK22: =施設資源化量内訳!U22 -> 0 | BL22: =施設資源化量内訳!V22 -> 0 | BM22: =施設資源化量内訳!W22 -> 32 | BN22: =施設資源化量内訳!X22 -> 198 | BO22: 322 | BP22: 318 | BQ22: 0 | BR22: 0 | BS22: 3 | BT22: 0 | BU22: 0 | BV22: 0 | BW22: 0 | BX22: 0 | BY22: 1 | BZ22: - | CA22: - | CB22: - | CC22: - | CD22: - | CE22: - | CF22: - | CG22: - | CH22: 0 | CI22: 0 | CJ22: 無い
A23: 茨城県 | B23: 08220 | C23: つくば市 | D23: 16,332 | E23: 12,661 | F23: 42 | G23: 0 | H23: 1,561 | I23: 976 | J23: 609 | K23: 0 | L23: 0 | M23: 0 | N23: 186 | O23: 0 | P23: 0 | Q23: 247 | R23: 0 | S23: 0 | T23: 0 | U23: 0 | V23: 0 | W23: 9 | X23: 41 | Y23: 10,270 | Z23: 9,655 | AA23: 42 | AB23: 0 | AC23: 383 | AD23: 39 | AE23: 142 | AF23: 0 | AG23: 0 | AH23: 0 | AI23: 0 | AJ23: - | AK23: - | AL23: - | AM23: - | AN23: - | AO23: - | AP23: - | AQ23: - | AR23: 9 | AS23: 0 | AT23: =施設資源化量内訳!D23 -> 4,688 | AU23: =施設資源化量内訳!E23 -> 1,677 | AV23: =施設資源化量内訳!F23 -> 0 | AW23: =施設資源化量内訳!G23 -> 0 | AX23: =施設資源化量内訳!H23 -> 1,166 | AY23: =施設資源化量内訳!I23 -> 929 | AZ23: =施設資源化量内訳!J23 -> 467 | BA23: =施設資源化量内訳!K23 -> 0 | BB23: =施設資源化量内訳!L23 -> 0 | BC23: =施設資源化量内訳!M23 -> 0 | BD23: =施設資源化量内訳!N23 -> 161 | BE23: =施設資源化量内訳!O23 -> 0 | BF23: =施設資源化量内訳!P23 -> 0 | BG23: =施設資源化量内訳!Q23 -> 247 | BH23: =施設資源化量内訳!R23 -> 0 | BI23: =施設資源化量内訳!S23 -> 0 | BJ23: =施設資源化量内訳!T23 -> 0 | BK23: =施設資源化量内訳!U23 -> 0 | BL23: =施設資源化量内訳!V23 -> 0 | BM23: =施設資源化量内訳!W23 -> 0 | BN23: =施設資源化量内訳!X23 -> 41 | BO23: 1,374 | BP23: 1,329 | BQ23: 0 | BR23: 0 | BS23: 12 | BT23: 8 | BU23: 0 | BV23: 0 | BW23: 0 | BX23: 0 | BY23: 25 | BZ23: - | CA23: - | CB23: - | CC23: - | CD23: - | CE23: - | CF23: - | CG23: - | CH23: 0 | CI23: 0 | CJ23: 無い
A24: 茨城県 | B24: 08221 | C24: ひたちなか市 | D24: 9,679 | E24: 4,148 | F24: 41 | G24: 0 | H24: 1,802 | I24: 818 | J24: 220 | K24: 0 | L24: 353 | M24: 0 | N24: 117 | O24: 0 | P24: 0 | Q24: 2,137 | R24: 0 | S24: 0 | T24: 0 | U24: 0 | V24: 0 | W24: 32 | X24: 11 | Y24: 340 | Z24: 244 | AA24: 41 | AB24: 0 | AC24: 0 | AD24: 0 | AE24: 0 | AF24: 0 | AG24: 0 | AH24: 0 | AI24: 23 | AJ24: - | AK24: - | AL24: - | AM24: - | AN24: - | AO24: - | AP24: - | AQ24: - | AR24: 32 | AS24: 0 | AT24: =施設資源化量内訳!D24 -> 3,632 | AU24: =施設資源化量内訳!E24 -> 0 | AV24: =施設資源化量内訳!F24 -> 0 | AW24: =施設資源化量内訳!G24 -> 0 | AX24: =施設資源化量内訳!H24 -> 1,321 | AY24: =施設資源化量内訳!I24 -> 173 | AZ24: =施設資源化量内訳!J24 -> 0 | BA24: =施設資源化量内訳!K24 -> 0 | BB24: =施設資源化量内訳!L24 -> 0 | BC24: =施設資源化量内訳!M24 -> 0 | BD24: =施設資源化量内訳!N24 -> 0 | BE24: =施設資源化量内訳!O24 -> 0 | BF24: =施設資源化量内訳!P24 -> 0 | BG24: =施設資源化量内訳!Q24 -> 2,137 | BH24: =施設資源化量内訳!R24 -> 0 | BI24: =施設資源化量内訳!S24 -> 0 | BJ24: =施設資源化量内訳!T24 -> 0 | BK24: =施設資源化量内訳!U24 -> 0 | BL24: =施設資源化量内訳!V24 -> 0 | BM24: =施設資源化量内訳!W24 -> 0 | BN24: =施設資源化量内訳!X24 -> 1 | BO24: 5,707 | BP24: 3,904 | BQ24: 0 | BR24: 0 | BS24: 481 | BT24: 645 | BU24: 220 | BV24: 0 | BW24: 353 | BX24: 0 | BY24: 94 | BZ24: - | CA24: - | CB24: - | CC24: - | CD24: - | CE24: - | CF24: - | CG24: - | CH24: 0 | CI24: 10 | CJ24: 有る
A25: 茨城県 | B25: 08222 | C25: 鹿嶋市 | D25: 13,649 | E25: 851 | F25: 4 | G25: 320 | H25: 689 | I25: 420 | J25: 287 | K25: 0 | L25: 0 | M25: 0 | N25: 86 | O25: 0 | P25: 0 | Q25: 0 | R25: 10,992 | S25: 0 | T25: 0 | U25: 0 | V25: 0 | W25: 0 | X25: 0 | Y25: 413 | Z25: 225 | AA25: 0 | AB25: 109 | AC25: 0 | AD25: 0 | AE25: 0 | AF25: 0 | AG25: 0 | AH25: 0 | AI25: 79 | AJ25: - | AK25: - | AL25: - | AM25: - | AN25: - | AO25: - | AP25: - | AQ25: - | AR25: 0 | AS25: 0 | AT25: =施設資源化量内訳!D25 -> 12,097 | AU25: =施設資源化量内訳!E25 -> 0 | AV25: =施設資源化量内訳!F25 -> 0 | AW25: =施設資源化量内訳!G25 -> 0 | AX25: =施設資源化量内訳!H25 -> 606 | AY25: =施設資源化量内訳!I25 -> 298 | AZ25: =施設資源化量内訳!J25 -> 201 | BA25: =施設資源化量内訳!K25 -> 0 | BB25: =施設資源化量内訳!L25 -> 0 | BC25: =施設資源化量内訳!M25 -> 0 | BD25: =施設資源化量内訳!N25 -> 0 | BE25: =施設資源化量内訳!O25 -> 0 | BF25: =施設資源化量内訳!P25 -> 0 | BG25: =施設資源化量内訳!Q25 -> 0 | BH25: =施設資源化量内訳!R25 -> 10,992 | BI25: =施設資源化量内訳!S25 -> 0 | BJ25: =施設資源化量内訳!T25 -> 0 | BK25: =施設資源化量内訳!U25 -> 0 | BL25: =施設資源化量内訳!V25 -> 0 | BM25: =施設資源化量内訳!W25 -> 0 | BN25: =施設資源化量内訳!X25 -> 0 | BO25: 1,139 | BP25: 626 | BQ25: 4 | BR25: 211 | BS25: 83 | BT25: 122 | BU25: 86 | BV25: 0 | BW25: 0 | BX25: 0 | BY25: 7 | BZ25: - | CA25: - | CB25: - | CC25: - | CD25: - | CE25: - | CF25: - | CG25: - | CH25: 0 | CI25: 0 | CJ25: 無い
A26: 茨城県 | B26: 08223 | C26: 潮来市 | D26: 3,531 | E26: 1,429 | F26: 1 | G26: 0 | H26: 252 | I26: 144 | J26: 117 | K26: 0 | L26: 342 | M26: 0 | N26: 96 | O26: 0 | P26: 0 | Q26: 1,150 | R26: 0 | S26: 0 | T26: 0 | U26: 0 | V26: 0 | W26: 0 | X26: 0 | Y26: 948 | Z26: 907 | AA26: 0 | AB26: 0 | AC26: 10 | AD26: 20 | AE26: 10 | AF26: 0 | AG26: 0 | AH26: 0 | AI26: 1 | AJ26: - | AK26: - | AL26: - | AM26: - | AN26: - | AO26: - | AP26: - | AQ26: - | AR26: 0 | AS26: 0 | AT26: =施設資源化量内訳!D26 -> 2,543 | AU26: =施設資源化量内訳!E26 -> 483 | AV26: =施設資源化量内訳!F26 -> 1 | AW26: =施設資源化量内訳!G26 -> 0 | AX26: =施設資源化量内訳!H26 -> 241 | AY26: =施設資源化量内訳!I26 -> 124 | AZ26: =施設資源化量内訳!J26 -> 107 | BA26: =施設資源化量内訳!K26 -> 0 | BB26: =施設資源化量内訳!L26 -> 342 | BC26: =施設資源化量内訳!M26 -> 0 | BD26: =施設資源化量内訳!N26 -> 95 | BE26: =施設資源化量内訳!O26 -> 0 | BF26: =施設資源化量内訳!P26 -> 0 | BG26: =施設資源化量内訳!Q26 -> 1,150 | BH26: =施設資源化量内訳!R26 -> 0 | BI26: =施設資源化量内訳!S26 -> 0 | BJ26: =施設資源化量内訳!T26 -> 0 | BK26: =施設資源化量内訳!U26 -> 0 | BL26: =施設資源化量内訳!V26 -> 0 | BM26: =施設資源化量内訳!W26 -> 0 | BN26: =施設資源化量内訳!X26 -> 0 | BO26: 40 | BP26: 39 | BQ26: 0 | BR26: 0 | BS26: 1 | BT26: 0 | BU26: 0 | BV26: 0 | BW26: 0 | BX26: 0 | BY26: 0 | BZ26: - | CA26: - | CB26: - | CC26: - | CD26: - | CE26: - | CF26: - | CG26: - | CH26: 0 | CI26: 0 | CJ26: 有る
A27: 茨城県 | B27: 08224 | C27: 守谷市 | D27: 4,064 | E27: 1,814 | F27: 0 | G27: 0 | H27: 359 | I27: 419 | J27: 89 | K27: 0 | L27: 0 | M27: 140 | N27: 161 | O27: 7 | P27: 0 | Q27: 863 | R27: 0 | S27: 0 | T27: 0 | U27: 0 | V27: 0 | W27: 0 | X27: 212 | Y27: 1,082 | Z27: 928 | AA27: 0 | AB27: 0 | AC27: 0 | AD27: 0 | AE27: 0 | AF27: 0 | AG27: 0 | AH27: 0 | AI27: 154 | AJ27: - | AK27: - | AL27: - | AM27: - | AN27: - | AO27: - | AP27: - | AQ27: - | AR27: 0 | AS27: 0 | AT27: =施設資源化量内訳!D27 -> 2,071 | AU27: =施設資源化量内訳!E27 -> 0 | AV27: =施設資源化量内訳!F27 -> 0 | AW27: =施設資源化量内訳!G27 -> 0 | AX27: =施設資源化量内訳!H27 -> 345 | AY27: =施設資源化量内訳!I27 -> 419 | AZ27: =施設資源化量内訳!J27 -> 85 | BA27: =施設資源化量内訳!K27 -> 0 | BB27: =施設資源化量内訳!L27 -> 0 | BC27: =施設資源化量内訳!M27 -> 140 | BD27: =施設資源化量内訳!N27 -> 0 | BE27: =施設資源化量内訳!O27 -> 7 | BF27: =施設資源化量内訳!P27 -> 0 | BG27: =施設資源化量内訳!Q27 -> 863 | BH27: =施設資源化量内訳!R27 -> 0 | BI27: =施設資源化量内訳!S27 -> 0 | BJ27: =施設資源化量内訳!T27 -> 0 | BK27: =施設資源化量内訳!U27 -> 0 | BL27: =施設資源化量内訳!V27 -> 0 | BM27: =施設資源化量内訳!W27 -> 0 | BN27: =施設資源化量内訳!X27 -> 212 | BO27: 911 | BP27: 886 | BQ27: 0 | BR27: 0 | BS27: 14 | BT27: 0 | BU27: 4 | BV27: 0 | BW27: 0 | BX27: 0 | BY27: 7 | BZ27: - | CA27: - | CB27: - | CC27: - | CD27: - | CE27: - | CF27: - | CG27: - | CH27: 0 | CI27: 0 | CJ27: 無い
A28: 茨城県 | B28: 08225 | C28: 常陸大宮市 | D28: 2,074 | E28: 868 | F28: 2 | G28: 0 | H28: 531 | I28: 534 | J28: 63 | K28: 0 | L28: 0 | M28: 1 | N28: 2 | O28: 0 | P28: 0 | Q28: 0 | R28: 0 | S28: 0 | T28: 0 | U28: 0 | V28: 0 | W28: 0 | X28: 73 | Y28: 0 | Z28: 0 | AA28: 0 | AB28: 0 | AC28: 0 | AD28: 0 | AE28: 0 | AF28: 0 | AG28: 0 | AH28: 0 | AI28: 0 | AJ28: - | AK28: - | AL28: - | AM28: - | AN28: - | AO28: - | AP28: - | AQ28: - | AR28: 0 | AS28: 0 | AT28: =施設資源化量内訳!D28 -> 1,801 | AU28: =施設資源化量内訳!E28 -> 624 | AV28: =施設資源化量内訳!F28 -> 1 | AW28: =施設資源化量内訳!G28 -> 0 | AX28: =施設資源化量内訳!H28 -> 524 | AY28: =施設資源化量内訳!I28 -> 516 | AZ28: =施設資源化量内訳!J28 -> 63 | BA28: =施設資源化量内訳!K28 -> 0 | BB28: =施設資源化量内訳!L28 -> 0 | BC28: =施設資源化量内訳!M28 -> 0 | BD28: =施設資源化量内訳!N28 -> 0 | BE28: =施設資源化量内訳!O28 -> 0 | BF28: =施設資源化量内訳!P28 -> 0 | BG28: =施設資源化量内訳!Q28 -> 0 | BH28: =施設資源化量内訳!R28 -> 0 | BI28: =施設資源化量内訳!S28 -> 0 | BJ28: =施設資源化量内訳!T28 -> 0 | BK28: =施設資源化量内訳!U28 -> 0 | BL28: =施設資源化量内訳!V28 -> 0 | BM28: =施設資源化量内訳!W28 -> 0 | BN28: =施設資源化量内訳!X28 -> 73 | BO28: 273 | BP28: 244 | BQ28: 1 | BR28: 0 | BS28: 7 | BT28: 18 | BU28: 0 | BV28: 0 | BW28: 0 | BX28: 1 | BY28: 2 | BZ28: - | CA28: - | CB28: - | CC28: - | CD28: - | CE28: - | CF28: - | CG28: - | CH28: 0 | CI28: 0 | CJ28: 無い
A29: 茨城県 | B29: 08226 | C29: 那珂市 | D29: 1,964 | E29: 810 | F29: 1 | G29: 0 | H29: 470 | I29: 529 | J29: 75 | K29: 0 | L29: 0 | M29: 0 | N29: 1 | O29: 0 | P29: 0 | Q29: 0 | R29: 0 | S29: 0 | T29: 0 | U29: 0 | V29: 0 | W29: 0 | X29: 78 | Y29: 0 | Z29: 0 | AA29: 0 | AB29: 0 | AC29: 0 | AD29: 0 | AE29: 0 | AF29: 0 | AG29: 0 | AH29: 0 | AI29: 0 | AJ29: - | AK29: - | AL29: - | AM29: - | AN29: - | AO29: - | AP29: - | AQ29: - | AR29: 0 | AS29: 0 | AT29: =施設資源化量内訳!D29 -> 1,770 | AU29: =施設資源化量内訳!E29 -> 624 | AV29: =施設資源化量内訳!F29 -> 1 | AW29: =施設資源化量内訳!G29 -> 0 | AX29: =施設資源化量内訳!H29 -> 467 | AY29: =施設資源化量内訳!I29 -> 525 | AZ29: =施設資源化量内訳!J29 -> 75 | BA29: =施設資源化量内訳!K29 -> 0 | BB29: =施設資源化量内訳!L29 -> 0 | BC29: =施設資源化量内訳!M29 -> 0 | BD29: =施設資源化量内訳!N29 -> 0 | BE29: =施設資源化量内訳!O29 -> 0 | BF29: =施設資源化量内訳!P29 -> 0 | BG29: =施設資源化量内訳!Q29 -> 0 | BH29: =施設資源化量内訳!R29 -> 0 | BI29: =施設資源化量内訳!S29 -> 0 | BJ29: =施設資源化量内訳!T29 -> 0 | BK29: =施設資源化量内訳!U29 -> 0 | BL29: =施設資源化量内訳!V29 -> 0 | BM29: =施設資源化量内訳!W29 -> 0 | BN29: =施設資源化量内訳!X29 -> 78 | BO29: 194 | BP29: 186 | BQ29: 0 | BR29: 0 | BS29: 3 | BT29: 4 | BU29: 0 | BV29: 0 | BW29: 0 | BX29: 0 | BY29: 1 | BZ29: - | CA29: - | CB29: - | CC29: - | CD29: - | CE29: - | CF29: - | CG29: - | CH29: 0 | CI29: 0 | CJ29: 無い
A30: 茨城県 | B30: 08227 | C30: 筑西市 | D30: 5,407 | E30: 1,366 | F30: 16 | G30: 457 | H30: 887 | I30: 462 | J30: 165 | K30: 0 | L30: 0 | M30: 0 | N30: 14 | O30: 0 | P30: 0 | Q30: 2,023 | R30: 0 | S30: 0 | T30: 0 | U30: 0 | V30: 0 | W30: 0 | X30: 17 | Y30: 2,385 | Z30: 1,289 | AA30: 16 | AB30: 425 | AC30: 171 | AD30: 456 | AE30: 0 | AF30: 0 | AG30: 0 | AH30: 0 | AI30: 11 | AJ30: - | AK30: - | AL30: - | AM30: - | AN30: - | AO30: - | AP30: - | AQ30: - | AR30: 0 | AS30: 17 | AT30: =施設資源化量内訳!D30 -> 2,899 | AU30: =施設資源化量内訳!E30 -> 0 | AV30: =施設資源化量内訳!F30 -> 0 | AW30: =施設資源化量内訳!G30 -> 0 | AX30: =施設資源化量内訳!H30 -> 711 | AY30: =施設資源化量内訳!I30 -> 0 | AZ30: =施設資源化量内訳!J30 -> 165 | BA30: =施設資源化量内訳!K30 -> 0 | BB30: =施設資源化量内訳!L30 -> 0 | BC30: =施設資源化量内訳!M30 -> 0 | BD30: =施設資源化量内訳!N30 -> 0 | BE30: =施設資源化量内訳!O30 -> 0 | BF30: =施設資源化量内訳!P30 -> 0 | BG30: =施設資源化量内訳!Q30 -> 2,023 | BH30: =施設資源化量内訳!R30 -> 0 | BI30: =施設資源化量内訳!S30 -> 0 | BJ30: =施設資源化量内訳!T30 -> 0 | BK30: =施設資源化量内訳!U30 -> 0 | BL30: =施設資源化量内訳!V30 -> 0 | BM30: =施設資源化量内訳!W30 -> 0 | BN30: =施設資源化量内訳!X30 -> 0 | BO30: 123 | BP30: 77 | BQ30: 0 | BR30: 32 | BS30: 5 | BT30: 6 | BU30: 0 | BV30: 0 | BW30: 0 | BX30: 0 | BY30: 3 | BZ30: - | CA30: - | CB30: - | CC30: - | CD30: - | CE30: - | CF30: - | CG30: - | CH30: 0 | CI30: 0 | CJ30: 無い
A31: 茨城県 | B31: 08228 | C31: 坂東市 | D31: 4,303 | E31: 2,550 | F31: 0 | G31: 1 | H31: 454 | I31: 395 | J31: 134 | K31: 0 | L31: 0 | M31: 0 | N31: 128 | O31: 0 | P31: 0 | Q31: 641 | R31: 0 | S31: 0 | T31: 0 | U31: 0 | V31: 0 | W31: 0 | X31: 0 | Y31: 1,742 | Z31: 1,631 | AA31: 0 | AB31: 0 | AC31: 0 | AD31: 0 | AE31: 0 | AF31: 0 | AG31: 0 | AH31: 0 | AI31: 111 | AJ31: - | AK31: - | AL31: - | AM31: - | AN31: - | AO31: - | AP31: - | AQ31: - | AR31: 0 | AS31: 0 | AT31: =施設資源化量内訳!D31 -> 1,604 | AU31: =施設資源化量内訳!E31 -> 9 | AV31: =施設資源化量内訳!F31 -> 0 | AW31: =施設資源化量内訳!G31 -> 0 | AX31: =施設資源化量内訳!H31 -> 442 | AY31: =施設資源化量内訳!I31 -> 381 | AZ31: =施設資源化量内訳!J31 -> 131 | BA31: =施設資源化量内訳!K31 -> 0 | BB31: =施設資源化量内訳!L31 -> 0 | BC31: =施設資源化量内訳!M31 -> 0 | BD31: =施設資源化量内訳!N31 -> 0 | BE31: =施設資源化量内訳!O31 -> 0 | BF31: =施設資源化量内訳!P31 -> 0 | BG31: =施設資源化量内訳!Q31 -> 641 | BH31: =施設資源化量内訳!R31 -> 0 | BI31: =施設資源化量内訳!S31 -> 0 | BJ31: =施設資源化量内訳!T31 -> 0 | BK31: =施設資源化量内訳!U31 -> 0 | BL31: =施設資源化量内訳!V31 -> 0 | BM31: =施設資源化量内訳!W31 -> 0 | BN31: =施設資源化量内訳!X31 -> 0 | BO31: 957 | BP31: 910 | BQ31: 0 | BR31: 1 | BS31: 12 | BT31: 14 | BU31: 3 | BV31: 0 | BW31: 0 | BX31: 0 | BY31: 17 | BZ31: - | CA31: - | CB31: - | CC31: - | CD31: - | CE31: - | CF31: - | CG31: - | CH31: 0 | CI31: 0 | CJ31: 有る
A32: 茨城県 | B32: 08229 | C32: 稲敷市 | D32: 2,753 | E32: 1,448 | F32: 0 | G32: 83 | H32: 407 | I32: 499 | J32: 50 | K32: 0 | L32: 124 | M32: 0 | N32: 1 | O32: 0 | P32: 0 | Q32: 89 | R32: 0 | S32: 0 | T32: 0 | U32: 0 | V32: 0 | W32: 0 | X32: 52 | Y32: 1,924 | Z32: 1,134 | AA32: 0 | AB32: 83 | AC32: 264 | AD32: 231 | AE32: 50 | AF32: 0 | AG32: 124 | AH32: 0 | AI32: 0 | AJ32: - | AK32: - | AL32: - | AM32: - | AN32: - | AO32: - | AP32: - | AQ32: - | AR32: 0 | AS32: 38 | AT32: =施設資源化量内訳!D32 -> 508 | AU32: =施設資源化量内訳!E32 -> 0 | AV32: =施設資源化量内訳!F32 -> 0 | AW32: =施設資源化量内訳!G32 -> 0 | AX32: =施設資源化量内訳!H32 -> 139 | AY32: =施設資源化量内訳!I32 -> 266 | AZ32: =施設資源化量内訳!J32 -> 0 | BA32: =施設資源化量内訳!K32 -> 0 | BB32: =施設資源化量内訳!L32 -> 0 | BC32: =施設資源化量内訳!M32 -> 0 | BD32: =施設資源化量内訳!N32 -> 0 | BE32: =施設資源化量内訳!O32 -> 0 | BF32: =施設資源化量内訳!P32 -> 0 | BG32: =施設資源化量内訳!Q32 -> 89 | BH32: =施設資源化量内訳!R32 -> 0 | BI32: =施設資源化量内訳!S32 -> 0 | BJ32: =施設資源化量内訳!T32 -> 0 | BK32: =施設資源化量内訳!U32 -> 0 | BL32: =施設資源化量内訳!V32 -> 0 | BM32: =施設資源化量内訳!W32 -> 0 | BN32: =施設資源化量内訳!X32 -> 14 | BO32: 321 | BP32: 314 | BQ32: 0 | BR32: 0 | BS32: 4 | BT32: 2 | BU32: 0 | BV32: 0 | BW32: 0 | BX32: 0 | BY32: 1 | BZ32: - | CA32: - | CB32: - | CC32: - | CD32: - | CE32: - | CF32: - | CG32: - | CH32: 0 | CI32: 0 | CJ32: 無い
A33: 茨城県 | B33: 08230 | C33: かすみがうら市 | D33: 3,290 | E33: 1,619 | F33: 3 | G33: 0 | H33: 586 | I33: 291 | J33: 83 | K33: 0 | L33: 25 | M33: 0 | N33: 52 | O33: 0 | P33: 0 | Q33: 254 | R33: 0 | S33: 0 | T33: 0 | U33: 0 | V33: 0 | W33: 0 | X33: 377 | Y33: 1,625 | Z33: 1,435 | AA33: 2 | AB33: 0 | AC33: 119 | AD33: 21 | AE33: 1 | AF33: 0 | AG33: 6 | AH33: 0 | AI33: 41 | AJ33: - | AK33: - | AL33: - | AM33: - | AN33: - | AO33: - | AP33: - | AQ33: - | AR33: 0 | AS33: 0 | AT33: =施設資源化量内訳!D33 -> 1,525 | AU33: =施設資源化量内訳!E33 -> 54 | AV33: =施設資源化量内訳!F33 -> 0 | AW33: =施設資源化量内訳!G33 -> 0 | AX33: =施設資源化量内訳!H33 -> 463 | AY33: =施設資源化量内訳!I33 -> 267 | AZ33: =施設資源化量内訳!J33 -> 81 | BA33: =施設資源化量内訳!K33 -> 0 | BB33: =施設資源化量内訳!L33 -> 19 | BC33: =施設資源化量内訳!M33 -> 0 | BD33: =施設資源化量内訳!N33 -> 10 | BE33: =施設資源化量内訳!O33 -> 0 | BF33: =施設資源化量内訳!P33 -> 0 | BG33: =施設資源化量内訳!Q33 -> 254 | BH33: =施設資源化量内訳!R33 -> 0 | BI33: =施設資源化量内訳!S33 -> 0 | BJ33: =施設資源化量内訳!T33 -> 0 | BK33: =施設資源化量内訳!U33 -> 0 | BL33: =施設資源化量内訳!V33 -> 0 | BM33: =施設資源化量内訳!W33 -> 0 | BN33: =施設資源化量内訳!X33 -> 377 | BO33: 140 | BP33: 130 | BQ33: 1 | BR33: 0 | BS33: 4 | BT33: 3 | BU33: 1 | BV33: 0 | BW33: 0 | BX33: 0 | BY33: 1 | BZ33: - | CA33: - | CB33: - | CC33: - | CD33: - | CE33: - | CF33: - | CG33: - | CH33: 0 | CI33: 0 | CJ33: 無い
A34: 茨城県 | B34: 08231 | C34: 桜川市 | D34: 1,697 | E34: 0 | F34: 0 | G34: 0 | H34: 58 | I34: 0 | J34: 0 | K34: 0 | L34: 0 | M34: 0 | N34: 0 | O34: 0 | P34: 0 | Q34: 768 | R34: 0 | S34: 0 | T34: 0 | U34: 0 | V34: 0 | W34: 0 | X34: 871 | Y34: 0 | Z34: 0 | AA34: 0 | AB34: 0 | AC34: 0 | AD34: 0 | AE34: 0 | AF34: 0 | AG34: 0 | AH34: 0 | AI34: 0 | AJ34: - | AK34: - | AL34: - | AM34: - | AN34: - | AO34: - | AP34: - | AQ34: - | AR34: 0 | AS34: 0 | AT34: =施設資源化量内訳!D34 -> 1,697 | AU34: =施設資源化量内訳!E34 -> 0 | AV34: =施設資源化量内訳!F34 -> 0 | AW34: =施設資源化量内訳!G34 -> 0 | AX34: =施設資源化量内訳!H34 -> 58 | AY34: =施設資源化量内訳!I34 -> 0 | AZ34: =施設資源化量内訳!J34 -> 0 | BA34: =施設資源化量内訳!K34 -> 0 | BB34: =施設資源化量内訳!L34 -> 0 | BC34: =施設資源化量内訳!M34 -> 0 | BD34: =施設資源化量内訳!N34 -> 0 | BE34: =施設資源化量内訳!O34 -> 0 | BF34: =施設資源化量内訳!P34 -> 0 | BG34: =施設資源化量内訳!Q34 -> 768 | BH34: =施設資源化量内訳!R34 -> 0 | BI34: =施設資源化量内訳!S34 -> 0 | BJ34: =施設資源化量内訳!T34 -> 0 | BK34: =施設資源化量内訳!U34 -> 0 | BL34: =施設資源化量内訳!V34 -> 0 | BM34: =施設資源化量内訳!W34 -> 0 | BN34: =施設資源化量内訳!X34 -> 871 | BO34: 0 | BP34: 0 | BQ34: 0 | BR34: 0 | BS34: 0 | BT34: 0 | BU34: 0 | BV34: 0 | BW34: 0 | BX34: 0 | BY34: 0 | BZ34: - | CA34: - | CB34: - | CC34: - | CD34: - | CE34: - | CF34: - | CG34: - | CH34: 0 | CI34: 0 | CJ34: 無い
A35: 茨城県 | B35: 08232 | C35: 神栖市 | D35: 26,528 | E35: 8,982 | F35: 8 | G35: 0 | H35: 1,550 | I35: 583 | J35: 451 | K35: 6 | L35: 87 | M35: 0 | N35: 337 | O35: 0 | P35: 0 | Q35: 0 | R35: 14,155 | S35: 0 | T35: 0 | U35: 0 | V35: 0 | W35: 3 | X35: 366 | Y35: 9,536 | Z35: 8,075 | AA35: 8 | AB35: 0 | AC35: 469 | AD35: 54 | AE35: 218 | AF35: 6 | AG35: 0 | AH35: 0 | AI35: 337 | AJ35: - | AK35: - | AL35: - | AM35: - | AN35: - | AO35: - | AP35: - | AQ35: - | AR35: 3 | AS35: 366 | AT35: =施設資源化量内訳!D35 -> 15,913 | AU35: =施設資源化量内訳!E35 -> 0 | AV35: =施設資源化量内訳!F35 -> 0 | AW35: =施設資源化量内訳!G35 -> 0 | AX35: =施設資源化量内訳!H35 -> 1,081 | AY35: =施設資源化量内訳!I35 -> 435 | AZ35: =施設資源化量内訳!J35 -> 155 | BA35: =施設資源化量内訳!K35 -> 0 | BB35: =施設資源化量内訳!L35 -> 87 | BC35: =施設資源化量内訳!M35 -> 0 | BD35: =施設資源化量内訳!N35 -> 0 | BE35: =施設資源化量内訳!O35 -> 0 | BF35: =施設資源化量内訳!P35 -> 0 | BG35: =施設資源化量内訳!Q35 -> 0 | BH35: =施設資源化量内訳!R35 -> 14,155 | BI35: =施設資源化量内訳!S35 -> 0 | BJ35: =施設資源化量内訳!T35 -> 0 | BK35: =施設資源化量内訳!U35 -> 0 | BL35: =施設資源化量内訳!V35 -> 0 | BM35: =施設資源化量内訳!W35 -> 0 | BN35: =施設資源化量内訳!X35 -> 0 | BO35: 1,079 | BP35: 907 | BQ35: 0 | BR35: 0 | BS35: 0 | BT35: 94 | BU35: 78 | BV35: 0 | BW35: 0 | BX35: 0 | BY35: 0 | BZ35: - | CA35: - | CB35: - | CC35: - | CD35: - | CE35: - | CF35: - | CG35: - | CH35: 0 | CI35: 0 | CJ35: 無い
A36: 茨城県 | B36: 08233 | C36: 行方市 | D36: 1,152 | E36: 456 | F36: 0 | G36: 0 | H36: 418 | I36: 193 | J36: 75 | K36: 0 | L36: 0 | M36: 0 | N36: 0 | O36: 0 | P36: 0 | Q36: 0 | R36: 0 | S36: 0 | T36: 0 | U36: 0 | V36: 0 | W36: 0 | X36: 10 | Y36: 313 | Z36: 313 | AA36: 0 | AB36: 0 | AC36: 0 | AD36: 0 | AE36: 0 | AF36: 0 | AG36: 0 | AH36: 0 | AI36: 0 | AJ36: - | AK36: - | AL36: - | AM36: - | AN36: - | AO36: - | AP36: - | AQ36: - | AR36: 0 | AS36: 0 | AT36: =施設資源化量内訳!D36 -> 725 | AU36: =施設資源化量内訳!E36 -> 40 | AV36: =施設資源化量内訳!F36 -> 0 | AW36: =施設資源化量内訳!G36 -> 0 | AX36: =施設資源化量内訳!H36 -> 418 | AY36: =施設資源化量内訳!I36 -> 182 | AZ36: =施設資源化量内訳!J36 -> 75 | BA36: =施設資源化量内訳!K36 -> 0 | BB36: =施設資源化量内訳!L36 -> 0 | BC36: =施設資源化量内訳!M36 -> 0 | BD36: =施設資源化量内訳!N36 -> 0 | BE36: =施設資源化量内訳!O36 -> 0 | BF36: =施設資源化量内訳!P36 -> 0 | BG36: =施設資源化量内訳!Q36 -> 0 | BH36: =施設資源化量内訳!R36 -> 0 | BI36: =施設資源化量内訳!S36 -> 0 | BJ36: =施設資源化量内訳!T36 -> 0 | BK36: =施設資源化量内訳!U36 -> 0 | BL36: =施設資源化量内訳!V36 -> 0 | BM36: =施設資源化量内訳!W36 -> 0 | BN36: =施設資源化量内訳!X36 -> 10 | BO36: 114 | BP36: 103 | BQ36: 0 | BR36: 0 | BS36: 0 | BT36: 11 | BU36: 0 | BV36: 0 | BW36: 0 | BX36: 0 | BY36: 0 | BZ36: - | CA36: - | CB36: - | CC36: - | CD36: - | CE36: - | CF36: - | CG36: - | CH36: 0 | CI36: 0 | CJ36: 有る
A37: 茨城県 | B37: 08234 | C37: 鉾田市 | D37: 2,284 | E37: 285 | F37: 0 | G37: 0 | H37: 409 | I37: 524 | J37: 58 | K37: 0 | L37: 0 | M37: 0 | N37: 0 | O37: 0 | P37: 0 | Q37: 1,000 | R37: 0 | S37: 0 | T37: 0 | U37: 0 | V37: 0 | W37: 0 | X37: 8 | Y37: 305 | Z37: 277 | AA37: 0 | AB37: 0 | AC37: 0 | AD37: 28 | AE37: 0 | AF37: 0 | AG37: 0 | AH37: 0 | AI37: 0 | AJ37: - | AK37: - | AL37: - | AM37: - | AN37: - | AO37: - | AP37: - | AQ37: - | AR37: 0 | AS37: 0 | AT37: =施設資源化量内訳!D37 -> 1,979 | AU37: =施設資源化量内訳!E37 -> 8 | AV37: =施設資源化量内訳!F37 -> 0 | AW37: =施設資源化量内訳!G37 -> 0 | AX37: =施設資源化量内訳!H37 -> 409 | AY37: =施設資源化量内訳!I37 -> 496 | AZ37: =施設資源化量内訳!J37 -> 58 | BA37: =施設資源化量内訳!K37 -> 0 | BB37: =施設資源化量内訳!L37 -> 0 | BC37: =施設資源化量内訳!M37 -> 0 | BD37: =施設資源化量内訳!N37 -> 0 | BE37: =施設資源化量内訳!O37 -> 0 | BF37: =施設資源化量内訳!P37 -> 0 | BG37: =施設資源化量内訳!Q37 -> 1,000 | BH37: =施設資源化量内訳!R37 -> 0 | BI37: =施設資源化量内訳!S37 -> 0 | BJ37: =施設資源化量内訳!T37 -> 0 | BK37: =施設資源化量内訳!U37 -> 0 | BL37: =施設資源化量内訳!V37 -> 0 | BM37: =施設資源化量内訳!W37 -> 0 | BN37: =施設資源化量内訳!X37 -> 8 | BO37: 0 | BP37: 0 | BQ37: 0 | BR37: 0 | BS37: 0 | BT37: 0 | BU37: 0 | BV37: 0 | BW37: 0 | BX37: 0 | BY37: 0 | BZ37: - | CA37: - | CB37: - | CC37: - | CD37: - | CE37: - | CF37: - | CG37: - | CH37: 0 | CI37: 0 | CJ37: 有る
A38: 茨城県 | B38: 08235 | C38: つくばみらい市 | D38: 2,466 | E38: 898 | F38: 0 | G38: 0 | H38: 256 | I38: 312 | J38: 71 | K38: 0 | L38: 0 | M38: 121 | N38: 79 | O38: 3 | P38: 0 | Q38: 599 | R38: 0 | S38: 0 | T38: 0 | U38: 0 | V38: 0 | W38: 0 | X38: 127 | Y38: 603 | Z38: 531 | AA38: 0 | AB38: 0 | AC38: 0 | AD38: 0 | AE38: 0 | AF38: 0 | AG38: 0 | AH38: 0 | AI38: 72 | AJ38: - | AK38: - | AL38: - | AM38: - | AN38: - | AO38: - | AP38: - | AQ38: - | AR38: 0 | AS38: 0 | AT38: =施設資源化量内訳!D38 -> 1,477 | AU38: =施設資源化量内訳!E38 -> 0 | AV38: =施設資源化量内訳!F38 -> 0 | AW38: =施設資源化量内訳!G38 -> 0 | AX38: =施設資源化量内訳!H38 -> 246 | AY38: =施設資源化量内訳!I38 -> 310 | AZ38: =施設資源化量内訳!J38 -> 71 | BA38: =施設資源化量内訳!K38 -> 0 | BB38: =施設資源化量内訳!L38 -> 0 | BC38: =施設資源化量内訳!M38 -> 121 | BD38: =施設資源化量内訳!N38 -> 0 | BE38: =施設資源化量内訳!O38 -> 3 | BF38: =施設資源化量内訳!P38 -> 0 | BG38: =施設資源化量内訳!Q38 -> 599 | BH38: =施設資源化量内訳!R38 -> 0 | BI38: =施設資源化量内訳!S38 -> 0 | BJ38: =施設資源化量内訳!T38 -> 0 | BK38: =施設資源化量内訳!U38 -> 0 | BL38: =施設資源化量内訳!V38 -> 0 | BM38: =施設資源化量内訳!W38 -> 0 | BN38: =施設資源化量内訳!X38 -> 127 | BO38: 386 | BP38: 367 | BQ38: 0 | BR38: 0 | BS38: 10 | BT38: 2 | BU38: 0 | BV38: 0 | BW38: 0 | BX38: 0 | BY38: 7 | BZ38: - | CA38: - | CB38: - | CC38: - | CD38: - | CE38: - | CF38: - | CG38: - | CH38: 0 | CI38: 0 | CJ38: 無い
A39: 茨城県 | B39: 08236 | C39: 小美玉市 | D39: 3,511 | E39: 1,600 | F39: 0 | G39: 0 | H39: 363 | I39: 431 | J39: 46 | K39: 0 | L39: 0 | M39: 0 | N39: 0 | O39: 0 | P39: 0 | Q39: 993 | R39: 0 | S39: 0 | T39: 0 | U39: 0 | V39: 0 | W39: 0 | X39: 78 | Y39: 1,349 | Z39: 1,349 | AA39: 0 | AB39: 0 | AC39: 0 | AD39: 0 | AE39: 0 | AF39: 0 | AG39: 0 | AH39: 0 | AI39: 0 | AJ39: - | AK39: - | AL39: - | AM39: - | AN39: - | AO39: - | AP39: - | AQ39: - | AR39: 0 | AS39: 0 | AT39: =施設資源化量内訳!D39 -> 1,937 | AU39: =施設資源化量内訳!E39 -> 41 | AV39: =施設資源化量内訳!F39 -> 0 | AW39: =施設資源化量内訳!G39 -> 0 | AX39: =施設資源化量内訳!H39 -> 356 | AY39: =施設資源化量内訳!I39 -> 423 | AZ39: =施設資源化量内訳!J39 -> 46 | BA39: =施設資源化量内訳!K39 -> 0 | BB39: =施設資源化量内訳!L39 -> 0 | BC39: =施設資源化量内訳!M39 -> 0 | BD39: =施設資源化量内訳!N39 -> 0 | BE39: =施設資源化量内訳!O39 -> 0 | BF39: =施設資源化量内訳!P39 -> 0 | BG39: =施設資源化量内訳!Q39 -> 993 | BH39: =施設資源化量内訳!R39 -> 0 | BI39: =施設資源化量内訳!S39 -> 0 | BJ39: =施設資源化量内訳!T39 -> 0 | BK39: =施設資源化量内訳!U39 -> 0 | BL39: =施設資源化量内訳!V39 -> 0 | BM39: =施設資源化量内訳!W39 -> 0 | BN39: =施設資源化量内訳!X39 -> 78 | BO39: 225 | BP39: 210 | BQ39: 0 | BR39: 0 | BS39: 7 | BT39: 8 | BU39: 0 | BV39: 0 | BW39: 0 | BX39: 0 | BY39: 0 | BZ39: - | CA39: - | CB39: - | CC39: - | CD39: - | CE39: - | CF39: - | CG39: - | CH39: 0 | CI39: 0 | CJ39: 無い
A40: 茨城県 | B40: 08302 | C40: 茨城町 | D40: 1,719 | E40: 1,100 | F40: 3 | G40: 0 | H40: 221 | I40: 330 | J40: 55 | K40: 3 | L40: 0 | M40: 0 | N40: 0 | O40: 0 | P40: 0 | Q40: 0 | R40: 0 | S40: 0 | T40: 0 | U40: 0 | V40: 0 | W40: 0 | X40: 7 | Y40: 1,123 | Z40: 1,057 | AA40: 0 | AB40: 0 | AC40: 19 | AD40: 21 | AE40: 19 | AF40: 0 | AG40: 0 | AH40: 0 | AI40: 0 | AJ40: - | AK40: - | AL40: - | AM40: - | AN40: - | AO40: - | AP40: - | AQ40: - | AR40: 0 | AS40: 7 | AT40: =施設資源化量内訳!D40 -> 539 | AU40: =施設資源化量内訳!E40 -> 20 | AV40: =施設資源化量内訳!F40 -> 0 | AW40: =施設資源化量内訳!G40 -> 0 | AX40: =施設資源化量内訳!H40 -> 190 | AY40: =施設資源化量内訳!I40 -> 308 | AZ40: =施設資源化量内訳!J40 -> 21 | BA40: =施設資源化量内訳!K40 -> 0 | BB40: =施設資源化量内訳!L40 -> 0 | BC40: =施設資源化量内訳!M40 -> 0 | BD40: =施設資源化量内訳!N40 -> 0 | BE40: =施設資源化量内訳!O40 -> 0 | BF40: =施設資源化量内訳!P40 -> 0 | BG40: =施設資源化量内訳!Q40 -> 0 | BH40: =施設資源化量内訳!R40 -> 0 | BI40: =施設資源化量内訳!S40 -> 0 | BJ40: =施設資源化量内訳!T40 -> 0 | BK40: =施設資源化量内訳!U40 -> 0 | BL40: =施設資源化量内訳!V40 -> 0 | BM40: =施設資源化量内訳!W40 -> 0 | BN40: =施設資源化量内訳!X40 -> 0 | BO40: 57 | BP40: 23 | BQ40: 3 | BR40: 0 | BS40: 12 | BT40: 1 | BU40: 15 | BV40: 3 | BW40: 0 | BX40: 0 | BY40: 0 | BZ40: - | CA40: - | CB40: - | CC40: - | CD40: - | CE40: - | CF40: - | CG40: - | CH40: 0 | CI40: 0 | CJ40: 無い
A41: 茨城県 | B41: 08309 | C41: 大洗町 | D41: 1,080 | E41: 615 | F41: 0 | G41: 0 | H41: 202 | I41: 194 | J41: 52 | K41: 0 | L41: 0 | M41: 0 | N41: 7 | O41: 0 | P41: 0 | Q41: 0 | R41: 0 | S41: 0 | T41: 0 | U41: 0 | V41: 0 | W41: 0 | X41: 10 | Y41: 846 | Z41: 592 | AA41: 0 | AB41: 0 | AC41: 55 | AD41: 146 | AE41: 46 | AF41: 0 | AG41: 0 | AH41: 0 | AI41: 7 | AJ41: - | AK41: - | AL41: - | AM41: - | AN41: - | AO41: - | AP41: - | AQ41: - | AR41: 0 | AS41: 0 | AT41: =施設資源化量内訳!D41 -> 234 | AU41: =施設資源化量内訳!E41 -> 23 | AV41: =施設資源化量内訳!F41 -> 0 | AW41: =施設資源化量内訳!G41 -> 0 | AX41: =施設資源化量内訳!H41 -> 147 | AY41: =施設資源化量内訳!I41 -> 48 | AZ41: =施設資源化量内訳!J41 -> 6 | BA41: =施設資源化量内訳!K41 -> 0 | BB41: =施設資源化量内訳!L41 -> 0 | BC41: =施設資源化量内訳!M41 -> 0 | BD41: =施設資源化量内訳!N41 -> 0 | BE41: =施設資源化量内訳!O41 -> 0 | BF41: =施設資源化量内訳!P41 -> 0 | BG41: =施設資源化量内訳!Q41 -> 0 | BH41: =施設資源化量内訳!R41 -> 0 | BI41: =施設資源化量内訳!S41 -> 0 | BJ41: =施設資源化量内訳!T41 -> 0 | BK41: =施設資源化量内訳!U41 -> 0 | BL41: =施設資源化量内訳!V41 -> 0 | BM41: =施設資源化量内訳!W41 -> 0 | BN41: =施設資源化量内訳!X41 -> 10 | BO41: 0 | BP41: 0 | BQ41: 0 | BR41: 0 | BS41: 0 | BT41: 0 | BU41: 0 | BV41: 0 | BW41: 0 | BX41: 0 | BY41: 0 | BZ41: - | CA41: - | CB41: - | CC41: - | CD41: - | CE41: - | CF41: - | CG41: - | CH41: 0 | CI41: 0 | CJ41: 有る
A42: 茨城県 | B42: 08310 | C42: 城里町 | D42: 725 | E42: 242 | F42: 0 | G42: 0 | H42: 237 | I42: 135 | J42: 17 | K42: 0 | L42: 0 | M42: 0 | N42: 0 | O42: 0 | P42: 0 | Q42: 91 | R42: 0 | S42: 0 | T42: 0 | U42: 0 | V42: 0 | W42: 3 | X42: 0 | Y42: 0 | Z42: 0 | AA42: 0 | AB42: 0 | AC42: 0 | AD42: 0 | AE42: 0 | AF42: 0 | AG42: 0 | AH42: 0 | AI42: 0 | AJ42: - | AK42: - | AL42: - | AM42: - | AN42: - | AO42: - | AP42: - | AQ42: - | AR42: 0 | AS42: 0 | AT42: =施設資源化量内訳!D42 -> 483 | AU42: =施設資源化量内訳!E42 -> 0 | AV42: =施設資源化量内訳!F42 -> 0 | AW42: =施設資源化量内訳!G42 -> 0 | AX42: =施設資源化量内訳!H42 -> 237 | AY42: =施設資源化量内訳!I42 -> 135 | AZ42: =施設資源化量内訳!J42 -> 17 | BA42: =施設資源化量内訳!K42 -> 0 | BB42: =施設資源化量内訳!L42 -> 0 | BC42: =施設資源化量内訳!M42 -> 0 | BD42: =施設資源化量内訳!N42 -> 0 | BE42: =施設資源化量内訳!O42 -> 0 | BF42: =施設資源化量内訳!P42 -> 0 | BG42: =施設資源化量内訳!Q42 -> 91 | BH42: =施設資源化量内訳!R42 -> 0 | BI42: =施設資源化量内訳!S42 -> 0 | BJ42: =施設資源化量内訳!T42 -> 0 | BK42: =施設資源化量内訳!U42 -> 0 | BL42: =施設資源化量内訳!V42 -> 0 | BM42: =施設資源化量内訳!W42 -> 3 | BN42: =施設資源化量内訳!X42 -> 0 | BO42: 242 | BP42: 242 | BQ42: 0 | BR42: 0 | BS42: 0 | BT42: 0 | BU42: 0 | BV42: 0 | BW42: 0 | BX42: 0 | BY42: 0 | BZ42: - | CA42: - | CB42: - | CC42: - | CD42: - | CE42: - | CF42: - | CG42: - | CH42: 0 | CI42: 0 | CJ42: 無い
A43: 茨城県 | B43: 08341 | C43: 東海村 | D43: 3,396 | E43: 1,056 | F43: 10 | G43: 89 | H43: 255 | I43: 179 | J43: 46 | K43: 0 | L43: 194 | M43: 0 | N43: 121 | O43: 382 | P43: 0 | Q43: 0 | R43: 0 | S43: 0 | T43: 0 | U43: 0 | V43: 0 | W43: 0 | X43: 1,064 | Y43: 2,295 | Z43: 1,017 | AA43: 9 | AB43: 89 | AC43: 0 | AD43: 0 | AE43: 0 | AF43: 0 | AG43: 0 | AH43: 0 | AI43: 120 | AJ43: - | AK43: - | AL43: - | AM43: - | AN43: - | AO43: - | AP43: - | AQ43: - | AR43: 0 | AS43: 1,060 | AT43: =施設資源化量内訳!D43 -> 1,053 | AU43: =施設資源化量内訳!E43 -> 0 | AV43: =施設資源化量内訳!F43 -> 0 | AW43: =施設資源化量内訳!G43 -> 0 | AX43: =施設資源化量内訳!H43 -> 248 | AY43: =施設資源化量内訳!I43 -> 179 | AZ43: =施設資源化量内訳!J43 -> 46 | BA43: =施設資源化量内訳!K43 -> 0 | BB43: =施設資源化量内訳!L43 -> 194 | BC43: =施設資源化量内訳!M43 -> 0 | BD43: =施設資源化量内訳!N43 -> 0 | BE43: =施設資源化量内訳!O43 -> 382 | BF43: =施設資源化量内訳!P43 -> 0 | BG43: =施設資源化量内訳!Q43 -> 0 | BH43: =施設資源化量内訳!R43 -> 0 | BI43: =施設資源化量内訳!S43 -> 0 | BJ43: =施設資源化量内訳!T43 -> 0 | BK43: =施設資源化量内訳!U43 -> 0 | BL43: =施設資源化量内訳!V43 -> 0 | BM43: =施設資源化量内訳!W43 -> 0 | BN43: =施設資源化量内訳!X43 -> 4 | BO43: 48 | BP43: 39 | BQ43: 1 | BR43: 0 | BS43: 7 | BT43: 0 | BU43: 0 | BV43: 0 | BW43: 0 | BX43: 0 | BY43: 1 | BZ43: - | CA43: - | CB43: - | CC43: - | CD43: - | CE43: - | CF43: - | CG43: - | CH43: 0 | CI43: 0 | CJ43: 有る
A44: 茨城県 | B44: 08364 | C44: 大子町 | D44: 1,356 | E44: 785 | F44: 0 | G44: 0 | H44: 219 | I44: 292 | J44: 41 | K44: 0 | L44: 4 | M44: 0 | N44: 0 | O44: 0 | P44: 0 | Q44: 0 | R44: 0 | S44: 0 | T44: 0 | U44: 0 | V44: 0 | W44: 0 | X44: 15 | Y44: 1,092 | Z44: 785 | AA44: 0 | AB44: 0 | AC44: 0 | AD44: 292 | AE44: 0 | AF44: 0 | AG44: 0 | AH44: 0 | AI44: 0 | AJ44: - | AK44: - | AL44: - | AM44: - | AN44: - | AO44: - | AP44: - | AQ44: - | AR44: 0 | AS44: 15 | AT44: =施設資源化量内訳!D44 -> 264 | AU44: =施設資源化量内訳!E44 -> 0 | AV44: =施設資源化量内訳!F44 -> 0 | AW44: =施設資源化量内訳!G44 -> 0 | AX44: =施設資源化量内訳!H44 -> 219 | AY44: =施設資源化量内訳!I44 -> 0 | AZ44: =施設資源化量内訳!J44 -> 41 | BA44: =施設資源化量内訳!K44 -> 0 | BB44: =施設資源化量内訳!L44 -> 4 | BC44: =施設資源化量内訳!M44 -> 0 | BD44: =施設資源化量内訳!N44 -> 0 | BE44: =施設資源化量内訳!O44 -> 0 | BF44: =施設資源化量内訳!P44 -> 0 | BG44: =施設資源化量内訳!Q44 -> 0 | BH44: =施設資源化量内訳!R44 -> 0 | BI44: =施設資源化量内訳!S44 -> 0 | BJ44: =施設資源化量内訳!T44 -> 0 | BK44: =施設資源化量内訳!U44 -> 0 | BL44: =施設資源化量内訳!V44 -> 0 | BM44: =施設資源化量内訳!W44 -> 0 | BN44: =施設資源化量内訳!X44 -> 0 | BO44: 0 | BP44: 0 | BQ44: 0 | BR44: 0 | BS44: 0 | BT44: 0 | BU44: 0 | BV44: 0 | BW44: 0 | BX44: 0 | BY44: 0 | BZ44: - | CA44: - | CB44: - | CC44: - | CD44: - | CE44: - | CF44: - | CG44: - | CH44: 0 | CI44: 0 | CJ44: 有る
A45: 茨城県 | B45: 08442 | C45: 美浦村 | D45: 1,484 | E45: 881 | F45: 0 | G45: 47 | H45: 197 | I45: 217 | J45: 17 | K45: 0 | L45: 68 | M45: 0 | N45: 2 | O45: 0 | P45: 0 | Q45: 34 | R45: 0 | S45: 0 | T45: 0 | U45: 0 | V45: 0 | W45: 0 | X45: 21 | Y45: 1,001 | Z45: 638 | AA45: 0 | AB45: 47 | AC45: 115 | AD45: 100 | AE45: 17 | AF45: 0 | AG45: 68 | AH45: 0 | AI45: 0 | AJ45: - | AK45: - | AL45: - | AM45: - | AN45: - | AO45: - | AP45: - | AQ45: - | AR45: 0 | AS45: 16 | AT45: =施設資源化量内訳!D45 -> 232 | AU45: =施設資源化量内訳!E45 -> 0 | AV45: =施設資源化量内訳!F45 -> 0 | AW45: =施設資源化量内訳!G45 -> 0 | AX45: =施設資源化量内訳!H45 -> 77 | AY45: =施設資源化量内訳!I45 -> 116 | AZ45: =施設資源化量内訳!J45 -> 0 | BA45: =施設資源化量内訳!K45 -> 0 | BB45: =施設資源化量内訳!L45 -> 0 | BC45: =施設資源化量内訳!M45 -> 0 | BD45: =施設資源化量内訳!N45 -> 0 | BE45: =施設資源化量内訳!O45 -> 0 | BF45: =施設資源化量内訳!P45 -> 0 | BG45: =施設資源化量内訳!Q45 -> 34 | BH45: =施設資源化量内訳!R45 -> 0 | BI45: =施設資源化量内訳!S45 -> 0 | BJ45: =施設資源化量内訳!T45 -> 0 | BK45: =施設資源化量内訳!U45 -> 0 | BL45: =施設資源化量内訳!V45 -> 0 | BM45: =施設資源化量内訳!W45 -> 0 | BN45: =施設資源化量内訳!X45 -> 5 | BO45: 251 | BP45: 243 | BQ45: 0 | BR45: 0 | BS45: 5 | BT45: 1 | BU45: 0 | BV45: 0 | BW45: 0 | BX45: 0 | BY45: 2 | BZ45: - | CA45: - | CB45: - | CC45: - | CD45: - | CE45: - | CF45: - | CG45: - | CH45: 0 | CI45: 0 | CJ45: 無い
A46: 茨城県 | B46: 08443 | C46: 阿見町 | D46: 4,363 | E46: 3,198 | F46: 15 | G46: 0 | H46: 573 | I46: 256 | J46: 226 | K46: 13 | L46: 0 | M46: 0 | N46: 76 | O46: 0 | P46: 0 | Q46: 0 | R46: 0 | S46: 0 | T46: 0 | U46: 0 | V46: 0 | W46: 6 | X46: 0 | Y46: 713 | Z46: 635 | AA46: 2 | AB46: 0 | AC46: 0 | AD46: 0 | AE46: 0 | AF46: 0 | AG46: 0 | AH46: 0 | AI46: 70 | AJ46: - | AK46: - | AL46: - | AM46: - | AN46: - | AO46: - | AP46: - | AQ46: - | AR46: 6 | AS46: 0 | AT46: =施設資源化量内訳!D46 -> 764 | AU46: =施設資源化量内訳!E46 -> 0 | AV46: =施設資源化量内訳!F46 -> 0 | AW46: =施設資源化量内訳!G46 -> 0 | AX46: =施設資源化量内訳!H46 -> 412 | AY46: =施設資源化量内訳!I46 -> 247 | AZ46: =施設資源化量内訳!J46 -> 105 | BA46: =施設資源化量内訳!K46 -> 0 | BB46: =施設資源化量内訳!L46 -> 0 | BC46: =施設資源化量内訳!M46 -> 0 | BD46: =施設資源化量内訳!N46 -> 0 | BE46: =施設資源化量内訳!O46 -> 0 | BF46: =施設資源化量内訳!P46 -> 0 | BG46: =施設資源化量内訳!Q46 -> 0 | BH46: =施設資源化量内訳!R46 -> 0 | BI46: =施設資源化量内訳!S46 -> 0 | BJ46: =施設資源化量内訳!T46 -> 0 | BK46: =施設資源化量内訳!U46 -> 0 | BL46: =施設資源化量内訳!V46 -> 0 | BM46: =施設資源化量内訳!W46 -> 0 | BN46: =施設資源化量内訳!X46 -> 0 | BO46: 2,886 | BP46: 2,563 | BQ46: 13 | BR46: 0 | BS46: 161 | BT46: 9 | BU46: 121 | BV46: 13 | BW46: 0 | BX46: 0 | BY46: 6 | BZ46: - | CA46: - | CB46: - | CC46: - | CD46: - | CE46: - | CF46: - | CG46: - | CH46: 0 | CI46: 0 | CJ46: 有る
A47: 茨城県 | B47: 08447 | C47: 河内町 | D47: 840 | E47: 204 | F47: 0 | G47: 0 | H47: 89 | I47: 56 | J47: 17 | K47: 0 | L47: 0 | M47: 0 | N47: 5 | O47: 0 | P47: 0 | Q47: 200 | R47: 0 | S47: 0 | T47: 0 | U47: 0 | V47: 0 | W47: 0 | X47: 269 | Y47: 526 | Z47: 197 | AA47: 0 | AB47: 0 | AC47: 0 | AD47: 55 | AE47: 0 | AF47: 0 | AG47: 0 | AH47: 0 | AI47: 5 | AJ47: - | AK47: - | AL47: - | AM47: - | AN47: - | AO47: - | AP47: - | AQ47: - | AR47: 0 | AS47: 269 | AT47: =施設資源化量内訳!D47 -> 306 | AU47: =施設資源化量内訳!E47 -> 0 | AV47: =施設資源化量内訳!F47 -> 0 | AW47: =施設資源化量内訳!G47 -> 0 | AX47: =施設資源化量内訳!H47 -> 89 | AY47: =施設資源化量内訳!I47 -> 0 | AZ47: =施設資源化量内訳!J47 -> 17 | BA47: =施設資源化量内訳!K47 -> 0 | BB47: =施設資源化量内訳!L47 -> 0 | BC47: =施設資源化量内訳!M47 -> 0 | BD47: =施設資源化量内訳!N47 -> 0 | BE47: =施設資源化量内訳!O47 -> 0 | BF47: =施設資源化量内訳!P47 -> 0 | BG47: =施設資源化量内訳!Q47 -> 200 | BH47: =施設資源化量内訳!R47 -> 0 | BI47: =施設資源化量内訳!S47 -> 0 | BJ47: =施設資源化量内訳!T47 -> 0 | BK47: =施設資源化量内訳!U47 -> 0 | BL47: =施設資源化量内訳!V47 -> 0 | BM47: =施設資源化量内訳!W47 -> 0 | BN47: =施設資源化量内訳!X47 -> 0 | BO47: 8 | BP47: 7 | BQ47: 0 | BR47: 0 | BS47: 0 | BT47: 1 | BU47: 0 | BV47: 0 | BW47: 0 | BX47: 0 | BY47: 0 | BZ47: - | CA47: - | CB47: - | CC47: - | CD47: - | CE47: - | CF47: - | CG47: - | CH47: 0 | CI47: 0 | CJ47: 有る
A48: 茨城県 | B48: 08521 | C48: 八千代町 | D48: 782 | E48: 378 | F48: 0 | G48: 0 | H48: 187 | I48: 159 | J48: 58 | K48: 0 | L48: 0 | M48: 0 | N48: 0 | O48: 0 | P48: 0 | Q48: 0 | R48: 0 | S48: 0 | T48: 0 | U48: 0 | V48: 0 | W48: 0 | X48: 0 | Y48: 638 | Z48: 347 | AA48: 0 | AB48: 0 | AC48: 77 | AD48: 157 | AE48: 57 | AF48: 0 | AG48: 0 | AH48: 0 | AI48: 0 | AJ48: - | AK48: - | AL48: - | AM48: - | AN48: - | AO48: - | AP48: - | AQ48: - | AR48: 0 | AS48: 0 | AT48: =施設資源化量内訳!D48 -> 107 | AU48: =施設資源化量内訳!E48 -> 0 | AV48: =施設資源化量内訳!F48 -> 0 | AW48: =施設資源化量内訳!G48 -> 0 | AX48: =施設資源化量内訳!H48 -> 105 | AY48: =施設資源化量内訳!I48 -> 2 | AZ48: =施設資源化量内訳!J48 -> 0 | BA48: =施設資源化量内訳!K48 -> 0 | BB48: =施設資源化量内訳!L48 -> 0 | BC48: =施設資源化量内訳!M48 -> 0 | BD48: =施設資源化量内訳!N48 -> 0 | BE48: =施設資源化量内訳!O48 -> 0 | BF48: =施設資源化量内訳!P48 -> 0 | BG48: =施設資源化量内訳!Q48 -> 0 | BH48: =施設資源化量内訳!R48 -> 0 | BI48: =施設資源化量内訳!S48 -> 0 | BJ48: =施設資源化量内訳!T48 -> 0 | BK48: =施設資源化量内訳!U48 -> 0 | BL48: =施設資源化量内訳!V48 -> 0 | BM48: =施設資源化量内訳!W48 -> 0 | BN48: =施設資源化量内訳!X48 -> 0 | BO48: 37 | BP48: 31 | BQ48: 0 | BR48: 0 | BS48: 5 | BT48: 0 | BU48: 1 | BV48: 0 | BW48: 0 | BX48: 0 | BY48: 0 | BZ48: - | CA48: - | CB48: - | CC48: - | CD48: - | CE48: - | CF48: - | CG48: - | CH48: 0 | CI48: 0 | CJ48: 有る
A49: 茨城県 | B49: 08542 | C49: 五霞町 | D49: 512 | E49: 193 | F49: 0 | G49: 0 | H49: 93 | I49: 52 | J49: 31 | K49: 0 | L49: 0 | M49: 0 | N49: 0 | O49: 0 | P49: 0 | Q49: 143 | R49: 0 | S49: 0 | T49: 0 | U49: 0 | V49: 0 | W49: 0 | X49: 0 | Y49: 81 | Z49: 81 | AA49: 0 | AB49: 0 | AC49: 0 | AD49: 0 | AE49: 0 | AF49: 0 | AG49: 0 | AH49: 0 | AI49: 0 | AJ49: - | AK49: - | AL49: - | AM49: - | AN49: - | AO49: - | AP49: - | AQ49: - | AR49: 0 | AS49: 0 | AT49: =施設資源化量内訳!D49 -> 317 | AU49: =施設資源化量内訳!E49 -> 0 | AV49: =施設資源化量内訳!F49 -> 0 | AW49: =施設資源化量内訳!G49 -> 0 | AX49: =施設資源化量内訳!H49 -> 91 | AY49: =施設資源化量内訳!I49 -> 52 | AZ49: =施設資源化量内訳!J49 -> 31 | BA49: =施設資源化量内訳!K49 -> 0 | BB49: =施設資源化量内訳!L49 -> 0 | BC49: =施設資源化量内訳!M49 -> 0 | BD49: =施設資源化量内訳!N49 -> 0 | BE49: =施設資源化量内訳!O49 -> 0 | BF49: =施設資源化量内訳!P49 -> 0 | BG49: =施設資源化量内訳!Q49 -> 143 | BH49: =施設資源化量内訳!R49 -> 0 | BI49: =施設資源化量内訳!S49 -> 0 | BJ49: =施設資源化量内訳!T49 -> 0 | BK49: =施設資源化量内訳!U49 -> 0 | BL49: =施設資源化量内訳!V49 -> 0 | BM49: =施設資源化量内訳!W49 -> 0 | BN49: =施設資源化量内訳!X49 -> 0 | BO49: 114 | BP49: 112 | BQ49: 0 | BR49: 0 | BS49: 2 | BT49: 0 | BU49: 0 | BV49: 0 | BW49: 0 | BX49: 0 | BY49: 0 | BZ49: - | CA49: - | CB49: - | CC49: - | CD49: - | CE49: - | CF49: - | CG49: - | CH49: 0 | CI49: 0 | CJ49: 有る
A50: 茨城県 | B50: 08546 | C50: 境町 | D50: 1,528 | E50: 596 | F50: 4 | G50: 0 | H50: 177 | I50: 183 | J50: 67 | K50: 0 | L50: 0 | M50: 0 | N50: 74 | O50: 0 | P50: 0 | Q50: 328 | R50: 0 | S50: 0 | T50: 0 | U50: 0 | V50: 0 | W50: 0 | X50: 99 | Y50: 619 | Z50: 386 | AA50: 0 | AB50: 0 | AC50: 23 | AD50: 3 | AE50: 34 | AF50: 0 | AG50: 0 | AH50: 0 | AI50: 74 | AJ50: - | AK50: - | AL50: - | AM50: - | AN50: - | AO50: - | AP50: - | AQ50: - | AR50: 0 | AS50: 99 | AT50: =施設資源化量内訳!D50 -> 697 | AU50: =施設資源化量内訳!E50 -> 14 | AV50: =施設資源化量内訳!F50 -> 0 | AW50: =施設資源化量内訳!G50 -> 0 | AX50: =施設資源化量内訳!H50 -> 150 | AY50: =施設資源化量内訳!I50 -> 173 | AZ50: =施設資源化量内訳!J50 -> 32 | BA50: =施設資源化量内訳!K50 -> 0 | BB50: =施設資源化量内訳!L50 -> 0 | BC50: =施設資源化量内訳!M50 -> 0 | BD50: =施設資源化量内訳!N50 -> 0 | BE50: =施設資源化量内訳!O50 -> 0 | BF50: =施設資源化量内訳!P50 -> 0 | BG50: =施設資源化量内訳!Q50 -> 328 | BH50: =施設資源化量内訳!R50 -> 0 | BI50: =施設資源化量内訳!S50 -> 0 | BJ50: =施設資源化量内訳!T50 -> 0 | BK50: =施設資源化量内訳!U50 -> 0 | BL50: =施設資源化量内訳!V50 -> 0 | BM50: =施設資源化量内訳!W50 -> 0 | BN50: =施設資源化量内訳!X50 -> 0 | BO50: 212 | BP50: 196 | BQ50: 4 | BR50: 0 | BS50: 4 | BT50: 7 | BU50: 1 | BV50: 0 | BW50: 0 | BX50: 0 | BY50: 0 | BZ50: - | CA50: - | CB50: - | CC50: - | CD50: - | CE50: - | CF50: - | CG50: - | CH50: 0 | CI50: 0 | CJ50: 有る
A51: 茨城県 | B51: 08564 | C51: 利根町 | D51: 894 | E51: 258 | F51: 2 | G51: 0 | H51: 147 | I51: 86 | J51: 23 | K51: 1 | L51: 0 | M51: 0 | N51: 10 | O51: 0 | P51: 0 | Q51: 362 | R51: 0 | S51: 0 | T51: 0 | U51: 0 | V51: 0 | W51: 0 | X51: 5 | Y51: 362 | Z51: 258 | AA51: 2 | AB51: 0 | AC51: 0 | AD51: 86 | AE51: 0 | AF51: 1 | AG51: 0 | AH51: 0 | AI51: 10 | AJ51: - | AK51: - | AL51: - | AM51: - | AN51: - | AO51: - | AP51: - | AQ51: - | AR51: 0 | AS51: 5 | AT51: =施設資源化量内訳!D51 -> 532 | AU51: =施設資源化量内訳!E51 -> 0 | AV51: =施設資源化量内訳!F51 -> 0 | AW51: =施設資源化量内訳!G51 -> 0 | AX51: =施設資源化量内訳!H51 -> 147 | AY51: =施設資源化量内訳!I51 -> 0 | AZ51: =施設資源化量内訳!J51 -> 23 | BA51: =施設資源化量内訳!K51 -> 0 | BB51: =施設資源化量内訳!L51 -> 0 | BC51: =施設資源化量内訳!M51 -> 0 | BD51: =施設資源化量内訳!N51 -> 0 | BE51: =施設資源化量内訳!O51 -> 0 | BF51: =施設資源化量内訳!P51 -> 0 | BG51: =施設資源化量内訳!Q51 -> 362 | BH51: =施設資源化量内訳!R51 -> 0 | BI51: =施設資源化量内訳!S51 -> 0 | BJ51: =施設資源化量内訳!T51 -> 0 | BK51: =施設資源化量内訳!U51 -> 0 | BL51: =施設資源化量内訳!V51 -> 0 | BM51: =施設資源化量内訳!W51 -> 0 | BN51: =施設資源化量内訳!X51 -> 0 | BO51: 0 | BP51: 0 | BQ51: 0 | BR51: 0 | BS51: 0 | BT51: 0 | BU51: 0 | BV51: 0 | BW51: 0 | BX51: 0 | BY51: 0 | BZ51: - | CA51: - | CB51: - | CC51: - | CD51: - | CE51: - | CF51: - | CG51: - | CH51: 0 | CI51: 0 | CJ51: 有る

Sheet 施設資源化量内訳
A1: 中間処理後の再生利用量の状況（平成28年度実績）
A2: 都道府県名 | B2: 地方公共団体コード | C2: 市区町村名 | D2: 中間処理後再生利用量 (紙類+金属類+ガラス類+ペットボトル+容器包装プラスチック+プラスチック類+布類+肥料+飼料+溶融スラグ+固形燃料+燃料+焼却灰・飛灰+セメント直接投入+廃食用油+その他)
D3: 合計 | E3: 紙類(02、03を除く) | F3: 紙パック | G3: 紙製容器包装 | H3: 金属類 | I3: ガラス類 | J3: ペットボトル | K3: 白色トレイ | L3: 容器包装プラスチック（07を除く） | M3: プラスチック類（07,08を除く） | N3: 布類 | O3: 肥料 | P3: 飼料 | Q3: 溶融スラグ | R3: 固形燃料 （RDF,RPF） | S3: 燃料 （14を除く） | T3: 焼却灰・飛灰のセメント原料化 | U3: セメント等への直接投入 | V3: 飛灰の山元還元 | W3: 廃食用油（BDF) | X3: その他 | Y3: 焼却施設処理に伴う資源化量(紙類+金属類+ガラス類+ペットボトル+容器包装プラスチック+プラスチック類+布類+溶融スラグ+焼却灰・飛灰+その他) | AT3: 粗大ごみ処理施設処理に伴う資源化量(紙類+金属類+ガラス類+ペットボトル+容器包装プラスチック+プラスチック類+布類+その他) | BO3: ごみ堆肥化施設処理に伴う資源化量(紙類+金属類+ガラス類+ペットボトル+容器包装プラスチック+プラスチック類+布類+肥料+飼料+その他) | CJ3: ごみ飼料化施設処理に伴う資源化量 (紙類+金属類+ガラス類+ペットボトル+容器包装プラスチック+プラスチック類+布類+肥料+飼料+その他) | DE3: メタン化施設処理に伴う資源化量 (紙類+金属類+ガラス類+プラスチック+容器包装プラスチック+プラスチック類+布類+肥料+飼料+燃料+その他) | DZ3: ごみ燃料化施設処理に伴う資源化量 (紙類+金属類+ガラス類+ペットボトル+容器包装プラスチック+プラスチック類+布類+固形燃料+燃料+廃食用油+その他) | EU3: その他の資源化等を行う施設処理に伴う資源化量 (紙類+金属類+ガラス類+ペットボトル+容器包装プラスチック+プラスチック類+布類+肥料+飼料+焼却灰・飛灰+セメント直接投入+廃食用油+その他)
Y4: 合計 | Z4: 紙類(02、03を除く) | AA4: 紙パック | AB4: 紙製容器包装 | AC4: 金属類 | AD4: ガラス類 | AE4: ペットボトル | AF4: 白色トレイ | AG4: 容器包装プラスチック（07を除く） | AH4: プラスチック類(07,08を除く) | AI4: 布類 | AJ4: 肥料 | AK4: 飼料 | AL4: 溶融スラグ | AM4: 固形燃料 （RDF,RPF） | AN4: 燃料 （14を除く） | AO4: 焼却灰・飛灰のセメント原料化 | AP4: セメント等への直接投入 | AQ4: 飛灰の山元還元 | AR4: 廃食用油（BDF) | AS4: その他 | AT4: 合計 | AU4: 紙類(02、03を除く) | AV4: 紙パック | AW4: 紙製容器包装 | AX4: 金属類 | AY4: ガラス類 | AZ4: ペットボトル | BA4: 白色トレイ | BB4: 容器包装プラスチック（07を除く） | BC4: プラスチック類(07,08を除く) | BD4: 布類 | BE4: 肥料 | BF4: 飼料 | BG4: 溶融スラグ | BH4: 固形燃料 （RDF,RPF） | BI4: 燃料 （14を除く） | BJ4: 焼却灰・飛灰のセメント原料化 | BK4: セメント等への直接投入 | BL4: 飛灰の山元還元 | BM4: 廃食用油（BDF) | BN4: その他 | BO4: 合計 | BP4: 紙類(02、03を除く) | BQ4: 紙パック | BR4: 紙製容器包装 | BS4: 金属類 | BT4: ガラス類 | BU4: ペットボトル | BV4: 白色トレイ | BW4: 容器包装プラスチック（07を除く） | BX4: プラスチック類(07,08を除く) | BY4: 布類 | BZ4: 肥料 | CA4: 飼料 | CB4: 溶融スラグ | CC4: 固形燃料 （RDF,RPF） | CD4: 燃料 （14を除く） | CE4: 焼却灰・飛灰のセメント原料化 | CF4: セメント等への直接投入 | CG4: 飛灰の山元還元 | CH4: 廃食用油（BDF) | CI4: その他 | CJ4: 合計 | CK4: 紙類(02、03を除く) | CL4: 紙パック | CM4: 紙製容器包装 | CN4: 金属類 | CO4: ガラス類 | CP4: ペットボトル | CQ4: 白色トレイ | CR4: 容器包装プラスチック（07を除く） | CS4: プラスチック類(07,08を除く) | CT4: 布類 | CU4: 肥料 | CV4: 飼料 | CW4: 溶融スラグ | CX4: 固形燃料 （RDF,RPF） | CY4: 燃料 （14を除く） | CZ4: 焼却灰・飛灰のセメント原料化 | DA4: セメント等への直接投入 | DB4: 飛灰の山元還元 | DC4: 廃食用油（BDF) | DD4: その他 | DE4: 合計 | DF4: 紙類(02、03を除く) | DG4: 紙パック | DH4: 紙製容器包装 | DI4: 金属類 | DJ4: ガラス類 | DK4: ペットボトル | DL4: 白色トレイ | DM4: 容器包装プラスチック（07を除く） | DN4: プラスチック類(07,08を除く) | DO4: 布類 | DP4: 肥料 | DQ4: 飼料 | DR4: 溶融スラグ | DS4: 固形燃料 （RDF,RPF） | DT4: 燃料 （14を除く） | DU4: 焼却灰・飛灰のセメント原料化 | DV4: セメント等への直接投入 | DW4: 飛灰の山元還元 | DX4: 廃食用油（BDF) | DY4: その他 | DZ4: 合計 | EA4: 紙類(02、03を除く) | EB4: 紙パック | EC4: 紙製容器包装 | ED4: 金属類 | EE4: ガラス類 | EF4: ペットボトル | EG4: 白色トレイ | EH4: 容器包装プラスチック（07を除く） | EI4: プラスチック類(07,08を除く) | EJ4: 布類 | EK4: 肥料 | EL4: 飼料 | EM4: 溶融スラグ | EN4: 固形燃料 （RDF,RPF） | EO4: 燃料 （14を除く） | EP4: 焼却灰・飛灰のセメント原料化 | EQ4: セメント等への直接投入 | ER4: 飛灰の山元還元 | ES4: 廃食用油（BDF) | ET4: その他 | EU4: 合計 | EV4: 紙類(02、03を除く) | EW4: 紙パック | EX4: 紙製容器包装 | EY4: 金属類 | EZ4: ガラス類 | FA4: ペットボトル | FB4: 白色トレイ | FC4: 容器包装プラスチック（07を除く） | FD4: プラスチック類(07,08を除く) | FE4: 布類 | FF4: 肥料 | FG4: 飼料 | FH4: 溶融スラグ | FI4: 固形燃料 （RDF,RPF） | FJ4: 燃料 （14を除く） | FK4: 焼却灰・飛灰のセメント原料化 | FL4: セメント等への直接投入 | FM4: 飛灰の山元還元 | FN4: 廃食用油（BDF) | FO4: その他
D6: （ｔ） | E6: （ｔ） | F6: （ｔ） | G6: （ｔ） | H6: （ｔ） | I6: （ｔ） | J6: （ｔ） | K6: （ｔ） | M6: （ｔ） | N6: （ｔ） | O6: （ｔ） | P6: （ｔ） | Q6: （ｔ） | R6: （ｔ） | S6: （ｔ） | T6: （ｔ） | U6: （ｔ） | V6: （ｔ） | W6: （ｔ） | X6: （ｔ） | Y6: （ｔ） | Z6: （ｔ） | AA6: （ｔ） | AB6: （ｔ） | AC6: （ｔ） | AD6: （ｔ） | AE6: （ｔ） | AF6: （ｔ） | AG6: （ｔ） | AH6: （ｔ） | AI6: （ｔ） | AJ6: （ｔ） | AK6: （ｔ） | AL6: （ｔ） | AM6: （ｔ） | AN6: （ｔ） | AO6: （ｔ） | AP6: （ｔ） | AQ6: （ｔ） | AR6: （ｔ） | AS6: （ｔ） | AT6: （ｔ） | AU6: （ｔ） | AV6: （ｔ） | AW6: （ｔ） | AX6: （ｔ） | AY6: （ｔ） | AZ6: （ｔ） | BA6: （ｔ） | BB6: （ｔ） | BC6: （ｔ） | BD6: （ｔ） | BE6: （ｔ） | BF6: （ｔ） | BG6: （ｔ） | BH6: （ｔ） | BI6: （ｔ） | BJ6: （ｔ） | BK6: （ｔ） | BL6: （ｔ） | BM6: （ｔ） | BN6: （ｔ） | BO6: （ｔ） | BP6: （ｔ） | BQ6: （ｔ） | BR6: （ｔ） | BS6: （ｔ） | BT6: （ｔ） | BU6: （ｔ） | BV6: （ｔ） | BW6: （ｔ） | BX6: （ｔ） | BY6: （ｔ） | BZ6: （ｔ） | CA6: （ｔ） | CB6: （ｔ） | CC6: （ｔ） | CD6: （ｔ） | CE6: （ｔ） | CF6: （ｔ） | CG6: （ｔ） | CH6: （ｔ） | CI6: （ｔ） | CJ6: （ｔ） | CK6: （ｔ） | CL6: （ｔ） | CM6: （ｔ） | CN6: （ｔ） | CO6: （ｔ） | CP6: （ｔ） | CQ6: （ｔ） | CR6: （ｔ） | CS6: （ｔ） | CT6: （ｔ） | CU6: （ｔ） | CV6: （ｔ） | CW6: （ｔ） | CX6: （ｔ） | CY6: （ｔ） | CZ6: （ｔ） | DA6: （ｔ） | DB6: （ｔ） | DC6: （ｔ） | DD6: （ｔ） | DE6: （ｔ） | DF6: （ｔ） | DG6: （ｔ） | DH6: （ｔ） | DI6: （ｔ） | DJ6: （ｔ） | DK6: （ｔ） | DL6: （ｔ） | DM6: （ｔ） | DN6: （ｔ） | DO6: （ｔ） | DP6: （ｔ） | DQ6: （ｔ） | DR6: （ｔ） | DS6: （ｔ） | DT6: （ｔ） | DU6: （ｔ） | DV6: （ｔ） | DW6: （ｔ） | DX6: （ｔ） | DY6: （ｔ） | DZ6: （ｔ） | EA6: （ｔ） | EB6: （ｔ） | EC6: （ｔ） | ED6: （ｔ） | EE6: （ｔ） | EF6: （ｔ） | EG6: （ｔ） | EH6: （ｔ） | EI6: （ｔ） | EJ6: （ｔ） | EK6: （ｔ） | EL6: （ｔ） | EM6: （ｔ） | EN6: （ｔ） | EO6: （ｔ） | EP6: （ｔ） | EQ6: （ｔ） | ER6: （ｔ） | ES6: （ｔ） | ET6: （ｔ） | EU6: （ｔ） | EV6: （ｔ） | EW6: （ｔ） | EX6: （ｔ） | EY6: （ｔ） | EZ6: （ｔ） | FA6: （ｔ） | FB6: （ｔ） | FC6: （ｔ） | FD6: （ｔ） | FE6: （ｔ） | FF6: （ｔ） | FG6: （ｔ） | FH6: （ｔ） | FI6: （ｔ） | FJ6: （ｔ） | FK6: （ｔ） | FL6: （ｔ） | FM6: （ｔ） | FN6: （ｔ） | FO6: （ｔ）
A7: =ごみ処理概要!A7 -> 茨城県 | B7: =ごみ処理概要!B7 -> 08000 | C7: 合計 | D7: =SUM(Y7,AT7,BO7,CJ7,DE7,DZ7,EU7) -> 115,040 | E7: 9,710 | F7: 315 | G7: 53 | H7: 19,810 | I7: 13,918 | J7: 4,293 | K7: 70 | L7: 2,210 | M7: 611 | N7: 672 | O7: 874 | P7: 16 | Q7: 26,784 | R7: 25,147 | S7: 0 | T7: 0 | U7: 0 | V7: 0 | W7: 78 | X7: 10,479 | Y7: =SUM(Z7:AS7) -> 30,127 | Z7: =SUM(Z$8:Z$1000) -> 501 | AA7: 0 | AB7: 0 | AC7: 1,338 | AD7: 0 | AE7: 8 | AF7: 0 | AG7: 0 | AH7: 0 | AI7: 17 | AJ7: - | AK7: - | AL7: 26,784 | AM7: - | AN7: - | AO7: 0 | AP7: - | AQ7: 0 | AR7: - | AS7: 1,479 | AT7: =SUM(AU7:BN7) -> 14,868 | AU7: =SUM(AU$8:AU$1000) -> 637 | AV7: 22 | AW7: 0 | AX7: 10,808 | AY7: 2,007 | AZ7: 337 | BA7: 0 | BB7: 0 | BC7: 0 | BD7: 67 | BE7: - | BF7: - | BG7: - | BH7: - | BI7: - | BJ7: - | BK7: - | BL7: - | BM7: - | BN7: 990 | BO7: =SUM(BP7:CI7) -> 1,267 | BP7: =SUM(BP$8:BP$1000) -> 0 | BQ7: 0 | BR7: 0 | BS7: 0 | BT7: 0 | BU7: 0 | BV7: 0 | BW7: 0 | BX7: 0 | BY7: 0 | BZ7: 874 | CA7: 16 | CB7: - | CC7: - | CD7: - | CE7: - | CF7: - | CG7: - | CH7: - | CI7: 377 | CJ7: =SUM(CK7:DD7) -> 0 | CK7: =SUM(CK$8:CK$1000) -> 0 | CL7: 0 | CM7: 0 | CN7: 0 | CO7: 0 | CP7: 0 | CQ7: 0 | CR7: 0 | CS7: 0 | CT7: 0 | CU7: 0 | CV7: 0 | CW7: - | CX7: - | CY7: - | CZ7: - | DA7: - | DB7: - | DC7: - | DD7: 0 | DE7: =SUM(DF7:DY7) -> 0 | DF7: =SUM(DF$8:DF$1000) -> 0 | DG7: 0 | DH7: 0 | DI7: 0 | DJ7: 0 | DK7: 0 | DL7: 0 | DM7: 0 | DN7: 0 | DO7: 0 | DP7: 0 | DQ7: 0 | DR7: - | DS7: - | DT7: 0 | DU7: - | DV7: - | DW7: - | DX7: - | DY7: 0 | DZ7: =SUM(EA7:ET7) -> 25,236 | EA7: =SUM(EA$8:EA$1000) -> 0 | EB7: 0 | EC7: 0 | ED7: 36 | EE7: 0 | EF7: 0 | EG7: 0 | EH7: 0 | EI7: 0 | EJ7: 0 | EK7: - | EL7: - | EM7: - | EN7: 25,147 | EO7: 0 | EP7: - | EQ7: - | ER7: - | ES7: 53 | ET7: 0 | EU7: =SUM(EV7:FO7) -> 43,542 | EV7: =SUM(EV$8:EV$1000) -> 8,572 | EW7: 293 | EX7: 53 | EY7: 7,628 | EZ7: 11,911 | FA7: 3,948 | FB7: 70 | FC7: 2,210 | FD7: 611 | FE7: 588 | FF7: 0 | FG7: 0 | FH7: - | FI7: - | FJ7: - | FK7: 0 | FL7: 0 | FM7: 0 | FN7: 25 | FO7: 7,633
A8: 茨城県 | B8: 08201 | C8: 水戸市 | D8: =SUM(Y8,AT8,BO8,CJ8,DE8,DZ8,EU8) -> 5,381 | E8: =SUM(Z8,AU8,BP8,CK8,DF8,EA8,EV8) -> 2,171 | F8: =SUM(AA8,AV8,BQ8,CL8,DG8,EB8,EW8) -> 1 | G8: =SUM(AB8,AW8,BR8,CM8,DH8,EC8,EX8) -> 0 | H8: =SUM(AC8,AX8,BS8,CN8,DI8,ED8,EY8) -> 1,417 | I8: =SUM(AD8,AY8,BT8,CO8,DJ8,EE8,EZ8) -> 849 | J8: =SUM(AE8,AZ8,BU8,CP8,DK8,EF8,FA8) -> 100 | K8: =SUM(AF8,BA8,BV8,CQ8,DL8,EG8,FB8) -> 0 | L8: =SUM(AG8,BB8,BW8,CR8,DM8,EH8,FC8) -> 0 | M8: =SUM(AH8,BC8,BX8,CS8,DN8,EI8,FD8) -> 0 | N8: =SUM(AI8,BD8,BY8,CT8,DO8,EJ8,FE8) -> 59 | O8: =SUM(AJ8,BE8,BZ8,CU8,DP8,EK8,FF8) -> 0 | P8: =SUM(AK8,BF8,CA8,CV8,DQ8,EL8,FG8) -> 0 | Q8: =SUM(AL8,BG8,CB8,CW8,DR8,EM8,FH8) -> 0 | R8: =SUM(AM8,BH8,CC8,CX8,DS8,EN8,FI8) -> 0 | S8: =SUM(AN8,BI8,CD8,CY8,DT8,EO8,FJ8) -> 0 | T8: =SUM(AO8,BJ8,CE8,CZ8,DU8,EP8,FK8) -> 0 | U8: =SUM(AP8,BK8,CF8,DA8,DV8,EQ8,FL8) -> 0 | V8: =SUM(AQ8,BL8,CG8,DB8,DW8,ER8,FM8) -> 0 | W8: =SUM(AR8,BM8,CH8,DC8,DX8,ES8,FN8) -> 0 | X8: =SUM(AS8,BN8,CI8,DD8,DY8,ET8,FO8) -> 784 | Y8: 293 | Z8: 293 | AA8: 0 | AB8: 0 | AC8: 0 | AD8: 0 | AE8: 0 | AF8: 0 | AG8: 0 | AH8: 0 | AI8: 0 | AJ8: - | AK8: - | AL8: 0 | AM8: - | AN8: - | AO8: 0 | AP8: - | AQ8: 0 | AR8: - | AS8: 0 | AT8: 204 | AU8: 0 | AV8: 0 | AW8: 0 | AX8: 118 | AY8: 86 | AZ8: 0 | BA8: 0 | BB8: 0 | BC8: 0 | BD8: 0 | BE8: - | BF8: - | BG8: - | BH8: - | BI8: - | BJ8: - | BK8: - | BL8: - | BM8: - | BN8: 0 | BO8: 0 | BP8: 0 | BQ8: 0 | BR8: 0 | BS8: 0 | BT8: 0 | BU8: 0 | BV8: 0 | BW8: 0 | BX8: 0 | BY8: 0 | BZ8: 0 | CA8: 0 | CB8: - | CC8: - | CD8: - | CE8: - | CF8: - | CG8: - | CH8: - | CI8: 0 | CJ8: 0 | CK8: 0 | CL8: 0 | CM8: 0 | CN8: 0 | CO8: 0 | CP8: 0 | CQ8: 0 | CR8: 0 | CS8: 0 | CT8: 0 | CU8: 0 | CV8: 0 | CW8: - | CX8: - | CY8: - | CZ8: - | DA8: - | DB8: - | DC8: - | DD8: 0 | DE8: 0 | DF8: 0 | DG8: 0 | DH8: 0 | DI8: 0 | DJ8: 0 | DK8: 0 | DL8: 0 | DM8: 0 | DN8: 0 | DO8: 0 | DP8: 0 | DQ8: 0 | DR8: - | DS8: - | DT8: 0 | DU8: - | DV8: - | DW8: - | DX8: - | DY8: 0 | DZ8: 0 | EA8: 0 | EB8: 0 | EC8: 0 | ED8: 0 | EE8: 0 | EF8: 0 | EG8: 0 | EH8: 0 | EI8: 0 | EJ8: 0 | EK8: - | EL8: - | EM8: - | EN8: 0 | EO8: 0 | EP8: - | EQ8: - | ER8: - | ES8: 0 | ET8: 0 | EU8: 4,884 | EV8: 1,878 | EW8: 1 | EX8: 0 | EY8: 1,299 | EZ8: 763 | FA8: 100 | FB8: 0 | FC8: 0 | FD8: 0 | FE8: 59 | FF8: 0 | FG8: 0 | FH8: - | FI8: - | FJ8: - | FK8: 0 | FL8: 0 | FM8: 0 | FN8: 0 | FO8: 784
A9: 茨城県 | B9: 08202 | C9: 日立市 | D9: 10,367 | E9: 2,483 | F9: 45 | G9: 0 | H9: 1,196 | I9: 1,155 | J9: 356 | K9: 52 | L9: 64 | M9: 0 | N9: 67 | O9: 0 | P9: 0 | Q9: 3,906 | R9: 0 | S9: 0 | T9: 0 | U9: 0 | V9: 0 | W9: 22 | X9: 1,021 | Y9: 4,075 | Z9: 0 | AA9: 0 | AB9: 0 | AC9: 0 | AD9: 0 | AE9: 0 | AF9: 0 | AG9: 0 | AH9: 0 | AI9: 0 | AJ9: - | AK9: - | AL9: 3,906 | AM9: - | AN9: - | AO9: 0 | AP9: - | AQ9: 0 | AR9: - | AS9: 169 | AT9: 1,722 | AU9: 583 | AV9: 22 | AW9: 0 | AX9: 1,033 | AY9: 2 | AZ9: 15 | BA9: 0 | BB9: 0 | BC9: 0 | BD9: 67 | BE9: - | BF9: - | BG9: - | BH9: - | BI9: - | BJ9: - | BK9: - | BL9: - | BM9: - | BN9: 0 | BO9: 0 | BP9: 0 | BQ9: 0 | BR9: 0 | BS9: 0 | BT9: 0 | BU9: 0 | BV9: 0 | BW9: 0 | BX9: 0 | BY9: 0 | BZ9: 0 | CA9: 0 | CB9: - | CC9: - | CD9: - | CE9: - | CF9: - | CG9: - | CH9: - | CI9: 0 | CJ9: 0 | CK9: 0 | CL9: 0 | CM9: 0 | CN9: 0 | CO9: 0 | CP9: 0 | CQ9: 0 | CR9: 0 | CS9: 0 | CT9: 0 | CU9: 0 | CV9: 0 | CW9: - | CX9: - | CY9: - | CZ9: - | DA9: - | DB9: - | DC9: - | DD9: 0 | DE9: 0 | DF9: 0 | DG9: 0 | DH9: 0 | DI9: 0 | DJ9: 0 | DK9: 0 | DL9: 0 | DM9: 0 | DN9: 0 | DO9: 0 | DP9: 0 | DQ9: 0 | DR9: - | DS9: - | DT9: 0 | DU9: - | DV9: - | DW9: - | DX9: - | DY9: 0 | DZ9: 0 | EA9: 0 | EB9: 0 | EC9: 0 | ED9: 0 | EE9: 0 | EF9: 0 | EG9: 0 | EH9: 0 | EI9: 0 | EJ9: 0 | EK9: - | EL9: - | EM9: - | EN9: 0 | EO9: 0 | EP9: - | EQ9: - | ER9: - | ES9: 0 | ET9: 0 | EU9: 4,570 | EV9: 1,900 | EW9: 23 | EX9: 0 | EY9: 163 | EZ9: 1,153 | FA9: 341 | FB9: 52 | FC9: 64 | FD9: 0 | FE9: 0 | FF9: 0 | FG9: 0 | FH9: - | FI9: - | FJ9: - | FK9: 0 | FL9: 0 | FM9: 0 | FN9: 22 | FO9: 852
A10: 茨城県 | B10: 08203 | C10: 土浦市 | D10: 8,271 | E10: 95 | F10: 0 | G10: 0 | H10: 1,194 | I10: 737 | J10: 267 | K10: 0 | L10: 789 | M10: 0 | N10: 134 | O10: 0 | P10: 0 | Q10: 57 | R10: 0 | S10: 0 | T10: 0 | U10: 0 | V10: 0 | W10: 21 | X10: 4,977 | Y10: 260 | Z10: 95 | AA10: 0 | AB10: 0 | AC10: 106 | AD10: 0 | AE10: 0 | AF10: 0 | AG10: 0 | AH10: 0 | AI10: 2 | AJ10: - | AK10: - | AL10: 57 | AM10: - | AN10: - | AO10: 0 | AP10: - | AQ10: 0 | AR10: - | AS10: 0 | AT10: 1,088 | AU10: 0 | AV10: 0 | AW10: 0 | AX10: 1,088 | AY10: 0 | AZ10: 0 | BA10: 0 | BB10: 0 | BC10: 0 | BD10: 0 | BE10: - | BF10: - | BG10: - | BH10: - | BI10: - | BJ10: - | BK10: - | BL10: - | BM10: - | BN10: 0 | BO10: 0 | BP10: 0 | BQ10: 0 | BR10: 0 | BS10: 0 | BT10: 0 | BU10: 0 | BV10: 0 | BW10: 0 | BX10: 0 | BY10: 0 | BZ10: 0 | CA10: 0 | CB10: - | CC10: - | CD10: - | CE10: - | CF10: - | CG10: - | CH10: - | CI10: 0 | CJ10: 0 | CK10: 0 | CL10: 0 | CM10: 0 | CN10: 0 | CO10: 0 | CP10: 0 | CQ10: 0 | CR10: 0 | CS10: 0 | CT10: 0 | CU10: 0 | CV10: 0 | CW10: - | CX10: - | CY10: - | CZ10: - | DA10: - | DB10: - | DC10: - | DD10: 0 | DE10: 0 | DF10: 0 | DG10: 0 | DH10: 0 | DI10: 0 | DJ10: 0 | DK10: 0 | DL10: 0 | DM10: 0 | DN10: 0 | DO10: 0 | DP10: 0 | DQ10: 0 | DR10: - | DS10: - | DT10: 0 | DU10: - | DV10: - | DW10: - | DX10: - | DY10: 0 | DZ10: 21 | EA10: 0 | EB10: 0 | EC10: 0 | ED10: 0 | EE10: 0 | EF10: 0 | EG10: 0 | EH10: 0 | EI10: 0 | EJ10: 0 | EK10: - | EL10: - | EM10: - | EN10: 0 | EO10: 0 | EP10: - | EQ10: - | ER10: - | ES10: 21 | ET10: 0 | EU10: 6,902 | EV10: 0 | EW10: 0 | EX10: 0 | EY10: 0 | EZ10: 737 | FA10: 267 | FB10: 0 | FC10: 789 | FD10: 0 | FE10: 132 | FF10: 0 | FG10: 0 | FH10: - | FI10: - | FJ10: - | FK10: 0 | FL10: 0 | FM10: 0 | FN10: 0 | FO10: 4,977
A11: 茨城県 | B11: 08204 | C11: 古河市 | D11: 4,397 | E11: 13 | F11: 0 | G11: 0 | H11: 1,077 | I11: 982 | J11: 495 | K11: 0 | L11: 702 | M11: 0 | N11: 0 | O11: 0 | P11: 0 | Q11: 1,128 | R11: 0 | S11: 0 | T11: 0 | U11: 0 | V11: 0 | W11: 0 | X11: 0 | Y11: 1,314 | Z11: 0 | AA11: 0 | AB11: 0 | AC11: 186 | AD11: 0 | AE11: 0 | AF11: 0 | AG11: 0 | AH11: 0 | AI11: 0 | AJ11: - | AK11: - | AL11: 1,128 | AM11: - | AN11: - | AO11: 0 | AP11: - | AQ11: 0 | AR11: - | AS11: 0 | AT11: 0 | AU11: 0 | AV11: 0 | AW11: 0 | AX11: 0 | AY11: 0 | AZ11: 0 | BA11: 0 | BB11: 0 | BC11: 0 | BD11: 0 | BE11: - | BF11: - | BG11: - | BH11: - | BI11: - | BJ11: - | BK11: - | BL11: - | BM11: - | BN11: 0 | BO11: 0 | BP11: 0 | BQ11: 0 | BR11: 0 | BS11: 0 | BT11: 0 | BU11: 0 | BV11: 0 | BW11: 0 | BX11: 0 | BY11: 0 | BZ11: 0 | CA11: 0 | CB11: - | CC11: - | CD11: - | CE11: - | CF11: - | CG11: - | CH11: - | CI11: 0 | CJ11: 0 | CK11: 0 | CL11: 0 | CM11: 0 | CN11: 0 | CO11: 0 | CP11: 0 | CQ11: 0 | CR11: 0 | CS11: 0 | CT11: 0 | CU11: 0 | CV11: 0 | CW11: - | CX11: - | CY11: - | CZ11: - | DA11: - | DB11: - | DC11: - | DD11: 0 | DE11: 0 | DF11: 0 | DG11: 0 | DH11: 0 | DI11: 0 | DJ11: 0 | DK11: 0 | DL11: 0 | DM11: 0 | DN11: 0 | DO11: 0 | DP11: 0 | DQ11: 0 | DR11: - | DS11: - | DT11: 0 | DU11: - | DV11: - | DW11: - | DX11: - | DY11: 0 | DZ11: 0 | EA11: 0 | EB11: 0 | EC11: 0 | ED11: 0 | EE11: 0 | EF11: 0 | EG11: 0 | EH11: 0 | EI11: 0 | EJ11: 0 | EK11: - | EL11: - | EM11: - | EN11: 0 | EO11: 0 | EP11: - | EQ11: - | ER11: - | ES11: 0 | ET11: 0 | EU11: 3,083 | EV11: 13 | EW11: 0 | EX11: 0 | EY11: 891 | EZ11: 982 | FA11: 495 | FB11: 0 | FC11: 702 | FD11: 0 | FE11: 0 | FF11: 0 | FG11: 0 | FH11: - | FI11: - | FJ11: - | FK11: 0 | FL11: 0 | FM11: 0 | FN11: 0 | FO11: 0
A12: 茨城県 | B12: 08205 | C12: 石岡市 | D12: 4,118 | E12: 443 | F12: 0 | G12: 0 | H12: 597 | I12: 568 | J12: 102 | K12: 0 | L12: 9 | M12: 0 | N12: 5 | O12: 0 | P12: 0 | Q12: 2,250 | R12: 0 | S12: 0 | T12: 0 | U12: 0 | V12: 0 | W12: 0 | X12: 144 | Y12: 2,283 | Z12: 28 | AA12: 0 | AB12: 0 | AC12: 0 | AD12: 0 | AE12: 0 | AF12: 0 | AG12: 0 | AH12: 0 | AI12: 5 | AJ12: - | AK12: - | AL12: 2,250 | AM12: - | AN12: - | AO12: 0 | AP12: - | AQ12: 0 | AR12: - | AS12: 0 | AT12: 1,105 | AU12: 0 | AV12: 0 | AW12: 0 | AX12: 597 | AY12: 364 | AZ12: 0 | BA12: 0 | BB12: 0 | BC12: 0 | BD12: 0 | BE12: - | BF12: - | BG12: - | BH12: - | BI12: - | BJ12: - | BK12: - | BL12: - | BM12: - | BN12: 144 | BO12: 0 | BP12: 0 | BQ12: 0 | BR12: 0 | BS12: 0 | BT12: 0 | BU12: 0 | BV12: 0 | BW12: 0 | BX12: 0 | BY12: 0 | BZ12: 0 | CA12: 0 | CB12: - | CC12: - | CD12: - | CE12: - | CF12: - | CG12: - | CH12: - | CI12: 0 | CJ12: 0 | CK12: 0 | CL12: 0 | CM12: 0 | CN12: 0 | CO12: 0 | CP12: 0 | CQ12: 0 | CR12: 0 | CS12: 0 | CT12: 0 | CU12: 0 | CV12: 0 | CW12: - | CX12: - | CY12: - | CZ12: - | DA12: - | DB12: - | DC12: - | DD12: 0 | DE12: 0 | DF12: 0 | DG12: 0 | DH12: 0 | DI12: 0 | DJ12: 0 | DK12: 0 | DL12: 0 | DM12: 0 | DN12: 0 | DO12: 0 | DP12: 0 | DQ12: 0 | DR12: - | DS12: - | DT12: 0 | DU12: - | DV12: - | DW12: - | DX12: - | DY12: 0 | DZ12: 0 | EA12: 0 | EB12: 0 | EC12: 0 | ED12: 0 | EE12: 0 | EF12: 0 | EG12: 0 | EH12: 0 | EI12: 0 | EJ12: 0 | EK12: - | EL12: - | EM12: - | EN12: 0 | EO12: 0 | EP12: - | EQ12: - | ER12: - | ES12: 0 | ET12: 0 | EU12: 730 | EV12: 415 | EW12: 0 | EX12: 0 | EY12: 0 | EZ12: 204 | FA12: 102 | FB12: 0 | FC12: 9 | FD12: 0 | FE12: 0 | FF12: 0 | FG12: 0 | FH12: - | FI12: - | FJ12: - | FK12: 0 | FL12: 0 | FM12: 0 | FN12: 0 | FO12: 0
A13: 茨城県 | B13: 08207 | C13: 結城市 | D13: 1,763 | E13: 0 | F13: 0 | G13: 0 | H13: 0 | I13: 0 | J13: 0 | K13: 0 | L13: 0 | M13: 0 | N13: 0 | O13: 0 | P13: 0 | Q13: 1,356 | R13: 0 | S13: 0 | T13: 0 | U13: 0 | V13: 0 | W13: 0 | X13: 407 | Y13: 1,763 | Z13: 0 | AA13: 0 | AB13: 0 | AC13: 0 | AD13: 0 | AE13: 0 | AF13: 0 | AG13: 0 | AH13: 0 | AI13: 0 | AJ13: - | AK13: - | AL13: 1,356 | AM13: - | AN13: - | AO13: 0 | AP13: - | AQ13: 0 | AR13: - | AS13: 407 | AT13: 0 | AU13: 0 | AV13: 0 | AW13: 0 | AX13: 0 | AY13: 0 | AZ13: 0 | BA13: 0 | BB13: 0 | BC13: 0 | BD13: 0 | BE13: - | BF13: - | BG13: - | BH13: - | BI13: - | BJ13: - | BK13: - | BL13: - | BM13: - | BN13: 0 | BO13: 0 | BP13: 0 | BQ13: 0 | BR13: 0 | BS13: 0 | BT13: 0 | BU13: 0 | BV13: 0 | BW13: 0 | BX13: 0 | BY13: 0 | BZ13: 0 | CA13: 0 | CB13: - | CC13: - | CD13: - | CE13: - | CF13: - | CG13: - | CH13: - | CI13: 0 | CJ13: 0 | CK13: 0 | CL13: 0 | CM13: 0 | CN13: 0 | CO13: 0 | CP13: 0 | CQ13: 0 | CR13: 0 | CS13: 0 | CT13: 0 | CU13: 0 | CV13: 0 | CW13: - | CX13: - | CY13: - | CZ13: - | DA13: - | DB13: - | DC13: - | DD13: 0 | DE13: 0 | DF13: 0 | DG13: 0 | DH13: 0 | DI13: 0 | DJ13: 0 | DK13: 0 | DL13: 0 | DM13: 0 | DN13: 0 | DO13: 0 | DP13: 0 | DQ13: 0 | DR13: - | DS13: - | DT13: 0 | DU13: - | DV13: - | DW13: - | DX13: - | DY13: 0 | DZ13: 0 | EA13: 0 | EB13: 0 | EC13: 0 | ED13: 0 | EE13: 0 | EF13: 0 | EG13: 0 | EH13: 0 | EI13: 0 | EJ13: 0 | EK13: - | EL13: - | EM13: - | EN13: 0 | EO13: 0 | EP13: - | EQ13: - | ER13: - | ES13: 0 | ET13: 0 | EU13: 0 | EV13: 0 | EW13: 0 | EX13: 0 | EY13: 0 | EZ13: 0 | FA13: 0 | FB13: 0 | FC13: 0 | FD13: 0 | FE13: 0 | FF13: 0 | FG13: 0 | FH13: - | FI13: - | FJ13: - | FK13: 0 | FL13: 0 | FM13: 0 | FN13: 0 | FO13: 0
A14: 茨城県 | B14: 08208 | C14: 龍ケ崎市 | D14: 2,802 | E14: 0 | F14: 0 | G14: 0 | H14: 637 | I14: 0 | J14: 120 | K14: 0 | L14: 0 | M14: 0 | N14: 0 | O14: 0 | P14: 0 | Q14: 2,045 | R14: 0 | S14: 0 | T14: 0 | U14: 0 | V14: 0 | W14: 0 | X14: 0 | Y14: 2,060 | Z14: 0 | AA14: 0 | AB14: 0 | AC14: 15 | AD14: 0 | AE14: 0 | AF14: 0 | AG14: 0 | AH14: 0 | AI14: 0 | AJ14: - | AK14: - | AL14: 2,045 | AM14: - | AN14: - | AO14: 0 | AP14: - | AQ14: 0 | AR14: - | AS14: 0 | AT14: 450 | AU14: 0 | AV14: 0 | AW14: 0 | AX14: 450 | AY14: 0 | AZ14: 0 | BA14: 0 | BB14: 0 | BC14: 0 | BD14: 0 | BE14: - | BF14: - | BG14: - | BH14: - | BI14: - | BJ14: - | BK14: - | BL14: - | BM14: - | BN14: 0 | BO14: 0 | BP14: 0 | BQ14: 0 | BR14: 0 | BS14: 0 | BT14: 0 | BU14: 0 | BV14: 0 | BW14: 0 | BX14: 0 | BY14: 0 | BZ14: 0 | CA14: 0 | CB14: - | CC14: - | CD14: - | CE14: - | CF14: - | CG14: - | CH14: - | CI14: 0 | CJ14: 0 | CK14: 0 | CL14: 0 | CM14: 0 | CN14: 0 | CO14: 0 | CP14: 0 | CQ14: 0 | CR14: 0 | CS14: 0 | CT14: 0 | CU14: 0 | CV14: 0 | CW14: - | CX14: - | CY14: - | CZ14: - | DA14: - | DB14: - | DC14: - | DD14: 0 | DE14: 0 | DF14: 0 | DG14: 0 | DH14: 0 | DI14: 0 | DJ14: 0 | DK14: 0 | DL14: 0 | DM14: 0 | DN14: 0 | DO14: 0 | DP14: 0 | DQ14: 0 | DR14: - | DS14: - | DT14: 0 | DU14: - | DV14: - | DW14: - | DX14: - | DY14: 0 | DZ14: 0 | EA14: 0 | EB14: 0 | EC14: 0 | ED14: 0 | EE14: 0 | EF14: 0 | EG14: 0 | EH14: 0 | EI14: 0 | EJ14: 0 | EK14: - | EL14: - | EM14: - | EN14: 0 | EO14: 0 | EP14: - | EQ14: - | ER14: - | ES14: 0 | ET14: 0 | EU14: 292 | EV14: 0 | EW14: 0 | EX14: 0 | EY14: 172 | EZ14: 0 | FA14: 120 | FB14: 0 | FC14: 0 | FD14: 0 | FE14: 0 | FF14: 0 | FG14: 0 | FH14: - | FI14: - | FJ14: - | FK14: 0 | FL14: 0 | FM14: 0 | FN14: 0 | FO14: 0
A15: 茨城県 | B15: 08210 | C15: 下妻市 | D15: 262 | E15: 0 | F15: 0 | G15: 0 | H15: 259 | I15: 3 | J15: 0 | K15: 0 | L15: 0 | M15: 0 | N15: 0 | O15: 0 | P15: 0 | Q15: 0 | R15: 0 | S15: 0 | T15: 0 | U15: 0 | V15: 0 | W15: 0 | X15: 0 | Y15: 0 | Z15: 0 | AA15: 0 | AB15: 0 | AC15: 0 | AD15: 0 | AE15: 0 | AF15: 0 | AG15: 0 | AH15: 0 | AI15: 0 | AJ15: - | AK15: - | AL15: 0 | AM15: - | AN15: - | AO15: 0 | AP15: - | AQ15: 0 | AR15: - | AS15: 0 | AT15: 251 | AU15: 0 | AV15: 0 | AW15: 0 | AX15: 251 | AY15: 0 | AZ15: 0 | BA15: 0 | BB15: 0 | BC15: 0 | BD15: 0 | BE15: - | BF15: - | BG15: - | BH15: - | BI15: - | BJ15: - | BK15: - | BL15: - | BM15: - | BN15: 0 | BO15: 0 | BP15: 0 | BQ15: 0 | BR15: 0 | BS15: 0 | BT15: 0 | BU15: 0 | BV15: 0 | BW15: 0 | BX15: 0 | BY15: 0 | BZ15: 0 | CA15: 0 | CB15: - | CC15: - | CD15: - | CE15: - | CF15: - | CG15: - | CH15: - | CI15: 0 | CJ15: 0 | CK15: 0 | CL15: 0 | CM15: 0 | CN15: 0 | CO15: 0 | CP15: 0 | CQ15: 0 | CR15: 0 | CS15: 0 | CT15: 0 | CU15: 0 | CV15: 0 | CW15: - | CX15: - | CY15: - | CZ15: - | DA15: - | DB15: - | DC15: - | DD15: 0 | DE15: 0 | DF15: 0 | DG15: 0 | DH15: 0 | DI15: 0 | DJ15: 0 | DK15: 0 | DL15: 0 | DM15: 0 | DN15: 0 | DO15: 0 | DP15: 0 | DQ15: 0 | DR15: - | DS15: - | DT15: 0 | DU15: - | DV15: - | DW15: - | DX15: - | DY15: 0 | DZ15: 0 | EA15: 0 | EB15: 0 | EC15: 0 | ED15: 0 | EE15: 0 | EF15: 0 | EG15: 0 | EH15: 0 | EI15: 0 | EJ15: 0 | EK15: - | EL15: - | EM15: - | EN15: 0 | EO15: 0 | EP15: - | EQ15: - | ER15: - | ES15: 0 | ET15: 0 | EU15: 11 | EV15: 0 | EW15: 0 | EX15: 0 | EY15: 8 | EZ15: 3 | FA15: 0 | FB15: 0 | FC15: 0 | FD15: 0 | FE15: 0 | FF15: 0 | FG15: 0 | FH15: - | FI15: - | FJ15: - | FK15: 0 | FL15: 0 | FM15: 0 | FN15: 0 | FO15: 0
A16: 茨城県 | B16: 08211 | C16: 常総市 | D16: 1,082 | E16: 122 | F16: 263 | G16: 53 | H16: 155 | I16: 0 | J16: 0 | K16: 0 | L16: 0 | M16: 0 | N16: 0 | O16: 378 | P16: 16 | Q16: 0 | R16: 0 | S16: 0 | T16: 0 | U16: 0 | V16: 0 | W16: 0 | X16: 95 | Y16: 39 | Z16: 0 | AA16: 0 | AB16: 0 | AC16: 39 | AD16: 0 | AE16: 0 | AF16: 0 | AG16: 0 | AH16: 0 | AI16: 0 | AJ16: - | AK16: - | AL16: 0 | AM16: - | AN16: - | AO16: 0 | AP16: - | AQ16: 0 | AR16: - | AS16: 0 | AT16: 199 | AU16: 0 | AV16: 0 | AW16: 0 | AX16: 116 | AY16: 0 | AZ16: 0 | BA16: 0 | BB16: 0 | BC16: 0 | BD16: 0 | BE16: - | BF16: - | BG16: - | BH16: - | BI16: - | BJ16: - | BK16: - | BL16: - | BM16: - | BN16: 83 | BO16: 394 | BP16: 0 | BQ16: 0 | BR16: 0 | BS16: 0 | BT16: 0 | BU16: 0 | BV16: 0 | BW16: 0 | BX16: 0 | BY16: 0 | BZ16: 378 | CA16: 16 | CB16: - | CC16: - | CD16: - | CE16: - | CF16: - | CG16: - | CH16: - | CI16: 0 | CJ16: 0 | CK16: 0 | CL16: 0 | CM16: 0 | CN16: 0 | CO16: 0 | CP16: 0 | CQ16: 0 | CR16: 0 | CS16: 0 | CT16: 0 | CU16: 0 | CV16: 0 | CW16: - | CX16: - | CY16: - | CZ16: - | DA16: - | DB16: - | DC16: - | DD16: 0 | DE16: 0 | DF16: 0 | DG16: 0 | DH16: 0 | DI16: 0 | DJ16: 0 | DK16: 0 | DL16: 0 | DM16: 0 | DN16: 0 | DO16: 0 | DP16: 0 | DQ16: 0 | DR16: - | DS16: - | DT16: 0 | DU16: - | DV16: - | DW16: - | DX16: - | DY16: 0 | DZ16: 0 | EA16: 0 | EB16: 0 | EC16: 0 | ED16: 0 | EE16: 0 | EF16: 0 | EG16: 0 | EH16: 0 | EI16: 0 | EJ16: 0 | EK16: - | EL16: - | EM16: - | EN16: 0 | EO16: 0 | EP16: - | EQ16: - | ER16: - | ES16: 0 | ET16: 0 | EU16: 450 | EV16: 122 | EW16: 263 | EX16: 53 | EY16: 0 | EZ16: 0 | FA16: 0 | FB16: 0 | FC16: 0 | FD16: 0 | FE16: 0 | FF16: 0 | FG16: 0 | FH16: - | FI16: - | FJ16: - | FK16: 0 | FL16: 0 | FM16: 0 | FN16: 0 | FO16: 12
A17: 茨城県 | B17: 08212 | C17: 常陸太田市 | D17: 869 | E17: 0 | F17: 3 | G17: 0 | H17: 165 | I17: 610 | J17: 63 | K17: 10 | L17: 0 | M17: 0 | N17: 0 | O17: 0 | P17: 0 | Q17: 0 | R17: 0 | S17: 0 | T17: 0 | U17: 0 | V17: 0 | W17: 0 | X17: 18 | Y17: 0 | Z17: 0 | AA17: 0 | AB17: 0 | AC17: 0 | AD17: 0 | AE17: 0 | AF17: 0 | AG17: 0 | AH17: 0 | AI17: 0 | AJ17: - | AK17: - | AL17: 0 | AM17: - | AN17: - | AO17: 0 | AP17: - | AQ17: 0 | AR17: - | AS17: 0 | AT17: 0 | AU17: 0 | AV17: 0 | AW17: 0 | AX17: 0 | AY17: 0 | AZ17: 0 | BA17: 0 | BB17: 0 | BC17: 0 | BD17: 0 | BE17: - | BF17: - | BG17: - | BH17: - | BI17: - | BJ17: - | BK17: - | BL17: - | BM17: - | BN17: 0 | BO17: 0 | BP17: 0 | BQ17: 0 | BR17: 0 | BS17: 0 | BT17: 0 | BU17: 0 | BV17: 0 | BW17: 0 | BX17: 0 | BY17: 0 | BZ17: 0 | CA17: 0 | CB17: - | CC17: - | CD17: - | CE17: - | CF17: - | CG17: - | CH17: - | CI17: 0 | CJ17: 0 | CK17: 0 | CL17: 0 | CM17: 0 | CN17: 0 | CO17: 0 | CP17: 0 | CQ17: 0 | CR17: 0 | CS17: 0 | CT17: 0 | CU17: 0 | CV17: 0 | CW17: - | CX17: - | CY17: - | CZ17: - | DA17: - | DB17: - | DC17: - | DD17: 0 | DE17: 0 | DF17: 0 | DG17: 0 | DH17: 0 | DI17: 0 | DJ17: 0 | DK17: 0 | DL17: 0 | DM17: 0 | DN17: 0 | DO17: 0 | DP17: 0 | DQ17: 0 | DR17: - | DS17: - | DT17: 0 | DU17: - | DV17: - | DW17: - | DX17: - | DY17: 0 | DZ17: 0 | EA17: 0 | EB17: 0 | EC17: 0 | ED17: 0 | EE17: 0 | EF17: 0 | EG17: 0 | EH17: 0 | EI17: 0 | EJ17: 0 | EK17: - | EL17: - | EM17: - | EN17: 0 | EO17: 0 | EP17: - | EQ17: - | ER17: - | ES17: 0 | ET17: 0 | EU17: 869 | EV17: 0 | EW17: 3 | EX17: 0 | EY17: 165 | EZ17: 610 | FA17: 63 | FB17: 10 | FC17: 0 | FD17: 0 | FE17: 0 | FF17: 0 | FG17: 0 | FH17: - | FI17: - | FJ17: - | FK17: 0 | FL17: 0 | FM17: 0 | FN17: 0 | FO17: 18
A18: 茨城県 | B18: 08214 | C18: 高萩市 | D18: 2,013 | E18: 766 | F18: 0 | G18: 0 | H18: 208 | I18: 240 | J18: 66 | K18: 7 | L18: 0 | M18: 0 | N18: 141 | O18: 0 | P18: 0 | Q18: 0 | R18: 0 | S18: 0 | T18: 0 | U18: 0 | V18: 0 | W18: 0 | X18: 585 | Y18: 0 | Z18: 0 | AA18: 0 | AB18: 0 | AC18: 0 | AD18: 0 | AE18: 0 | AF18: 0 | AG18: 0 | AH18: 0 | AI18: 0 | AJ18: - | AK18: - | AL18: 0 | AM18: - | AN18: - | AO18: 0 | AP18: - | AQ18: 0 | AR18: - | AS18: 0 | AT18: 0 | AU18: 0 | AV18: 0 | AW18: 0 | AX18: 0 | AY18: 0 | AZ18: 0 | BA18: 0 | BB18: 0 | BC18: 0 | BD18: 0 | BE18: - | BF18: - | BG18: - | BH18: - | BI18: - | BJ18: - | BK18: - | BL18: - | BM18: - | BN18: 0 | BO18: 0 | BP18: 0 | BQ18: 0 | BR18: 0 | BS18: 0 | BT18: 0 | BU18: 0 | BV18: 0 | BW18: 0 | BX18: 0 | BY18: 0 | BZ18: 0 | CA18: 0 | CB18: - | CC18: - | CD18: - | CE18: - | CF18: - | CG18: - | CH18: - | CI18: 0 | CJ18: 0 | CK18: 0 | CL18: 0 | CM18: 0 | CN18: 0 | CO18: 0 | CP18: 0 | CQ18: 0 | CR18: 0 | CS18: 0 | CT18: 0 | CU18: 0 | CV18: 0 | CW18: - | CX18: - | CY18: - | CZ18: - | DA18: - | DB18: - | DC18: - | DD18: 0 | DE18: 0 | DF18: 0 | DG18: 0 | DH18: 0 | DI18: 0 | DJ18: 0 | DK18: 0 | DL18: 0 | DM18: 0 | DN18: 0 | DO18: 0 | DP18: 0 | DQ18: 0 | DR18: - | DS18: - | DT18: 0 | DU18: - | DV18: - | DW18: - | DX18: - | DY18: 0 | DZ18: 0 | EA18: 0 | EB18: 0 | EC18: 0 | ED18: 0 | EE18: 0 | EF18: 0 | EG18: 0 | EH18: 0 | EI18: 0 | EJ18: 0 | EK18: - | EL18: - | EM18: - | EN18: 0 | EO18: 0 | EP18: - | EQ18: - | ER18: - | ES18: 0 | ET18: 0 | EU18: 2,013 | EV18: 766 | EW18: 0 | EX18: 0 | EY18: 208 | EZ18: 240 | FA18: 66 | FB18: 7 | FC18: 0 | FD18: 0 | FE18: 141 | FF18: 0 | FG18: 0 | FH18: - | FI18: - | FJ18: - | FK18: 0 | FL18: 0 | FM18: 0 | FN18: 0 | FO18: 585
A19: 茨城県 | B19: 08215 | C19: 北茨城市 | D19: 566 | E19: 0 | F19: 0 | G19: 0 | H19: 0 | I19: 336 | J19: 230 | K19: 0 | L19: 0 | M19: 0 | N19: 0 | O19: 0 | P19: 0 | Q19: 0 | R19: 0 | S19: 0 | T19: 0 | U19: 0 | V19: 0 | W19: 0 | X19: 0 | Y19: 0 | Z19: 0 | AA19: 0 | AB19: 0 | AC19: 0 | AD19: 0 | AE19: 0 | AF19: 0 | AG19: 0 | AH19: 0 | AI19: 0 | AJ19: - | AK19: - | AL19: 0 | AM19: - | AN19: - | AO19: 0 | AP19: - | AQ19: 0 | AR19: - | AS19: 0 | AT19: 0 | AU19: 0 | AV19: 0 | AW19: 0 | AX19: 0 | AY19: 0 | AZ19: 0 | BA19: 0 | BB19: 0 | BC19: 0 | BD19: 0 | BE19: - | BF19: - | BG19: - | BH19: - | BI19: - | BJ19: - | BK19: - | BL19: - | BM19: - | BN19: 0 | BO19: 0 | BP19: 0 | BQ19: 0 | BR19: 0 | BS19: 0 | BT19: 0 | BU19: 0 | BV19: 0 | BW19: 0 | BX19: 0 | BY19: 0 | BZ19: 0 | CA19: 0 | CB19: - | CC19: - | CD19: - | CE19: - | CF19: - | CG19: - | CH19: - | CI19: 0 | CJ19: 0 | CK19: 0 | CL19: 0 | CM19: 0 | CN19: 0 | CO19: 0 | CP19: 0 | CQ19: 0 | CR19: 0 | CS19: 0 | CT19: 0 | CU19: 0 | CV19: 0 | CW19: - | CX19: - | CY19: - | CZ19: - | DA19: - | DB19: - | DC19: - | DD19: 0 | DE19: 0 | DF19: 0 | DG19: 0 | DH19: 0 | DI19: 0 | DJ19: 0 | DK19: 0 | DL19: 0 | DM19: 0 | DN19: 0 | DO19: 0 | DP19: 0 | DQ19: 0 | DR19: - | DS19: - | DT19: 0 | DU19: - | DV19: - | DW19: - | DX19: - | DY19: 0 | DZ19: 0 | EA19: 0 | EB19: 0 | EC19: 0 | ED19: 0 | EE19: 0 | EF19: 0 | EG19: 0 | EH19: 0 | EI19: 0 | EJ19: 0 | EK19: - | EL19: - | EM19: - | EN19: 0 | EO19: 0 | EP19: - | EQ19: - | ER19: - | ES19: 0 | ET19: 0 | EU19: 566 | EV19: 0 | EW19: 0 | EX19: 0 | EY19: 0 | EZ19: 336 | FA19: 230 | FB19: 0 | FC19: 0 | FD19: 0 | FE19: 0 | FF19: 0 | FG19: 0 | FH19: - | FI19: - | FJ19: - | FK19: 0 | FL19: 0 | FM19: 0 | FN19: 0 | FO19: 0
